Workbook

Sheet Admin - Readme
A1: ETYS Spatial Demand data
A2: Electricity spatial data, provided by National Grid's Energy Analysis team (National Grid ESO)
B4: Key
B5: Admin and info | C5: Black Tab
B6: Underlying data | C6: Green Tab
B7: Underlying data (NEEDING UPDATE) | C7: Yellow Tab
B8: Outputs / Frontend | C8: Purple Tab
B10: Update Log
B11: Activities completed on the workbook | C11: Worksheet | D11: Date | E11: Who | F11: Version
B12: Draft release to Transmission Owners for Statutory Obligations under the Grid Code - Winter Peak | C12: <ALL> | D12: 2025-04-28 | E12: RM | F12: 1
B13: Final release to Transmission Owners for Statutory Obligations under the Grid Code - Winter Peak & Summer minimum | C13: <ALL> | D13: 2025-07-11 | E13: RM | F13: 1.3
B19: Notes
B21: Note the peak demands here include distribution losses (~6%) but not transmission losses as we are illustrating demand here by Grid Supply Point
B22: Also note these demands will differ from the building blocks due to data definitions within the building blocks
B23: Peak demands here are those at winter peak system demand (ACS Conditions, 5pm-6pm)
B24: I&C DSR has not been deducted
B25: Electrolysis is assumed to be zero at peak.

Sheet Background info
A1: Key definitions for FES
A3: Winter peak: | B3: It refers to the period modelled as the highest GB transmission system demand occurring in the winter (not the individual GSP's period of highest demand and not necessarily the period of highest combined GSP demand). Historically it typically occurs between 5-6pm on a weekday between November - February
A4: Summer am: | B4: It refers to the period modelled as the lowest GB transmission system demand in the summer am periods (not the individual GSP's period of lowest demand and not necessarily the period of lowest combined GSP demand). Historically it typically occurs between 3-6am on a weekend between May - August
A5: Summer pm: | B5: It refers to the period modelled as the lowest GB transmission system demand in the summer pm periods (not the individual GSP's period of lowest demand and not necessarily the period of lowest combined GSP demand). Historically it typically occurs between 1-3pm on a weekend between May - August
A6: P gross (Active sheet): | B6: Underlying consumer active demand. Net active demand [P net] + distributed generation & storage charging/discharging (DG + Sub1MW + DxStorage + mBattery sheets, where the values representing battery charging in the DxStorage & mBattery sheets are negative).
A7: Q net: | B7: This is the net reactive power demand that we see at transmission level. For establishing the baseline values from the most recent year of history, NDD (NESO's operational demand metering) data has been used NGET GSPs, while the Standard Planning and Operating Code data required by the Grid Code (sometimes referred to as Week24) has been used for SHET and SPT GSPs.
A8: Q gross (Gross Reactive sheet): | B8: This is Qnet + LV gain (in this case where LV Gain is presented as a positive number in the requisite sheet, but in fact is a capacitive effect which generates reactive power)
A11: Key assumptions for FES
A13: AM/PM ratio (SHET and SPT only): | B13: Week24 data provides only values for the lowest GB transmission system demand. This can either be in a Summer am or Summer pm period. For FES 2025 the baseline data used was for a Summer pm period. To estimate the summer am minimum value for SHET and SPT we apply an am/pm ratio calculated from the summer minimum day profile for the whole TO area that is submitted in week24 (schedule 10c).
A14: Demand Components modelling: | B14: Detailed descriptions of how we estimated the demand component in each GSP is provided in the "ETYS spatial demand - overview" document and "FES modelling methods" document "Regional electricity demand" section. Otherwise, please approach the FES analyst for further information. Please note that demand component behaviour in each GSP is different for winter peaks, summer am and summer pm and has been adjusted so that the total trends align with FES trends in each time period. For example in the baseline year, FES GB demand at winter peak consists of ~40% residential demand and ~60% industrial & commercial demand, while FES GB demand at summer am & pm consists of ~25-30% residential demand and ~70-75% of industrial & commercial demand.
A15: Power Factors for Qgross: | B15: The power factors that have been used for calculating the Qgross are provided below. Please note that these power factors were not used to calculate the absolute and final value of Qgross based on Pgross, but the trend of the Qgross in the coming years. For more details, please refer to the methodology document.
B17: 19/20 | C17: 20/21 | D17: 21/22 | E17: 22/23 | F17: 23/24 | G17: 24/25 | H17: 25/26 | I17: 26/27 | J17: 27/28 | K17: 28/29 | L17: 29/30 | M17: 30/31 | N17: 31/32 | O17: 32/33 | P17: 33/34 | Q17: 34/35 | R17: 35/36 | S17: 36/37 | T17: 37/38 | U17: 38/39 | V17: 39/40 | W17: 40/41 | X17: 41/42 | Y17: 42/43 | Z17: 43/44 | AA17: 44/45 | AB17: 45/46 | AC17: 46/47 | AD17: 47/48 | AE17: 48/49 | AF17: 49/50 | AG17: 50/51
A18: Power Factor of Residential Demand excluding resistive heating
A19: HE | B19: 0.9313865319 | C19: 0.923328667 | D19: 0.9188097713 | E19: 0.9181803896 | F19: 0.9209511974 | G19: 0.9235951218 | H19: 0.9258175108 | I19: 0.9262015055 | J19: 0.9265921137 | K19: 0.92695343 | L19: 0.9269056976 | M19: 0.9270960667 | N19: 0.9274686812 | O19: 0.9278999657 | P19: 0.9282544369 | Q19: 0.9281724532 | R19: 0.9280888996 | S19: 0.9278668867 | T19: 0.9275702827 | U19: 0.9272521725 | V19: 0.9269094708 | W19: 0.9261644677 | X19: 0.9257969419 | Y19: 0.9257335976 | Z19: 0.9252538491 | AA19: 0.9243235711 | AB19: 0.9235140911 | AC19: 0.9232321072 | AD19: 0.9229077708 | AE19: 0.922285828 | AF19: 0.9216900017 | AG19: 0.9212082709
A20: EE | B20: 0.9313865319 | C20: 0.9237320684 | D20: 0.9206115929 | E20: 0.9211083038 | F20: 0.9235427373 | G20: 0.9248125164 | H20: 0.9260722563 | I20: 0.9262031965 | J20: 0.9262297357 | K20: 0.9262492061 | L20: 0.9258975211 | M20: 0.9258203307 | N20: 0.9261111429 | O20: 0.9263721451 | P20: 0.9264019921 | Q20: 0.9264194022 | R20: 0.9262636501 | S20: 0.9260800597 | T20: 0.9258866736 | U20: 0.9255930892 | V20: 0.9254599642 | W20: 0.9248923683 | X20: 0.9242932736 | Y20: 0.9238673692 | Z20: 0.9234128097 | AA20: 0.9229002275 | AB20: 0.9225172337 | AC20: 0.9219807684 | AD20: 0.9214784618 | AE20: 0.920839846 | AF20: 0.9206370601 | AG20: 0.9201537484
A21: HT | B21: 0.9313545093 | C21: 0.9240261662 | D21: 0.9215796545 | E21: 0.9219538763 | F21: 0.923930916 | G21: 0.9246814217 | H21: 0.9255309109 | I21: 0.9265227574 | J21: 0.9273339834 | K21: 0.9268320421 | L21: 0.9262799475 | M21: 0.9265634821 | N21: 0.9271350942 | O21: 0.9276989782 | P21: 0.9282132434 | Q21: 0.9287049164 | R21: 0.9290352342 | S21: 0.9293366789 | T21: 0.9296214767 | U21: 0.9298641089 | V21: 0.9304080097 | W21: 0.9304585387 | X21: 0.9304445251 | Y21: 0.9305772601 | Z21: 0.9308200815 | AA21: 0.9308844232 | AB21: 0.9315315994 | AC21: 0.9313402771 | AD21: 0.9311662464 | AE21: 0.9316387053 | AF21: 0.9318272355 | AG21: 0.931734153
A23: Power Factor of Commercial Demand
A24: HE | B24: 0.9678018028 | C24: 0.9453833009 | D24: 0.9276222298 | E24: 0.9166951578 | F24: 0.9166101767 | G24: 0.9165246906 | H24: 0.9164464824 | I24: 0.9164610927 | J24: 0.9165702006 | K24: 0.916694266 | L24: 0.916842322 | M24: 0.9170024106 | N24: 0.9168904172 | O24: 0.9167923357 | P24: 0.9167111676 | Q24: 0.9166657882 | R24: 0.9165892462 | S24: 0.9165400404 | T24: 0.9164876212 | U24: 0.9164437264 | V24: 0.9163953946 | W24: 0.9163613145 | X24: 0.9161899908 | Y24: 0.9160195154 | Z24: 0.9158569104 | AA24: 0.9156847673 | AB24: 0.9155143457 | AC24: 0.9153406159 | AD24: 0.9151602135 | AE24: 0.9149775831 | AF24: 0.9147813579 | AG24: 0.914573684
A25: EE | B25: 0.9678018028 | C25: 0.9453935318 | D25: 0.9279614081 | E25: 0.9174610061 | F25: 0.9177988771 | G25: 0.9181290282 | H25: 0.918493241 | I25: 0.9189368829 | J25: 0.919464312 | K25: 0.9200093265 | L25: 0.9205831754 | M25: 0.9211796004 | N25: 0.9213305712 | O25: 0.9214963658 | P25: 0.9216764651 | Q25: 0.921892393 | R25: 0.9220781627 | S25: 0.922281964 | T25: 0.9224751839 | U25: 0.9226678244 | V25: 0.9228547185 | W25: 0.923047666 | X25: 0.923026236 | Y25: 0.9230014978 | Z25: 0.9229794826 | AA25: 0.9229449063 | AB25: 0.922907246 | AC25: 0.922899345 | AD25: 0.9228846047 | AE25: 0.922866554 | AF25: 0.9228354858 | AG25: 0.9227905272
A26: HT | B26: 0.9678018028 | C26: 0.945367086 | D26: 0.9279794076 | E26: 0.917418585 | F26: 0.9179028788 | G26: 0.9184086003 | H26: 0.9190431094 | I26: 0.9198097347 | J26: 0.9207611569 | K26: 0.9217980313 | L26: 0.9229310351 | M26: 0.9241438143 | N26: 0.924596088 | O26: 0.9250574513 | P26: 0.9255213103 | Q26: 0.9259900386 | R26: 0.9264573811 | S26: 0.926929485 | T26: 0.9273965674 | U26: 0.9278604486 | V26: 0.9283183771 | W26: 0.9287790308 | X26: 0.9288833946 | Y26: 0.9289800766 | Z26: 0.9290724022 | AA26: 0.9291493232 | AB26: 0.9292180508 | AC26: 0.9293161209 | AD26: 0.929404214 | AE26: 0.9294877392 | AF26: 0.92955601 | AG26: 0.9296101397
A28: Industrial Power Factor | B28: 0.96
A29: EV power factor - for residential chargers | B29: 0.99
A30: Heat Pumps Power Factor | B30: 0.90336
A31: DH Power Factor | B31: 0.96
A32: SMR Plants | B32: 0.96
A33: Electrolysis Plants | B33: 0.96
A35: A note on LV Gain
A37: From ETYS 21 onwards, LV gain at each GSP has been propagated forward as a flat forecast of the starting years LV gain value. The starting year values of LV gain for GSP's in the SPT network are taken directly from SPT. The starting year values for GSP's in NGET and SHETL networks are based on simplified network models which allocate reactive power within the Major FLOP zones

Sheet GSP info
A1: GSP info
B3: The following table gives the location and GSP Group (DNO Licence area) for each Grid Supply Point.
B5: GSP ID | C5: GSP Group | D5: Minor FLOP | E5: Name | F5: Latitude | G5: Longitude | H5: Comments
B6: ABHA1 | C6: _L | D6: F6 | E6: Abham | F6: 50.47155865 | G6: -3.729488691
B7: ABNE_P | C7: _P | D7: T4 | E7: Abernethy | F7: 56.33945602 | G7: -3.293750933
B8: ABTH_1 | C8: _K | D8: H2 | E8: Aberthaw | F8: 51.38520959 | G8: -3.403318398
B9: ACTL_2 | C9: _H | D9: A7 | E9: Acton Lane 66kV | F9: 51.53495051 | G9: -0.2570502639
B10: ACTL_C | C10: _C | D10: A7 | E10: Acton Lane 22kV | F10: 51.53495051 | G10: -0.2570502639
B11: ALNE_P | C11: _P | D11: T5 | E11: Alness | F11: 57.70812973 | G11: -4.27420198
B12: ALST_3 | C12: _K | D12: H2 | E12: Alpha Steel (Uskmouth) | F12: 51.54868745 | G12: -2.975539939 | H12: Assume no demand growth should be modelled here. Assumed single distribution connected industrial site. All other FES demand allocated to USKM_1.
B13: ALVE1 | C13: _L | D13: F6 | E13: Alverdiscott | F13: 51.00569113 | G13: -4.137455119
B14: AMEM_1 | C14: _A | D14: A6 | E14: Amersham Main | F14: 51.66424942 | G14: -0.6551162085
B15: ARBR_P | C15: _P | D15: T4 | E15: Arbroath | F15: 56.56385676 | G15: -2.619040477
B16: ARDK_P | C16: _P | D16: T3 | E16: Ardkinglas | F16: 56.287166 | G16: -4.955504 | H16: Generation Only GSP. Gross Demand (P&Q) is zero. All FES demand allocated to CLAC_P
B17: ARMO_P | C17: _P | D17: T1 | E17: Ardmore | F17: 57.55442865 | G17: -6.645004363 | H17: Apply rules from 2030. Demand Load splits based on SHEPD Feedback
B18: AXMI_H | C18: _H | D18: E1 | E18: Axminster H | F18: 50.78707009 | G18: -2.924407538
B19: AXMI1 | C19: _L | D19: E1 | E19: Axminster | F19: 50.78707009 | G19: -2.924407538
B20: AYRR | C20: _N | D20: S6 | E20: Ayr | F20: 55.45688294 | G20: -4.587391665
B21: BAGA | C21: _N | D21: S5 | E21: Bathgate | F21: 55.90042458 | G21: -3.673881129
B22: BAIN | C22: _N | D22: S5 | E22: Bainsford | F22: 56.01383993 | G22: -3.767711215
B23: BARKR_A | C23: _A | D23: A1 | E23: Barking (Eastern) | F23: 51.51815491 | G23: 0.1131634518 | H23: BARKC1 then renamed to BARKR_A in "_A" area and BARKR_C in "_C" area as per newly registered GSPs. BARKC1 no longer present in Elexon data
B24: BARKR_C | C24: _C | D24: A1 | E24: Barking (London) | F24: 51.51815491 | G24: 0.1131634518 | H24: BARKC1 then renamed to BARKR_A in "_A" area and BARKR_C in "_C" area as per newly registered GSPs. BARKC1 no longer present in Elexon data. 2024 Week24 submissions suggest 100% of DG is allocated to BARKR__C
B25: BARKW3 | C25: _C | D25: A1 | E25: Barking West | F25: 51.51646602 | G25: 0.1069577919
B26: BEAU_P | C26: _P | D26: T1 | E26: Beauly | F26: 57.46759907 | G26: -4.489802119
B27: BEDD_1 | C27: _J | D27: A8 | E27: Beddington SPN | F27: 51.37403 | G27: -0.12918
B28: BEDDT1 | C28: _C | D28: A8 | E28: Beddington LPN | F28: 51.37403 | G28: -0.12918 | H28: Links to DNO downstream substation before branching out.
B29: BERB_P | C29: _P | D29: T1 | E29: Berryburn | F29: 57.504052 | G29: -3.599413 | H29: Modelled as Generation Only GSP. Gross Demand (P&Q) is zero. All FES demand allocated to KEIT_P
B30: BERW | C30: _N | D30: S6 | E30: Berwick | F30: 55.77742429 | G30: -2.078700087
B31: BESW_1 | C31: _B | D31: L3 | E31: Berkswell | F31: 52.38663495 | G31: -1.613945012
B32: BICF_1 | C32: _B | D32: K4 | E32: Bicker Fen | F32: 52.93080038 | G32: -0.2211638458
B33: BIRK_1 | C33: _D | D33: N3 | E33: Birkenhead | F33: 53.36590537 | G33: -3.061295921
B34: BISW_1 | C34: _E | D34: L2 | E34: Bishops Wood | F34: 52.31249689 | G34: -2.242735448
B35: BLYTB1 | C35: _F | D35: Q6 | E35: Blyth 66kV | F35: 55.14114091 | G35: -1.530712633
B36: BLYTH132 | C36: _F | D36: Q6 | E36: Blyth 132kV | F36: 55.14114091 | G36: -1.530712633
B37: BOAG_P | C37: _P | D37: T1 | E37: Boat of Garten | F37: 57.24932862 | G37: -3.723001408
B38: BOLN_1 | C38: _J | D38: B1 | E38: Bolney | F38: 50.97437307 | G38: -0.2364857567
B39: BONN | C39: _N | D39: S5 | E39: Bonnybridge | F39: 56.0071049 | G39: -3.860301279
B40: BOTW_1 | C40: _H | D40: B2 | E40: Botley Wood | F40: 50.88497196 | G40: -1.233003439
B41: BRAC_P | C41: _P | D41: T4 | E41: Braco West | F41: 56.27612575 | G41: -3.877741345
B42: BRAI_1 | C42: _A | D42: J8 | E42: Braintree | F42: 51.86536349 | G42: 0.5760433
B43: BRAP | C43: _N | D43: S6 | E43: Braehead Park | F43: 55.88072439 | G43: -4.381001627
B44: BRAW_1 | C44: _M | D44: P1 | E44: Bradford West | F44: 53.81009972 | G44: -1.866986068
B45: BRED_1 | C45: _G | D45: N2 | E45: Bredbury | F45: 53.41523177 | G45: -2.13127572
B46: BRFO_1 | C46: _A | D46: J5 | E46: Bramford | F46: 52.07018187 | G46: 1.062822573
B47: BRID_P | C47: _P | D47: T4 | E47: Bridge of Dun | F47: 56.72040723 | G47: -2.556550442
B48: BRIM_1 | C48: _A | D48: A3 | E48: Brimsdown | F48: 51.66350383 | G48: -0.02488461435
B49: BRLE_1 | C49: _H | D49: B4 | E49: Bramley | F49: 51.33545 | G49: -1.07695
B50: BROA_P | C50: _P | D50: T1 | E50: Broadford | F50: 57.2479281 | G50: -5.93580345
B51: BROR_P | C51: _P | D51: T5 | E51: Brora | F51: 58.01993055 | G51: -3.87470168
B52: BROX | C52: _N | D52: S6 | E52: Broxburn | F52: 55.91932467 | G52: -3.453400982
B53: BRWA1 | C53: _L | D53: E7 | E53: Bridgewater | F53: 51.11731596 | G53: -2.968839464
B54: BUMU_P | C54: _P | D54: T4 | E54: Burghmuir | F54: 56.39669617 | G54: -3.487501081
B55: BURM_1 | C55: _A | D55: J7 | E55: Burwell Main | F55: 52.28005309 | G55: 0.3120610356
B56: BUSH_1 | C56: _E | D56: L2 | E56: Bushbury | F56: 52.63622392 | G56: -2.114755279
B57: BUST_1 | C57: _E | D57: L3 | E57: Bustleholme | F57: 52.55295117 | G57: -1.96402348
B58: CAAD_P | C58: _P | D58: T3 | E58: Carradale | F58: 55.59026315 | G58: -5.502312414
B59: CAFA | C59: _N | D59: S6 | E59: Carsfad | F59: 55.14350194 | G59: -4.189291315 | H59: Generation Only GSP. Gross Demand (P&Q) is zero. Galloway hydros. All FES demand allocated to TONG1
B60: CAIF_P | C60: _P | D60: T2 | E60: Cairnford | F60: 57.451749 | G60: -2.84971 | H60: Modelled as Generation Only GSP. Gross Demand (P&Q) is zero. All embedded gen is large. All FES demand allocated to KEIT_P
B61: CAMB_01 | C61: _M | D61: P4 | E61: Camblesforth 66kV (Drax) | F61: 53.72946043 | G61: -1.000848779
B62: CANTN1 | C62: _J | D62: C7 | E62: Canterbury | F62: 51.29233519 | G62: 1.094176117
B63: CAPEA1 | C63: _D | D63: N3 | E63: Capenhurst | F63: 53.26621 | G63: -2.948
B64: CARE_1 | C64: _K | D64: H2 | E64: Cardiff East | F64: 51.49547203 | G64: -3.144727906
B65: CARR_1 | C65: _G | D65: N2 | E65: Carrington | F65: 53.43491 | G65: -2.40035
B66: CASS_P | C66: _P | D66: T5 | E66: Cassley | F66: 56.54213245 | G66: -4.516696903
B67: CATY | C67: _N | D67: S6 | E67: Carntyne | F67: 55.85698435 | G67: -4.196611487
B68: CBNK_H | C68: _H | D68: A7 | E68: Canal Bank (Willesden 66kV) | F68: 51.53495051 | G68: -0.2570502639
B69: CEAN_P | C69: _P | D69: T1 | E69: Ceannacroc | F69: 57.15401813 | G69: -4.93670244
B70: CELL_1 | C70: _E | D70: L5 | E70: Cellarhead | F70: 53.04114256 | G70: -2.085759001
B71: CHAP | C71: _N | D71: S6 | E71: Chapelcross | F71: 55.01352163 | G71: -3.221100707
B72: CHAR_P | C72: _P | D72: T4 | E72: Charleston | F72: 56.47382646 | G72: -3.044800773
B73: CHAS | C73: _N | D73: S6 | E73: Charlotte Street | F73: 55.85505434 | G73: -4.239011517
B74: CHIC_1 | C74: _H | D74: E1 | E74: Chickerell | F74: 50.6243722 | G74: -2.489261224
B75: CHSI_1 | C75: _J | D75: A8 | E75: Chessington | F75: 51.34342592 | G75: -0.3233487594
B76: CHTE_1 | C76: _B | D76: P3 | E76: Chesterfield | F76: 53.22428249 | G76: -1.387485963
B77: CITR_1 | C77: _C | D77: A7 | E77: City Road | F77: 51.53069 | G77: -0.0958
B78: CLAC_P | C78: _P | D78: T3 | E78: Clachan | F78: 56.27712554 | G78: -4.922002162
B79: CLAY_P | C79: _P | D79: T2 | E79: Clayhills | F79: 57.14022844 | G79: -2.098600116
B80: CLT03 | C80: _A | D80: J5 | E80: Clacton (Bramford) | F80: 51.825998 | G80: 1.17942 | H80: Assumed Generation only GSP - Offshiore Wind/OFTO (Gunfleet Sands). All FES demand allocated to BRFO_1
B81: CLYM | C81: _N | D81: S6 | E81: Clyde’s Mill | F81: 55.822417 | G81: -4.1492781 | H81: Also known as Westburn Road
B82: COAT | C82: _N | D82: S6 | E82: Coatbridge | F82: 55.85144437 | G82: -4.013441355
B83: COCK | C83: _N | D83: S6 | E83: Cockenzie | F83: 55.96662487 | G83: -2.967000664
B84: CONQA1 | C84: _D | D84: M5 | E84: Connah's Quay | F84: 53.22754949 | G84: -3.072662698
B85: COUA_P | C85: _P | D85: T4 | E85: Coupar Angus | F85: 56.53812663 | G85: -3.273000945
B86: COVE_1 | C86: _B | D86: L3 | E86: Coventry | F86: 52.45552902 | G86: -1.463957482
B87: COWL_1 | C87: _H | D87: D6 | E87: Cowley | F87: 51.71035 | G87: -1.19091
B88: COYL | C88: _N | D88: S6 | E88: Coylton | F88: 55.44712294 | G88: -4.429001551
B89: CRAI_P | C89: _P | D89: T2 | E89: Craigiebuckler | F89: 57.13112841 | G89: -2.153000157
B90: CREB_1 | C90: _M | D90: P8 | E90: Creyke Beck | F90: 53.8009731 | G90: -0.4144914004
B91: CUMB | C91: _N | D91: S5 | E91: Cumbernauld | F91: 55.94697769 | G91: -3.96379534
B92: CUPA | C92: _N | D92: S5 | E92: Cupar | F92: 56.31422597 | G92: -3.035000748
B93: CURR | C93: _N | D93: S6 | E93: Currie | F93: 55.90222463 | G93: -3.308700882
B94: DALL_P | C94: _P | D94: T1 | E94: Dallas | F94: 57.556815 | G94: -3.420461 | H94: Modelled as Generation Only GSP. Gross Demand (P&Q) is zero.All embedded gen is large. All FES demand allocated to KEIT_P
B95: DALM3 | C95: _N | D95: S6 | E95: Dalmarnock | F95: 55.835349 | G95: -4.20354
B96: DEVM | C96: _N | D96: S6 | E96: Devol Moor | F96: 55.92738048 | G96: -4.676817863
B97: DEVO | C97: _N | D97: S5 | E97: Devonside | F97: 56.13732532 | G97: -3.779201246
B98: DEWP | C98: _N | D98: S6 | E98: Dewar Place | F98: 55.94719479 | G98: -3.209000822
B99: DOUN_P | C99: _P | D99: T5 | E99: Dounreay | F99: 58.57592179 | G99: -3.753501664
B100: DRAK_1 | C100: _B | D100: L2 | E100: Drakelow | F100: 52.77320433 | G100: -1.649460333
B101: DRAX_1 | C101: _M | D101: P4 | E101: Drax 132kV | F101: 53.73247783 | G101: -0.9925670617
B102: DRCR | C102: _N | D102: S5 | E102: Drumcross | F102: 55.90647761 | G102: -3.587601071
B103: DRUM | C103: _N | D103: S5 | E103: Drumchapel | F103: 55.91572452 | G103: -4.348901612
B104: DUBE_P | C104: _P | D104: T5 | E104: Dunbeath | F104: 58.25293114 | G104: -3.429801313 | H104: Generation only GSP. Gross Demand (P&Q) is zero. All FES demand allocated to MYBS_P
B105: DUDH_P | C105: _P | D105: T4 | E105: Dudhope | F105: 56.46172643 | G105: -2.950000704 | H105: Proposed to be offline from 2027, replaced by Stannahs Gate (G_EXTRA_20).
B106: DUGR_P | C106: _P | D106: T1 | E106: Dunvegan | F106: 57.42792837 | G106: -6.531004176
B107: DUNF | C107: _N | D107: S5 | E107: Dunfermline | F107: 56.08955522 | G107: -3.448901005
B108: DUNO_P | C108: _P | D108: S5 | E108: Dunoon | F108: 55.97462457 | G108: -4.940002084 | H108: Demand at this GSP is fed from the SSE TO area.
B109: DYCE_P | C109: _P | D109: T2 | E109: Dyce | F109: 57.21142863 | G109: -2.18100018
B110: EALI_6 | C110: _H | D110: A7 | E110: Ealing | F110: 51.5016007 | G110: -0.2967574379
B111: EASO_1 | C111: _A | D111: J4 | E111: Eaton Socon | F111: 52.21493994 | G111: -0.3025328992
B112: EAST | C112: _N | D112: S6 | E112: Earlstoun | F112: 55.11022183 | G112: -4.169301294 | H112: Generation Only GSP. Gross Demand (P&Q) is zero. Galloway hydros. All FES demand allocated to TONG1
B113: ECCL | C113: _N | D113: S6 | E113: Eccles | F113: 55.66812393 | G113: -2.327700238
B114: ECLA_1 | C114: _B | D114: D4 | E114: East Claydon | F114: 51.92717248 | G114: -0.9082635777
B115: ECLA_H | C115: _H | D115: D4 | E115: East Claydon | F115: 51.92717248 | G115: -0.9082635777
B116: EERH | C116: _N | D116: S6 | E116: Easterhouse | F116: 55.87860445 | G116: -4.073001403
B117: EKIL | C117: _N | D117: S6 | E117: East Kilbride | F117: 55.78492412 | G117: -4.191601466
B118: EKIS | C118: _N | D118: S6 | E118: East Kilbride South | F118: 55.73952397 | G118: -4.161101434
B119: ELDE | C119: _N | D119: S6 | E119: Elderslie | F119: 55.83952424 | G119: -4.462901677
B120: ELGI_P | C120: _P | D120: T1 | E120: Elgin | F120: 57.66232975 | G120: -3.317201133
B121: ELLA_1 | C121: _M | D121: P1 | E121: Elland | F121: 53.69492305 | G121: -1.822610331
B122: ELST_1 | C122: _A | D122: A6 | E122: Elstree | F122: 51.660005 | G122: -0.3422979965
B123: ENDE_1 | C123: _B | D123: L8 | E123: Enderby | F123: 52.59805668 | G123: -1.2148354
B124: ERSK | C124: _N | D124: S6 | E124: Erskine | F124: 55.90362445 | G124: -4.481001707
B125: EXET1 | C125: _L | D125: F6 | E125: Exeter | F125: 50.76653853 | G125: -3.405935773
B126: FASN_P | C126: _P | D126: T1 | E126: Fasnakyle | F126: 57.32282862 | G126: -4.789402354
B127: FAUG_P | C127: _P | D127: T1 | E127: Fort Augustus | F127: 57.13662813 | G127: -4.714502234
B128: FAWL_1 | C128: _H | D128: B2 | E128: Fawley | F128: 50.82102062 | G128: -1.329732989
B129: FECK_6 | C129: _E | D129: L3 | E129: Feckenham | F129: 52.25241222 | G129: -1.972149927
B130: FERRA2 | C130: _M | D130: P5 | E130: Ferrybridge A | F130: 53.7201 | G130: -1.27258
B131: FERRB_M | C131: _M | D131: P6 | E131: Ferrybridge B | F131: 53.72214524 | G131: -1.278177395
B132: FETT_P | C132: _P | D132: T2 | E132: Fetteresso | F132: 56.964638 | G132: -2.347373 | H132: Generation Only GSP. Gross Demand (P&Q) is zero. FES demand allocated 50:50 to KINT_P & ROTI3
B133: FIDD_P | C133: _P | D133: T2 | E133: Fiddes | F133: 56.92102782 | G133: -2.292000257
B134: FIDF_1 | C134: _D | D134: N1 | E134: Fiddlers Ferry (Cuerdley 132kV) | F134: 53.37157 | G134: -2.68833
B135: FINN | C135: _N | D135: S5 | E135: Finnieston | F135: 55.863398 | G135: -4.286086
B136: FLEE_1 | C136: _H | D136: B3 | E136: Fleet | F136: 51.25023576 | G136: -0.8810292697
B137: FOUR_1 | C137: _F | D137: Q8 | E137: Fourstones | F137: 55.01232 | G137: -2.16339
B138: FRAS_P | C138: _P | D138: T2 | E138: Fraserburgh | F138: 57.68624988 | G138: -2.023970061
B139: FROD_1 | C139: _D | D139: N3 | E139: Frodsham | F139: 53.30938 | G139: -2.71734
B140: FWIL_P | C140: _P | D140: T1 | E140: Fort William | F140: 56.81932714 | G140: -5.074302462
B141: GALA | C141: _N | D141: S6 | E141: Galashiels | F141: 55.60782371 | G141: -2.766500503
B142: GIFF | C142: _N | D142: S6 | E142: Giffnock | F142: 55.79802414 | G142: -4.297701545
B143: GLEF_P | C143: _P | D143: T1 | E143: Glenfarclas | F143: 57.415992 | G143: -3.315988 | H143: Generation Only GSP. Gross Demand (P&Q) is zero. All FES demand allocated to KEIT_P
B144: GLLE | C144: _N | D144: S6 | E144: Glenlee | F144: 55.09722178 | G144: -4.181001299 | H144: Generation Only GSP. Gross Demand (P&Q) is zero. Galloway hydros. All FES demand allocated to TONG1
B145: GLLU | C145: _N | D145: S6 | E145: Glenluce | F145: 54.87662088 | G145: -4.798001647
B146: GLNI | C146: _N | D146: S5 | E146: Glenniston | F146: 56.1084253 | G146: -3.267100883
B147: GLRO | C147: _N | D147: S5 | E147: Glenrothes | F147: 56.20402561 | G147: -3.196300847
B148: GORG | C148: _N | D148: S6 | E148: Gorgie | F148: 55.93502474 | G148: -3.234800837
B149: GOVA | C149: _N | D149: S6 | E149: Govan | F149: 55.85352432 | G149: -4.314201571
B150: GREE_H | C150: _H | D150: A7 | E150: Greenford (Willesden 66kV) | F150: 51.53495051 | G150: -0.2570502639
B151: GREN_1 | C151: _B | D151: J6 | E151: Grendon | F151: 52.24336404 | G151: -0.7256844951
B152: GRIW_1 | C152: _M | D152: P7 | E152: Grimsby West | F152: 53.56596349 | G152: -0.15076043
B153: GRUB_P | C153: _P | D153: T1 | E153: Grudie Bridge | F153: 57.61452938 | G153: -4.829902473
B154: HACK_1 | C154: _C | D154: A1 | E154: Hackney 132kV | F154: 51.55946391 | G154: -0.04078384414
B155: HACK_6 | C155: _C | D155: A1 | E155: Hackney 66kV | F155: 51.55952616 | G155: -0.04443114672
B156: HAGR | C156: _N | D156: S6 | E156: Haggs Road | F156: 55.83002425 | G156: -4.296476552
B157: HAMHC1 | C157: _E | D157: L3 | E157: Hams Hall (Lea Marston 132kV) | F157: 52.52866093 | G157: -1.708745398
B158: HARG_P | C158: _P | D158: T1 | E158: Harris | F158: 57.84561035 | G158: -6.830560427 | H158: Start date 2030. Demand Load splits based on SHEPD Feedback. DG splits based on SHEPD insights on the location of plant in the baseline.
B159: HARK_1 | C159: _G | D159: Q8 | E159: Harker | F159: 54.94152557 | G159: -2.964416544
B160: HARM_6 | C160: _F | D160: Q4 | E160: HartMoor | F160: 54.70123646 | G160: -1.290579837
B161: HAWI | C161: _N | D161: S6 | E161: Hawick | F161: 55.4282231 | G161: -2.791000502
B162: HAWP_6 | C162: _F | D162: Q4 | E162: Hawthorn Pit | F162: 54.80625179 | G162: -1.401606493
B163: HELE | C163: _N | D163: S5 | E163: Helensburgh | F163: 56.01992478 | G163: -4.701001908
B164: HEYS_1 | C164: _G | D164: R5 | E164: Heysham (NGET) | F164: 54.03269168 | G164: -2.888958664
B165: HEYS1 | C165: _G | D165: R5 | E165: Heysham (Barrow) | F165: 54.03224382 | G165: -2.887594525 | H165: Assumed Generation only GSP - Offshiore Wind/OFTO (Barrow Wind Farm). All FES demand allocated to HEYS_1
B166: HUER | C166: _N | D166: S6 | E166: Hunterston Farm | F166: 55.74322384 | G166: -4.863501953
B167: HURS_1 | C167: _C | D167: A8 | E167: Hurst | F167: 51.43577 | G167: 0.15361
B168: HUTT_1 | C168: _G | D168: R6 | E168: Hutton | F168: 54.29781087 | G168: -2.672149574
B169: IMPK_1 | C169: _D | D169: H6 | E169: Imperial Park | F169: 51.54742249 | G169: -3.031499838
B170: INDQ1 | C170: _L | D170: F6 | E170: Indian Queens | F170: 50.39489546 | G170: -4.900811188
B171: INKE | C171: _N | D171: S5 | E171: Inverkeithing | F171: 56.04217507 | G171: -3.389520957
B172: INNE_P | C172: _P | D172: T1 | E172: Inverness | F172: 57.45202908 | G172: -4.241401893
B173: IROA1 | C173: _L | D173: G5 | E173: Iron Acton | F173: 51.56898279 | G173: -2.481269925
B174: IRONB1 | C174: _E | D174: L5 | E174: Ironbridge | F174: 52.63248419 | G174: -2.509970581
B175: ISLI_1 | C175: _C | D175: A7 | E175: Islington | F175: 51.561381 | G175: -0.113443
B176: IVER_1 | C176: _H | D176: A6 | E176: Iver 132kV | F176: 51.54183582 | G176: -0.4976405561
B177: IVER_6 | C177: _H | D177: A6 | E177: Iver 66kV | F177: 51.54134646 | G177: -0.4965067591
B178: JOHN | C178: _N | D178: S6 | E178: Johnstone | F178: 55.84432425 | G178: -4.504101709
B179: JORD_3 | C179: _M | D179: P3 | E179: Jordanthorpe | F179: 53.33006 | G179: -1.45341
B180: KAIM | C180: _N | D180: S6 | E180: Kaimes | F180: 55.89052461 | G180: -3.163400784
B181: KEAD_1 | C181: _M | D181: P8 | E181: Keadby | F181: 53.59722 | G181: -0.75792
B182: KEAR_1 | C182: _G | D182: N4 | E182: Kearsley 132kV | F182: 53.53816 | G182: -2.35903
B183: KEAR_3 | C183: _G | D183: N4 | E183: Kearsley 33kV | F183: 53.53816 | G183: -2.35903
B184: KEIT_P | C184: _P | D184: T1 | E184: Keith | F184: 57.53762947 | G184: -2.932700798
B185: KEMS_1 | C185: _J | D185: C3 | E185: Kemsley | F185: 51.36728936 | G185: 0.7406393398
B186: KEOO | C186: _N | D186: S6 | E186: Kendoon | F186: 55.16082201 | G186: -4.180501313 | H186: Generation Only GSP. Gross Demand (P&Q) is zero. Galloway hydros. All FES demand allocated to TONG1
B187: KIBY_1 | C187: _D | D187: N1 | E187: Kirkby SPEN | F187: 53.46933833 | G187: -2.849475138
B188: KIBY_G | C188: _G | D188: N1 | E188: Kirkby ENW | F188: 53.46933833 | G188: -2.849475138
B189: KIER | C189: _N | D189: S5 | E189: Killermont | F189: 55.90332448 | G189: -4.30990158
B190: KIIN_P | C190: _P | D190: T4 | E190: Killin | F190: 56.47542628 | G190: -4.324501732
B191: KILS | C191: _N | D191: S6 | E191: Kilmarnock South | F191: 55.57962338 | G191: -4.456001604
B192: KILT | C192: _N | D192: S6 | E192: Kilmarnock Town | F192: 55.59312342 | G192: -4.48700163
B193: KILW | C193: _N | D193: S6 | E193: Kilwinning | F193: 55.66402362 | G193: -4.678101789
B194: KINL_P | C194: _P | D194: T1 | E194: Kinlochleven | F194: 56.71362686 | G194: -4.950002319
B195: KINO_1 | C195: _J | D195: C2 | E195: Kingsnorth | F195: 51.42001977 | G195: 0.5962174406
B196: KINT_P | C196: _P | D196: T2 | E196: Kintore | F196: 57.21292863 | G196: -2.37400033
B197: KIRKB1 | C197: _M | D197: P1 | E197: Kirkstall B | F197: 53.80583 | G197: -1.59684
B198: KITW_1 | C198: _E | D198: L2 | E198: Kitwell | F198: 52.43127575 | G198: -2.013224829
B199: KNAR | C199: _F | D199: P2 | E199: Knaresborough | F199: 54.03121063 | G199: -1.487843766
B200: LACK_6 | C200: _F | D200: Q2 | E200: Lackenby | F200: 54.56767005 | G200: -1.133390743
B201: LAIR_P | C201: _P | D201: T5 | E201: Lairg | F201: 58.00813043 | G201: -4.395002162
B202: LALE1SG003 | C202: _H | D202: A6 | E202: Laleham | F202: 51.42444134 | G202: -0.4693845523
... 179 more rows

Sheet Direct Connect info
A1: BMU ID | B1: GSP Group | C1: Minor FLOP | D1: Name (RefNMS) | E1: Alt name | F1: Sub-Sector
A2: M_ACTLLU_C | B2: _C | C2: A7 | D2: LU Acton Lane Supply | F2: Rail
A3: M_GRTO | B3: _F | C3: Q2 | D3: BS Grangetown Supply | F3: Steel
A4: M_TEMP | B4: _M | C4: P3 | D4: BOC Brinsworth Supply | F4: Steel
A5: T__HYELT002 | B5: _H | C5: D6 | D5: UKAEA Culham Jet | F5: R&D
A6: T__KYELT003 | B6: _K | C6: H2 | D6: ASW Tremorfa | F6: Steel
A7: T__MYELT001 | B7: _M | C7: P3 | D7: Corus Aldwarke | F7: Steel
A8: T_BAGED-1 | B8: _K | C8: H1 | D8: Baglan Energy Park | F8: Other
A9: T_BAGTD-1 | B9: _N | C9: S5 | D9: Railtrack Bathgate | E9: Bathgate (Network Rail) | F9: Rail
A10: T_BARK_NR | B10: _C | C10: A1 | D10: Barking NR | F10: Rail
A11: T_BARK-CTRL | B11: _C | C11: A1 | D11: Barking Chnl Tunnel RLink | F11: Rail
A12: T_BPGRD-1 | B12: _N | C12: S6 | D12: Grangemouth 1 | E12: Grangemouth B (BP) | F12: Chemical
A13: T_BPGRD-2 | B13: _N | C13: S6 | D13: Grangemouth 2 | E13: Grangemouth B (BP) | F13: Chemical
A14: T_BRBKD-1 | B14: _B | C14: J4 | D14: Braybrooke NR 1 | F14: Rail
A15: T_BRBKD-2 | B15: _B | C15: J4 | D15: Braybrooke NR 2 | F15: Rail
A16: T_BRER_RTK | B16: _E | C16: L5 | D16: Brereton NR | F16: Rail
A17: T_BUSH_RTK | B17: _A | C17: A6 | D17: Bushey NR | F17: Rail
A18: T_CASKD-1 | B18: _D | C18: N3 | D18: Castner Kellner | F18: Chemical
A19: T_CORM_RTK | B19: _A | C19: D5 | D19: Correy's Mill NR | F19: Rail
A20: T_COWBD-1 | B20: _H | C20: D6 | D20: Cowley Tesla Customer | F20: Transport
A21: T_COWBD-2 | B21: _H | C21: D6 | D21: Cowley Fastned Customer | F21: Transport
A22: T_COWBD-3 | B22: _H | C22: D6 | D22: Cowley Oxford City CC | F22: Transport
A23: T_COWBD-4 | B23: _H | C23: D6 | D23: Cowley Oxford Bus Company | F23: Transport
A24: T_COWBD-5 | B24: _H | C24: D6 | D24: Network Oxford Cowley | F24: Transport
A25: T_CURRD-2 | B25: _N | C25: S6 | D25: Currie Feeder Station | F25: Rail
A26: T_DALRD-1 | B26: _N | C26: S5 | D26: Railtrack - Dalreoch | E26: Dalreoch (Network Rail) | F26: Rail
A27: T_ECCFD-1 | B27: _N | C27: S6 | D27: Railtrack - Ecclefechan | E27: Ecclefechan (Network Rail) | F27: Rail
A28: T_EGLSD-1 | B28: _N | C28: S6 | D28: Railtrack - Eglington Street | E28: Eglington Street (Network Rail) | F28: Rail
A29: T_ELSTR-1 | B29: _A | C29: A6 | D29: Elstree NR | F29: Rail
A30: T_ELVAD-1 | B30: _N | C30: S6 | D30: Railtrack - Elvanfoot | E30: Elvanfoot (Network Rail) | F30: Rail
A31: T_EXMOSSD-1 | B31: _N | C31: S5 | D31: Exxon Mossmoran | E31: Mossmoran Exxon | F31: Chemical
A32: T_FERGD-1 | B32: _N | C32: S6 | D32: NR Ferguslie 1 | F32: Rail
A33: T_FERGD-2 | B33: _N | C33: S6 | D33: NR Ferguslie 2 | F33: Rail
A34: T_FOXJD-1 | B34: _H | C34: D6 | D34: Didcot - Foxhall 1 | F34: Rail
A35: T_FOXJD-2 | B35: _H | C35: D6 | D35: Didcot - Foxhall 2 | F35: Rail
A36: T_FROD_NR | B36: _D | C36: N3 | D36: Frodsham NR | F36: Rail
A37: T_GLNG | B37: _J | C37: C3 | D37: Grain LNG Terminal | F37: Chemical
A38: T_GNHLD-1 | B38: _N | C38: S5 | D38: Greenhill NR | E38: Bonnybridge (Network Rail) | F38: Rail
A39: T_GNHLD-2 | B39: _N | C39: S5 | D39: Greenhill NR 2 | E39: Bonnybridge (Network Rail) | F39: Rail
A40: T_GNHLD-3 | B40: _N | C40: S5 | D40: Greenhill NR 3 | E40: Bonnybridge (Network Rail) | F40: Rail
A41: T_GOWKD-1 | B41: _N | C41: S6 | D41: Railtrack - Gowkthrapple | E41: Gowkthrapple (Network Rail) | F41: Rail
A42: T_HARK_NR | B42: _G | C42: Q8 | D42: Harker NR | F42: Rail
A43: T_HOLCD-1 | B43: _J | C43: B4 | D43: Holly Cross NR | F43: Rail
A44: T_HPC-CES | B44: _L | C44: E7 | D44: Hinkley Point C Construction Supply | F44: Construction
A45: T_IMPRK-1 | B45: _K | C45: H6 | D45: Imperial Park 1 | F45: Rail
A46: T_IMPRK-2 | B46: _K | C46: H6 | D46: Imperial Park 2 | F46: Rail
A47: T_INWID-1 | B47: _N | C47: S6 | D47: Railtrack - Innerwick | E47: Innerwick (Network Rail) | F47: Rail
A48: T_KSGND-1 | B48: _C | C48: A7 | D48: Kensal Green Crossrail 1 | F48: Rail
A49: T_KSGND-2 | B49: _C | C49: A7 | D49: Kensal Green Crossrail 2 | F49: Rail
A50: T_LBUZ_RTK | B50: _B | C50: D4 | D50: LEIGHTON BUZZARD NR | F50: Rail
A51: T_LLWSD-1 | B51: _K | C51: H2 | D51: Llanwern Steelworks | F51: Steel
A52: T_LONDG-D | B52: _A | C52: C5 | D52: Port of London Gateway Demand | F52: Rail
A53: T_LONGB-RTK | B53: _B | C53: L3 | D53: Long Buckby Wharf NR | F53: Rail
A54: T_MARMD-1 | B54: _N | C54: S6 | D54: Railtrack - Marshall Meadows | E54: Marshall Meadows (Network Rail) | F54: Rail
A55: T_MEADD-1 | B55: _N | C55: S6 | D55: Caledonian Paper | E55: Meadowhead (Caledonian Paper) | F55: Paper
A56: T_MILWWD-1 | B56: _P | C56: T1 | D56: Millennium 132kV Import | F56: Com
A57: T_MOSED-1 | B57: _N | C57: S5 | D57: Exxon Chemicals (Mossmorran) | F57: Chemical
A58: T_NCTBM-1 | B58: _C | C58: A4 | D58: New Cross SGT4 Tertiary | F58: Construction
A59: T_NWCRS-1 | B59: _C | C59: A4 | D59: New Cross 1 | F59: Rail
A60: T_NWCRS-2 | B60: _C | C60: A4 | D60: New Cross 2 | F60: Rail
A61: T_OXEN_NR | B61: _G | C61: R6 | D61: Oxenholme NR | F61: Rail
A62: T_PARHD-1 | B62: _N | C62: S6 | D62: Railtrack - Parkhead | E62: Carntyne / Parkhead (Network Rail) | F62: Rail
A63: T_PATB_RTK | B63: _B | C63: L3 | D63: Patford Bridge NR | F63: Rail
A64: T_POOBD-1 | B64: _N | C64: S6 | D64: Railtrack - Portobello | E64: Portobello (Network Rail) | F64: Rail
A65: T_POPP_3RTK | B65: _F | C65: P2 | D65: Poppleton NR | F65: Rail
A66: T_PORGD-1 | B66: _N | C66: S6 | D66: Railtrack - Port Glasgow | E66: Port Glasgow (Network Rail) | F66: Rail
A67: T_PUDMD-1 | B67: _C | C67: A1 | D67: Pudding Mill Lane Crossrail | E67: Pudding Mill Lane 1 | F67: Rail
A68: T_PUDMD-2 | B68: _C | C68: A1 | D68: Pudding Mill Lane Crossrail | E68: Pudding Mill Lane 2 | F68: Rail
A69: T_RAVED-1 | B69: _N | C69: S6 | D69: Corus Dalzell | E69: Ravenscraig A (Liberty Steel) | F69: Steel
A70: T_RYHAD-1 | B70: _B | C70: J7 | D70: Ryhall NR | E70: Essendine 1 | F70: Rail
A71: T_RYHAD-2 | B71: _B | C71: J7 | D71: Ryhall NR | E71: Essendine 2 | F71: Rail
A72: T_SACOD-1 | B72: _N | C72: S6 | D72: Railtrack - Saltcoats | E72: Saltcoats / South Beach (Network Rail) | F72: Rail
A73: T_SCCL-4 | B73: _M | C73: P8 | D73: Saltend BP Load | F73: Chemical
A74: T_SELL-1 | B74: _J | C74: C4 | D74: Sellindge NR | F74: Rail
A75: T_SFGSD-1 | B75: _P | C75: T2 | D75: St Fergus Compressor | F75: Gas Network
A76: T_SFGSD-2 | B76: _P | C76: T2 | D76: St Fergus Compressor 2 | F76: Gas Network
A77: T_SINGL1 | B77: _J | C77: C2 | D77: Singlewell NR | F77: Rail
A78: T_SNDND-1 | B78: _A | C78: D4 | D78: Sundon 1 | F78: Rail
A79: T_SNDND-2 | B79: _A | C79: D4 | D79: Sundon 2 | F79: Rail
A80: T_STBRD-1 | B80: _G | C80: N7 | D80: Stalybridge 1 | F80: Rail
A81: T_STBRD-2 | B81: _G | C81: N7 | D81: Stalybridge 2 | F81: Rail
A82: T_STFERGD-1 | B82: _P | C82: T2 | D82: St. Fergus Mobil | F82: Chemical
A83: T_THNJD-1 | B83: _H | C83: G6 | D83: Thingley Junction 1 NR | F83: Rail
A84: T_THNJD-2 | B84: _H | C84: G6 | D84: Thingley Junction 2 NR | F84: Rail
A85: T_TINSD-1 | B85: _M | C85: P3 | D85: Tinsley Park Steelworks | F85: Steel
A86: T_TODSD-1 | B86: _F | C86: Q2 | D86: BS Tod Point Supply | F86: Steel
A87: T_TONTED-1 | B87: _K | C87: H2 | D87: Tonteg Rail | F87: Rail
A88: T_UNPKD-1 | B88: _H | C88: A6 | D88: UNION PARK-1 | F88: Data Centre
A89: T_UNPKD-2 | B89: _H | C89: A6 | D89: UNION PARK-2 | F89: Data Centre
A90: T_UNPKD-3 | B90: _H | C90: A6 | D90: Union Park Third Party Access3 | F90: Data Centre
A91: T_UNPKD-4 | B91: _H | C91: A6 | D91: Union Park Third Party Access4 | F91: Data Centre
A92: T_WHISTLD-1 | B92: _N | C92: S5 | D92: HMNB Whistlefield | E92: MOD Harestanes Whistlefield | F92: Military
A93: T_WILCT-1 | B93: _F | C93: Q2 | D93: ETOL - Wilton Site | F93: Chemical
A94: B_EXTRA_74 | C94: L3 | E94: Berkswell 275 (HS2) | F94: Rail
A95: B_EXTRA_75 | C95: D4 | E95: Ickenham (HS2) | F95: Rail
A96: B_EXTRA_76 | C96: A6 | E96: Quainton (HS2) | F96: Rail
A97: B_EXTRA_77 | C97: L5 | E97: Parkgate (Rail) | F97: Rail
A98: B_EXTRA_78 | C98: L5 | E98: Parkgate (Rail) | F98: Rail
A99: B_EXTRA_79 | C99: H2 | E99: Upper Boat 275 (TfW) | F99: Rail
A100: B_EXTRA_80 | C100: K5 | E100: Staythorpe 400 (Network Rail) | F100: Rail
A101: B_EXTRA_81 | C101: D5 | E101: Wymondley 400 (N_Rail) | F101: Rail
A102: B_EXTRA_82 | C102: B4 | E102: Bramley 400 (Network Rail) | F102: Rail
A103: B_EXTRA_83 | C103: L3 | E103: Dingley Wood 400 (N_Rail) | F103: Rail
A104: B_EXTRA_84 | C104: P3 | E104: Hasland (New) (N_Rail) | F104: Rail
A105: B_EXTRA_85 | C105: L7 | E105: Kegworth (Network Rail) | F105: Rail
A106: B_EXTRA_86 | C106: A6 | E106: Laleham 275 (Network Rail) | F106: Rail
A107: B_EXTRA_87 | B107: _A | C107: A1 | E107: Tx Connected Electrolysis Demand in Minor Flop A1 | F107: Electrolysis
A108: B_EXTRA_88 | B108: _A | C108: A6 | E108: Tx Connected Electrolysis Demand in Minor Flop A6 | F108: Electrolysis
A109: B_EXTRA_89 | B109: _H | C109: A7 | E109: Tx Connected Electrolysis Demand in Minor Flop A7 | F109: Electrolysis
A110: B_EXTRA_90 | B110: _J | C110: B1 | E110: Tx Connected Electrolysis Demand in Minor Flop B1 | F110: Electrolysis
A111: B_EXTRA_91 | B111: _H | C111: B2 | E111: Tx Connected Electrolysis Demand in Minor Flop B2 | F111: Electrolysis
A112: B_EXTRA_92 | B112: _J | C112: C2 | E112: Tx Connected Electrolysis Demand in Minor Flop C2 | F112: Electrolysis
A113: B_EXTRA_93 | B113: _J | C113: C3 | E113: Tx Connected Electrolysis Demand in Minor Flop C3 | F113: Electrolysis
A114: B_EXTRA_94 | B114: _J | C114: C4 | E114: Tx Connected Electrolysis Demand in Minor Flop C4 | F114: Electrolysis
A115: B_EXTRA_95 | B115: _J | C115: C7 | E115: Tx Connected Electrolysis Demand in Minor Flop C7 | F115: Electrolysis
A116: B_EXTRA_96 | B116: _H | C116: D6 | E116: Tx Connected Electrolysis Demand in Minor Flop D6 | F116: Electrolysis
A117: B_EXTRA_97 | B117: _H | C117: E1 | E117: Tx Connected Electrolysis Demand in Minor Flop E1 | F117: Electrolysis
A118: B_EXTRA_98 | B118: _L | C118: E7 | E118: Tx Connected Electrolysis Demand in Minor Flop E7 | F118: Electrolysis
A119: B_EXTRA_99 | B119: _L | C119: F6 | E119: Tx Connected Electrolysis Demand in Minor Flop F6 | F119: Electrolysis
A120: B_EXTRA_100 | B120: _H | C120: G6 | E120: Tx Connected Electrolysis Demand in Minor Flop G6 | F120: Electrolysis
A121: B_EXTRA_101 | B121: _K | C121: H1 | E121: Tx Connected Electrolysis Demand in Minor Flop H1 | F121: Electrolysis
A122: B_EXTRA_102 | B122: _K | C122: H2 | E122: Tx Connected Electrolysis Demand in Minor Flop H2 | F122: Electrolysis
A123: B_EXTRA_103 | B123: _D | C123: H6 | E123: Tx Connected Electrolysis Demand in Minor Flop H6 | F123: Electrolysis
A124: B_EXTRA_104 | B124: _A | C124: J3 | E124: Tx Connected Electrolysis Demand in Minor Flop J3 | F124: Electrolysis
A125: B_EXTRA_105 | B125: _A | C125: J4 | E125: Tx Connected Electrolysis Demand in Minor Flop J4 | F125: Electrolysis
A126: B_EXTRA_106 | B126: _A | C126: J5 | E126: Tx Connected Electrolysis Demand in Minor Flop J5 | F126: Electrolysis
A127: B_EXTRA_107 | B127: _B | C127: J6 | E127: Tx Connected Electrolysis Demand in Minor Flop J6 | F127: Electrolysis
A128: B_EXTRA_108 | B128: _A | C128: J7 | E128: Tx Connected Electrolysis Demand in Minor Flop J7 | F128: Electrolysis
A129: B_EXTRA_109 | B129: _B | C129: K5 | E129: Tx Connected Electrolysis Demand in Minor Flop K5 | F129: Electrolysis
A130: B_EXTRA_110 | B130: _B | C130: K6 | E130: Tx Connected Electrolysis Demand in Minor Flop K6 | F130: Electrolysis
A131: B_EXTRA_111 | B131: _E | C131: L2 | E131: Tx Connected Electrolysis Demand in Minor Flop L2 | F131: Electrolysis
A132: B_EXTRA_112 | B132: _B | C132: L3 | E132: Tx Connected Electrolysis Demand in Minor Flop L3 | F132: Electrolysis
A133: B_EXTRA_113 | B133: _E | C133: L5 | E133: Tx Connected Electrolysis Demand in Minor Flop L5 | F133: Electrolysis
A134: B_EXTRA_114 | B134: _B | C134: L7 | E134: Tx Connected Electrolysis Demand in Minor Flop L7 | F134: Electrolysis
A135: B_EXTRA_115 | B135: _B | C135: L8 | E135: Tx Connected Electrolysis Demand in Minor Flop L8 | F135: Electrolysis
A136: B_EXTRA_116 | B136: _D | C136: M5 | E136: Tx Connected Electrolysis Demand in Minor Flop M5 | F136: Electrolysis
A137: B_EXTRA_117 | B137: _D | C137: M6 | E137: Tx Connected Electrolysis Demand in Minor Flop M6 | F137: Electrolysis
A138: B_EXTRA_118 | B138: _D | C138: M8 | E138: Tx Connected Electrolysis Demand in Minor Flop M8 | F138: Electrolysis
A139: B_EXTRA_119 | B139: _D | C139: N1 | E139: Tx Connected Electrolysis Demand in Minor Flop N1 | F139: Electrolysis
A140: B_EXTRA_120 | B140: _G | C140: N2 | E140: Tx Connected Electrolysis Demand in Minor Flop N2 | F140: Electrolysis
A141: B_EXTRA_121 | B141: _D | C141: N3 | E141: Tx Connected Electrolysis Demand in Minor Flop N3 | F141: Electrolysis
A142: B_EXTRA_122 | B142: _M | C142: P1 | E142: Tx Connected Electrolysis Demand in Minor Flop P1 | F142: Electrolysis
A143: B_EXTRA_123 | B143: _B | C143: P3 | E143: Tx Connected Electrolysis Demand in Minor Flop P3 | F143: Electrolysis
A144: B_EXTRA_124 | B144: _M | C144: P7 | E144: Tx Connected Electrolysis Demand in Minor Flop P7 | F144: Electrolysis
A145: B_EXTRA_125 | B145: _M | C145: P8 | E145: Tx Connected Electrolysis Demand in Minor Flop P8 | F145: Electrolysis
A146: B_EXTRA_126 | B146: _F | C146: Q2 | E146: Tx Connected Electrolysis Demand in Minor Flop Q2 | F146: Electrolysis
A147: B_EXTRA_127 | B147: _F | C147: Q4 | E147: Tx Connected Electrolysis Demand in Minor Flop Q4 | F147: Electrolysis
A148: B_EXTRA_128 | B148: _F | C148: Q7 | E148: Tx Connected Electrolysis Demand in Minor Flop Q7 | F148: Electrolysis
A149: B_EXTRA_129 | B149: _G | C149: R4 | E149: Tx Connected Electrolysis Demand in Minor Flop R4 | F149: Electrolysis
A150: B_EXTRA_130 | B150: _G | C150: R5 | E150: Tx Connected Electrolysis Demand in Minor Flop R5 | F150: Electrolysis
A151: B_EXTRA_131 | B151: _N | C151: S5 | E151: Tx Connected Electrolysis Demand in Minor Flop S5 | F151: Electrolysis
A152: B_EXTRA_132 | B152: _N | C152: S6 | E152: Tx Connected Electrolysis Demand in Minor Flop S6 | F152: Electrolysis
A153: B_EXTRA_133 | B153: _P | C153: T1 | E153: Tx Connected Electrolysis Demand in Minor Flop T1 | F153: Electrolysis
A154: B_EXTRA_134 | B154: _P | C154: T2 | E154: Tx Connected Electrolysis Demand in Minor Flop T2 | F154: Electrolysis
A155: B_EXTRA_135 | B155: _P | C155: T3 | E155: Tx Connected Electrolysis Demand in Minor Flop T3 | F155: Electrolysis
A156: B_EXTRA_136 | B156: _P | C156: T4 | E156: Tx Connected Electrolysis Demand in Minor Flop T4 | F156: Electrolysis
A157: B_EXTRA_137 | B157: _P | C157: T5 | E157: Tx Connected Electrolysis Demand in Minor Flop T5 | F157: Electrolysis
A158: B_EXTRA_201 | B158: _P | C158: T2 | E158: Salamander INTOG | F158: Offshore Oil & Gas
A159: B_EXTRA_202 | B159: _D | C159: H6 | E159: Port Talbot | F159: Steel
A160: B_EXTRA_432 | B160: _P | C160: T2 | E160: Greenvolt INTOG | F160: Offshore Oil & Gas
A161: B_EXTRA_433 | B161: _P | C161: T2 | E161: Cerulean 1 INTOG | F161: Offshore Oil & Gas
A162: B_EXTRA_434 | B162: _N | C162: S6 | E162: Cerulean 2 INTOG | F162: Offshore Oil & Gas
A163: B_EXTRA_435 | B163: _P | C163: T2 | E163: Cenos INTOG | F163: Offshore Oil & Gas

Sheet Years (hidden)
A8: 2024/25
A9: 2025/26
A10: 2026/27
A11: 2027/28
A12: 2028/29
A13: 2029/30
A14: 2030/31
A15: 2031/32
A16: 2032/33
A17: 2033/34
A18: 2034/35
A19: 2035/36
A20: 2036/37
A21: 2037/38
A22: 2038/39
A23: 2039/40
A24: 2040/41
A25: 2041/42
A26: 2042/43
A27: 2043/44
A28: 2044/45
A29: 2045/46
A30: 2046/47
A31: 2047/48
A32: 2048/49
A33: 2049/50
A34: 2050/51

Sheet MAIN DATA
A1: Please select Scenario, Study Period and Analysis Year in the Orange Cells below
A3: Drop-Down Options:
A4: Scenario | B4: Holistic Transition | D4: =IF(B4="Extensive Electrification","EE",LEFT(B4,1)&MID(B4,FIND( " ", B4 )+1,1)) -> HT
A5: Study Period | B5: Winter Peak | D5: =IF(B5="Winter Peak",0,IF(B5="Summer Minimum AM",1,IF(B5="Summer Minimum PM",2,"Err"))) -> 0 | G5: =IF(B5="Winter Peak",0,IF(B5="Summer Minimum AM",1,IF(B5="Summer Minimum PM",2,"Err"))) -> 0
A6: Analysis Year | B6: 2039/40 | D6: =MID(B6,3,2)+0 -> 39
H8: Embedded Capacity Data (DG + Sub1MW sheets)
A10: Total: FLOP A-R | E10: =E13-SUM(E11:E12) -> 80199.13106 | F10: 6735.694638 | G10: -712.3200099 | H10: 14462.064 | I10: 52629.925 | J10: 11972.91 | K10: 110.564 | L10: 25694.647
A11: Total: FLOP T | E11: =SUMIF($D$17:$D$895,"T",E$17:E$895) -> 2838.939188 | F11: =SUMIF($D$17:$D$895,"T",F$17:F$895) -> 133.6643145 | G11: 70.17815901 | H11: 212.511 | I11: 1848.509 | J11: 1084.025 | K11: 305.573 | L11: 576.414
A12: Total: FLOP S | E12: =SUMIF($D$17:$D$895,"S",E$17:E$895) -> 6270.080274 | F12: =SUMIF($D$17:$D$895,"S",F$17:F$895) -> 552.8682369 | G12: 263.9720933 | H12: 563.43 | I12: 1918.058 | J12: 2701.363 | K12: 155.565 | L12: 1311.126
A13: Total: GB | E13: =SUM(E17:E895) -> 89308.15053 | F13: =SUM(F17:F895) -> 7422.227189 | G13: -378.1697575 | H13: 15238.005 | I13: 56396.492 | J13: 15758.298 | K13: 571.702 | L13: 27582.187
A15: Elexon ID | B15: Name | C15: Minor FLOP | D15: Major FLOP | E15: P(Gross) | F15: Q Gross | G15: Q net | H15: Embedded Storage | I15: Embedded Solar | J15: Embedded Wind | K15: Embedded Hydro | L15: Embedded Other | M15: Dx Storage Demand | N15: Micro storage Demand
E16: Demand (MW) | F16: Demand (MVAR) | G16: Demand (MVAR) | H16: Total Capacity (MW) | I16: Total Capacity (MW) | J16: Total Capacity (MW) | K16: Total Capacity (MW) | L16: Total Capacity (MW) | M16: Demand (MW) | N16: Demand (MW)
A17: ABHA1 | B17: =INDEX('GSP info'!E:E,_xlfn.XMATCH('MAIN DATA'!A17,'GSP info'!B:B)) -> Abham | C17: =INDEX('GSP info'!D:D,_xlfn.XMATCH('MAIN DATA'!A17,'GSP info'!B:B)) -> F6 | D17: =LEFT(C17,1) -> F | E17: =SUMIFS(OFFSET(ActivePk,0,$D$5),ActiveLocation,A17,ActiveScenario,$D$4,ActiveYear,$D$6) -> 546.9792432 | F17: =SUMIFS(OFFSET(QGrossPk,0,$D$5),QGrossLocation,A17,QGrossScenario,$D$4,QGrossYear,$D$6) -> 1.392293782 | G17: =F17-SUMIFS(OFFSET(LVGWintPk,0,$D$5),LVGLocation,A17,LVGScenario,$D$4,LVGYear,$D$6) -> -20.35278909 | H17: =SUMIFS(DGcapacity,DGlocation,A17,DGscenario,$D$4,DGyear,$D$6,DGtech,"Storage")+SUMIFS(micro_capacity,micro_location,A17,micro_scenario,$D$4,micro_year,$D$6,micro_tech,"Battery") -> 236.45 | I17: =SUMIFS(DGcapacity,DGlocation,A17,DGscenario,$D$4,DGyear,$D$6,DGtech,"Solar")+SUMIFS(micro_capacity,micro_location,A17,micro_scenario,$D$4,micro_year,$D$6,micro_tech,"Solar") -> 711.311 | J17: =SUMIFS(DGcapacity,DGlocation,A17,DGscenario,$D$4,DGyear,$D$6,DGtech,"Wind")+SUMIFS(micro_capacity,micro_location,A17,micro_scenario,$D$4,micro_year,$D$6,micro_tech,"Wind") -> 1.468 | K17: =SUMIFS(DGcapacity,DGlocation,A17,DGscenario,$D$4,DGyear,$D$6,DGtech,"Hydro")+SUMIFS(micro_capacity,micro_location,A17,micro_scenario,$D$4,micro_year,$D$6,micro_tech,"Hydro") -> 1.917 | L17: =SUMIFS(DGcapacity,DGlocation,A17,DGscenario,$D$4,DGyear,$D$6,DGtech,"Other")+SUMIFS(micro_capacity,micro_location,A17,micro_scenario,$D$4,micro_year,$D$6,micro_tech,"Other") -> 184.533 | M17: =SUMIFS(OFFSET(DxStorWintpk,0,$G$5),DxStorLocation,A17,DxStorScenario,$D$4,DxStorYear,$D$6)*-1 -> 0 | N17: =SUMIFS(OFFSET(mbat_wintpk,0,$G$5),mbat_location,A17,mbat_scenario,$D$4,mbat_year,$D$6)*-1 -> 0
A18: ABNE_P | B18: =INDEX('GSP info'!E:E,_xlfn.XMATCH('MAIN DATA'!A18,'GSP info'!B:B)) -> Abernethy | C18: =INDEX('GSP info'!D:D,_xlfn.XMATCH('MAIN DATA'!A18,'GSP info'!B:B)) -> T4 | D18: T | E18: 54.67894769 | F18: -0.5208646592 | G18: -1.844530925 | H18: =SUMIFS(DGcapacity,DGlocation,A18,DGscenario,$D$4,DGyear,$D$6,DGtech,"Storage")+SUMIFS(micro_capacity,micro_location,A18,micro_scenario,$D$4,micro_year,$D$6,micro_tech,"Battery") -> 3.791 | I18: 74.889 | J18: 44.447 | K18: 0.129 | L18: 10.261 | M18: 0 | N18: 0
A19: ABTH_1 | B19: =INDEX('GSP info'!E:E,_xlfn.XMATCH('MAIN DATA'!A19,'GSP info'!B:B)) -> Aberthaw | C19: =INDEX('GSP info'!D:D,_xlfn.XMATCH('MAIN DATA'!A19,'GSP info'!B:B)) -> H2 | D19: H | E19: 286.2454355 | F19: 13.63275799 | G19: -27.7496116 | H19: 8.583 | I19: 168.517 | J19: 0.81 | K19: 0 | L19: 70.9 | M19: 0 | N19: 0
A20: ACTL_2 | B20: =INDEX('GSP info'!E:E,_xlfn.XMATCH('MAIN DATA'!A20,'GSP info'!B:B)) -> Acton Lane 66kV | C20: =INDEX('GSP info'!D:D,_xlfn.XMATCH('MAIN DATA'!A20,'GSP info'!B:B)) -> A7 | D20: A | E20: 41.50682555 | F20: -1.299849075 | G20: -1.825548454 | H20: 2.258 | I20: 25.947 | J20: 0 | K20: 0.279 | L20: 6.256 | M20: 0 | N20: 0
A21: ACTL_C | B21: =INDEX('GSP info'!E:E,_xlfn.XMATCH('MAIN DATA'!A21,'GSP info'!B:B)) -> Acton Lane 22kV | C21: =INDEX('GSP info'!D:D,_xlfn.XMATCH('MAIN DATA'!A21,'GSP info'!B:B)) -> A7 | D21: A | E21: 56.88983519 | F21: 0.7338774834 | G21: -3.515659101 | H21: 0 | I21: 9.46 | J21: 0 | K21: 0 | L21: 23.346 | M21: 0 | N21: 0
A22: ALNE_P | B22: =INDEX('GSP info'!E:E,_xlfn.XMATCH('MAIN DATA'!A22,'GSP info'!B:B)) -> Alness | C22: =INDEX('GSP info'!D:D,_xlfn.XMATCH('MAIN DATA'!A22,'GSP info'!B:B)) -> T5 | D22: T | E22: 43.42437005 | F22: -1.220604721 | G22: -1.940788899 | H22: 1.407 | I22: 39.541 | J22: 12.236 | K22: 7.148 | L22: 5.46 | M22: 0 | N22: 0
A23: ALST_3 | B23: =INDEX('GSP info'!E:E,_xlfn.XMATCH('MAIN DATA'!A23,'GSP info'!B:B)) -> Alpha Steel (Uskmouth) | C23: =INDEX('GSP info'!D:D,_xlfn.XMATCH('MAIN DATA'!A23,'GSP info'!B:B)) -> H2 | D23: H | E23: 0 | F23: 0 | G23: 0 | H23: 0 | I23: 17.34 | J23: 0 | K23: 0 | L23: 46.76 | M23: 0 | N23: 0
A24: ALVE1 | B24: =INDEX('GSP info'!E:E,_xlfn.XMATCH('MAIN DATA'!A24,'GSP info'!B:B)) -> Alverdiscott | C24: =INDEX('GSP info'!D:D,_xlfn.XMATCH('MAIN DATA'!A24,'GSP info'!B:B)) -> F6 | D24: F | E24: 408.4308604 | F24: 26.95122372 | G24: 8.55826463 | H24: 108.588 | I24: 857.362 | J24: 426.389 | K24: 2.486 | L24: 170.617 | M24: 0 | N24: 0
A25: AMEM_1 | B25: =INDEX('GSP info'!E:E,_xlfn.XMATCH('MAIN DATA'!A25,'GSP info'!B:B)) -> Amersham Main | C25: =INDEX('GSP info'!D:D,_xlfn.XMATCH('MAIN DATA'!A25,'GSP info'!B:B)) -> A6 | D25: A | E25: 120.2368396 | F25: 95.54774595 | G25: 87.91709213 | H25: 124.012 | I25: 141.556 | J25: 0.009 | K25: 0 | L25: 29.49 | M25: 0 | N25: 0
A26: ARBR_P | B26: =INDEX('GSP info'!E:E,_xlfn.XMATCH('MAIN DATA'!A26,'GSP info'!B:B)) -> Arbroath | C26: =INDEX('GSP info'!D:D,_xlfn.XMATCH('MAIN DATA'!A26,'GSP info'!B:B)) -> T4 | D26: T | E26: =SUMIFS(OFFSET(ActivePk,0,$D$5),ActiveLocation,A26,ActiveScenario,$D$4,ActiveYear,$D$6) -> 40.92931214 | F26: -0.7414808831 | G26: -1.465066571 | H26: 18.733 | I26: 47.246 | J26: 1.148 | K26: 0 | L26: 5.335 | M26: 0 | N26: 0
A27: ARDK_P | B27: =INDEX('GSP info'!E:E,_xlfn.XMATCH('MAIN DATA'!A27,'GSP info'!B:B)) -> Ardkinglas | C27: =INDEX('GSP info'!D:D,_xlfn.XMATCH('MAIN DATA'!A27,'GSP info'!B:B)) -> T3 | D27: T | E27: 0 | F27: 0 | G27: 0 | H27: 0 | I27: 9.79 | J27: 0 | K27: 0 | L27: 0.91 | M27: 0 | N27: 0
A28: ARMO_P | B28: =INDEX('GSP info'!E:E,_xlfn.XMATCH('MAIN DATA'!A28,'GSP info'!B:B)) -> Ardmore | C28: =INDEX('GSP info'!D:D,_xlfn.XMATCH('MAIN DATA'!A28,'GSP info'!B:B)) -> T1 | D28: T | E28: 14.59318852 | F28: =SUMIFS(OFFSET(QGrossPk,0,$D$5),QGrossLocation,A28,QGrossScenario,$D$4,QGrossYear,$D$6) -> -1.306723101 | G28: -4.867924015 | H28: 0.95 | I28: 69.995 | J28: 46.919 | K28: 0.139 | L28: 10.2 | M28: 0 | N28: 0
A29: AXMI_H | B29: =INDEX('GSP info'!E:E,_xlfn.XMATCH('MAIN DATA'!A29,'GSP info'!B:B)) -> Axminster H | C29: =INDEX('GSP info'!D:D,_xlfn.XMATCH('MAIN DATA'!A29,'GSP info'!B:B)) -> E1 | D29: =LEFT(C29,1) -> E | E29: =SUMIFS(OFFSET(ActivePk,0,$D$5),ActiveLocation,A29,ActiveScenario,$D$4,ActiveYear,$D$6) -> 123.3707881 | F29: =SUMIFS(OFFSET(QGrossPk,0,$D$5),QGrossLocation,A29,QGrossScenario,$D$4,QGrossYear,$D$6) -> 13.09125762 | G29: =F29-SUMIFS(OFFSET(LVGWintPk,0,$D$5),LVGLocation,A29,LVGScenario,$D$4,LVGYear,$D$6) -> 4.797414921 | H29: =SUMIFS(DGcapacity,DGlocation,A29,DGscenario,$D$4,DGyear,$D$6,DGtech,"Storage")+SUMIFS(micro_capacity,micro_location,A29,micro_scenario,$D$4,micro_year,$D$6,micro_tech,"Battery") -> 0 | I29: =SUMIFS(DGcapacity,DGlocation,A29,DGscenario,$D$4,DGyear,$D$6,DGtech,"Solar")+SUMIFS(micro_capacity,micro_location,A29,micro_scenario,$D$4,micro_year,$D$6,micro_tech,"Solar") -> 0 | J29: =SUMIFS(DGcapacity,DGlocation,A29,DGscenario,$D$4,DGyear,$D$6,DGtech,"Wind")+SUMIFS(micro_capacity,micro_location,A29,micro_scenario,$D$4,micro_year,$D$6,micro_tech,"Wind") -> 0 | K29: =SUMIFS(DGcapacity,DGlocation,A29,DGscenario,$D$4,DGyear,$D$6,DGtech,"Hydro")+SUMIFS(micro_capacity,micro_location,A29,micro_scenario,$D$4,micro_year,$D$6,micro_tech,"Hydro") -> 0 | L29: =SUMIFS(DGcapacity,DGlocation,A29,DGscenario,$D$4,DGyear,$D$6,DGtech,"Other")+SUMIFS(micro_capacity,micro_location,A29,micro_scenario,$D$4,micro_year,$D$6,micro_tech,"Other") -> 0 | M29: =SUMIFS(OFFSET(DxStorWintpk,0,$G$5),DxStorLocation,A29,DxStorScenario,$D$4,DxStorYear,$D$6)*-1 -> 0 | N29: =SUMIFS(OFFSET(mbat_wintpk,0,$G$5),mbat_location,A29,mbat_scenario,$D$4,mbat_year,$D$6)*-1 -> 0
A30: AXMI1 | B30: =INDEX('GSP info'!E:E,_xlfn.XMATCH('MAIN DATA'!A30,'GSP info'!B:B)) -> Axminster | C30: =INDEX('GSP info'!D:D,_xlfn.XMATCH('MAIN DATA'!A30,'GSP info'!B:B)) -> E1 | D30: E | E30: 128.3797381 | F30: 10.96229074 | G30: 4.126435007 | H30: 41.915 | I30: 669.625 | J30: 0.401 | K30: 0.048 | L30: 83.715 | M30: 0 | N30: 0
A31: AYRR | B31: =INDEX('GSP info'!E:E,_xlfn.XMATCH('MAIN DATA'!A31,'GSP info'!B:B)) -> Ayr | C31: =INDEX('GSP info'!D:D,_xlfn.XMATCH('MAIN DATA'!A31,'GSP info'!B:B)) -> S6 | D31: S | E31: 74.66771494 | F31: 3.053288706 | G31: -0.5357420704 | H31: 0.911 | I31: 6.653 | J31: 0.017 | K31: 0 | L31: 2.738 | M31: 0 | N31: 0
A32: BAGA | B32: =INDEX('GSP info'!E:E,_xlfn.XMATCH('MAIN DATA'!A32,'GSP info'!B:B)) -> Bathgate | C32: =INDEX('GSP info'!D:D,_xlfn.XMATCH('MAIN DATA'!A32,'GSP info'!B:B)) -> S5 | D32: S | E32: =SUMIFS(OFFSET(ActivePk,0,$D$5),ActiveLocation,A32,ActiveScenario,$D$4,ActiveYear,$D$6) -> 78.91308759 | F32: 6.753786124 | G32: 0.5216756818 | H32: 2.506 | I32: 50.677 | J32: 113.937 | K32: 0 | L32: 25.908 | M32: 0 | N32: 0
A33: BAIN | B33: =INDEX('GSP info'!E:E,_xlfn.XMATCH('MAIN DATA'!A33,'GSP info'!B:B)) -> Bainsford | C33: =INDEX('GSP info'!D:D,_xlfn.XMATCH('MAIN DATA'!A33,'GSP info'!B:B)) -> S5 | D33: S | E33: 44.82528822 | F33: 7.179471141 | G33: 3.977830621 | H33: 0.735 | I33: 37.747 | J33: 5.81 | K33: 0 | L33: 8.488 | M33: 0 | N33: 0
A34: BARKR_A | B34: =INDEX('GSP info'!E:E,_xlfn.XMATCH('MAIN DATA'!A34,'GSP info'!B:B)) -> Barking (Eastern) | C34: =INDEX('GSP info'!D:D,_xlfn.XMATCH('MAIN DATA'!A34,'GSP info'!B:B)) -> A1 | D34: A | E34: 104.9943592 | F34: 38.56487551 | G34: 14.97423704 | H34: 0 | I34: 0 | J34: 0 | K34: 0 | L34: 0 | M34: 0 | N34: 0
A35: BARKR_C | B35: =INDEX('GSP info'!E:E,_xlfn.XMATCH('MAIN DATA'!A35,'GSP info'!B:B)) -> Barking (London) | C35: =INDEX('GSP info'!D:D,_xlfn.XMATCH('MAIN DATA'!A35,'GSP info'!B:B)) -> A1 | D35: A | E35: 13.87403871 | F35: 23.98595772 | G35: 7.810949252 | H35: 8.231 | I35: 74.458 | J35: 0 | K35: 0 | L35: 111.361 | M35: 0 | N35: 0
A36: BARKW3 | B36: =INDEX('GSP info'!E:E,_xlfn.XMATCH('MAIN DATA'!A36,'GSP info'!B:B)) -> Barking West | C36: =INDEX('GSP info'!D:D,_xlfn.XMATCH('MAIN DATA'!A36,'GSP info'!B:B)) -> A1 | D36: A | E36: 340.8730937 | F36: 53.69795981 | G36: 24.46898963 | H36: 0 | I36: 13 | J36: 0 | K36: 0 | L36: 62.419 | M36: 0 | N36: 0
A37: BEAU_P | B37: =INDEX('GSP info'!E:E,_xlfn.XMATCH('MAIN DATA'!A37,'GSP info'!B:B)) -> Beauly | C37: =INDEX('GSP info'!D:D,_xlfn.XMATCH('MAIN DATA'!A37,'GSP info'!B:B)) -> T1 | D37: T | E37: 40.49198935 | F37: 0.3838094616 | G37: -1.213728864 | H37: 2.276 | I37: 16.616 | J37: 3.706 | K37: 5.872 | L37: 1.821 | M37: 0 | N37: 0
A38: BEDD_1 | B38: =INDEX('GSP info'!E:E,_xlfn.XMATCH('MAIN DATA'!A38,'GSP info'!B:B)) -> Beddington SPN | C38: =INDEX('GSP info'!D:D,_xlfn.XMATCH('MAIN DATA'!A38,'GSP info'!B:B)) -> A8 | D38: A | E38: 765.5331377 | F38: 132.6641533 | G38: 10.95469624 | H38: 22.098 | I38: 88.589 | J38: 0 | K38: 0.837 | L38: 215.851 | M38: 0 | N38: 0
A39: BEDDT1 | B39: =INDEX('GSP info'!E:E,_xlfn.XMATCH('MAIN DATA'!A39,'GSP info'!B:B)) -> Beddington LPN | C39: =INDEX('GSP info'!D:D,_xlfn.XMATCH('MAIN DATA'!A39,'GSP info'!B:B)) -> A8 | D39: A | E39: 276.6924679 | F39: 63.99797951 | G39: 25.66697312 | H39: 4.371 | I39: 32.17 | J39: 0 | K39: 0 | L39: 43.594 | M39: 0 | N39: 0
A40: BERB_P | B40: =INDEX('GSP info'!E:E,_xlfn.XMATCH('MAIN DATA'!A40,'GSP info'!B:B)) -> Berryburn | C40: =INDEX('GSP info'!D:D,_xlfn.XMATCH('MAIN DATA'!A40,'GSP info'!B:B)) -> T1 | D40: T | E40: 0 | F40: 0 | G40: 0 | H40: 0 | I40: 0 | J40: 0 | K40: 0 | L40: 5.577 | M40: 0 | N40: 0
A41: BERW | B41: =INDEX('GSP info'!E:E,_xlfn.XMATCH('MAIN DATA'!A41,'GSP info'!B:B)) -> Berwick | C41: =INDEX('GSP info'!D:D,_xlfn.XMATCH('MAIN DATA'!A41,'GSP info'!B:B)) -> S6 | D41: S | E41: 58.10105313 | F41: 4.61274138 | G41: -2.62760032 | H41: 4.161 | I41: 26.846 | J41: 232.885 | K41: 0 | L41: 8.522 | M41: 0 | N41: 0
A42: BESW_1 | B42: =INDEX('GSP info'!E:E,_xlfn.XMATCH('MAIN DATA'!A42,'GSP info'!B:B)) -> Berkswell | C42: =INDEX('GSP info'!D:D,_xlfn.XMATCH('MAIN DATA'!A42,'GSP info'!B:B)) -> L3 | D42: L | E42: 494.3531041 | F42: -25.64240771 | G42: -55.9272034 | H42: 226.948 | I42: 250.614 | J42: 0.068 | K42: 0.017 | L42: 145.607 | M42: 0 | N42: 0
A43: BICF_1 | B43: =INDEX('GSP info'!E:E,_xlfn.XMATCH('MAIN DATA'!A43,'GSP info'!B:B)) -> Bicker Fen | C43: =INDEX('GSP info'!D:D,_xlfn.XMATCH('MAIN DATA'!A43,'GSP info'!B:B)) -> K4 | D43: K | E43: 189.8513593 | F43: 13.46199459 | G43: -0.9988223196 | H43: 119.667 | I43: 1010.067 | J43: 251.436 | K43: 0 | L43: 104.755 | M43: 0 | N43: 0
A44: BIRK_1 | B44: =INDEX('GSP info'!E:E,_xlfn.XMATCH('MAIN DATA'!A44,'GSP info'!B:B)) -> Birkenhead | C44: =INDEX('GSP info'!D:D,_xlfn.XMATCH('MAIN DATA'!A44,'GSP info'!B:B)) -> N3 | D44: N | E44: 407.9674315 | F44: -25.56694917 | G44: -71.09215417 | H44: 12.841 | I44: 68.356 | J44: 0.122 | K44: 0 | L44: 141.162 | M44: 0 | N44: 0
A45: BISW_1 | B45: =INDEX('GSP info'!E:E,_xlfn.XMATCH('MAIN DATA'!A45,'GSP info'!B:B)) -> Bishops Wood | C45: =INDEX('GSP info'!D:D,_xlfn.XMATCH('MAIN DATA'!A45,'GSP info'!B:B)) -> L2 | D45: L | E45: 786.7525962 | F45: 40.49628168 | G45: 5.963413109 | H45: 277.112 | I45: 571.594 | J45: 98.548 | K45: 0.315 | L45: 380.456 | M45: 0 | N45: 0
A46: BLYTB1 | B46: =INDEX('GSP info'!E:E,_xlfn.XMATCH('MAIN DATA'!A46,'GSP info'!B:B)) -> Blyth 66kV | C46: =INDEX('GSP info'!D:D,_xlfn.XMATCH('MAIN DATA'!A46,'GSP info'!B:B)) -> Q6 | D46: Q | E46: 247.1272052 | F46: 1.163832563 | G46: 1.935461334 | H46: 15.14 | I46: 162.552 | J46: 188.96 | K46: 0 | L46: 68.543 | M46: 0 | N46: 0
A47: BLYTH132 | B47: =INDEX('GSP info'!E:E,_xlfn.XMATCH('MAIN DATA'!A47,'GSP info'!B:B)) -> Blyth 132kV | C47: =INDEX('GSP info'!D:D,_xlfn.XMATCH('MAIN DATA'!A47,'GSP info'!B:B)) -> Q6 | D47: Q | E47: 79.46012118 | F47: 0.5152867657 | G47: 0.6096795183 | H47: 7.832 | I47: 116.919 | J47: 303.678 | K47: 0.035 | L47: 35.512 | M47: 0 | N47: 0
A48: BOAG_P | B48: =INDEX('GSP info'!E:E,_xlfn.XMATCH('MAIN DATA'!A48,'GSP info'!B:B)) -> Boat of Garten | C48: =INDEX('GSP info'!D:D,_xlfn.XMATCH('MAIN DATA'!A48,'GSP info'!B:B)) -> T1 | D48: T | E48: 41.27703236 | F48: -0.6213595619 | G48: -1.257077996 | H48: 1.546 | I48: 18.54 | J48: 0.051 | K48: 1.65 | L48: 13.893 | M48: 0 | N48: 0
A49: BOLN_1 | B49: =INDEX('GSP info'!E:E,_xlfn.XMATCH('MAIN DATA'!A49,'GSP info'!B:B)) -> Bolney | C49: =INDEX('GSP info'!D:D,_xlfn.XMATCH('MAIN DATA'!A49,'GSP info'!B:B)) -> B1 | D49: B | E49: 1270.778918 | F49: 123.4194996 | G49: -79.51701194 | H49: 91.386 | I49: 389.484 | J49: 0.39 | K49: 0 | L49: 319.543 | M49: 0 | N49: 0
A50: BONN | B50: =INDEX('GSP info'!E:E,_xlfn.XMATCH('MAIN DATA'!A50,'GSP info'!B:B)) -> Bonnybridge | C50: =INDEX('GSP info'!D:D,_xlfn.XMATCH('MAIN DATA'!A50,'GSP info'!B:B)) -> S5 | D50: S | E50: 108.9780853 | F50: 7.906420947 | G50: 1.987659658 | H50: 2.29 | I50: 49.097 | J50: 27.782 | K50: 0.87 | L50: 30.413 | M50: 0 | N50: 0
A51: BOTW_1 | B51: =INDEX('GSP info'!E:E,_xlfn.XMATCH('MAIN DATA'!A51,'GSP info'!B:B)) -> Botley Wood | C51: =INDEX('GSP info'!D:D,_xlfn.XMATCH('MAIN DATA'!A51,'GSP info'!B:B)) -> B2 | D51: B | E51: 174.6418356 | F51: 61.29310243 | G51: 27.61892411 | H51: 81.845 | I51: 343.491 | J51: 0 | K51: 0 | L51: 51.047 | M51: 0 | N51: 0
A52: BRAC_P | B52: =INDEX('GSP info'!E:E,_xlfn.XMATCH('MAIN DATA'!A52,'GSP info'!B:B)) -> Braco West | C52: =INDEX('GSP info'!D:D,_xlfn.XMATCH('MAIN DATA'!A52,'GSP info'!B:B)) -> T4 | D52: T | E52: 66.18481212 | F52: -11.28444435 | G52: -12.85469871 | H52: 33.701 | I52: 34.134 | J52: 0.867 | K52: 3.821 | L52: 15.105 | M52: 0 | N52: 0
A53: BRAI_1 | B53: =INDEX('GSP info'!E:E,_xlfn.XMATCH('MAIN DATA'!A53,'GSP info'!B:B)) -> Braintree | C53: =INDEX('GSP info'!D:D,_xlfn.XMATCH('MAIN DATA'!A53,'GSP info'!B:B)) -> J8 | D53: J | E53: 323.6194491 | F53: -12.87290647 | G53: -16.54995451 | H53: 31.387 | I53: 262.31 | J53: 0.187 | K53: 0 | L53: 63.677 | M53: 0 | N53: 0
A54: BRAP | B54: =INDEX('GSP info'!E:E,_xlfn.XMATCH('MAIN DATA'!A54,'GSP info'!B:B)) -> Braehead Park | C54: =INDEX('GSP info'!D:D,_xlfn.XMATCH('MAIN DATA'!A54,'GSP info'!B:B)) -> S6 | D54: S | E54: 61.05111594 | F54: 5.944540746 | G54: 4.940142684 | H54: 1.146 | I54: 21.059 | J54: 0 | K54: 0 | L54: 4.749 | M54: 0 | N54: 0
A55: BRAW_1 | B55: =INDEX('GSP info'!E:E,_xlfn.XMATCH('MAIN DATA'!A55,'GSP info'!B:B)) -> Bradford West | C55: =INDEX('GSP info'!D:D,_xlfn.XMATCH('MAIN DATA'!A55,'GSP info'!B:B)) -> P1 | D55: P | E55: 646.4945492 | F55: 113.1088707 | G55: -9.530970943 | H55: 29.725 | I55: 147.414 | J55: 59.623 | K55: 1.318 | L55: 207.018 | M55: 0 | N55: 0
A56: BRED_1 | B56: =INDEX('GSP info'!E:E,_xlfn.XMATCH('MAIN DATA'!A56,'GSP info'!B:B)) -> Bredbury | C56: =INDEX('GSP info'!D:D,_xlfn.XMATCH('MAIN DATA'!A56,'GSP info'!B:B)) -> N2 | D56: N | E56: 436.3252344 | F56: 96.2600063 | G56: -1.140953679 | H56: 87.385 | I56: 105.864 | J56: 0.008 | K56: 0.173 | L56: 234.18 | M56: 0 | N56: 0
A57: BRFO_1 | B57: =INDEX('GSP info'!E:E,_xlfn.XMATCH('MAIN DATA'!A57,'GSP info'!B:B)) -> Bramford | C57: =INDEX('GSP info'!D:D,_xlfn.XMATCH('MAIN DATA'!A57,'GSP info'!B:B)) -> J5 | D57: J | E57: 1131.249559 | F57: -42.99445561 | G57: -163.9835983 | H57: 299.485 | I57: 954.054 | J57: 132.808 | K57: 0 | L57: 357.963 | M57: 0 | N57: 0
A58: BRID_P | B58: =INDEX('GSP info'!E:E,_xlfn.XMATCH('MAIN DATA'!A58,'GSP info'!B:B)) -> Bridge of Dun | C58: =INDEX('GSP info'!D:D,_xlfn.XMATCH('MAIN DATA'!A58,'GSP info'!B:B)) -> T4 | D58: T | E58: 45.52794073 | F58: -1.074764027 | G58: -2.159105588 | H58: 12.428 | I58: 21.454 | J58: 16.118 | K58: 0.17 | L58: 13.908 | M58: 0 | N58: 0
A59: BRIM_1 | B59: =INDEX('GSP info'!E:E,_xlfn.XMATCH('MAIN DATA'!A59,'GSP info'!B:B)) -> Brimsdown | C59: =INDEX('GSP info'!D:D,_xlfn.XMATCH('MAIN DATA'!A59,'GSP info'!B:B)) -> A3 | D59: A | E59: 394.4427094 | F59: 34.41904569 | G59: -34.87462795 | H59: 7.221 | I59: 161.731 | J59: 0 | K59: 0 | L59: 126.694 | M59: 0 | N59: 0
A60: BRLE_1 | B60: =INDEX('GSP info'!E:E,_xlfn.XMATCH('MAIN DATA'!A60,'GSP info'!B:B)) -> Bramley | C60: =INDEX('GSP info'!D:D,_xlfn.XMATCH('MAIN DATA'!A60,'GSP info'!B:B)) -> B4 | D60: B | E60: 787.8782039 | F60: -20.02340629 | G60: -70.21494647 | H60: 140.705 | I60: 331.601 | J60: 0.832 | K60: 0.124 | L60: 346.761 | M60: 0 | N60: 0
A61: BROA_P | B61: =INDEX('GSP info'!E:E,_xlfn.XMATCH('MAIN DATA'!A61,'GSP info'!B:B)) -> Broadford | C61: =INDEX('GSP info'!D:D,_xlfn.XMATCH('MAIN DATA'!A61,'GSP info'!B:B)) -> T1 | D61: T | E61: 23.26666204 | F61: -0.2781140776 | G61: -0.6410173068 | H61: 0.68 | I61: 7.225 | J61: 1.469 | K61: 5.57 | L61: 3.821 | M61: 0 | N61: 0
A62: BROR_P | B62: =INDEX('GSP info'!E:E,_xlfn.XMATCH('MAIN DATA'!A62,'GSP info'!B:B)) -> Brora | C62: =INDEX('GSP info'!D:D,_xlfn.XMATCH('MAIN DATA'!A62,'GSP info'!B:B)) -> T5 | D62: T | E62: 11.95909812 | F62: 0.2273839275 | G62: 0.04345306452 | H62: 0.53 | I62: 3.868 | J62: 0.016 | K62: 0.342 | L62: 2.6 | M62: 0 | N62: 0
A63: BROX | B63: =INDEX('GSP info'!E:E,_xlfn.XMATCH('MAIN DATA'!A63,'GSP info'!B:B)) -> Broxburn | C63: =INDEX('GSP info'!D:D,_xlfn.XMATCH('MAIN DATA'!A63,'GSP info'!B:B)) -> S6 | D63: S | E63: 100.2497605 | F63: 2.886037561 | G63: 0.02460158177 | H63: 71.3 | I63: 15.038 | J63: 0 | K63: 0 | L63: 27.906 | M63: 0 | N63: 0
A64: BRWA1 | B64: =INDEX('GSP info'!E:E,_xlfn.XMATCH('MAIN DATA'!A64,'GSP info'!B:B)) -> Bridgewater | C64: =INDEX('GSP info'!D:D,_xlfn.XMATCH('MAIN DATA'!A64,'GSP info'!B:B)) -> E7 | D64: E | E64: 220.6969462 | F64: 4.309915796 | G64: -2.870591805 | H64: 253.681 | I64: 820.483 | J64: 1.956 | K64: 0.099 | L64: 156.57 | M64: 0 | N64: 0
A65: BUMU_P | B65: =INDEX('GSP info'!E:E,_xlfn.XMATCH('MAIN DATA'!A65,'GSP info'!B:B)) -> Burghmuir | C65: =INDEX('GSP info'!D:D,_xlfn.XMATCH('MAIN DATA'!A65,'GSP info'!B:B)) -> T4 | D65: T | E65: 78.22550717 | F65: -0.1613300269 | G65: -1.82459214 | H65: 3.383 | I65: 18.416 | J65: 0.241 | K65: 0.959 | L65: 3.432 | M65: 0 | N65: 0
A66: BURM_1 | B66: =INDEX('GSP info'!E:E,_xlfn.XMATCH('MAIN DATA'!A66,'GSP info'!B:B)) -> Burwell Main | C66: =INDEX('GSP info'!D:D,_xlfn.XMATCH('MAIN DATA'!A66,'GSP info'!B:B)) -> J7 | D66: J | E66: 544.1116604 | F66: 47.2150721 | G66: 23.49482021 | H66: 92.62 | I66: 1679.028 | J66: 87.675 | K66: 0 | L66: 100.567 | M66: 0 | N66: 0
A67: BUSH_1 | B67: =INDEX('GSP info'!E:E,_xlfn.XMATCH('MAIN DATA'!A67,'GSP info'!B:B)) -> Bushbury | C67: =INDEX('GSP info'!D:D,_xlfn.XMATCH('MAIN DATA'!A67,'GSP info'!B:B)) -> L2 | D67: L | E67: 270.5489554 | F67: 10.78869128 | G67: -3.752596767 | H67: 188.499 | I67: 140.743 | J67: 13.8 | K67: 0.003 | L67: 102.042 | M67: 0 | N67: 0
A68: BUST_1 | B68: =INDEX('GSP info'!E:E,_xlfn.XMATCH('MAIN DATA'!A68,'GSP info'!B:B)) -> Bustleholme | C68: =INDEX('GSP info'!D:D,_xlfn.XMATCH('MAIN DATA'!A68,'GSP info'!B:B)) -> L3 | D68: L | E68: 448.4359629 | F68: 126.5932911 | G68: -44.48349866 | H68: 57.883 | I68: 121.744 | J68: 0 | K68: 0 | L68: 124.099 | M68: 0 | N68: 0
A69: CAAD_P | B69: =INDEX('GSP info'!E:E,_xlfn.XMATCH('MAIN DATA'!A69,'GSP info'!B:B)) -> Carradale | C69: =INDEX('GSP info'!D:D,_xlfn.XMATCH('MAIN DATA'!A69,'GSP info'!B:B)) -> T3 | D69: T | E69: 21.38376893 | F69: 2.560537619 | G69: 0.8840487694 | H69: 0.833 | I69: 10.603 | J69: 53.706 | K69: 1.47 | L69: 20.044 | M69: 0 | N69: 0
A70: CAFA | B70: =INDEX('GSP info'!E:E,_xlfn.XMATCH('MAIN DATA'!A70,'GSP info'!B:B)) -> Carsfad | C70: =INDEX('GSP info'!D:D,_xlfn.XMATCH('MAIN DATA'!A70,'GSP info'!B:B)) -> S6 | D70: S | E70: 0 | F70: 0 | G70: -0.00920950169 | H70: 0 | I70: 3.77 | J70: 0 | K70: 12.64 | L70: 1.836 | M70: 0 | N70: 0
A71: CAIF_P | B71: =INDEX('GSP info'!E:E,_xlfn.XMATCH('MAIN DATA'!A71,'GSP info'!B:B)) -> Cairnford | C71: =INDEX('GSP info'!D:D,_xlfn.XMATCH('MAIN DATA'!A71,'GSP info'!B:B)) -> T2 | D71: T | E71: 0 | F71: 0 | G71: 0 | H71: 0 | I71: 0 | J71: 0 | K71: 0 | L71: 5.577 | M71: 0 | N71: 0
A72: CAMB_01 | B72: =INDEX('GSP info'!E:E,_xlfn.XMATCH('MAIN DATA'!A72,'GSP info'!B:B)) -> Camblesforth 66kV (Drax) | C72: =INDEX('GSP info'!D:D,_xlfn.XMATCH('MAIN DATA'!A72,'GSP info'!B:B)) -> P4 | D72: P | E72: 31.79086848 | F72: -2.787672106 | G72: -4.245505557 | H72: 35 | I72: 52.01 | J72: 149.48 | K72: 0 | L72: 26.661 | M72: 0 | N72: 0
A73: CANTN1 | B73: =INDEX('GSP info'!E:E,_xlfn.XMATCH('MAIN DATA'!A73,'GSP info'!B:B)) -> Canterbury | C73: =INDEX('GSP info'!D:D,_xlfn.XMATCH('MAIN DATA'!A73,'GSP info'!B:B)) -> C7 | D73: C | E73: 242.9903954 | F73: -2.141590965 | G73: -19.60062638 | H73: 89.582 | I73: 316.411 | J73: 151.599 | K73: 0.004 | L73: 76.675 | M73: 0 | N73: 0
A74: CAPEA1 | B74: =INDEX('GSP info'!E:E,_xlfn.XMATCH('MAIN DATA'!A74,'GSP info'!B:B)) -> Capenhurst | C74: =INDEX('GSP info'!D:D,_xlfn.XMATCH('MAIN DATA'!A74,'GSP info'!B:B)) -> N3 | D74: N | E74: 570.0326646 | F74: 53.54285548 | G74: 5.063728405 | H74: 49.034 | I74: 80.312 | J74: 0.009 | K74: 0 | L74: 60.699 | M74: 0 | N74: 0
A75: CARE_1 | B75: =INDEX('GSP info'!E:E,_xlfn.XMATCH('MAIN DATA'!A75,'GSP info'!B:B)) -> Cardiff East | C75: =INDEX('GSP info'!D:D,_xlfn.XMATCH('MAIN DATA'!A75,'GSP info'!B:B)) -> H2 | D75: H | E75: 265.8755832 | F75: 3.4972198 | G75: -28.11769352 | H75: 68.263 | I75: 107.952 | J75: 7.186 | K75: 0 | L75: 104.968 | M75: 0 | N75: 0
A76: CARR_1 | B76: =INDEX('GSP info'!E:E,_xlfn.XMATCH('MAIN DATA'!A76,'GSP info'!B:B)) -> Carrington | C76: =INDEX('GSP info'!D:D,_xlfn.XMATCH('MAIN DATA'!A76,'GSP info'!B:B)) -> N2 | D76: N | E76: 661.8020183 | F76: 43.09544204 | G76: 29.78664796 | H76: 47.631 | I76: 61.039 | J76: 0 | K76: 2.672 | L76: 164.145 | M76: 0 | N76: 0
A77: CASS_P | B77: =INDEX('GSP info'!E:E,_xlfn.XMATCH('MAIN DATA'!A77,'GSP info'!B:B)) -> Cassley | C77: =INDEX('GSP info'!D:D,_xlfn.XMATCH('MAIN DATA'!A77,'GSP info'!B:B)) -> T5 | D77: T | E77: 5.775122192 | F77: 0.6949989206 | G77: 0.481691794 | H77: 0 | I77: 8.47 | J77: 0 | K77: 0.523 | L77: 4.562 | M77: 0 | N77: 0
A78: CATY | B78: =INDEX('GSP info'!E:E,_xlfn.XMATCH('MAIN DATA'!A78,'GSP info'!B:B)) -> Carntyne | C78: =INDEX('GSP info'!D:D,_xlfn.XMATCH('MAIN DATA'!A78,'GSP info'!B:B)) -> S6 | D78: S | E78: 29.60291339 | F78: 2.920439701 | G78: 1.154633063 | H78: 0.141 | I78: 4.802 | J78: 0 | K78: 0 | L78: 8.222 | M78: 0 | N78: 0
A79: CBNK_H | B79: =INDEX('GSP info'!E:E,_xlfn.XMATCH('MAIN DATA'!A79,'GSP info'!B:B)) -> Canal Bank (Willesden 66kV) | C79: =INDEX('GSP info'!D:D,_xlfn.XMATCH('MAIN DATA'!A79,'GSP info'!B:B)) -> A7 | D79: A | E79: 56.78475842 | F79: -1.783035244 | G79: -2.52518877 | H79: 0 | I79: 9.46 | J79: 0 | K79: 0 | L79: 5.938 | M79: 0 | N79: 0
A80: CEAN_P | B80: =INDEX('GSP info'!E:E,_xlfn.XMATCH('MAIN DATA'!A80,'GSP info'!B:B)) -> Ceannacroc | C80: =INDEX('GSP info'!D:D,_xlfn.XMATCH('MAIN DATA'!A80,'GSP info'!B:B)) -> T1 | D80: T | E80: 5.120709274 | F80: -0.08337500816 | G80: -0.08337500816 | H80: 0 | I80: 0 | J80: 0 | K80: 2.11 | L80: 1.166 | M80: 0 | N80: 0
A81: CELL_1 | B81: =INDEX('GSP info'!E:E,_xlfn.XMATCH('MAIN DATA'!A81,'GSP info'!B:B)) -> Cellarhead | C81: =INDEX('GSP info'!D:D,_xlfn.XMATCH('MAIN DATA'!A81,'GSP info'!B:B)) -> L5 | D81: L | E81: 1003.573646 | F81: 2.221250961 | G81: -59.48498427 | H81: 222.766 | I81: 440.064 | J81: 7.41 | K81: 0.022 | L81: 345.42 | M81: 0 | N81: 0
A82: CHAP | B82: =INDEX('GSP info'!E:E,_xlfn.XMATCH('MAIN DATA'!A82,'GSP info'!B:B)) -> Chapelcross | C82: =INDEX('GSP info'!D:D,_xlfn.XMATCH('MAIN DATA'!A82,'GSP info'!B:B)) -> S6 | D82: =LEFT(C82,1) -> S | E82: =SUMIFS(OFFSET(ActivePk,0,$D$5),ActiveLocation,A82,ActiveScenario,$D$4,ActiveYear,$D$6) -> 79.62245302 | F82: =SUMIFS(OFFSET(QGrossPk,0,$D$5),QGrossLocation,A82,QGrossScenario,$D$4,QGrossYear,$D$6) -> 10.53919633 | G82: =F82-SUMIFS(OFFSET(LVGWintPk,0,$D$5),LVGLocation,A82,LVGScenario,$D$4,LVGYear,$D$6) -> 1.152631106 | H82: =SUMIFS(DGcapacity,DGlocation,A82,DGscenario,$D$4,DGyear,$D$6,DGtech,"Storage")+SUMIFS(micro_capacity,micro_location,A82,micro_scenario,$D$4,micro_year,$D$6,micro_tech,"Battery") -> 2.91 | I82: =SUMIFS(DGcapacity,DGlocation,A82,DGscenario,$D$4,DGyear,$D$6,DGtech,"Solar")+SUMIFS(micro_capacity,micro_location,A82,micro_scenario,$D$4,micro_year,$D$6,micro_tech,"Solar") -> 46.47 | J82: =SUMIFS(DGcapacity,DGlocation,A82,DGscenario,$D$4,DGyear,$D$6,DGtech,"Wind")+SUMIFS(micro_capacity,micro_location,A82,micro_scenario,$D$4,micro_year,$D$6,micro_tech,"Wind") -> 52.558 | K82: =SUMIFS(DGcapacity,DGlocation,A82,DGscenario,$D$4,DGyear,$D$6,DGtech,"Hydro")+SUMIFS(micro_capacity,micro_location,A82,micro_scenario,$D$4,micro_year,$D$6,micro_tech,"Hydro") -> 0.628 | L82: =SUMIFS(DGcapacity,DGlocation,A82,DGscenario,$D$4,DGyear,$D$6,DGtech,"Other")+SUMIFS(micro_capacity,micro_location,A82,micro_scenario,$D$4,micro_year,$D$6,micro_tech,"Other") -> 16.567 | M82: =SUMIFS(OFFSET(DxStorWintpk,0,$G$5),DxStorLocation,A82,DxStorScenario,$D$4,DxStorYear,$D$6)*-1 -> 0 | N82: =SUMIFS(OFFSET(mbat_wintpk,0,$G$5),mbat_location,A82,mbat_scenario,$D$4,mbat_year,$D$6)*-1 -> 0
A83: CHAR_P | B83: =INDEX('GSP info'!E:E,_xlfn.XMATCH('MAIN DATA'!A83,'GSP info'!B:B)) -> Charleston | C83: =INDEX('GSP info'!D:D,_xlfn.XMATCH('MAIN DATA'!A83,'GSP info'!B:B)) -> T4 | D83: T | E83: 30.70152207 | F83: -1.316525869 | G83: -1.773986193 | H83: 0 | I83: 0 | J83: 0.126 | K83: 0 | L83: 5.423 | M83: 0 | N83: 0
A84: CHAS | B84: =INDEX('GSP info'!E:E,_xlfn.XMATCH('MAIN DATA'!A84,'GSP info'!B:B)) -> Charlotte Street | C84: =INDEX('GSP info'!D:D,_xlfn.XMATCH('MAIN DATA'!A84,'GSP info'!B:B)) -> S6 | D84: S | E84: 81.4898332 | F84: 5.03448667 | G84: 2.523936025 | H84: 0.637 | I84: 8.424 | J84: 0 | K84: 0 | L84: 8.506 | M84: 0 | N84: 0
A85: CHIC_1 | B85: =INDEX('GSP info'!E:E,_xlfn.XMATCH('MAIN DATA'!A85,'GSP info'!B:B)) -> Chickerell | C85: =INDEX('GSP info'!D:D,_xlfn.XMATCH('MAIN DATA'!A85,'GSP info'!B:B)) -> E1 | D85: E | E85: 132.3582972 | F85: 12.80989533 | G85: 4.47277714 | H85: 15.23 | I85: 474.519 | J85: 1.01 | K85: 0.042 | L85: 35.147 | M85: 0 | N85: 0
A86: CHSI_1 | B86: =INDEX('GSP info'!E:E,_xlfn.XMATCH('MAIN DATA'!A86,'GSP info'!B:B)) -> Chessington | C86: =INDEX('GSP info'!D:D,_xlfn.XMATCH('MAIN DATA'!A86,'GSP info'!B:B)) -> A8 | D86: A | E86: 497.4310418 | F86: 127.8649405 | G86: 24.48475371 | H86: 6.567 | I86: 70.521 | J86: 0 | K86: 0 | L86: 90.192 | M86: 0 | N86: 0
A87: CHTE_1 | B87: =INDEX('GSP info'!E:E,_xlfn.XMATCH('MAIN DATA'!A87,'GSP info'!B:B)) -> Chesterfield | C87: =INDEX('GSP info'!D:D,_xlfn.XMATCH('MAIN DATA'!A87,'GSP info'!B:B)) -> P3 | D87: P | E87: 842.7799059 | F87: -12.53714836 | G87: -34.75585441 | H87: 309.043 | I87: 530.019 | J87: 75 | K87: 4.856 | L87: 314.966 | M87: 0 | N87: 0
A88: CITR_1 | B88: =INDEX('GSP info'!E:E,_xlfn.XMATCH('MAIN DATA'!A88,'GSP info'!B:B)) -> City Road | C88: =INDEX('GSP info'!D:D,_xlfn.XMATCH('MAIN DATA'!A88,'GSP info'!B:B)) -> A7 | D88: A | E88: 960.0118867 | F88: 78.4964828 | G88: -19.19297164 | H88: 0.562 | I88: 13.563 | J88: 0 | K88: 0 | L88: 33.644 | M88: 0 | N88: 0
A89: CLAC_P | B89: =INDEX('GSP info'!E:E,_xlfn.XMATCH('MAIN DATA'!A89,'GSP info'!B:B)) -> Clachan | C89: =INDEX('GSP info'!D:D,_xlfn.XMATCH('MAIN DATA'!A89,'GSP info'!B:B)) -> T3 | D89: T | E89: 5.227657468 | F89: -0.01083339393 | G89: -0.01083339393 | H89: 0.135 | I89: 20.464 | J89: 0 | K89: 4.151 | L89: 0.91 | M89: 0 | N89: 0
A90: CLAY_P | B90: =INDEX('GSP info'!E:E,_xlfn.XMATCH('MAIN DATA'!A90,'GSP info'!B:B)) -> Clayhills | C90: =INDEX('GSP info'!D:D,_xlfn.XMATCH('MAIN DATA'!A90,'GSP info'!B:B)) -> T2 | D90: T | E90: 39.40691116 | F90: 0.9584765531 | G90: -0.7814556658 | H90: 0.698 | I90: 6.978 | J90: 0.009 | K90: 0 | L90: 1.757 | M90: 0 | N90: 0
A91: CLT03 | B91: =INDEX('GSP info'!E:E,_xlfn.XMATCH('MAIN DATA'!A91,'GSP info'!B:B)) -> Clacton (Bramford) | C91: =INDEX('GSP info'!D:D,_xlfn.XMATCH('MAIN DATA'!A91,'GSP info'!B:B)) -> J5 | D91: J | E91: 0 | F91: 0 | G91: 0 | H91: 0 | I91: 92.84 | J91: 0 | K91: 0 | L91: 162.857 | M91: 0 | N91: 0
A92: CLYM | B92: =INDEX('GSP info'!E:E,_xlfn.XMATCH('MAIN DATA'!A92,'GSP info'!B:B)) -> Clyde’s Mill | C92: =INDEX('GSP info'!D:D,_xlfn.XMATCH('MAIN DATA'!A92,'GSP info'!B:B)) -> S6 | D92: S | E92: 122.3316102 | F92: 7.985568965 | G92: 0.3404142726 | H92: 0 | I92: 3.77 | J92: 0 | K92: 0 | L92: 15.456 | M92: 0 | N92: 0
A93: COAT | B93: =INDEX('GSP info'!E:E,_xlfn.XMATCH('MAIN DATA'!A93,'GSP info'!B:B)) -> Coatbridge | C93: =INDEX('GSP info'!D:D,_xlfn.XMATCH('MAIN DATA'!A93,'GSP info'!B:B)) -> S6 | D93: S | E93: 103.1554389 | F93: 5.340843901 | G93: 1.979885799 | H93: 12.467 | I93: 21.785 | J93: 3.874 | K93: 0 | L93: 8.994 | M93: 0 | N93: 0
A94: COCK | B94: =INDEX('GSP info'!E:E,_xlfn.XMATCH('MAIN DATA'!A94,'GSP info'!B:B)) -> Cockenzie | C94: =INDEX('GSP info'!D:D,_xlfn.XMATCH('MAIN DATA'!A94,'GSP info'!B:B)) -> S6 | D94: S | E94: 80.80889621 | F94: 2.691999509 | G94: -0.8669007132 | H94: 17.95 | I94: 21.542 | J94: 1.148 | K94: 0.038 | L94: 23.58 | M94: 0 | N94: 0
A95: CONQA1 | B95: =INDEX('GSP info'!E:E,_xlfn.XMATCH('MAIN DATA'!A95,'GSP info'!B:B)) -> Connah's Quay | C95: =INDEX('GSP info'!D:D,_xlfn.XMATCH('MAIN DATA'!A95,'GSP info'!B:B)) -> M5 | D95: M | E95: 465.3631014 | F95: -10.26754975 | G95: -23.92841041 | H95: 122.727 | I95: 267.985 | J95: 848.19 | K95: 0.229 | L95: 63.713 | M95: 0 | N95: 0
A96: COUA_P | B96: =INDEX('GSP info'!E:E,_xlfn.XMATCH('MAIN DATA'!A96,'GSP info'!B:B)) -> Coupar Angus | C96: =INDEX('GSP info'!D:D,_xlfn.XMATCH('MAIN DATA'!A96,'GSP info'!B:B)) -> T4 | D96: T | E96: 46.07307842 | F96: -3.161400901 | G96: -4.004571704 | H96: 2.725 | I96: 31.949 | J96: 39.074 | K96: 2.214 | L96: 17.418 | M96: 0 | N96: 0
A97: COVE_1 | B97: =INDEX('GSP info'!E:E,_xlfn.XMATCH('MAIN DATA'!A97,'GSP info'!B:B)) -> Coventry | C97: =INDEX('GSP info'!D:D,_xlfn.XMATCH('MAIN DATA'!A97,'GSP info'!B:B)) -> L3 | D97: L | E97: 767.5045109 | F97: 34.39824008 | G97: -10.13021476 | H97: 33.135 | I97: 405.776 | J97: 257.427 | K97: 0 | L97: 307.342 | M97: 0 | N97: 0
A98: COWL_1 | B98: =INDEX('GSP info'!E:E,_xlfn.XMATCH('MAIN DATA'!A98,'GSP info'!B:B)) -> Cowley | C98: =INDEX('GSP info'!D:D,_xlfn.XMATCH('MAIN DATA'!A98,'GSP info'!B:B)) -> D6 | D98: D | E98: 861.7015359 | F98: 62.82709101 | G98: -50.24543735 | H98: 77.21 | I98: 906.863 | J98: 0.085 | K98: 1.124 | L98: 126.239 | M98: 0 | N98: 0
A99: COYL | B99: =INDEX('GSP info'!E:E,_xlfn.XMATCH('MAIN DATA'!A99,'GSP info'!B:B)) -> Coylton | C99: =INDEX('GSP info'!D:D,_xlfn.XMATCH('MAIN DATA'!A99,'GSP info'!B:B)) -> S6 | D99: S | E99: 87.44395478 | F99: 1.313761178 | G99: -0.254085267 | H99: 32.418 | I99: 86.934 | J99: 152.779 | K99: 2.217 | L99: 44.193 | M99: 0 | N99: 0
A100: CRAI_P | B100: =INDEX('GSP info'!E:E,_xlfn.XMATCH('MAIN DATA'!A100,'GSP info'!B:B)) -> Craigiebuckler | C100: =INDEX('GSP info'!D:D,_xlfn.XMATCH('MAIN DATA'!A100,'GSP info'!B:B)) -> T2 | D100: T | E100: 45.17286384 | F100: -2.150172248 | G100: -2.275755889 | H100: 0.182 | I100: 1.326 | J100: 1.629 | K100: 0 | L100: 12.314 | M100: 0 | N100: 0
A101: CREB_1 | B101: =INDEX('GSP info'!E:E,_xlfn.XMATCH('MAIN DATA'!A101,'GSP info'!B:B)) -> Creyke Beck | C101: =INDEX('GSP info'!D:D,_xlfn.XMATCH('MAIN DATA'!A101,'GSP info'!B:B)) -> P8 | D101: P | E101: 858.84315 | F101: 102.9019865 | G101: 20.60426034 | H101: 134.688 | I101: 417.15 | J101: 444.305 | K101: 0 | L101: 293.049 | M101: 0 | N101: 0
A102: CUMB | B102: =INDEX('GSP info'!E:E,_xlfn.XMATCH('MAIN DATA'!A102,'GSP info'!B:B)) -> Cumbernauld | C102: =INDEX('GSP info'!D:D,_xlfn.XMATCH('MAIN DATA'!A102,'GSP info'!B:B)) -> S5 | D102: S | E102: 87.9667525 | F102: 3.91185573 | G102: -0.4259630431 | H102: 1.83 | I102: 45.742 | J102: 42.294 | K102: 0 | L102: 42.855 | M102: 0 | N102: 0
A103: CUPA | B103: =INDEX('GSP info'!E:E,_xlfn.XMATCH('MAIN DATA'!A103,'GSP info'!B:B)) -> Cupar | C103: =INDEX('GSP info'!D:D,_xlfn.XMATCH('MAIN DATA'!A103,'GSP info'!B:B)) -> S5 | D103: S | E103: 108.9198007 | F103: 4.459913858 | G103: 4.030313757 | H103: 17.216 | I103: 71.921 | J103: 8.716 | K103: 0 | L103: 53.229 | M103: 0 | N103: 0
A104: CURR | B104: =INDEX('GSP info'!E:E,_xlfn.XMATCH('MAIN DATA'!A104,'GSP info'!B:B)) -> Currie | C104: =INDEX('GSP info'!D:D,_xlfn.XMATCH('MAIN DATA'!A104,'GSP info'!B:B)) -> S6 | D104: S | E104: 22.86957425 | F104: -0.2945999283 | G104: -0.2945999283 | H104: 0.05 | I104: 0.365 | J104: 0 | K104: 0 | L104: 9.633 | M104: 0 | N104: 0
A105: DALL_P | B105: =INDEX('GSP info'!E:E,_xlfn.XMATCH('MAIN DATA'!A105,'GSP info'!B:B)) -> Dallas | C105: =INDEX('GSP info'!D:D,_xlfn.XMATCH('MAIN DATA'!A105,'GSP info'!B:B)) -> T1 | D105: T | E105: 0 | F105: 0 | G105: 0 | H105: 0 | I105: 0 | J105: 0 | K105: 0 | L105: 5.577 | M105: 0 | N105: 0
A106: DALM3 | B106: =INDEX('GSP info'!E:E,_xlfn.XMATCH('MAIN DATA'!A106,'GSP info'!B:B)) -> Dalmarnock | C106: =INDEX('GSP info'!D:D,_xlfn.XMATCH('MAIN DATA'!A106,'GSP info'!B:B)) -> S6 | D106: S | E106: 49.63223498 | F106: 2.169838605 | G106: -0.1400869182 | H106: 7.384 | I106: 14.607 | J106: 0 | K106: 0 | L106: 17.348 | M106: 0 | N106: 0
A107: DEVM | B107: =INDEX('GSP info'!E:E,_xlfn.XMATCH('MAIN DATA'!A107,'GSP info'!B:B)) -> Devol Moor | C107: =INDEX('GSP info'!D:D,_xlfn.XMATCH('MAIN DATA'!A107,'GSP info'!B:B)) -> S6 | D107: S | E107: 40.84833976 | F107: 7.808685907 | G107: 6.534622025 | H107: 0.833 | I107: 9.854 | J107: 50.757 | K107: 0.026 | L107: 4.421 | M107: 0 | N107: 0
A108: DEVO | B108: =INDEX('GSP info'!E:E,_xlfn.XMATCH('MAIN DATA'!A108,'GSP info'!B:B)) -> Devonside | C108: =INDEX('GSP info'!D:D,_xlfn.XMATCH('MAIN DATA'!A108,'GSP info'!B:B)) -> S5 | D108: S | E108: 86.69101826 | F108: 4.731710792 | G108: -2.393163876 | H108: 10.386 | I108: 60.432 | J108: 165.095 | K108: 1.095 | L108: 19.03 | M108: 0 | N108: 0
A109: DEWP | B109: =INDEX('GSP info'!E:E,_xlfn.XMATCH('MAIN DATA'!A109,'GSP info'!B:B)) -> Dewar Place | C109: =INDEX('GSP info'!D:D,_xlfn.XMATCH('MAIN DATA'!A109,'GSP info'!B:B)) -> S6 | D109: S | E109: 123.3636764 | F109: -0.6937883315 | G109: -4.199204363 | H109: 0.244 | I109: 1.779 | J109: 0 | K109: 0 | L109: 2.972 | M109: 0 | N109: 0
A110: DOUN_P | B110: =INDEX('GSP info'!E:E,_xlfn.XMATCH('MAIN DATA'!A110,'GSP info'!B:B)) -> Dounreay | C110: =INDEX('GSP info'!D:D,_xlfn.XMATCH('MAIN DATA'!A110,'GSP info'!B:B)) -> T5 | D110: T | E110: 21.59971299 | F110: 0.2344045603 | G110: -0.136881618 | H110: 0.827 | I110: 29.775 | J110: 1.556 | K110: 0 | L110: 0.367 | M110: 0 | N110: 0
A111: DRAK_1 | B111: =INDEX('GSP info'!E:E,_xlfn.XMATCH('MAIN DATA'!A111,'GSP info'!B:B)) -> Drakelow | C111: =INDEX('GSP info'!D:D,_xlfn.XMATCH('MAIN DATA'!A111,'GSP info'!B:B)) -> L2 | D111: L | E111: 287.5970409 | F111: 6.849165342 | G111: 1.32608451 | H111: 155.279 | I111: 229.881 | J111: 2.452 | K111: 0.08 | L111: 84.086 | M111: 0 | N111: 0
A112: DRAX_1 | B112: =INDEX('GSP info'!E:E,_xlfn.XMATCH('MAIN DATA'!A112,'GSP info'!B:B)) -> Drax 132kV | C112: =INDEX('GSP info'!D:D,_xlfn.XMATCH('MAIN DATA'!A112,'GSP info'!B:B)) -> P4 | D112: P | E112: 189.2214597 | F112: 11.51618797 | G112: 2.003693718 | H112: 11.31 | I112: 76.91 | J112: 101.213 | K112: 0.36 | L112: 77.043 | M112: 0 | N112: 0
A113: DRCR | B113: =INDEX('GSP info'!E:E,_xlfn.XMATCH('MAIN DATA'!A113,'GSP info'!B:B)) -> Drumcross | C113: =INDEX('GSP info'!D:D,_xlfn.XMATCH('MAIN DATA'!A113,'GSP info'!B:B)) -> S5 | D113: S | E113: 22.38033638 | F113: 3.343061108 | G113: 1.625000636 | H113: 59.8 | I113: 32.38 | J113: 56.63 | K113: 0 | L113: 1.724 | M113: 0 | N113: 0
A114: DRUM | B114: =INDEX('GSP info'!E:E,_xlfn.XMATCH('MAIN DATA'!A114,'GSP info'!B:B)) -> Drumchapel | C114: =INDEX('GSP info'!D:D,_xlfn.XMATCH('MAIN DATA'!A114,'GSP info'!B:B)) -> S5 | D114: S | E114: 109.8867229 | F114: 10.58133366 | G114: -0.3235820125 | H114: 0.905 | I114: 6.607 | J114: 0 | K114: 0 | L114: 16.073 | M114: 0 | N114: 0
A115: DUBE_P | B115: =INDEX('GSP info'!E:E,_xlfn.XMATCH('MAIN DATA'!A115,'GSP info'!B:B)) -> Dunbeath | C115: =INDEX('GSP info'!D:D,_xlfn.XMATCH('MAIN DATA'!A115,'GSP info'!B:B)) -> T5 | D115: T | E115: 0 | F115: 0 | G115: 0 | H115: 0 | I115: 0 | J115: 0 | K115: 0 | L115: 0.001 | M115: 0 | N115: 0
A116: DUDH_P | B116: =INDEX('GSP info'!E:E,_xlfn.XMATCH('MAIN DATA'!A116,'GSP info'!B:B)) -> Dudhope | C116: =INDEX('GSP info'!D:D,_xlfn.XMATCH('MAIN DATA'!A116,'GSP info'!B:B)) -> T4 | D116: T | E116: 0 | F116: 0 | G116: -1.95564518 | H116: 1.889 | I116: 19.44 | J116: 0.251 | K116: 0 | L116: 3.102 | M116: 0 | N116: 0
A117: DUGR_P | B117: =INDEX('GSP info'!E:E,_xlfn.XMATCH('MAIN DATA'!A117,'GSP info'!B:B)) -> Dunvegan | C117: =INDEX('GSP info'!D:D,_xlfn.XMATCH('MAIN DATA'!A117,'GSP info'!B:B)) -> T1 | D117: T | E117: 25.82549025 | F117: -0.1689022409 | G117: -0.4557899718 | H117: 1.125 | I117: 5.775 | J117: 0.118 | K117: 0 | L117: 3.668 | M117: 0 | N117: 0
A118: DUNF | B118: =INDEX('GSP info'!E:E,_xlfn.XMATCH('MAIN DATA'!A118,'GSP info'!B:B)) -> Dunfermline | C118: =INDEX('GSP info'!D:D,_xlfn.XMATCH('MAIN DATA'!A118,'GSP info'!B:B)) -> S5 | D118: S | E118: 85.0921452 | F118: -0.3487868048 | G118: -1.614935722 | H118: 1.244 | I118: 41.466 | J118: 1.543 | K118: 0 | L118: 19.808 | M118: 0 | N118: 0
A119: DUNO_P | B119: =INDEX('GSP info'!E:E,_xlfn.XMATCH('MAIN DATA'!A119,'GSP info'!B:B)) -> Dunoon | C119: =INDEX('GSP info'!D:D,_xlfn.XMATCH('MAIN DATA'!A119,'GSP info'!B:B)) -> S5 | D119: S | E119: 31.54467149 | F119: -0.5062006237 | G119: -2.123308988 | H119: 4.574 | I119: 40.219 | J119: 0.147 | K119: 1.605 | L119: 3.652 | M119: 0 | N119: 0
A120: DYCE_P | B120: =INDEX('GSP info'!E:E,_xlfn.XMATCH('MAIN DATA'!A120,'GSP info'!B:B)) -> Dyce | C120: =INDEX('GSP info'!D:D,_xlfn.XMATCH('MAIN DATA'!A120,'GSP info'!B:B)) -> T2 | D120: T | E120: 53.59705689 | F120: -2.39590778 | G120: -4.399005865 | H120: 2.986 | I120: 54.559 | J120: 53.39 | K120: 0.041 | L120: 14.062 | M120: 0 | N120: 0
A121: EALI_6 | B121: =INDEX('GSP info'!E:E,_xlfn.XMATCH('MAIN DATA'!A121,'GSP info'!B:B)) -> Ealing | C121: =INDEX('GSP info'!D:D,_xlfn.XMATCH('MAIN DATA'!A121,'GSP info'!B:B)) -> A7 | D121: A | E121: 325.369792 | F121: -8.570429594 | G121: -12.65494518 | H121: 2.967 | I121: 31.122 | J121: 0.167 | K121: 0 | L121: 54.497 | M121: 0 | N121: 0
A122: EASO_1 | B122: =INDEX('GSP info'!E:E,_xlfn.XMATCH('MAIN DATA'!A122,'GSP info'!B:B)) -> Eaton Socon | C122: =INDEX('GSP info'!D:D,_xlfn.XMATCH('MAIN DATA'!A122,'GSP info'!B:B)) -> J4 | D122: J | E122: 453.3984391 | F122: 51.75975299 | G122: 28.68600342 | H122: 82.079 | I122: 600.312 | J122: 153.175 | K122: 0.049 | L122: 110.693 | M122: 0 | N122: 0
A123: EAST | B123: =INDEX('GSP info'!E:E,_xlfn.XMATCH('MAIN DATA'!A123,'GSP info'!B:B)) -> Earlstoun | C123: =INDEX('GSP info'!D:D,_xlfn.XMATCH('MAIN DATA'!A123,'GSP info'!B:B)) -> S6 | D123: S | E123: 0 | F123: 0 | G123: 0 | H123: 0 | I123: 3.77 | J123: 0 | K123: 16.01 | L123: 1.836 | M123: 0 | N123: 0
A124: ECCL | B124: =INDEX('GSP info'!E:E,_xlfn.XMATCH('MAIN DATA'!A124,'GSP info'!B:B)) -> Eccles | C124: =INDEX('GSP info'!D:D,_xlfn.XMATCH('MAIN DATA'!A124,'GSP info'!B:B)) -> S6 | D124: S | E124: 34.77436978 | F124: 10.22896283 | G124: 8.435380528 | H124: 4.79 | I124: 38.74 | J124: 58.69 | K124: 0 | L124: 13.335 | M124: 0 | N124: 0
A125: ECLA_1 | B125: =INDEX('GSP info'!E:E,_xlfn.XMATCH('MAIN DATA'!A125,'GSP info'!B:B)) -> East Claydon | C125: =INDEX('GSP info'!D:D,_xlfn.XMATCH('MAIN DATA'!A125,'GSP info'!B:B)) -> D4 | D125: D | E125: 610.3429406 | F125: -38.87350045 | G125: -91.98827512 | H125: 208.63 | I125: 477.806 | J125: 1.083 | K125: 0 | L125: 325.555 | M125: 0 | N125: 0
A126: ECLA_H | B126: =INDEX('GSP info'!E:E,_xlfn.XMATCH('MAIN DATA'!A126,'GSP info'!B:B)) -> East Claydon | C126: =INDEX('GSP info'!D:D,_xlfn.XMATCH('MAIN DATA'!A126,'GSP info'!B:B)) -> D4 | D126: D | E126: 21.16868804 | F126: -0.6338936194 | G126: -2.592294825 | H126: 0 | I126: 0 | J126: 0 | K126: 0 | L126: 99.467 | M126: 0 | N126: 0
A127: EERH | B127: =INDEX('GSP info'!E:E,_xlfn.XMATCH('MAIN DATA'!A127,'GSP info'!B:B)) -> Easterhouse | C127: =INDEX('GSP info'!D:D,_xlfn.XMATCH('MAIN DATA'!A127,'GSP info'!B:B)) -> S6 | D127: S | E127: 148.2309293 | F127: 3.311388619 | G127: -2.190741205 | H127: 2.686 | I127: 19.613 | J127: 0.037 | K127: 0 | L127: 35.205 | M127: 0 | N127: 0
A128: EKIL | B128: =INDEX('GSP info'!E:E,_xlfn.XMATCH('MAIN DATA'!A128,'GSP info'!B:B)) -> East Kilbride | C128: =INDEX('GSP info'!D:D,_xlfn.XMATCH('MAIN DATA'!A128,'GSP info'!B:B)) -> S6 | D128: S | E128: 75.64717254 | F128: 4.170211202 | G128: -0.3303614991 | H128: 23.268 | I128: 27.629 | J128: 0.389 | K128: 0.662 | L128: 4.685 | M128: 0 | N128: 0
A129: EKIS | B129: =INDEX('GSP info'!E:E,_xlfn.XMATCH('MAIN DATA'!A129,'GSP info'!B:B)) -> East Kilbride South | C129: =INDEX('GSP info'!D:D,_xlfn.XMATCH('MAIN DATA'!A129,'GSP info'!B:B)) -> S6 | D129: S | E129: 32.84494667 | F129: 4.661103203 | G129: -3.581895314 | H129: 29.9 | I129: 3.77 | J129: 175.78 | K129: 0 | L129: 7.975 | M129: 0 | N129: 0
A130: ELDE | B130: =INDEX('GSP info'!E:E,_xlfn.XMATCH('MAIN DATA'!A130,'GSP info'!B:B)) -> Elderslie | C130: =INDEX('GSP info'!D:D,_xlfn.XMATCH('MAIN DATA'!A130,'GSP info'!B:B)) -> S6 | D130: S | E130: 47.19260888 | F130: 0.854068541 | G130: -1.516995895 | H130: 1.516 | I130: 11.066 | J130: 0 | K130: 0 | L130: 5.922 | M130: 0 | N130: 0
A131: ELGI_P | B131: =INDEX('GSP info'!E:E,_xlfn.XMATCH('MAIN DATA'!A131,'GSP info'!B:B)) -> Elgin | C131: =INDEX('GSP info'!D:D,_xlfn.XMATCH('MAIN DATA'!A131,'GSP info'!B:B)) -> T1 | D131: T | E131: 57.47579738 | F131: 2.429914572 | G131: -0.2416628984 | H131: 4.096 | I131: 31.172 | J131: 1.159 | K131: 0.056 | L131: 6.536 | M131: 0 | N131: 0
A132: ELLA_1 | B132: =INDEX('GSP info'!E:E,_xlfn.XMATCH('MAIN DATA'!A132,'GSP info'!B:B)) -> Elland | C132: =INDEX('GSP info'!D:D,_xlfn.XMATCH('MAIN DATA'!A132,'GSP info'!B:B)) -> P1 | D132: P | E132: 563.4272974 | F132: 55.64321986 | G132: 6.960034582 | H132: 117.53 | I132: 140.991 | J132: 113.025 | K132: 0.099 | L132: 189.377 | M132: 0 | N132: 0
A133: ELST_1 | B133: =INDEX('GSP info'!E:E,_xlfn.XMATCH('MAIN DATA'!A133,'GSP info'!B:B)) -> Elstree | C133: =INDEX('GSP info'!D:D,_xlfn.XMATCH('MAIN DATA'!A133,'GSP info'!B:B)) -> A6 | D133: A | E133: 534.9041875 | F133: 73.70902436 | G133: 13.35542685 | H133: 14.413 | I133: 84.85 | J133: 0.074 | K133: 0.279 | L133: 127.784 | M133: 0 | N133: 0
A134: ENDE_1 | B134: =INDEX('GSP info'!E:E,_xlfn.XMATCH('MAIN DATA'!A134,'GSP info'!B:B)) -> Enderby | C134: =INDEX('GSP info'!D:D,_xlfn.XMATCH('MAIN DATA'!A134,'GSP info'!B:B)) -> L8 | D134: L | E134: 729.0623811 | F134: 53.92954581 | G134: 8.887406471 | H134: 105.366 | I134: 477.87 | J134: 4.309 | K134: 0 | L134: 153.159 | M134: 0 | N134: 0
A135: ERSK | B135: =INDEX('GSP info'!E:E,_xlfn.XMATCH('MAIN DATA'!A135,'GSP info'!B:B)) -> Erskine | C135: =INDEX('GSP info'!D:D,_xlfn.XMATCH('MAIN DATA'!A135,'GSP info'!B:B)) -> S6 | D135: S | E135: 31.44984648 | F135: 5.511245805 | G135: 4.760239156 | H135: 30.477 | I135: 4.209 | J135: 0 | K135: 0 | L135: 10.992 | M135: 0 | N135: 0
A136: EXET1 | B136: =INDEX('GSP info'!E:E,_xlfn.XMATCH('MAIN DATA'!A136,'GSP info'!B:B)) -> Exeter | C136: =INDEX('GSP info'!D:D,_xlfn.XMATCH('MAIN DATA'!A136,'GSP info'!B:B)) -> F6 | D136: F | E136: 419.0791807 | F136: 10.5071209 | G136: -13.88110117 | H136: 44.74 | I136: 682.113 | J136: 1.991 | K136: 0.38 | L136: 111.025 | M136: 0 | N136: 0
A137: FASN_P | B137: =INDEX('GSP info'!E:E,_xlfn.XMATCH('MAIN DATA'!A137,'GSP info'!B:B)) -> Fasnakyle | C137: =INDEX('GSP info'!D:D,_xlfn.XMATCH('MAIN DATA'!A137,'GSP info'!B:B)) -> T1 | D137: T | E137: 27.3581539 | F137: -0.3222958854 | G137: -0.3222958854 | H137: 0 | I137: 4.71 | J137: 0 | K137: 0 | L137: 1.447 | M137: 0 | N137: 0
A138: FAUG_P | B138: =INDEX('GSP info'!E:E,_xlfn.XMATCH('MAIN DATA'!A138,'GSP info'!B:B)) -> Fort Augustus | C138: =INDEX('GSP info'!D:D,_xlfn.XMATCH('MAIN DATA'!A138,'GSP info'!B:B)) -> T1 | D138: T | E138: 6.359674 | F138: 0.4576287881 | G138: -0.0649863666 | H138: 0.269 | I138: 15.227 | J138: 0.024 | K138: 10.422 | L138: 2.805 | M138: 0 | N138: 0
A139: FAWL_1 | B139: =INDEX('GSP info'!E:E,_xlfn.XMATCH('MAIN DATA'!A139,'GSP info'!B:B)) -> Fawley | C139: =INDEX('GSP info'!D:D,_xlfn.XMATCH('MAIN DATA'!A139,'GSP info'!B:B)) -> B2 | D139: B | E139: 226.3185606 | F139: 38.77465464 | G139: -11.16952294 | H139: 13.599 | I139: 414.467 | J139: 0.012 | K139: 0 | L139: 68.757 | M139: 0 | N139: 0
A140: FECK_6 | B140: =INDEX('GSP info'!E:E,_xlfn.XMATCH('MAIN DATA'!A140,'GSP info'!B:B)) -> Feckenham | C140: =INDEX('GSP info'!D:D,_xlfn.XMATCH('MAIN DATA'!A140,'GSP info'!B:B)) -> L3 | D140: L | E140: 583.9576554 | F140: 90.95207102 | G140: 41.5395808 | H140: 35.276 | I140: 646.864 | J140: 1.102 | K140: 0.425 | L140: 292.69 | M140: 0 | N140: 0
A141: FERRA2 | B141: =INDEX('GSP info'!E:E,_xlfn.XMATCH('MAIN DATA'!A141,'GSP info'!B:B)) -> Ferrybridge A | C141: =INDEX('GSP info'!D:D,_xlfn.XMATCH('MAIN DATA'!A141,'GSP info'!B:B)) -> P5 | D141: P | E141: 272.9580416 | F141: 20.95569861 | G141: 9.461018114 | H141: 4.887 | I141: 137.02 | J141: 1.497 | K141: 0 | L141: 71.537 | M141: 0 | N141: 0
A142: FERRB_M | B142: =INDEX('GSP info'!E:E,_xlfn.XMATCH('MAIN DATA'!A142,'GSP info'!B:B)) -> Ferrybridge B | C142: =INDEX('GSP info'!D:D,_xlfn.XMATCH('MAIN DATA'!A142,'GSP info'!B:B)) -> P6 | D142: P | E142: 395.2626435 | F142: -1.555770975 | G142: -9.631382657 | H142: 26.129 | I142: 190.772 | J142: 38.462 | K142: 0.831 | L142: 262.09 | M142: 0 | N142: 0
A143: FETT_P | B143: =INDEX('GSP info'!E:E,_xlfn.XMATCH('MAIN DATA'!A143,'GSP info'!B:B)) -> Fetteresso | C143: =INDEX('GSP info'!D:D,_xlfn.XMATCH('MAIN DATA'!A143,'GSP info'!B:B)) -> T2 | D143: T | E143: 0 | F143: 0 | G143: 0 | H143: 0 | I143: 0 | J143: 0 | K143: 0 | L143: 11.445 | M143: 0 | N143: 0
A144: FIDD_P | B144: =INDEX('GSP info'!E:E,_xlfn.XMATCH('MAIN DATA'!A144,'GSP info'!B:B)) -> Fiddes | C144: =INDEX('GSP info'!D:D,_xlfn.XMATCH('MAIN DATA'!A144,'GSP info'!B:B)) -> T2 | D144: T | E144: 27.29380343 | F144: -0.05583318447 | G144: -0.09296761423 | H144: 5.428 | I144: 79.67 | J144: 94.446 | K144: 0.013 | L144: 8.242 | M144: 0 | N144: 0
A145: FIDF_1 | B145: =INDEX('GSP info'!E:E,_xlfn.XMATCH('MAIN DATA'!A145,'GSP info'!B:B)) -> Fiddlers Ferry (Cuerdley 132kV) | C145: =INDEX('GSP info'!D:D,_xlfn.XMATCH('MAIN DATA'!A145,'GSP info'!B:B)) -> N1 | D145: N | E145: 531.6760504 | F145: -3.771977737 | G145: -24.09700948 | H145: 16.658 | I145: 129.181 | J145: 0.84 | K145: 0.095 | L145: 170.263 | M145: 0 | N145: 0
A146: FINN | B146: =INDEX('GSP info'!E:E,_xlfn.XMATCH('MAIN DATA'!A146,'GSP info'!B:B)) -> Finnieston | C146: =INDEX('GSP info'!D:D,_xlfn.XMATCH('MAIN DATA'!A146,'GSP info'!B:B)) -> S5 | D146: =LEFT(C146,1) -> S | E146: =SUMIFS(OFFSET(ActivePk,0,$D$5),ActiveLocation,A146,ActiveScenario,$D$4,ActiveYear,$D$6) -> 54.51972665 | F146: =SUMIFS(OFFSET(QGrossPk,0,$D$5),QGrossLocation,A146,QGrossScenario,$D$4,QGrossYear,$D$6) -> 4.152459914 | G146: =F146-SUMIFS(OFFSET(LVGWintPk,0,$D$5),LVGLocation,A146,LVGScenario,$D$4,LVGYear,$D$6) -> 1.439173593 | H146: =SUMIFS(DGcapacity,DGlocation,A146,DGscenario,$D$4,DGyear,$D$6,DGtech,"Storage")+SUMIFS(micro_capacity,micro_location,A146,micro_scenario,$D$4,micro_year,$D$6,micro_tech,"Battery") -> 0 | I146: =SUMIFS(DGcapacity,DGlocation,A146,DGscenario,$D$4,DGyear,$D$6,DGtech,"Solar")+SUMIFS(micro_capacity,micro_location,A146,micro_scenario,$D$4,micro_year,$D$6,micro_tech,"Solar") -> 0 | J146: =SUMIFS(DGcapacity,DGlocation,A146,DGscenario,$D$4,DGyear,$D$6,DGtech,"Wind")+SUMIFS(micro_capacity,micro_location,A146,micro_scenario,$D$4,micro_year,$D$6,micro_tech,"Wind") -> 0 | K146: =SUMIFS(DGcapacity,DGlocation,A146,DGscenario,$D$4,DGyear,$D$6,DGtech,"Hydro")+SUMIFS(micro_capacity,micro_location,A146,micro_scenario,$D$4,micro_year,$D$6,micro_tech,"Hydro") -> 0 | L146: =SUMIFS(DGcapacity,DGlocation,A146,DGscenario,$D$4,DGyear,$D$6,DGtech,"Other")+SUMIFS(micro_capacity,micro_location,A146,micro_scenario,$D$4,micro_year,$D$6,micro_tech,"Other") -> 1.545 | M146: =SUMIFS(OFFSET(DxStorWintpk,0,$G$5),DxStorLocation,A146,DxStorScenario,$D$4,DxStorYear,$D$6)*-1 -> 0 | N146: =SUMIFS(OFFSET(mbat_wintpk,0,$G$5),mbat_location,A146,mbat_scenario,$D$4,mbat_year,$D$6)*-1 -> 0
A147: FLEE_1 | B147: =INDEX('GSP info'!E:E,_xlfn.XMATCH('MAIN DATA'!A147,'GSP info'!B:B)) -> Fleet | C147: =INDEX('GSP info'!D:D,_xlfn.XMATCH('MAIN DATA'!A147,'GSP info'!B:B)) -> B3 | D147: B | E147: 1206.94104 | F147: 86.34530914 | G147: -117.8390493 | H147: 40.422 | I147: 463.531 | J147: 0.044 | K147: 0.298 | L147: 346.028 | M147: 0 | N147: 0
A148: FOUR_1 | B148: =INDEX('GSP info'!E:E,_xlfn.XMATCH('MAIN DATA'!A148,'GSP info'!B:B)) -> Fourstones | C148: =INDEX('GSP info'!D:D,_xlfn.XMATCH('MAIN DATA'!A148,'GSP info'!B:B)) -> Q8 | D148: Q | E148: 15.93127446 | F148: -9.17225494 | G148: -11.07475435 | H148: 20.258 | I148: 79.897 | J148: 257.7 | K148: 0 | L148: 12.94 | M148: 0 | N148: 0
A149: FRAS_P | B149: =INDEX('GSP info'!E:E,_xlfn.XMATCH('MAIN DATA'!A149,'GSP info'!B:B)) -> Fraserburgh | C149: =INDEX('GSP info'!D:D,_xlfn.XMATCH('MAIN DATA'!A149,'GSP info'!B:B)) -> T2 | D149: T | E149: 25.81532122 | F149: -0.5400767475 | G149: -2.281783136 | H149: 1 | I149: 4.06 | J149: 3.07 | K149: 0 | L149: 1.673 | M149: 0 | N149: 0
A150: FROD_1 | B150: =INDEX('GSP info'!E:E,_xlfn.XMATCH('MAIN DATA'!A150,'GSP info'!B:B)) -> Frodsham | C150: =INDEX('GSP info'!D:D,_xlfn.XMATCH('MAIN DATA'!A150,'GSP info'!B:B)) -> N3 | D150: N | E150: 562.837719 | F150: 13.72341899 | G150: 0.8157894158 | H150: 548.685 | I150: 255.355 | J150: 163.458 | K150: 0 | L150: 291.147 | M150: 0 | N150: 0
A151: FWIL_P | B151: =INDEX('GSP info'!E:E,_xlfn.XMATCH('MAIN DATA'!A151,'GSP info'!B:B)) -> Fort William | C151: =INDEX('GSP info'!D:D,_xlfn.XMATCH('MAIN DATA'!A151,'GSP info'!B:B)) -> T1 | D151: T | E151: 45.31768745 | F151: 0.7631335746 | G151: -0.5854475313 | H151: 2.216 | I151: 59.028 | J151: 0.605 | K151: 36.363 | L151: 9.616 | M151: 0 | N151: 0
A152: GALA | B152: =INDEX('GSP info'!E:E,_xlfn.XMATCH('MAIN DATA'!A152,'GSP info'!B:B)) -> Galashiels | C152: =INDEX('GSP info'!D:D,_xlfn.XMATCH('MAIN DATA'!A152,'GSP info'!B:B)) -> S6 | D152: S | E152: 65.69877447 | F152: 11.01180338 | G152: 7.148593793 | H152: 3.337 | I152: 28.136 | J152: 35.151 | K152: 0.492 | L152: 15.549 | M152: 0 | N152: 0
A153: GIFF | B153: =INDEX('GSP info'!E:E,_xlfn.XMATCH('MAIN DATA'!A153,'GSP info'!B:B)) -> Giffnock | C153: =INDEX('GSP info'!D:D,_xlfn.XMATCH('MAIN DATA'!A153,'GSP info'!B:B)) -> S6 | D153: S | E153: 132.9660242 | F153: 3.305345034 | G153: -2.519186063 | H153: 0.875 | I153: 10.161 | J153: 8.822 | K153: 0 | L153: 21.28 | M153: 0 | N153: 0
A154: GLEF_P | B154: =INDEX('GSP info'!E:E,_xlfn.XMATCH('MAIN DATA'!A154,'GSP info'!B:B)) -> Glenfarclas | C154: =INDEX('GSP info'!D:D,_xlfn.XMATCH('MAIN DATA'!A154,'GSP info'!B:B)) -> T1 | D154: T | E154: 0 | F154: 0 | G154: 0 | H154: 0 | I154: 0 | J154: 0 | K154: 0 | L154: 5.577 | M154: 0 | N154: 0
A155: GLLE | B155: =INDEX('GSP info'!E:E,_xlfn.XMATCH('MAIN DATA'!A155,'GSP info'!B:B)) -> Glenlee | C155: =INDEX('GSP info'!D:D,_xlfn.XMATCH('MAIN DATA'!A155,'GSP info'!B:B)) -> S6 | D155: S | E155: 0 | F155: 0 | G155: -0.002106430959 | H155: 0 | I155: 3.77 | J155: 0 | K155: 25.28 | L155: 1.836 | M155: 0 | N155: 0
A156: GLLU | B156: =INDEX('GSP info'!E:E,_xlfn.XMATCH('MAIN DATA'!A156,'GSP info'!B:B)) -> Glenluce | C156: =INDEX('GSP info'!D:D,_xlfn.XMATCH('MAIN DATA'!A156,'GSP info'!B:B)) -> S6 | D156: S | E156: 32.52428147 | F156: 5.586770327 | G156: 2.335946676 | H156: 1.934 | I156: 17.892 | J156: 230.115 | K156: 0.27 | L156: 9.471 | M156: 0 | N156: 0
A157: GLNI | B157: =INDEX('GSP info'!E:E,_xlfn.XMATCH('MAIN DATA'!A157,'GSP info'!B:B)) -> Glenniston | C157: =INDEX('GSP info'!D:D,_xlfn.XMATCH('MAIN DATA'!A157,'GSP info'!B:B)) -> S5 | D157: S | E157: 32.43193806 | F157: 1.840053701 | G157: 0.6668316614 | H157: 11.065 | I157: 40.154 | J157: 68.002 | K157: 0 | L157: 5.158 | M157: 0 | N157: 0
A158: GLRO | B158: =INDEX('GSP info'!E:E,_xlfn.XMATCH('MAIN DATA'!A158,'GSP info'!B:B)) -> Glenrothes | C158: =INDEX('GSP info'!D:D,_xlfn.XMATCH('MAIN DATA'!A158,'GSP info'!B:B)) -> S5 | D158: S | E158: 46.14235281 | F158: 8.198504885 | G158: 4.056661245 | H158: 1.43 | I158: 42.82 | J158: 0.58 | K158: 0.944 | L158: 7.653 | M158: 0 | N158: 0
A159: GORG | B159: =INDEX('GSP info'!E:E,_xlfn.XMATCH('MAIN DATA'!A159,'GSP info'!B:B)) -> Gorgie | C159: =INDEX('GSP info'!D:D,_xlfn.XMATCH('MAIN DATA'!A159,'GSP info'!B:B)) -> S6 | D159: S | E159: 47.45631171 | F159: 5.53106157 | G159: 4.768543342 | H159: 0.281 | I159: 2.05 | J159: 0 | K159: 0 | L159: 2.137 | M159: 0 | N159: 0
A160: GOVA | B160: =INDEX('GSP info'!E:E,_xlfn.XMATCH('MAIN DATA'!A160,'GSP info'!B:B)) -> Govan | C160: =INDEX('GSP info'!D:D,_xlfn.XMATCH('MAIN DATA'!A160,'GSP info'!B:B)) -> S6 | D160: S | E160: 67.72914407 | F160: 2.468921421 | G160: 0.7348139885 | H160: 1.089 | I160: 14.132 | J160: 0.047 | K160: 0 | L160: 6.672 | M160: 0 | N160: 0
A161: GREE_H | B161: =INDEX('GSP info'!E:E,_xlfn.XMATCH('MAIN DATA'!A161,'GSP info'!B:B)) -> Greenford (Willesden 66kV) | C161: =INDEX('GSP info'!D:D,_xlfn.XMATCH('MAIN DATA'!A161,'GSP info'!B:B)) -> A7 | D161: A | E161: 53.64890381 | F161: -1.68244511 | G161: -2.382604036 | H161: 0 | I161: 9.46 | J161: 0 | K161: 0 | L161: 5.938 | M161: 0 | N161: 0
A162: GREN_1 | B162: =INDEX('GSP info'!E:E,_xlfn.XMATCH('MAIN DATA'!A162,'GSP info'!B:B)) -> Grendon | C162: =INDEX('GSP info'!D:D,_xlfn.XMATCH('MAIN DATA'!A162,'GSP info'!B:B)) -> J6 | D162: J | E162: 1012.90484 | F162: 28.61052505 | G162: -12.38682759 | H162: 174.256 | I162: 1263.378 | J162: 298.258 | K162: 0.064 | L162: 447.014 | M162: 0 | N162: 0
A163: GRIW_1 | B163: =INDEX('GSP info'!E:E,_xlfn.XMATCH('MAIN DATA'!A163,'GSP info'!B:B)) -> Grimsby West | C163: =INDEX('GSP info'!D:D,_xlfn.XMATCH('MAIN DATA'!A163,'GSP info'!B:B)) -> P7 | D163: P | E163: 403.0029838 | F163: 1.395281516 | G163: -15.22921905 | H163: 158.23 | I163: 323.847 | J163: 76.281 | K163: 0 | L163: 195.106 | M163: 0 | N163: 0
A164: GRUB_P | B164: =INDEX('GSP info'!E:E,_xlfn.XMATCH('MAIN DATA'!A164,'GSP info'!B:B)) -> Grudie Bridge | C164: =INDEX('GSP info'!D:D,_xlfn.XMATCH('MAIN DATA'!A164,'GSP info'!B:B)) -> T1 | D164: T | E164: 16.14557872 | F164: 1.484829848 | G164: 1.484829848 | H164: 0.491 | I164: 40.953 | J164: 16.681 | K164: 70.766 | L164: 12.788 | M164: 0 | N164: 0
A165: HACK_1 | B165: =INDEX('GSP info'!E:E,_xlfn.XMATCH('MAIN DATA'!A165,'GSP info'!B:B)) -> Hackney 132kV | C165: =INDEX('GSP info'!D:D,_xlfn.XMATCH('MAIN DATA'!A165,'GSP info'!B:B)) -> A1 | D165: A | E165: 248.609843 | F165: 6.501161778 | G165: -0.4544784683 | H165: 4.592 | I165: 46.529 | J165: 0 | K165: 0 | L165: 32.64 | M165: 0 | N165: 0
A166: HACK_6 | B166: =INDEX('GSP info'!E:E,_xlfn.XMATCH('MAIN DATA'!A166,'GSP info'!B:B)) -> Hackney 66kV | C166: =INDEX('GSP info'!D:D,_xlfn.XMATCH('MAIN DATA'!A166,'GSP info'!B:B)) -> A1 | D166: A | E166: 250.1718863 | F166: 10.73435942 | G166: 0.9059869826 | H166: 0 | I166: 13 | J166: 0 | K166: 0 | L166: 32.621 | M166: 0 | N166: 0
A167: HAGR | B167: =INDEX('GSP info'!E:E,_xlfn.XMATCH('MAIN DATA'!A167,'GSP info'!B:B)) -> Haggs Road | C167: =INDEX('GSP info'!D:D,_xlfn.XMATCH('MAIN DATA'!A167,'GSP info'!B:B)) -> S6 | D167: S | E167: 33.62088572 | F167: 2.569997626 | G167: 0.3978456217 | H167: 0.597 | I167: 4.357 | J167: 0 | K167: 0 | L167: 8.751 | M167: 0 | N167: 0
A168: HAMHC1 | B168: =INDEX('GSP info'!E:E,_xlfn.XMATCH('MAIN DATA'!A168,'GSP info'!B:B)) -> Hams Hall (Lea Marston 132kV) | C168: =INDEX('GSP info'!D:D,_xlfn.XMATCH('MAIN DATA'!A168,'GSP info'!B:B)) -> L3 | D168: L | E168: 560.7578823 | F168: 143.8740961 | G168: 104.6758918 | H168: 24.031 | I168: 192.274 | J168: 0.262 | K168: 0 | L168: 135.47 | M168: 0 | N168: 0
A169: HARG_P | B169: =INDEX('GSP info'!E:E,_xlfn.XMATCH('MAIN DATA'!A169,'GSP info'!B:B)) -> Harris | C169: =INDEX('GSP info'!D:D,_xlfn.XMATCH('MAIN DATA'!A169,'GSP info'!B:B)) -> T1 | D169: T | E169: 2.185311647 | F169: -0.1956801427 | G169: -0.1956801427 | H169: 0 | I169: 0 | J169: 12.76 | K169: 0 | L169: 0 | M169: 0 | N169: 0
A170: HARK_1 | B170: =INDEX('GSP info'!E:E,_xlfn.XMATCH('MAIN DATA'!A170,'GSP info'!B:B)) -> Harker | C170: =INDEX('GSP info'!D:D,_xlfn.XMATCH('MAIN DATA'!A170,'GSP info'!B:B)) -> Q8 | D170: Q | E170: 578.2964442 | F170: 24.12792715 | G170: 2.89268968 | H170: 128.543 | I170: 296.421 | J170: 582.686 | K170: 13.719 | L170: 145.477 | M170: 0 | N170: 0
A171: HARM_6 | B171: =INDEX('GSP info'!E:E,_xlfn.XMATCH('MAIN DATA'!A171,'GSP info'!B:B)) -> HartMoor | C171: =INDEX('GSP info'!D:D,_xlfn.XMATCH('MAIN DATA'!A171,'GSP info'!B:B)) -> Q4 | D171: Q | E171: 225.8396467 | F171: -4.758141384 | G171: -10.37614138 | H171: 12.256 | I171: 66 | J171: 128.103 | K171: 0 | L171: 113.151 | M171: 0 | N171: 0
A172: HAWI | B172: =INDEX('GSP info'!E:E,_xlfn.XMATCH('MAIN DATA'!A172,'GSP info'!B:B)) -> Hawick | C172: =INDEX('GSP info'!D:D,_xlfn.XMATCH('MAIN DATA'!A172,'GSP info'!B:B)) -> S6 | D172: S | E172: 35.78239139 | F172: 6.400161228 | G172: 3.402474897 | H172: 1.457 | I172: 14.406 | J172: 31.916 | K172: 0.017 | L172: 8.817 | M172: 0 | N172: 0
A173: HAWP_6 | B173: =INDEX('GSP info'!E:E,_xlfn.XMATCH('MAIN DATA'!A173,'GSP info'!B:B)) -> Hawthorn Pit | C173: =INDEX('GSP info'!D:D,_xlfn.XMATCH('MAIN DATA'!A173,'GSP info'!B:B)) -> Q4 | D173: Q | E173: 204.9785711 | F173: -3.082771622 | G173: -5.082771622 | H173: 11.783 | I173: 113.541 | J173: 57.897 | K173: 0 | L173: 84.378 | M173: 0 | N173: 0
A174: HELE | B174: =INDEX('GSP info'!E:E,_xlfn.XMATCH('MAIN DATA'!A174,'GSP info'!B:B)) -> Helensburgh | C174: =INDEX('GSP info'!D:D,_xlfn.XMATCH('MAIN DATA'!A174,'GSP info'!B:B)) -> S5 | D174: S | E174: 31.49041164 | F174: -0.03888819623 | G174: -0.9479897863 | H174: 0.819 | I174: 5.983 | J174: 0 | K174: 0 | L174: 1.604 | M174: 0 | N174: 0
A175: HEYS_1 | B175: =INDEX('GSP info'!E:E,_xlfn.XMATCH('MAIN DATA'!A175,'GSP info'!B:B)) -> Heysham (NGET) | C175: =INDEX('GSP info'!D:D,_xlfn.XMATCH('MAIN DATA'!A175,'GSP info'!B:B)) -> R5 | D175: R | E175: 188.1900664 | F175: -3.845708647 | G175: -9.467075654 | H175: 81.922 | I175: 144.125 | J175: 74.233 | K175: 0.395 | L175: 23.802 | M175: 0 | N175: 0
A176: HEYS1 | B176: =INDEX('GSP info'!E:E,_xlfn.XMATCH('MAIN DATA'!A176,'GSP info'!B:B)) -> Heysham (Barrow) | C176: =INDEX('GSP info'!D:D,_xlfn.XMATCH('MAIN DATA'!A176,'GSP info'!B:B)) -> R5 | D176: R | E176: 0 | F176: 0 | G176: 0 | H176: 0 | I176: 78.01 | J176: 0 | K176: 0 | L176: 16.682 | M176: 0 | N176: 0
A177: HUER | B177: =INDEX('GSP info'!E:E,_xlfn.XMATCH('MAIN DATA'!A177,'GSP info'!B:B)) -> Hunterston Farm | C177: =INDEX('GSP info'!D:D,_xlfn.XMATCH('MAIN DATA'!A177,'GSP info'!B:B)) -> S6 | D177: S | E177: 6.981203219 | F177: 2.123458249 | G177: 0.6057504187 | H177: 0 | I177: 3.77 | J177: 0 | K177: 0 | L177: 0.089 | M177: 0 | N177: 0
A178: HURS_1 | B178: =INDEX('GSP info'!E:E,_xlfn.XMATCH('MAIN DATA'!A178,'GSP info'!B:B)) -> Hurst | C178: =INDEX('GSP info'!D:D,_xlfn.XMATCH('MAIN DATA'!A178,'GSP info'!B:B)) -> A8 | D178: A | E178: 327.0343428 | F178: -44.29087288 | G178: -120.4990709 | H178: 5.42 | I178: 54.433 | J178: 0 | K178: 0.105 | L178: 67.816 | M178: 0 | N178: 0
A179: HUTT_1 | B179: =INDEX('GSP info'!E:E,_xlfn.XMATCH('MAIN DATA'!A179,'GSP info'!B:B)) -> Hutton | C179: =INDEX('GSP info'!D:D,_xlfn.XMATCH('MAIN DATA'!A179,'GSP info'!B:B)) -> R6 | D179: R | E179: 249.7008063 | F179: 62.83088904 | G179: 48.66525243 | H179: 11.513 | I179: 299.663 | J179: 5.618 | K179: 5.612 | L179: 70.533 | M179: 0 | N179: 0
A180: IMPK_1 | B180: =INDEX('GSP info'!E:E,_xlfn.XMATCH('MAIN DATA'!A180,'GSP info'!B:B)) -> Imperial Park | C180: =INDEX('GSP info'!D:D,_xlfn.XMATCH('MAIN DATA'!A180,'GSP info'!B:B)) -> H6 | D180: H | E180: 55.99190178 | F180: 7.814721356 | G180: 3.548575854 | H180: 0 | I180: 312.04 | J180: 0 | K180: 0 | L180: 1.512 | M180: 0 | N180: 0
A181: INDQ1 | B181: =INDEX('GSP info'!E:E,_xlfn.XMATCH('MAIN DATA'!A181,'GSP info'!B:B)) -> Indian Queens | C181: =INDEX('GSP info'!D:D,_xlfn.XMATCH('MAIN DATA'!A181,'GSP info'!B:B)) -> F6 | D181: F | E181: 651.5136108 | F181: 49.44102946 | G181: 15.91016137 | H181: 282.061 | I181: 1029.287 | J181: 325.994 | K181: 0.708 | L181: 252.735 | M181: 0 | N181: 0
A182: INKE | B182: =INDEX('GSP info'!E:E,_xlfn.XMATCH('MAIN DATA'!A182,'GSP info'!B:B)) -> Inverkeithing | C182: =INDEX('GSP info'!D:D,_xlfn.XMATCH('MAIN DATA'!A182,'GSP info'!B:B)) -> S5 | D182: S | E182: 62.39949518 | F182: 0.1245654183 | G182: -1.672225554 | H182: 1.919 | I182: 46.393 | J182: 3.19 | K182: 0 | L182: 3.803 | M182: 0 | N182: 0
A183: INNE_P | B183: =INDEX('GSP info'!E:E,_xlfn.XMATCH('MAIN DATA'!A183,'GSP info'!B:B)) -> Inverness | C183: =INDEX('GSP info'!D:D,_xlfn.XMATCH('MAIN DATA'!A183,'GSP info'!B:B)) -> T1 | D183: T | E183: 98.40275407 | F183: -4.913738529 | G183: -8.067369977 | H183: 2.657 | I183: 28.808 | J183: 8.959 | K183: 2.302 | L183: 3.153 | M183: 0 | N183: 0
A184: IROA1 | B184: =INDEX('GSP info'!E:E,_xlfn.XMATCH('MAIN DATA'!A184,'GSP info'!B:B)) -> Iron Acton | C184: =INDEX('GSP info'!D:D,_xlfn.XMATCH('MAIN DATA'!A184,'GSP info'!B:B)) -> G5 | D184: G | E184: 965.5750986 | F184: 24.88964623 | G184: -51.85678868 | H184: 591.238 | I184: 807.285 | J184: 39.946 | K184: 0.097 | L184: 360.69 | M184: 0 | N184: 0
A185: IRONB1 | B185: =INDEX('GSP info'!E:E,_xlfn.XMATCH('MAIN DATA'!A185,'GSP info'!B:B)) -> Ironbridge | C185: =INDEX('GSP info'!D:D,_xlfn.XMATCH('MAIN DATA'!A185,'GSP info'!B:B)) -> L5 | D185: L | E185: 302.6947937 | F185: 14.46176911 | G185: -5.021908891 | H185: 65.035 | I185: 275.717 | J185: 0.871 | K185: 0 | L185: 126.121 | M185: 0 | N185: 0
A186: ISLI_1 | B186: =INDEX('GSP info'!E:E,_xlfn.XMATCH('MAIN DATA'!A186,'GSP info'!B:B)) -> Islington | C186: =INDEX('GSP info'!D:D,_xlfn.XMATCH('MAIN DATA'!A186,'GSP info'!B:B)) -> A7 | D186: A | E186: 239.1001323 | F186: 105.4863 | G186: 45.35441486 | H186: 2.85 | I186: 0 | J186: 0 | K186: 0 | L186: 30.843 | M186: 0 | N186: 0
A187: IVER_1 | B187: =INDEX('GSP info'!E:E,_xlfn.XMATCH('MAIN DATA'!A187,'GSP info'!B:B)) -> Iver 132kV | C187: =INDEX('GSP info'!D:D,_xlfn.XMATCH('MAIN DATA'!A187,'GSP info'!B:B)) -> A6 | D187: A | E187: 542.2960731 | F187: 61.3566444 | G187: -10.77144967 | H187: 35.676 | I187: 79.873 | J187: 0.008 | K187: 0.36 | L187: 114.016 | M187: 0 | N187: 0
A188: IVER_6 | B188: =INDEX('GSP info'!E:E,_xlfn.XMATCH('MAIN DATA'!A188,'GSP info'!B:B)) -> Iver 66kV | C188: =INDEX('GSP info'!D:D,_xlfn.XMATCH('MAIN DATA'!A188,'GSP info'!B:B)) -> A6 | D188: A | E188: 245.9737039 | F188: 29.27559305 | G188: -3.876652257 | H188: 2.475 | I188: 29.627 | J188: 0.008 | K188: 0 | L188: 113.812 | M188: 0 | N188: 0
A189: JOHN | B189: =INDEX('GSP info'!E:E,_xlfn.XMATCH('MAIN DATA'!A189,'GSP info'!B:B)) -> Johnstone | C189: =INDEX('GSP info'!D:D,_xlfn.XMATCH('MAIN DATA'!A189,'GSP info'!B:B)) -> S6 | D189: S | E189: 86.3261628 | F189: -0.785698348 | G189: -1.729514804 | H189: 1.347 | I189: 13.602 | J189: 2.538 | K189: 0 | L189: 52.899 | M189: 0 | N189: 0
A190: JORD_3 | B190: =INDEX('GSP info'!E:E,_xlfn.XMATCH('MAIN DATA'!A190,'GSP info'!B:B)) -> Jordanthorpe | C190: =INDEX('GSP info'!D:D,_xlfn.XMATCH('MAIN DATA'!A190,'GSP info'!B:B)) -> P3 | D190: P | E190: 75.79655878 | F190: -0.9588934237 | G190: -3.579329054 | H190: 46.771 | I190: 33.731 | J190: 0.03 | K190: 0 | L190: 17.766 | M190: 0 | N190: 0
A191: KAIM | B191: =INDEX('GSP info'!E:E,_xlfn.XMATCH('MAIN DATA'!A191,'GSP info'!B:B)) -> Kaimes | C191: =INDEX('GSP info'!D:D,_xlfn.XMATCH('MAIN DATA'!A191,'GSP info'!B:B)) -> S6 | D191: S | E191: 172.8845255 | F191: 5.409884377 | G191: -1.239524794 | H191: 5.658 | I191: 48.167 | J191: 60.549 | K191: 0.475 | L191: 30.084 | M191: 0 | N191: 0
A192: KEAD_1 | B192: =INDEX('GSP info'!E:E,_xlfn.XMATCH('MAIN DATA'!A192,'GSP info'!B:B)) -> Keadby | C192: =INDEX('GSP info'!D:D,_xlfn.XMATCH('MAIN DATA'!A192,'GSP info'!B:B)) -> P8 | D192: P | E192: 630.1493344 | F192: 54.25833944 | G192: 6.959489233 | H192: 279.518 | I192: 393.018 | J192: 376.025 | K192: 0 | L192: 323.957 | M192: 0 | N192: 0
A193: KEAR_1 | B193: =INDEX('GSP info'!E:E,_xlfn.XMATCH('MAIN DATA'!A193,'GSP info'!B:B)) -> Kearsley 132kV | C193: =INDEX('GSP info'!D:D,_xlfn.XMATCH('MAIN DATA'!A193,'GSP info'!B:B)) -> N4 | D193: N | E193: 782.1065376 | F193: 109.667436 | G193: 33.56358539 | H193: 146.017 | I193: 195.044 | J193: 0.798 | K193: 0.203 | L193: 156.942 | M193: 0 | N193: 0
A194: KEAR_3 | B194: =INDEX('GSP info'!E:E,_xlfn.XMATCH('MAIN DATA'!A194,'GSP info'!B:B)) -> Kearsley 33kV | C194: =INDEX('GSP info'!D:D,_xlfn.XMATCH('MAIN DATA'!A194,'GSP info'!B:B)) -> N4 | D194: N | E194: 222.3350754 | F194: 5.835080918 | G194: 2.633779176 | H194: 7 | I194: 25.48 | J194: 0 | K194: 0 | L194: 176.128 | M194: 0 | N194: 0
A195: KEIT_P | B195: =INDEX('GSP info'!E:E,_xlfn.XMATCH('MAIN DATA'!A195,'GSP info'!B:B)) -> Keith | C195: =INDEX('GSP info'!D:D,_xlfn.XMATCH('MAIN DATA'!A195,'GSP info'!B:B)) -> T1 | D195: T | E195: 70.26448428 | F195: -1.4141687 | G195: -1.547552568 | H195: 2.955 | I195: 100.692 | J195: 68.431 | K195: 0.121 | L195: 11.782 | M195: 0 | N195: 0
A196: KEMS_1 | B196: =INDEX('GSP info'!E:E,_xlfn.XMATCH('MAIN DATA'!A196,'GSP info'!B:B)) -> Kemsley | C196: =INDEX('GSP info'!D:D,_xlfn.XMATCH('MAIN DATA'!A196,'GSP info'!B:B)) -> C3 | D196: C | E196: 254.5610965 | F196: 1.107484378 | G196: -23.16010857 | H196: 106.155 | I196: 350.595 | J196: 68.612 | K196: 0 | L196: 273.527 | M196: 0 | N196: 0
A197: KEOO | B197: =INDEX('GSP info'!E:E,_xlfn.XMATCH('MAIN DATA'!A197,'GSP info'!B:B)) -> Kendoon | C197: =INDEX('GSP info'!D:D,_xlfn.XMATCH('MAIN DATA'!A197,'GSP info'!B:B)) -> S6 | D197: S | E197: 0 | F197: 0 | G197: -0.002075526455 | H197: 0 | I197: 3.77 | J197: 0 | K197: 27.39 | L197: 1.836 | M197: 0 | N197: 0
A198: KIBY_1 | B198: =INDEX('GSP info'!E:E,_xlfn.XMATCH('MAIN DATA'!A198,'GSP info'!B:B)) -> Kirkby SPEN | C198: =INDEX('GSP info'!D:D,_xlfn.XMATCH('MAIN DATA'!A198,'GSP info'!B:B)) -> N1 | D198: N | E198: 319.8802595 | F198: 8.84106902 | G198: -37.33601437 | H198: 10.191 | I198: 61.826 | J198: 1.649 | K198: 0 | L198: 61.128 | M198: 0 | N198: 0
A199: KIBY_G | B199: =INDEX('GSP info'!E:E,_xlfn.XMATCH('MAIN DATA'!A199,'GSP info'!B:B)) -> Kirkby ENW | C199: =INDEX('GSP info'!D:D,_xlfn.XMATCH('MAIN DATA'!A199,'GSP info'!B:B)) -> N1 | D199: N | E199: 106.7868132 | F199: 1.836745177 | G199: -4.895204939 | H199: 7.612 | I199: 55.579 | J199: 0.035 | K199: 0 | L199: 24.992 | M199: 0 | N199: 0
A200: KIER | B200: =INDEX('GSP info'!E:E,_xlfn.XMATCH('MAIN DATA'!A200,'GSP info'!B:B)) -> Killermont | C200: =INDEX('GSP info'!D:D,_xlfn.XMATCH('MAIN DATA'!A200,'GSP info'!B:B)) -> S5 | D200: S | E200: 105.1687628 | F200: 5.833619751 | G200: -0.9964827818 | H200: 1.445 | I200: 42.932 | J200: 0.017 | K200: 0 | L200: 30.095 | M200: 0 | N200: 0
A201: KIIN_P | B201: =INDEX('GSP info'!E:E,_xlfn.XMATCH('MAIN DATA'!A201,'GSP info'!B:B)) -> Killin | C201: =INDEX('GSP info'!D:D,_xlfn.XMATCH('MAIN DATA'!A201,'GSP info'!B:B)) -> T4 | D201: T | E201: 19.00573601 | F201: 1.579263962 | G201: -0.3831085303 | H201: 5.085 | I201: 23.442 | J201: 0.019 | K201: 9.758 | L201: 16.862 | M201: 0 | N201: 0
A202: KILS | B202: =INDEX('GSP info'!E:E,_xlfn.XMATCH('MAIN DATA'!A202,'GSP info'!B:B)) -> Kilmarnock South | C202: =INDEX('GSP info'!D:D,_xlfn.XMATCH('MAIN DATA'!A202,'GSP info'!B:B)) -> S6 | D202: S | E202: 38.32176991 | F202: 0.9157966018 | G202: -1.267824578 | H202: 1.642 | I202: 36.258 | J202: 30.027 | K202: 0 | L202: 8.997 | M202: 0 | N202: 0
A203: KILT | B203: =INDEX('GSP info'!E:E,_xlfn.XMATCH('MAIN DATA'!A203,'GSP info'!B:B)) -> Kilmarnock Town | C203: =INDEX('GSP info'!D:D,_xlfn.XMATCH('MAIN DATA'!A203,'GSP info'!B:B)) -> S6 | D203: S | E203: 112.5950424 | F203: 10.21339186 | G203: 6.190938252 | H203: 1.753 | I203: 16.571 | J203: 60.851 | K203: 0.003 | L203: 16.879 | M203: 0 | N203: 0
A204: KILW | B204: =INDEX('GSP info'!E:E,_xlfn.XMATCH('MAIN DATA'!A204,'GSP info'!B:B)) -> Kilwinning | C204: =INDEX('GSP info'!D:D,_xlfn.XMATCH('MAIN DATA'!A204,'GSP info'!B:B)) -> S6 | D204: S | E204: 44.11727516 | F204: 2.197064028 | G204: -3.566323933 | H204: 1.567 | I204: 15.209 | J204: 19.447 | K204: 0 | L204: 6.542 | M204: 0 | N204: 0
... 350 more rows

Sheet MAIN DATA Flopzones
A4: Scenario | C4: ='MAIN DATA'!B4 -> Holistic Transition
A5: Study Period | C5: ='MAIN DATA'!B5 -> Winter Peak
A6: Analysis Year | C6: ='MAIN DATA'!B6 -> 2039/40
F7: Embedded Data (DG + Sub1MW)
A10: Total: FLOP A-R | C10: =C13-SUM(C11:C12) -> 80199.13106 | D10: 6735.694638 | E10: -712.3200099 | F10: 14462.064 | G10: 52629.925 | H10: 11972.91 | I10: 110.564 | J10: 25694.647
A11: Total: FLOP T | C11: =SUMIF($B$17:$B$102,"T",C$17:C$102) -> 2707.453209 | D11: =SUMIF($B$17:$B$102,"T",D$17:D$102) -> 131.4814312 | E11: =SUMIF($B$17:$B$102,"T",E$17:E$102) -> 70.65676013 | F11: =SUMIF($B$17:$B$102,"T",F$17:F$102) -> 211.957 | G11: =SUMIF($B$17:$B$102,"T",G$17:G$102) -> 1844.465 | H11: 1081.529 | I11: 305.573 | J11: 553.115
A12: Total: FLOP S | C12: =SUMIF($B$17:$B$102,"S",C$17:C$102) -> 6332.767292 | D12: =SUMIF($B$17:$B$102,"S",D$17:D$102) -> 555.0511201 | E12: =SUMIF($B$17:$B$102,"S",E$17:E$102) -> 263.4934922 | F12: =SUMIF($B$17:$B$102,"S",F$17:F$102) -> 563.984 | G12: =SUMIF($B$17:$B$102,"S",G$17:G$102) -> 1922.102 | H12: 2703.859 | I12: 155.565 | J12: 1325.585
A13: Total: GB | C13: =SUM(C17:C102) -> 89239.35157 | D13: 7422.227189 | E13: -378.1697575 | F13: 15238.005 | G13: 56396.492 | H13: 15758.298 | I13: 571.702 | J13: 27573.347
A15: Minor FLOP | B15: Major FLOP | C15: P(Gross) | D15: Q Gross | E15: Q net | F15: Embedded Storage | G15: Embedded Solar | H15: Embedded Wind | I15: Embedded Hydro | J15: Embedded Other | K15: Dx Storage Demand | L15: Micro storage Demand
C16: Demand (MW) | D16: Demand (MVAR) | E16: Demand (MVAR) | F16: Total Capacity (MW) | G16: Total Capacity (MW) | H16: Total Capacity (MW) | I16: Total Capacity (MW) | J16: Total Capacity (MW) | K16: Demand (MW) | L16: Demand (MW)
A17: A1 | B17: A | C17: =SUMIFS('MAIN DATA'!E$17:E$1066,'MAIN DATA'!$C$17:$C$1066,$A17) -> 2396.525996 | D17: =SUMIFS('MAIN DATA'!F$17:F$1066,'MAIN DATA'!$C$17:$C$1066,$A17) -> 279.312559 | E17: =SUMIFS('MAIN DATA'!G$17:G$1066,'MAIN DATA'!$C$17:$C$1066,$A17) -> 3.49941737 | F17: =SUMIFS('MAIN DATA'!H$17:H$1026,'MAIN DATA'!$C$17:$C$1026,$A17) -> 35.392 | G17: =SUMIFS('MAIN DATA'!I$17:I$1026,'MAIN DATA'!$C$17:$C$1026,$A17) -> 310.317 | H17: =SUMIFS('MAIN DATA'!J$17:J$1026,'MAIN DATA'!$C$17:$C$1026,$A17) -> 0.009 | I17: =SUMIFS('MAIN DATA'!K$17:K$1026,'MAIN DATA'!$C$17:$C$1026,$A17) -> 0.721 | J17: =SUMIFS('MAIN DATA'!L$17:L$1026,'MAIN DATA'!$C$17:$C$1026,$A17) -> 482.781 | K17: =SUMIFS('MAIN DATA'!M$17:M$1026,'MAIN DATA'!$C$17:$C$1026,$A17) -> 0 | L17: =SUMIFS('MAIN DATA'!N$17:N$1026,'MAIN DATA'!$C$17:$C$1026,$A17) -> 0
A18: A3 | B18: A | C18: =SUMIFS('MAIN DATA'!E$17:E$1066,'MAIN DATA'!$C$17:$C$1066,$A18) -> 394.4427094 | D18: =SUMIFS('MAIN DATA'!F$17:F$1066,'MAIN DATA'!$C$17:$C$1066,$A18) -> 34.41904569 | E18: =SUMIFS('MAIN DATA'!G$17:G$1066,'MAIN DATA'!$C$17:$C$1066,$A18) -> -34.87462795 | F18: =SUMIFS('MAIN DATA'!H$17:H$1026,'MAIN DATA'!$C$17:$C$1026,$A18) -> 7.221 | G18: =SUMIFS('MAIN DATA'!I$17:I$1026,'MAIN DATA'!$C$17:$C$1026,$A18) -> 161.731 | H18: =SUMIFS('MAIN DATA'!J$17:J$1026,'MAIN DATA'!$C$17:$C$1026,$A18) -> 0 | I18: =SUMIFS('MAIN DATA'!K$17:K$1026,'MAIN DATA'!$C$17:$C$1026,$A18) -> 0 | J18: =SUMIFS('MAIN DATA'!L$17:L$1026,'MAIN DATA'!$C$17:$C$1026,$A18) -> 126.694 | K18: =SUMIFS('MAIN DATA'!M$17:M$1026,'MAIN DATA'!$C$17:$C$1026,$A18) -> 0 | L18: =SUMIFS('MAIN DATA'!N$17:N$1026,'MAIN DATA'!$C$17:$C$1026,$A18) -> 0
A19: A4 | B19: A | C19: =SUMIFS('MAIN DATA'!E$17:E$1066,'MAIN DATA'!$C$17:$C$1066,$A19) -> 1517.170835 | D19: =SUMIFS('MAIN DATA'!F$17:F$1066,'MAIN DATA'!$C$17:$C$1066,$A19) -> 341.4531865 | E19: =SUMIFS('MAIN DATA'!G$17:G$1066,'MAIN DATA'!$C$17:$C$1066,$A19) -> 101.405891 | F19: =SUMIFS('MAIN DATA'!H$17:H$1026,'MAIN DATA'!$C$17:$C$1026,$A19) -> 13.33 | G19: =SUMIFS('MAIN DATA'!I$17:I$1026,'MAIN DATA'!$C$17:$C$1026,$A19) -> 194.033 | H19: =SUMIFS('MAIN DATA'!J$17:J$1026,'MAIN DATA'!$C$17:$C$1026,$A19) -> 0.028 | I19: =SUMIFS('MAIN DATA'!K$17:K$1026,'MAIN DATA'!$C$17:$C$1026,$A19) -> 0.29 | J19: =SUMIFS('MAIN DATA'!L$17:L$1026,'MAIN DATA'!$C$17:$C$1026,$A19) -> 219.352 | K19: =SUMIFS('MAIN DATA'!M$17:M$1026,'MAIN DATA'!$C$17:$C$1026,$A19) -> 0 | L19: =SUMIFS('MAIN DATA'!N$17:N$1026,'MAIN DATA'!$C$17:$C$1026,$A19) -> 0
A20: A6 | B20: A | C20: =SUMIFS('MAIN DATA'!E$17:E$1066,'MAIN DATA'!$C$17:$C$1066,$A20) -> 3107.733 | D20: =SUMIFS('MAIN DATA'!F$17:F$1066,'MAIN DATA'!$C$17:$C$1066,$A20) -> 505.4941978 | E20: =SUMIFS('MAIN DATA'!G$17:G$1066,'MAIN DATA'!$C$17:$C$1066,$A20) -> 143.1217441 | F20: =SUMIFS('MAIN DATA'!H$17:H$1026,'MAIN DATA'!$C$17:$C$1026,$A20) -> 198.91 | G20: =SUMIFS('MAIN DATA'!I$17:I$1026,'MAIN DATA'!$C$17:$C$1026,$A20) -> 577.857 | H20: =SUMIFS('MAIN DATA'!J$17:J$1026,'MAIN DATA'!$C$17:$C$1026,$A20) -> 0.515 | I20: =SUMIFS('MAIN DATA'!K$17:K$1026,'MAIN DATA'!$C$17:$C$1026,$A20) -> 1.162 | J20: =SUMIFS('MAIN DATA'!L$17:L$1026,'MAIN DATA'!$C$17:$C$1026,$A20) -> 629.178 | K20: =SUMIFS('MAIN DATA'!M$17:M$1026,'MAIN DATA'!$C$17:$C$1026,$A20) -> 0 | L20: =SUMIFS('MAIN DATA'!N$17:N$1026,'MAIN DATA'!$C$17:$C$1026,$A20) -> 0
A21: A7 | B21: A | C21: =SUMIFS('MAIN DATA'!E$17:E$1066,'MAIN DATA'!$C$17:$C$1066,$A21) -> 3627.954981 | D21: =SUMIFS('MAIN DATA'!F$17:F$1066,'MAIN DATA'!$C$17:$C$1066,$A21) -> 412.59241 | E21: =SUMIFS('MAIN DATA'!G$17:G$1066,'MAIN DATA'!$C$17:$C$1066,$A21) -> 44.01958352 | F21: =SUMIFS('MAIN DATA'!H$17:H$1026,'MAIN DATA'!$C$17:$C$1026,$A21) -> 19.312 | G21: =SUMIFS('MAIN DATA'!I$17:I$1026,'MAIN DATA'!$C$17:$C$1026,$A21) -> 183.29 | H21: =SUMIFS('MAIN DATA'!J$17:J$1026,'MAIN DATA'!$C$17:$C$1026,$A21) -> 0.173 | I21: =SUMIFS('MAIN DATA'!K$17:K$1026,'MAIN DATA'!$C$17:$C$1026,$A21) -> 0.279 | J21: =SUMIFS('MAIN DATA'!L$17:L$1026,'MAIN DATA'!$C$17:$C$1026,$A21) -> 303.236 | K21: =SUMIFS('MAIN DATA'!M$17:M$1026,'MAIN DATA'!$C$17:$C$1026,$A21) -> 0 | L21: =SUMIFS('MAIN DATA'!N$17:N$1026,'MAIN DATA'!$C$17:$C$1026,$A21) -> 0
A22: A8 | B22: A | C22: =SUMIFS('MAIN DATA'!E$17:E$1066,'MAIN DATA'!$C$17:$C$1066,$A22) -> 2581.392774 | D22: =SUMIFS('MAIN DATA'!F$17:F$1066,'MAIN DATA'!$C$17:$C$1066,$A22) -> 434.0425736 | E22: =SUMIFS('MAIN DATA'!G$17:G$1066,'MAIN DATA'!$C$17:$C$1066,$A22) -> -33.12764279 | F22: =SUMIFS('MAIN DATA'!H$17:H$1026,'MAIN DATA'!$C$17:$C$1026,$A22) -> 78.742 | G22: =SUMIFS('MAIN DATA'!I$17:I$1026,'MAIN DATA'!$C$17:$C$1026,$A22) -> 438.724 | H22: =SUMIFS('MAIN DATA'!J$17:J$1026,'MAIN DATA'!$C$17:$C$1026,$A22) -> 0.791 | I22: =SUMIFS('MAIN DATA'!K$17:K$1026,'MAIN DATA'!$C$17:$C$1026,$A22) -> 0.983 | J22: =SUMIFS('MAIN DATA'!L$17:L$1026,'MAIN DATA'!$C$17:$C$1026,$A22) -> 601.087 | K22: =SUMIFS('MAIN DATA'!M$17:M$1026,'MAIN DATA'!$C$17:$C$1026,$A22) -> 0 | L22: =SUMIFS('MAIN DATA'!N$17:N$1026,'MAIN DATA'!$C$17:$C$1026,$A22) -> 0
A23: A9 | B23: A | C23: =SUMIFS('MAIN DATA'!E$17:E$1066,'MAIN DATA'!$C$17:$C$1066,$A23) -> 550.2739165 | D23: =SUMIFS('MAIN DATA'!F$17:F$1066,'MAIN DATA'!$C$17:$C$1066,$A23) -> 6.485363866 | E23: =SUMIFS('MAIN DATA'!G$17:G$1066,'MAIN DATA'!$C$17:$C$1066,$A23) -> -3.818864242 | F23: =SUMIFS('MAIN DATA'!H$17:H$1026,'MAIN DATA'!$C$17:$C$1026,$A23) -> 19.582 | G23: =SUMIFS('MAIN DATA'!I$17:I$1026,'MAIN DATA'!$C$17:$C$1026,$A23) -> 199.276 | H23: =SUMIFS('MAIN DATA'!J$17:J$1026,'MAIN DATA'!$C$17:$C$1026,$A23) -> 0 | I23: =SUMIFS('MAIN DATA'!K$17:K$1026,'MAIN DATA'!$C$17:$C$1026,$A23) -> 0.017 | J23: =SUMIFS('MAIN DATA'!L$17:L$1026,'MAIN DATA'!$C$17:$C$1026,$A23) -> 148.495 | K23: =SUMIFS('MAIN DATA'!M$17:M$1026,'MAIN DATA'!$C$17:$C$1026,$A23) -> 0 | L23: =SUMIFS('MAIN DATA'!N$17:N$1026,'MAIN DATA'!$C$17:$C$1026,$A23) -> 0
A24: B1 | B24: B | C24: =SUMIFS('MAIN DATA'!E$17:E$1066,'MAIN DATA'!$C$17:$C$1066,$A24) -> 1883.650287 | D24: =SUMIFS('MAIN DATA'!F$17:F$1066,'MAIN DATA'!$C$17:$C$1066,$A24) -> 224.5970033 | E24: =SUMIFS('MAIN DATA'!G$17:G$1066,'MAIN DATA'!$C$17:$C$1066,$A24) -> -58.23966453 | F24: =SUMIFS('MAIN DATA'!H$17:H$1026,'MAIN DATA'!$C$17:$C$1026,$A24) -> 255.791 | G24: =SUMIFS('MAIN DATA'!I$17:I$1026,'MAIN DATA'!$C$17:$C$1026,$A24) -> 775.804 | H24: =SUMIFS('MAIN DATA'!J$17:J$1026,'MAIN DATA'!$C$17:$C$1026,$A24) -> 204.937 | I24: =SUMIFS('MAIN DATA'!K$17:K$1026,'MAIN DATA'!$C$17:$C$1026,$A24) -> 0 | J24: =SUMIFS('MAIN DATA'!L$17:L$1026,'MAIN DATA'!$C$17:$C$1026,$A24) -> 570.07 | K24: =SUMIFS('MAIN DATA'!M$17:M$1026,'MAIN DATA'!$C$17:$C$1026,$A24) -> 0 | L24: =SUMIFS('MAIN DATA'!N$17:N$1026,'MAIN DATA'!$C$17:$C$1026,$A24) -> 0
A25: B2 | B25: B | C25: =SUMIFS('MAIN DATA'!E$17:E$1066,'MAIN DATA'!$C$17:$C$1066,$A25) -> 1581.934564 | D25: =SUMIFS('MAIN DATA'!F$17:F$1066,'MAIN DATA'!$C$17:$C$1066,$A25) -> 162.280235 | E25: =SUMIFS('MAIN DATA'!G$17:G$1066,'MAIN DATA'!$C$17:$C$1066,$A25) -> -144.8582432 | F25: =SUMIFS('MAIN DATA'!H$17:H$1026,'MAIN DATA'!$C$17:$C$1026,$A25) -> 172.489 | G25: =SUMIFS('MAIN DATA'!I$17:I$1026,'MAIN DATA'!$C$17:$C$1026,$A25) -> 1924.904 | H25: =SUMIFS('MAIN DATA'!J$17:J$1026,'MAIN DATA'!$C$17:$C$1026,$A25) -> 0.129 | I25: =SUMIFS('MAIN DATA'!K$17:K$1026,'MAIN DATA'!$C$17:$C$1026,$A25) -> 0.047 | J25: =SUMIFS('MAIN DATA'!L$17:L$1026,'MAIN DATA'!$C$17:$C$1026,$A25) -> 504.78 | K25: =SUMIFS('MAIN DATA'!M$17:M$1026,'MAIN DATA'!$C$17:$C$1026,$A25) -> 0 | L25: =SUMIFS('MAIN DATA'!N$17:N$1026,'MAIN DATA'!$C$17:$C$1026,$A25) -> 0
A26: B3 | B26: B | C26: =SUMIFS('MAIN DATA'!E$17:E$1066,'MAIN DATA'!$C$17:$C$1066,$A26) -> 1206.94104 | D26: =SUMIFS('MAIN DATA'!F$17:F$1066,'MAIN DATA'!$C$17:$C$1066,$A26) -> 86.34530914 | E26: =SUMIFS('MAIN DATA'!G$17:G$1066,'MAIN DATA'!$C$17:$C$1066,$A26) -> -117.8390493 | F26: =SUMIFS('MAIN DATA'!H$17:H$1026,'MAIN DATA'!$C$17:$C$1026,$A26) -> 40.422 | G26: =SUMIFS('MAIN DATA'!I$17:I$1026,'MAIN DATA'!$C$17:$C$1026,$A26) -> 463.531 | H26: =SUMIFS('MAIN DATA'!J$17:J$1026,'MAIN DATA'!$C$17:$C$1026,$A26) -> 0.044 | I26: =SUMIFS('MAIN DATA'!K$17:K$1026,'MAIN DATA'!$C$17:$C$1026,$A26) -> 0.298 | J26: =SUMIFS('MAIN DATA'!L$17:L$1026,'MAIN DATA'!$C$17:$C$1026,$A26) -> 346.028 | K26: =SUMIFS('MAIN DATA'!M$17:M$1026,'MAIN DATA'!$C$17:$C$1026,$A26) -> 0 | L26: =SUMIFS('MAIN DATA'!N$17:N$1026,'MAIN DATA'!$C$17:$C$1026,$A26) -> 0
A27: B4 | B27: B | C27: =SUMIFS('MAIN DATA'!E$17:E$1066,'MAIN DATA'!$C$17:$C$1066,$A27) -> 855.8782039 | D27: =SUMIFS('MAIN DATA'!F$17:F$1066,'MAIN DATA'!$C$17:$C$1066,$A27) -> 7.337290016 | E27: =SUMIFS('MAIN DATA'!G$17:G$1066,'MAIN DATA'!$C$17:$C$1066,$A27) -> -42.85425017 | F27: =SUMIFS('MAIN DATA'!H$17:H$1026,'MAIN DATA'!$C$17:$C$1026,$A27) -> 140.705 | G27: =SUMIFS('MAIN DATA'!I$17:I$1026,'MAIN DATA'!$C$17:$C$1026,$A27) -> 331.601 | H27: =SUMIFS('MAIN DATA'!J$17:J$1026,'MAIN DATA'!$C$17:$C$1026,$A27) -> 0.832 | I27: =SUMIFS('MAIN DATA'!K$17:K$1026,'MAIN DATA'!$C$17:$C$1026,$A27) -> 0.124 | J27: =SUMIFS('MAIN DATA'!L$17:L$1026,'MAIN DATA'!$C$17:$C$1026,$A27) -> 346.761 | K27: =SUMIFS('MAIN DATA'!M$17:M$1026,'MAIN DATA'!$C$17:$C$1026,$A27) -> 0 | L27: =SUMIFS('MAIN DATA'!N$17:N$1026,'MAIN DATA'!$C$17:$C$1026,$A27) -> 0
A28: C1 | B28: C | C28: =SUMIFS('MAIN DATA'!E$17:E$1066,'MAIN DATA'!$C$17:$C$1066,$A28) -> 253.5416118 | D28: =SUMIFS('MAIN DATA'!F$17:F$1066,'MAIN DATA'!$C$17:$C$1066,$A28) -> 7.524437527 | E28: =SUMIFS('MAIN DATA'!G$17:G$1066,'MAIN DATA'!$C$17:$C$1066,$A28) -> -11.32577471 | F28: =SUMIFS('MAIN DATA'!H$17:H$1026,'MAIN DATA'!$C$17:$C$1026,$A28) -> 53.843 | G28: =SUMIFS('MAIN DATA'!I$17:I$1026,'MAIN DATA'!$C$17:$C$1026,$A28) -> 348.151 | H28: =SUMIFS('MAIN DATA'!J$17:J$1026,'MAIN DATA'!$C$17:$C$1026,$A28) -> 26.13 | I28: =SUMIFS('MAIN DATA'!K$17:K$1026,'MAIN DATA'!$C$17:$C$1026,$A28) -> 0 | J28: =SUMIFS('MAIN DATA'!L$17:L$1026,'MAIN DATA'!$C$17:$C$1026,$A28) -> 110.435 | K28: =SUMIFS('MAIN DATA'!M$17:M$1026,'MAIN DATA'!$C$17:$C$1026,$A28) -> 0 | L28: =SUMIFS('MAIN DATA'!N$17:N$1026,'MAIN DATA'!$C$17:$C$1026,$A28) -> 0
A29: C2 | B29: C | C29: =SUMIFS('MAIN DATA'!E$17:E$1066,'MAIN DATA'!$C$17:$C$1066,$A29) -> 965.1412719 | D29: =SUMIFS('MAIN DATA'!F$17:F$1066,'MAIN DATA'!$C$17:$C$1066,$A29) -> 108.2512375 | E29: =SUMIFS('MAIN DATA'!G$17:G$1066,'MAIN DATA'!$C$17:$C$1066,$A29) -> -34.98851742 | F29: =SUMIFS('MAIN DATA'!H$17:H$1026,'MAIN DATA'!$C$17:$C$1026,$A29) -> 218.15 | G29: =SUMIFS('MAIN DATA'!I$17:I$1026,'MAIN DATA'!$C$17:$C$1026,$A29) -> 529.46 | H29: =SUMIFS('MAIN DATA'!J$17:J$1026,'MAIN DATA'!$C$17:$C$1026,$A29) -> 0.141 | I29: =SUMIFS('MAIN DATA'!K$17:K$1026,'MAIN DATA'!$C$17:$C$1026,$A29) -> 0 | J29: =SUMIFS('MAIN DATA'!L$17:L$1026,'MAIN DATA'!$C$17:$C$1026,$A29) -> 312.896 | K29: =SUMIFS('MAIN DATA'!M$17:M$1026,'MAIN DATA'!$C$17:$C$1026,$A29) -> 0 | L29: =SUMIFS('MAIN DATA'!N$17:N$1026,'MAIN DATA'!$C$17:$C$1026,$A29) -> 0
A30: C3 | B30: C | C30: =SUMIFS('MAIN DATA'!E$17:E$1066,'MAIN DATA'!$C$17:$C$1066,$A30) -> 297.4960965 | D30: =SUMIFS('MAIN DATA'!F$17:F$1066,'MAIN DATA'!$C$17:$C$1066,$A30) -> 13.63019271 | E30: =SUMIFS('MAIN DATA'!G$17:G$1066,'MAIN DATA'!$C$17:$C$1066,$A30) -> -10.63740024 | F30: =SUMIFS('MAIN DATA'!H$17:H$1026,'MAIN DATA'!$C$17:$C$1026,$A30) -> 106.155 | G30: =SUMIFS('MAIN DATA'!I$17:I$1026,'MAIN DATA'!$C$17:$C$1026,$A30) -> 350.595 | H30: =SUMIFS('MAIN DATA'!J$17:J$1026,'MAIN DATA'!$C$17:$C$1026,$A30) -> 68.612 | I30: =SUMIFS('MAIN DATA'!K$17:K$1026,'MAIN DATA'!$C$17:$C$1026,$A30) -> 0 | J30: =SUMIFS('MAIN DATA'!L$17:L$1026,'MAIN DATA'!$C$17:$C$1026,$A30) -> 273.527 | K30: =SUMIFS('MAIN DATA'!M$17:M$1026,'MAIN DATA'!$C$17:$C$1026,$A30) -> 0 | L30: =SUMIFS('MAIN DATA'!N$17:N$1026,'MAIN DATA'!$C$17:$C$1026,$A30) -> 0
A31: C4 | B31: C | C31: =SUMIFS('MAIN DATA'!E$17:E$1066,'MAIN DATA'!$C$17:$C$1066,$A31) -> 388.1436887 | D31: =SUMIFS('MAIN DATA'!F$17:F$1066,'MAIN DATA'!$C$17:$C$1066,$A31) -> -0.5751533096 | E31: =SUMIFS('MAIN DATA'!G$17:G$1066,'MAIN DATA'!$C$17:$C$1066,$A31) -> -65.57212075 | F31: =SUMIFS('MAIN DATA'!H$17:H$1026,'MAIN DATA'!$C$17:$C$1026,$A31) -> 28.909 | G31: =SUMIFS('MAIN DATA'!I$17:I$1026,'MAIN DATA'!$C$17:$C$1026,$A31) -> 444.831 | H31: =SUMIFS('MAIN DATA'!J$17:J$1026,'MAIN DATA'!$C$17:$C$1026,$A31) -> 0.136 | I31: =SUMIFS('MAIN DATA'!K$17:K$1026,'MAIN DATA'!$C$17:$C$1026,$A31) -> 0 | J31: =SUMIFS('MAIN DATA'!L$17:L$1026,'MAIN DATA'!$C$17:$C$1026,$A31) -> 204.107 | K31: =SUMIFS('MAIN DATA'!M$17:M$1026,'MAIN DATA'!$C$17:$C$1026,$A31) -> 0 | L31: =SUMIFS('MAIN DATA'!N$17:N$1026,'MAIN DATA'!$C$17:$C$1026,$A31) -> 0
A32: C5 | B32: C | C32: =SUMIFS('MAIN DATA'!E$17:E$1066,'MAIN DATA'!$C$17:$C$1066,$A32) -> 718.0695505 | D32: =SUMIFS('MAIN DATA'!F$17:F$1066,'MAIN DATA'!$C$17:$C$1066,$A32) -> 75.38801926 | E32: =SUMIFS('MAIN DATA'!G$17:G$1066,'MAIN DATA'!$C$17:$C$1066,$A32) -> -31.31060584 | F32: =SUMIFS('MAIN DATA'!H$17:H$1026,'MAIN DATA'!$C$17:$C$1026,$A32) -> 334.484 | G32: =SUMIFS('MAIN DATA'!I$17:I$1026,'MAIN DATA'!$C$17:$C$1026,$A32) -> 653.664 | H32: =SUMIFS('MAIN DATA'!J$17:J$1026,'MAIN DATA'!$C$17:$C$1026,$A32) -> 183.491 | I32: =SUMIFS('MAIN DATA'!K$17:K$1026,'MAIN DATA'!$C$17:$C$1026,$A32) -> 0.046 | J32: =SUMIFS('MAIN DATA'!L$17:L$1026,'MAIN DATA'!$C$17:$C$1026,$A32) -> 263.399 | K32: =SUMIFS('MAIN DATA'!M$17:M$1026,'MAIN DATA'!$C$17:$C$1026,$A32) -> 0 | L32: =SUMIFS('MAIN DATA'!N$17:N$1026,'MAIN DATA'!$C$17:$C$1026,$A32) -> 0
A33: C6 | B33: C | C33: =SUMIFS('MAIN DATA'!E$17:E$1066,'MAIN DATA'!$C$17:$C$1066,$A33) -> 361.7435226 | D33: =SUMIFS('MAIN DATA'!F$17:F$1066,'MAIN DATA'!$C$17:$C$1066,$A33) -> 71.36509312 | E33: =SUMIFS('MAIN DATA'!G$17:G$1066,'MAIN DATA'!$C$17:$C$1066,$A33) -> -5.565239244 | F33: =SUMIFS('MAIN DATA'!H$17:H$1026,'MAIN DATA'!$C$17:$C$1026,$A33) -> 106.703 | G33: =SUMIFS('MAIN DATA'!I$17:I$1026,'MAIN DATA'!$C$17:$C$1026,$A33) -> 352.64 | H33: =SUMIFS('MAIN DATA'!J$17:J$1026,'MAIN DATA'!$C$17:$C$1026,$A33) -> 2.422 | I33: =SUMIFS('MAIN DATA'!K$17:K$1026,'MAIN DATA'!$C$17:$C$1026,$A33) -> 0.424 | J33: =SUMIFS('MAIN DATA'!L$17:L$1026,'MAIN DATA'!$C$17:$C$1026,$A33) -> 109.947 | K33: =SUMIFS('MAIN DATA'!M$17:M$1026,'MAIN DATA'!$C$17:$C$1026,$A33) -> 0 | L33: =SUMIFS('MAIN DATA'!N$17:N$1026,'MAIN DATA'!$C$17:$C$1026,$A33) -> 0
A34: C7 | B34: C | C34: =SUMIFS('MAIN DATA'!E$17:E$1066,'MAIN DATA'!$C$17:$C$1066,$A34) -> 339.4850594 | D34: =SUMIFS('MAIN DATA'!F$17:F$1066,'MAIN DATA'!$C$17:$C$1066,$A34) -> 14.65917225 | E34: =SUMIFS('MAIN DATA'!G$17:G$1066,'MAIN DATA'!$C$17:$C$1066,$A34) -> -20.0644459 | F34: =SUMIFS('MAIN DATA'!H$17:H$1026,'MAIN DATA'!$C$17:$C$1026,$A34) -> 101.241 | G34: =SUMIFS('MAIN DATA'!I$17:I$1026,'MAIN DATA'!$C$17:$C$1026,$A34) -> 586.309 | H34: =SUMIFS('MAIN DATA'!J$17:J$1026,'MAIN DATA'!$C$17:$C$1026,$A34) -> 151.624 | I34: =SUMIFS('MAIN DATA'!K$17:K$1026,'MAIN DATA'!$C$17:$C$1026,$A34) -> 0.004 | J34: =SUMIFS('MAIN DATA'!L$17:L$1026,'MAIN DATA'!$C$17:$C$1026,$A34) -> 157.607 | K34: =SUMIFS('MAIN DATA'!M$17:M$1026,'MAIN DATA'!$C$17:$C$1026,$A34) -> 0 | L34: =SUMIFS('MAIN DATA'!N$17:N$1026,'MAIN DATA'!$C$17:$C$1026,$A34) -> 0
A35: D4 | B35: D | C35: =SUMIFS('MAIN DATA'!E$17:E$1066,'MAIN DATA'!$C$17:$C$1066,$A35) -> 1657.106977 | D35: =SUMIFS('MAIN DATA'!F$17:F$1066,'MAIN DATA'!$C$17:$C$1066,$A35) -> 69.970457 | E35: =SUMIFS('MAIN DATA'!G$17:G$1066,'MAIN DATA'!$C$17:$C$1066,$A35) -> -76.11910269 | F35: =SUMIFS('MAIN DATA'!H$17:H$1026,'MAIN DATA'!$C$17:$C$1026,$A35) -> 359.361 | G35: =SUMIFS('MAIN DATA'!I$17:I$1026,'MAIN DATA'!$C$17:$C$1026,$A35) -> 980.144 | H35: =SUMIFS('MAIN DATA'!J$17:J$1026,'MAIN DATA'!$C$17:$C$1026,$A35) -> 18.973 | I35: =SUMIFS('MAIN DATA'!K$17:K$1026,'MAIN DATA'!$C$17:$C$1026,$A35) -> 0.046 | J35: =SUMIFS('MAIN DATA'!L$17:L$1026,'MAIN DATA'!$C$17:$C$1026,$A35) -> 749.313 | K35: =SUMIFS('MAIN DATA'!M$17:M$1026,'MAIN DATA'!$C$17:$C$1026,$A35) -> 0 | L35: =SUMIFS('MAIN DATA'!N$17:N$1026,'MAIN DATA'!$C$17:$C$1026,$A35) -> 0
A36: D5 | B36: D | C36: =SUMIFS('MAIN DATA'!E$17:E$1066,'MAIN DATA'!$C$17:$C$1066,$A36) -> 813.7250944 | D36: =SUMIFS('MAIN DATA'!F$17:F$1066,'MAIN DATA'!$C$17:$C$1066,$A36) -> 63.65531103 | E36: =SUMIFS('MAIN DATA'!G$17:G$1066,'MAIN DATA'!$C$17:$C$1066,$A36) -> -2.294680775 | F36: =SUMIFS('MAIN DATA'!H$17:H$1026,'MAIN DATA'!$C$17:$C$1026,$A36) -> 166.979 | G36: =SUMIFS('MAIN DATA'!I$17:I$1026,'MAIN DATA'!$C$17:$C$1026,$A36) -> 639.335 | H36: =SUMIFS('MAIN DATA'!J$17:J$1026,'MAIN DATA'!$C$17:$C$1026,$A36) -> 59.932 | I36: =SUMIFS('MAIN DATA'!K$17:K$1026,'MAIN DATA'!$C$17:$C$1026,$A36) -> 0 | J36: =SUMIFS('MAIN DATA'!L$17:L$1026,'MAIN DATA'!$C$17:$C$1026,$A36) -> 360.381 | K36: =SUMIFS('MAIN DATA'!M$17:M$1026,'MAIN DATA'!$C$17:$C$1026,$A36) -> 0 | L36: =SUMIFS('MAIN DATA'!N$17:N$1026,'MAIN DATA'!$C$17:$C$1026,$A36) -> 0
A37: D6 | B37: D | C37: =SUMIFS('MAIN DATA'!E$17:E$1066,'MAIN DATA'!$C$17:$C$1066,$A37) -> 892.8305359 | D37: =SUMIFS('MAIN DATA'!F$17:F$1066,'MAIN DATA'!$C$17:$C$1066,$A37) -> 75.15605596 | E37: =SUMIFS('MAIN DATA'!G$17:G$1066,'MAIN DATA'!$C$17:$C$1066,$A37) -> -37.9164724 | F37: =SUMIFS('MAIN DATA'!H$17:H$1026,'MAIN DATA'!$C$17:$C$1026,$A37) -> 77.21 | G37: =SUMIFS('MAIN DATA'!I$17:I$1026,'MAIN DATA'!$C$17:$C$1026,$A37) -> 906.863 | H37: =SUMIFS('MAIN DATA'!J$17:J$1026,'MAIN DATA'!$C$17:$C$1026,$A37) -> 0.085 | I37: =SUMIFS('MAIN DATA'!K$17:K$1026,'MAIN DATA'!$C$17:$C$1026,$A37) -> 1.124 | J37: =SUMIFS('MAIN DATA'!L$17:L$1026,'MAIN DATA'!$C$17:$C$1026,$A37) -> 126.239 | K37: =SUMIFS('MAIN DATA'!M$17:M$1026,'MAIN DATA'!$C$17:$C$1026,$A37) -> 0 | L37: =SUMIFS('MAIN DATA'!N$17:N$1026,'MAIN DATA'!$C$17:$C$1026,$A37) -> 0
A38: E1 | B38: E | C38: =SUMIFS('MAIN DATA'!E$17:E$1066,'MAIN DATA'!$C$17:$C$1066,$A38) -> 1379.296119 | D38: =SUMIFS('MAIN DATA'!F$17:F$1066,'MAIN DATA'!$C$17:$C$1066,$A38) -> 39.73600422 | E38: =SUMIFS('MAIN DATA'!G$17:G$1066,'MAIN DATA'!$C$17:$C$1066,$A38) -> -44.32792014 | F38: =SUMIFS('MAIN DATA'!H$17:H$1026,'MAIN DATA'!$C$17:$C$1026,$A38) -> 290.664 | G38: =SUMIFS('MAIN DATA'!I$17:I$1026,'MAIN DATA'!$C$17:$C$1026,$A38) -> 2276.237 | H38: =SUMIFS('MAIN DATA'!J$17:J$1026,'MAIN DATA'!$C$17:$C$1026,$A38) -> 1.67 | I38: =SUMIFS('MAIN DATA'!K$17:K$1026,'MAIN DATA'!$C$17:$C$1026,$A38) -> 0.217 | J38: =SUMIFS('MAIN DATA'!L$17:L$1026,'MAIN DATA'!$C$17:$C$1026,$A38) -> 459.561 | K38: =SUMIFS('MAIN DATA'!M$17:M$1026,'MAIN DATA'!$C$17:$C$1026,$A38) -> 0 | L38: =SUMIFS('MAIN DATA'!N$17:N$1026,'MAIN DATA'!$C$17:$C$1026,$A38) -> 0
A39: E7 | B39: E | C39: =SUMIFS('MAIN DATA'!E$17:E$1066,'MAIN DATA'!$C$17:$C$1066,$A39) -> 390.0924777 | D39: =SUMIFS('MAIN DATA'!F$17:F$1066,'MAIN DATA'!$C$17:$C$1066,$A39) -> 8.752076669 | E39: =SUMIFS('MAIN DATA'!G$17:G$1066,'MAIN DATA'!$C$17:$C$1066,$A39) -> -2.944680068 | F39: =SUMIFS('MAIN DATA'!H$17:H$1026,'MAIN DATA'!$C$17:$C$1026,$A39) -> 253.681 | G39: =SUMIFS('MAIN DATA'!I$17:I$1026,'MAIN DATA'!$C$17:$C$1026,$A39) -> 820.483 | H39: =SUMIFS('MAIN DATA'!J$17:J$1026,'MAIN DATA'!$C$17:$C$1026,$A39) -> 4.796 | I39: =SUMIFS('MAIN DATA'!K$17:K$1026,'MAIN DATA'!$C$17:$C$1026,$A39) -> 0.099 | J39: =SUMIFS('MAIN DATA'!L$17:L$1026,'MAIN DATA'!$C$17:$C$1026,$A39) -> 157.11 | K39: =SUMIFS('MAIN DATA'!M$17:M$1026,'MAIN DATA'!$C$17:$C$1026,$A39) -> 0 | L39: =SUMIFS('MAIN DATA'!N$17:N$1026,'MAIN DATA'!$C$17:$C$1026,$A39) -> 0
A40: E8 | B40: E | C40: =SUMIFS('MAIN DATA'!E$17:E$1066,'MAIN DATA'!$C$17:$C$1066,$A40) -> 175.728663 | D40: =SUMIFS('MAIN DATA'!F$17:F$1066,'MAIN DATA'!$C$17:$C$1066,$A40) -> -2.343234025 | E40: =SUMIFS('MAIN DATA'!G$17:G$1066,'MAIN DATA'!$C$17:$C$1066,$A40) -> -2.343234025 | F40: =SUMIFS('MAIN DATA'!H$17:H$1026,'MAIN DATA'!$C$17:$C$1026,$A40) -> 59.309 | G40: =SUMIFS('MAIN DATA'!I$17:I$1026,'MAIN DATA'!$C$17:$C$1026,$A40) -> 277.232 | H40: =SUMIFS('MAIN DATA'!J$17:J$1026,'MAIN DATA'!$C$17:$C$1026,$A40) -> 0.226 | I40: =SUMIFS('MAIN DATA'!K$17:K$1026,'MAIN DATA'!$C$17:$C$1026,$A40) -> 0.151 | J40: =SUMIFS('MAIN DATA'!L$17:L$1026,'MAIN DATA'!$C$17:$C$1026,$A40) -> 83.418 | K40: =SUMIFS('MAIN DATA'!M$17:M$1026,'MAIN DATA'!$C$17:$C$1026,$A40) -> 0 | L40: =SUMIFS('MAIN DATA'!N$17:N$1026,'MAIN DATA'!$C$17:$C$1026,$A40) -> 0
A41: F6 | B41: F | C41: =SUMIFS('MAIN DATA'!E$17:E$1066,'MAIN DATA'!$C$17:$C$1066,$A41) -> 2455.873757 | D41: =SUMIFS('MAIN DATA'!F$17:F$1066,'MAIN DATA'!$C$17:$C$1066,$A41) -> 87.99102741 | E41: =SUMIFS('MAIN DATA'!G$17:G$1066,'MAIN DATA'!$C$17:$C$1066,$A41) -> -30.09371434 | F41: =SUMIFS('MAIN DATA'!H$17:H$1026,'MAIN DATA'!$C$17:$C$1026,$A41) -> 812.713 | G41: =SUMIFS('MAIN DATA'!I$17:I$1026,'MAIN DATA'!$C$17:$C$1026,$A41) -> 3855.208 | H41: =SUMIFS('MAIN DATA'!J$17:J$1026,'MAIN DATA'!$C$17:$C$1026,$A41) -> 760.912 | I41: =SUMIFS('MAIN DATA'!K$17:K$1026,'MAIN DATA'!$C$17:$C$1026,$A41) -> 10.578 | J41: =SUMIFS('MAIN DATA'!L$17:L$1026,'MAIN DATA'!$C$17:$C$1026,$A41) -> 862.014 | K41: =SUMIFS('MAIN DATA'!M$17:M$1026,'MAIN DATA'!$C$17:$C$1026,$A41) -> 0 | L41: =SUMIFS('MAIN DATA'!N$17:N$1026,'MAIN DATA'!$C$17:$C$1026,$A41) -> 0
A42: G1 | B42: G | C42: =SUMIFS('MAIN DATA'!E$17:E$1066,'MAIN DATA'!$C$17:$C$1066,$A42) -> 597.0437161 | D42: =SUMIFS('MAIN DATA'!F$17:F$1066,'MAIN DATA'!$C$17:$C$1066,$A42) -> 232.0761265 | E42: =SUMIFS('MAIN DATA'!G$17:G$1066,'MAIN DATA'!$C$17:$C$1066,$A42) -> 169.0093697 | F42: =SUMIFS('MAIN DATA'!H$17:H$1026,'MAIN DATA'!$C$17:$C$1026,$A42) -> 74.322 | G42: =SUMIFS('MAIN DATA'!I$17:I$1026,'MAIN DATA'!$C$17:$C$1026,$A42) -> 452.583 | H42: =SUMIFS('MAIN DATA'!J$17:J$1026,'MAIN DATA'!$C$17:$C$1026,$A42) -> 0.041 | I42: =SUMIFS('MAIN DATA'!K$17:K$1026,'MAIN DATA'!$C$17:$C$1026,$A42) -> 0.008 | J42: =SUMIFS('MAIN DATA'!L$17:L$1026,'MAIN DATA'!$C$17:$C$1026,$A42) -> 127.648 | K42: =SUMIFS('MAIN DATA'!M$17:M$1026,'MAIN DATA'!$C$17:$C$1026,$A42) -> 0 | L42: =SUMIFS('MAIN DATA'!N$17:N$1026,'MAIN DATA'!$C$17:$C$1026,$A42) -> 0
A43: G5 | B43: G | C43: =SUMIFS('MAIN DATA'!E$17:E$1066,'MAIN DATA'!$C$17:$C$1066,$A43) -> 965.5750986 | D43: =SUMIFS('MAIN DATA'!F$17:F$1066,'MAIN DATA'!$C$17:$C$1066,$A43) -> 24.88964623 | E43: =SUMIFS('MAIN DATA'!G$17:G$1066,'MAIN DATA'!$C$17:$C$1066,$A43) -> -51.85678868 | F43: =SUMIFS('MAIN DATA'!H$17:H$1026,'MAIN DATA'!$C$17:$C$1026,$A43) -> 591.238 | G43: =SUMIFS('MAIN DATA'!I$17:I$1026,'MAIN DATA'!$C$17:$C$1026,$A43) -> 807.285 | H43: =SUMIFS('MAIN DATA'!J$17:J$1026,'MAIN DATA'!$C$17:$C$1026,$A43) -> 39.946 | I43: =SUMIFS('MAIN DATA'!K$17:K$1026,'MAIN DATA'!$C$17:$C$1026,$A43) -> 0.097 | J43: =SUMIFS('MAIN DATA'!L$17:L$1026,'MAIN DATA'!$C$17:$C$1026,$A43) -> 360.69 | K43: =SUMIFS('MAIN DATA'!M$17:M$1026,'MAIN DATA'!$C$17:$C$1026,$A43) -> 0 | L43: =SUMIFS('MAIN DATA'!N$17:N$1026,'MAIN DATA'!$C$17:$C$1026,$A43) -> 0
A44: G6 | B44: G | C44: =SUMIFS('MAIN DATA'!E$17:E$1066,'MAIN DATA'!$C$17:$C$1066,$A44) -> 1025.429816 | D44: =SUMIFS('MAIN DATA'!F$17:F$1066,'MAIN DATA'!$C$17:$C$1066,$A44) -> 166.561438 | E44: =SUMIFS('MAIN DATA'!G$17:G$1066,'MAIN DATA'!$C$17:$C$1066,$A44) -> 25.61808048 | F44: =SUMIFS('MAIN DATA'!H$17:H$1026,'MAIN DATA'!$C$17:$C$1026,$A44) -> 488.696 | G44: =SUMIFS('MAIN DATA'!I$17:I$1026,'MAIN DATA'!$C$17:$C$1026,$A44) -> 2113.826 | H44: =SUMIFS('MAIN DATA'!J$17:J$1026,'MAIN DATA'!$C$17:$C$1026,$A44) -> 0.99 | I44: =SUMIFS('MAIN DATA'!K$17:K$1026,'MAIN DATA'!$C$17:$C$1026,$A44) -> 3.828 | J44: =SUMIFS('MAIN DATA'!L$17:L$1026,'MAIN DATA'!$C$17:$C$1026,$A44) -> 625.866 | K44: =SUMIFS('MAIN DATA'!M$17:M$1026,'MAIN DATA'!$C$17:$C$1026,$A44) -> 0 | L44: =SUMIFS('MAIN DATA'!N$17:N$1026,'MAIN DATA'!$C$17:$C$1026,$A44) -> 0
A45: G7 | B45: G | C45: =SUMIFS('MAIN DATA'!E$17:E$1066,'MAIN DATA'!$C$17:$C$1066,$A45) -> 346.2179883 | D45: =SUMIFS('MAIN DATA'!F$17:F$1066,'MAIN DATA'!$C$17:$C$1066,$A45) -> -0.02305910144 | E45: =SUMIFS('MAIN DATA'!G$17:G$1066,'MAIN DATA'!$C$17:$C$1066,$A45) -> -5.911046287 | F45: =SUMIFS('MAIN DATA'!H$17:H$1026,'MAIN DATA'!$C$17:$C$1026,$A45) -> 54.322 | G45: =SUMIFS('MAIN DATA'!I$17:I$1026,'MAIN DATA'!$C$17:$C$1026,$A45) -> 569.399 | H45: =SUMIFS('MAIN DATA'!J$17:J$1026,'MAIN DATA'!$C$17:$C$1026,$A45) -> 75.116 | I45: =SUMIFS('MAIN DATA'!K$17:K$1026,'MAIN DATA'!$C$17:$C$1026,$A45) -> 0.067 | J45: =SUMIFS('MAIN DATA'!L$17:L$1026,'MAIN DATA'!$C$17:$C$1026,$A45) -> 206.685 | K45: =SUMIFS('MAIN DATA'!M$17:M$1026,'MAIN DATA'!$C$17:$C$1026,$A45) -> 0 | L45: =SUMIFS('MAIN DATA'!N$17:N$1026,'MAIN DATA'!$C$17:$C$1026,$A45) -> 0
A46: H1 | B46: H | C46: =SUMIFS('MAIN DATA'!E$17:E$1066,'MAIN DATA'!$C$17:$C$1066,$A46) -> 262.6819867 | D46: =SUMIFS('MAIN DATA'!F$17:F$1066,'MAIN DATA'!$C$17:$C$1066,$A46) -> 169.8843694 | E46: =SUMIFS('MAIN DATA'!G$17:G$1066,'MAIN DATA'!$C$17:$C$1066,$A46) -> 32.91294967 | F46: =SUMIFS('MAIN DATA'!H$17:H$1026,'MAIN DATA'!$C$17:$C$1026,$A46) -> 24.029 | G46: =SUMIFS('MAIN DATA'!I$17:I$1026,'MAIN DATA'!$C$17:$C$1026,$A46) -> 189.247 | H46: =SUMIFS('MAIN DATA'!J$17:J$1026,'MAIN DATA'!$C$17:$C$1026,$A46) -> 452.345 | I46: =SUMIFS('MAIN DATA'!K$17:K$1026,'MAIN DATA'!$C$17:$C$1026,$A46) -> 0.048 | J46: =SUMIFS('MAIN DATA'!L$17:L$1026,'MAIN DATA'!$C$17:$C$1026,$A46) -> 130.077 | K46: =SUMIFS('MAIN DATA'!M$17:M$1026,'MAIN DATA'!$C$17:$C$1026,$A46) -> 0 | L46: =SUMIFS('MAIN DATA'!N$17:N$1026,'MAIN DATA'!$C$17:$C$1026,$A46) -> 0
A47: H2 | B47: H | C47: =SUMIFS('MAIN DATA'!E$17:E$1066,'MAIN DATA'!$C$17:$C$1066,$A47) -> 1441.210613 | D47: =SUMIFS('MAIN DATA'!F$17:F$1066,'MAIN DATA'!$C$17:$C$1066,$A47) -> 132.1508491 | E47: =SUMIFS('MAIN DATA'!G$17:G$1066,'MAIN DATA'!$C$17:$C$1066,$A47) -> -32.11750684 | F47: =SUMIFS('MAIN DATA'!H$17:H$1026,'MAIN DATA'!$C$17:$C$1026,$A47) -> 159.382 | G47: =SUMIFS('MAIN DATA'!I$17:I$1026,'MAIN DATA'!$C$17:$C$1026,$A47) -> 780.78 | H47: =SUMIFS('MAIN DATA'!J$17:J$1026,'MAIN DATA'!$C$17:$C$1026,$A47) -> 232.89 | I47: =SUMIFS('MAIN DATA'!K$17:K$1026,'MAIN DATA'!$C$17:$C$1026,$A47) -> 0.821 | J47: =SUMIFS('MAIN DATA'!L$17:L$1026,'MAIN DATA'!$C$17:$C$1026,$A47) -> 511.544 | K47: =SUMIFS('MAIN DATA'!M$17:M$1026,'MAIN DATA'!$C$17:$C$1026,$A47) -> 0 | L47: =SUMIFS('MAIN DATA'!N$17:N$1026,'MAIN DATA'!$C$17:$C$1026,$A47) -> 0
A48: H6 | B48: H | C48: =SUMIFS('MAIN DATA'!E$17:E$1066,'MAIN DATA'!$C$17:$C$1066,$A48) -> 2198.491443 | D48: =SUMIFS('MAIN DATA'!F$17:F$1066,'MAIN DATA'!$C$17:$C$1066,$A48) -> 228.6165924 | E48: =SUMIFS('MAIN DATA'!G$17:G$1066,'MAIN DATA'!$C$17:$C$1066,$A48) -> 163.0436609 | F48: =SUMIFS('MAIN DATA'!H$17:H$1026,'MAIN DATA'!$C$17:$C$1026,$A48) -> 152.321 | G48: =SUMIFS('MAIN DATA'!I$17:I$1026,'MAIN DATA'!$C$17:$C$1026,$A48) -> 2340.945 | H48: =SUMIFS('MAIN DATA'!J$17:J$1026,'MAIN DATA'!$C$17:$C$1026,$A48) -> 808.209 | I48: =SUMIFS('MAIN DATA'!K$17:K$1026,'MAIN DATA'!$C$17:$C$1026,$A48) -> 20.771 | J48: =SUMIFS('MAIN DATA'!L$17:L$1026,'MAIN DATA'!$C$17:$C$1026,$A48) -> 595.755 | K48: =SUMIFS('MAIN DATA'!M$17:M$1026,'MAIN DATA'!$C$17:$C$1026,$A48) -> 0 | L48: =SUMIFS('MAIN DATA'!N$17:N$1026,'MAIN DATA'!$C$17:$C$1026,$A48) -> 0
A49: J1 | B49: J | C49: =SUMIFS('MAIN DATA'!E$17:E$1066,'MAIN DATA'!$C$17:$C$1066,$A49) -> 1150.417777 | D49: =SUMIFS('MAIN DATA'!F$17:F$1066,'MAIN DATA'!$C$17:$C$1066,$A49) -> 102.6402742 | E49: =SUMIFS('MAIN DATA'!G$17:G$1066,'MAIN DATA'!$C$17:$C$1066,$A49) -> 19.06062692 | F49: =SUMIFS('MAIN DATA'!H$17:H$1026,'MAIN DATA'!$C$17:$C$1026,$A49) -> 212.729 | G49: =SUMIFS('MAIN DATA'!I$17:I$1026,'MAIN DATA'!$C$17:$C$1026,$A49) -> 1401.272 | H49: =SUMIFS('MAIN DATA'!J$17:J$1026,'MAIN DATA'!$C$17:$C$1026,$A49) -> 731.512 | I49: =SUMIFS('MAIN DATA'!K$17:K$1026,'MAIN DATA'!$C$17:$C$1026,$A49) -> 0 | J49: =SUMIFS('MAIN DATA'!L$17:L$1026,'MAIN DATA'!$C$17:$C$1026,$A49) -> 658.179 | K49: =SUMIFS('MAIN DATA'!M$17:M$1026,'MAIN DATA'!$C$17:$C$1026,$A49) -> 0 | L49: =SUMIFS('MAIN DATA'!N$17:N$1026,'MAIN DATA'!$C$17:$C$1026,$A49) -> 0
A50: J2 | B50: J | C50: =SUMIFS('MAIN DATA'!E$17:E$1066,'MAIN DATA'!$C$17:$C$1066,$A50) -> 0 | D50: =SUMIFS('MAIN DATA'!F$17:F$1066,'MAIN DATA'!$C$17:$C$1066,$A50) -> 0 | E50: =SUMIFS('MAIN DATA'!G$17:G$1066,'MAIN DATA'!$C$17:$C$1066,$A50) -> 0 | F50: =SUMIFS('MAIN DATA'!H$17:H$1026,'MAIN DATA'!$C$17:$C$1026,$A50) -> 0 | G50: =SUMIFS('MAIN DATA'!I$17:I$1026,'MAIN DATA'!$C$17:$C$1026,$A50) -> 0 | H50: =SUMIFS('MAIN DATA'!J$17:J$1026,'MAIN DATA'!$C$17:$C$1026,$A50) -> 0 | I50: =SUMIFS('MAIN DATA'!K$17:K$1026,'MAIN DATA'!$C$17:$C$1026,$A50) -> 0 | J50: =SUMIFS('MAIN DATA'!L$17:L$1026,'MAIN DATA'!$C$17:$C$1026,$A50) -> 0 | K50: =SUMIFS('MAIN DATA'!M$17:M$1026,'MAIN DATA'!$C$17:$C$1026,$A50) -> 0 | L50: =SUMIFS('MAIN DATA'!N$17:N$1026,'MAIN DATA'!$C$17:$C$1026,$A50) -> 0
A51: J3 | B51: J | C51: =SUMIFS('MAIN DATA'!E$17:E$1066,'MAIN DATA'!$C$17:$C$1066,$A51) -> 646.2637659 | D51: =SUMIFS('MAIN DATA'!F$17:F$1066,'MAIN DATA'!$C$17:$C$1066,$A51) -> 157.7762497 | E51: =SUMIFS('MAIN DATA'!G$17:G$1066,'MAIN DATA'!$C$17:$C$1066,$A51) -> 35.54472448 | F51: =SUMIFS('MAIN DATA'!H$17:H$1026,'MAIN DATA'!$C$17:$C$1026,$A51) -> 224.913 | G51: =SUMIFS('MAIN DATA'!I$17:I$1026,'MAIN DATA'!$C$17:$C$1026,$A51) -> 1420.011 | H51: =SUMIFS('MAIN DATA'!J$17:J$1026,'MAIN DATA'!$C$17:$C$1026,$A51) -> 123.127 | I51: =SUMIFS('MAIN DATA'!K$17:K$1026,'MAIN DATA'!$C$17:$C$1026,$A51) -> 0.024 | J51: =SUMIFS('MAIN DATA'!L$17:L$1026,'MAIN DATA'!$C$17:$C$1026,$A51) -> 186.851 | K51: =SUMIFS('MAIN DATA'!M$17:M$1026,'MAIN DATA'!$C$17:$C$1026,$A51) -> 0 | L51: =SUMIFS('MAIN DATA'!N$17:N$1026,'MAIN DATA'!$C$17:$C$1026,$A51) -> 0
A52: J4 | B52: J | C52: =SUMIFS('MAIN DATA'!E$17:E$1066,'MAIN DATA'!$C$17:$C$1066,$A52) -> 455.9994391 | D52: =SUMIFS('MAIN DATA'!F$17:F$1066,'MAIN DATA'!$C$17:$C$1066,$A52) -> 52.80629963 | E52: =SUMIFS('MAIN DATA'!G$17:G$1066,'MAIN DATA'!$C$17:$C$1066,$A52) -> 29.73255005 | F52: =SUMIFS('MAIN DATA'!H$17:H$1026,'MAIN DATA'!$C$17:$C$1026,$A52) -> 82.079 | G52: =SUMIFS('MAIN DATA'!I$17:I$1026,'MAIN DATA'!$C$17:$C$1026,$A52) -> 600.312 | H52: =SUMIFS('MAIN DATA'!J$17:J$1026,'MAIN DATA'!$C$17:$C$1026,$A52) -> 153.175 | I52: =SUMIFS('MAIN DATA'!K$17:K$1026,'MAIN DATA'!$C$17:$C$1026,$A52) -> 0.049 | J52: =SUMIFS('MAIN DATA'!L$17:L$1026,'MAIN DATA'!$C$17:$C$1026,$A52) -> 110.693 | K52: =SUMIFS('MAIN DATA'!M$17:M$1026,'MAIN DATA'!$C$17:$C$1026,$A52) -> 0 | L52: =SUMIFS('MAIN DATA'!N$17:N$1026,'MAIN DATA'!$C$17:$C$1026,$A52) -> 0
A53: J5 | B53: J | C53: =SUMIFS('MAIN DATA'!E$17:E$1066,'MAIN DATA'!$C$17:$C$1066,$A53) -> 1131.249559 | D53: =SUMIFS('MAIN DATA'!F$17:F$1066,'MAIN DATA'!$C$17:$C$1066,$A53) -> -42.99445561 | E53: =SUMIFS('MAIN DATA'!G$17:G$1066,'MAIN DATA'!$C$17:$C$1066,$A53) -> -163.9835983 | F53: =SUMIFS('MAIN DATA'!H$17:H$1026,'MAIN DATA'!$C$17:$C$1026,$A53) -> 299.485 | G53: =SUMIFS('MAIN DATA'!I$17:I$1026,'MAIN DATA'!$C$17:$C$1026,$A53) -> 1046.894 | H53: =SUMIFS('MAIN DATA'!J$17:J$1026,'MAIN DATA'!$C$17:$C$1026,$A53) -> 132.808 | I53: =SUMIFS('MAIN DATA'!K$17:K$1026,'MAIN DATA'!$C$17:$C$1026,$A53) -> 0 | J53: =SUMIFS('MAIN DATA'!L$17:L$1026,'MAIN DATA'!$C$17:$C$1026,$A53) -> 520.82 | K53: =SUMIFS('MAIN DATA'!M$17:M$1026,'MAIN DATA'!$C$17:$C$1026,$A53) -> 0 | L53: =SUMIFS('MAIN DATA'!N$17:N$1026,'MAIN DATA'!$C$17:$C$1026,$A53) -> 0
A54: J6 | B54: J | C54: =SUMIFS('MAIN DATA'!E$17:E$1066,'MAIN DATA'!$C$17:$C$1066,$A54) -> 1012.90484 | D54: =SUMIFS('MAIN DATA'!F$17:F$1066,'MAIN DATA'!$C$17:$C$1066,$A54) -> 28.61052505 | E54: =SUMIFS('MAIN DATA'!G$17:G$1066,'MAIN DATA'!$C$17:$C$1066,$A54) -> -12.38682759 | F54: =SUMIFS('MAIN DATA'!H$17:H$1026,'MAIN DATA'!$C$17:$C$1026,$A54) -> 174.256 | G54: =SUMIFS('MAIN DATA'!I$17:I$1026,'MAIN DATA'!$C$17:$C$1026,$A54) -> 1263.378 | H54: =SUMIFS('MAIN DATA'!J$17:J$1026,'MAIN DATA'!$C$17:$C$1026,$A54) -> 298.258 | I54: =SUMIFS('MAIN DATA'!K$17:K$1026,'MAIN DATA'!$C$17:$C$1026,$A54) -> 0.064 | J54: =SUMIFS('MAIN DATA'!L$17:L$1026,'MAIN DATA'!$C$17:$C$1026,$A54) -> 447.014 | K54: =SUMIFS('MAIN DATA'!M$17:M$1026,'MAIN DATA'!$C$17:$C$1026,$A54) -> 0 | L54: =SUMIFS('MAIN DATA'!N$17:N$1026,'MAIN DATA'!$C$17:$C$1026,$A54) -> 0
A55: J7 | B55: J | C55: =SUMIFS('MAIN DATA'!E$17:E$1066,'MAIN DATA'!$C$17:$C$1066,$A55) -> 551.9692604 | D55: =SUMIFS('MAIN DATA'!F$17:F$1066,'MAIN DATA'!$C$17:$C$1066,$A55) -> 50.37668103 | E55: =SUMIFS('MAIN DATA'!G$17:G$1066,'MAIN DATA'!$C$17:$C$1066,$A55) -> 26.65642914 | F55: =SUMIFS('MAIN DATA'!H$17:H$1026,'MAIN DATA'!$C$17:$C$1026,$A55) -> 92.62 | G55: =SUMIFS('MAIN DATA'!I$17:I$1026,'MAIN DATA'!$C$17:$C$1026,$A55) -> 1679.028 | H55: =SUMIFS('MAIN DATA'!J$17:J$1026,'MAIN DATA'!$C$17:$C$1026,$A55) -> 87.675 | I55: =SUMIFS('MAIN DATA'!K$17:K$1026,'MAIN DATA'!$C$17:$C$1026,$A55) -> 0 | J55: =SUMIFS('MAIN DATA'!L$17:L$1026,'MAIN DATA'!$C$17:$C$1026,$A55) -> 100.567 | K55: =SUMIFS('MAIN DATA'!M$17:M$1026,'MAIN DATA'!$C$17:$C$1026,$A55) -> 0 | L55: =SUMIFS('MAIN DATA'!N$17:N$1026,'MAIN DATA'!$C$17:$C$1026,$A55) -> 0
A56: J8 | B56: J | C56: =SUMIFS('MAIN DATA'!E$17:E$1066,'MAIN DATA'!$C$17:$C$1066,$A56) -> 323.6194491 | D56: =SUMIFS('MAIN DATA'!F$17:F$1066,'MAIN DATA'!$C$17:$C$1066,$A56) -> -12.87290647 | E56: =SUMIFS('MAIN DATA'!G$17:G$1066,'MAIN DATA'!$C$17:$C$1066,$A56) -> -16.54995451 | F56: =SUMIFS('MAIN DATA'!H$17:H$1026,'MAIN DATA'!$C$17:$C$1026,$A56) -> 31.387 | G56: =SUMIFS('MAIN DATA'!I$17:I$1026,'MAIN DATA'!$C$17:$C$1026,$A56) -> 262.31 | H56: =SUMIFS('MAIN DATA'!J$17:J$1026,'MAIN DATA'!$C$17:$C$1026,$A56) -> 0.187 | I56: =SUMIFS('MAIN DATA'!K$17:K$1026,'MAIN DATA'!$C$17:$C$1026,$A56) -> 0 | J56: =SUMIFS('MAIN DATA'!L$17:L$1026,'MAIN DATA'!$C$17:$C$1026,$A56) -> 63.677 | K56: =SUMIFS('MAIN DATA'!M$17:M$1026,'MAIN DATA'!$C$17:$C$1026,$A56) -> 0 | L56: =SUMIFS('MAIN DATA'!N$17:N$1026,'MAIN DATA'!$C$17:$C$1026,$A56) -> 0
A57: K4 | B57: K | C57: =SUMIFS('MAIN DATA'!E$17:E$1066,'MAIN DATA'!$C$17:$C$1066,$A57) -> 189.8513593 | D57: =SUMIFS('MAIN DATA'!F$17:F$1066,'MAIN DATA'!$C$17:$C$1066,$A57) -> 13.46199459 | E57: =SUMIFS('MAIN DATA'!G$17:G$1066,'MAIN DATA'!$C$17:$C$1066,$A57) -> -0.9988223196 | F57: =SUMIFS('MAIN DATA'!H$17:H$1026,'MAIN DATA'!$C$17:$C$1026,$A57) -> 119.667 | G57: =SUMIFS('MAIN DATA'!I$17:I$1026,'MAIN DATA'!$C$17:$C$1026,$A57) -> 1010.067 | H57: =SUMIFS('MAIN DATA'!J$17:J$1026,'MAIN DATA'!$C$17:$C$1026,$A57) -> 251.436 | I57: =SUMIFS('MAIN DATA'!K$17:K$1026,'MAIN DATA'!$C$17:$C$1026,$A57) -> 0 | J57: =SUMIFS('MAIN DATA'!L$17:L$1026,'MAIN DATA'!$C$17:$C$1026,$A57) -> 104.755 | K57: =SUMIFS('MAIN DATA'!M$17:M$1026,'MAIN DATA'!$C$17:$C$1026,$A57) -> 0 | L57: =SUMIFS('MAIN DATA'!N$17:N$1026,'MAIN DATA'!$C$17:$C$1026,$A57) -> 0
A58: K5 | B58: K | C58: =SUMIFS('MAIN DATA'!E$17:E$1066,'MAIN DATA'!$C$17:$C$1066,$A58) -> 410.2664963 | D58: =SUMIFS('MAIN DATA'!F$17:F$1066,'MAIN DATA'!$C$17:$C$1066,$A58) -> 50.70024987 | E58: =SUMIFS('MAIN DATA'!G$17:G$1066,'MAIN DATA'!$C$17:$C$1066,$A58) -> 3.722125049 | F58: =SUMIFS('MAIN DATA'!H$17:H$1026,'MAIN DATA'!$C$17:$C$1026,$A58) -> 177.453 | G58: =SUMIFS('MAIN DATA'!I$17:I$1026,'MAIN DATA'!$C$17:$C$1026,$A58) -> 985.813 | H58: =SUMIFS('MAIN DATA'!J$17:J$1026,'MAIN DATA'!$C$17:$C$1026,$A58) -> 10.013 | I58: =SUMIFS('MAIN DATA'!K$17:K$1026,'MAIN DATA'!$C$17:$C$1026,$A58) -> 0 | J58: =SUMIFS('MAIN DATA'!L$17:L$1026,'MAIN DATA'!$C$17:$C$1026,$A58) -> 189.352 | K58: =SUMIFS('MAIN DATA'!M$17:M$1026,'MAIN DATA'!$C$17:$C$1026,$A58) -> 0 | L58: =SUMIFS('MAIN DATA'!N$17:N$1026,'MAIN DATA'!$C$17:$C$1026,$A58) -> 0
A59: K6 | B59: K | C59: =SUMIFS('MAIN DATA'!E$17:E$1066,'MAIN DATA'!$C$17:$C$1066,$A59) -> 305.8357447 | D59: =SUMIFS('MAIN DATA'!F$17:F$1066,'MAIN DATA'!$C$17:$C$1066,$A59) -> 7.073315483 | E59: =SUMIFS('MAIN DATA'!G$17:G$1066,'MAIN DATA'!$C$17:$C$1066,$A59) -> -4.639832222 | F59: =SUMIFS('MAIN DATA'!H$17:H$1026,'MAIN DATA'!$C$17:$C$1026,$A59) -> 64.871 | G59: =SUMIFS('MAIN DATA'!I$17:I$1026,'MAIN DATA'!$C$17:$C$1026,$A59) -> 549.43 | H59: =SUMIFS('MAIN DATA'!J$17:J$1026,'MAIN DATA'!$C$17:$C$1026,$A59) -> 5.092 | I59: =SUMIFS('MAIN DATA'!K$17:K$1026,'MAIN DATA'!$C$17:$C$1026,$A59) -> 0 | J59: =SUMIFS('MAIN DATA'!L$17:L$1026,'MAIN DATA'!$C$17:$C$1026,$A59) -> 78.206 | K59: =SUMIFS('MAIN DATA'!M$17:M$1026,'MAIN DATA'!$C$17:$C$1026,$A59) -> 0 | L59: =SUMIFS('MAIN DATA'!N$17:N$1026,'MAIN DATA'!$C$17:$C$1026,$A59) -> 0
A60: L1 | B60: L | C60: =SUMIFS('MAIN DATA'!E$17:E$1066,'MAIN DATA'!$C$17:$C$1066,$A60) -> 384.2220203 | D60: =SUMIFS('MAIN DATA'!F$17:F$1066,'MAIN DATA'!$C$17:$C$1066,$A60) -> 30.10595726 | E60: =SUMIFS('MAIN DATA'!G$17:G$1066,'MAIN DATA'!$C$17:$C$1066,$A60) -> -0.09401274041 | F60: =SUMIFS('MAIN DATA'!H$17:H$1026,'MAIN DATA'!$C$17:$C$1026,$A60) -> 302.461 | G60: =SUMIFS('MAIN DATA'!I$17:I$1026,'MAIN DATA'!$C$17:$C$1026,$A60) -> 19.428 | H60: =SUMIFS('MAIN DATA'!J$17:J$1026,'MAIN DATA'!$C$17:$C$1026,$A60) -> 0.016 | I60: =SUMIFS('MAIN DATA'!K$17:K$1026,'MAIN DATA'!$C$17:$C$1026,$A60) -> 0 | J60: =SUMIFS('MAIN DATA'!L$17:L$1026,'MAIN DATA'!$C$17:$C$1026,$A60) -> 111.063 | K60: =SUMIFS('MAIN DATA'!M$17:M$1026,'MAIN DATA'!$C$17:$C$1026,$A60) -> 0 | L60: =SUMIFS('MAIN DATA'!N$17:N$1026,'MAIN DATA'!$C$17:$C$1026,$A60) -> 0
A61: L2 | B61: L | C61: =SUMIFS('MAIN DATA'!E$17:E$1066,'MAIN DATA'!$C$17:$C$1066,$A61) -> 2426.335169 | D61: =SUMIFS('MAIN DATA'!F$17:F$1066,'MAIN DATA'!$C$17:$C$1066,$A61) -> 182.1144272 | E61: =SUMIFS('MAIN DATA'!G$17:G$1066,'MAIN DATA'!$C$17:$C$1066,$A61) -> -85.01768679 | F61: =SUMIFS('MAIN DATA'!H$17:H$1026,'MAIN DATA'!$C$17:$C$1026,$A61) -> 845.221 | G61: =SUMIFS('MAIN DATA'!I$17:I$1026,'MAIN DATA'!$C$17:$C$1026,$A61) -> 1270.069 | H61: =SUMIFS('MAIN DATA'!J$17:J$1026,'MAIN DATA'!$C$17:$C$1026,$A61) -> 114.811 | I61: =SUMIFS('MAIN DATA'!K$17:K$1026,'MAIN DATA'!$C$17:$C$1026,$A61) -> 0.398 | J61: =SUMIFS('MAIN DATA'!L$17:L$1026,'MAIN DATA'!$C$17:$C$1026,$A61) -> 905.785 | K61: =SUMIFS('MAIN DATA'!M$17:M$1026,'MAIN DATA'!$C$17:$C$1026,$A61) -> 0 | L61: =SUMIFS('MAIN DATA'!N$17:N$1026,'MAIN DATA'!$C$17:$C$1026,$A61) -> 0
A62: L3 | B62: L | C62: =SUMIFS('MAIN DATA'!E$17:E$1066,'MAIN DATA'!$C$17:$C$1066,$A62) -> 3644.6952 | D62: =SUMIFS('MAIN DATA'!F$17:F$1066,'MAIN DATA'!$C$17:$C$1066,$A62) -> 564.1429975 | E62: =SUMIFS('MAIN DATA'!G$17:G$1066,'MAIN DATA'!$C$17:$C$1066,$A62) -> 134.6309905 | F62: =SUMIFS('MAIN DATA'!H$17:H$1026,'MAIN DATA'!$C$17:$C$1026,$A62) -> 443.027 | G62: =SUMIFS('MAIN DATA'!I$17:I$1026,'MAIN DATA'!$C$17:$C$1026,$A62) -> 1792.463 | H62: =SUMIFS('MAIN DATA'!J$17:J$1026,'MAIN DATA'!$C$17:$C$1026,$A62) -> 258.859 | I62: =SUMIFS('MAIN DATA'!K$17:K$1026,'MAIN DATA'!$C$17:$C$1026,$A62) -> 0.442 | J62: =SUMIFS('MAIN DATA'!L$17:L$1026,'MAIN DATA'!$C$17:$C$1026,$A62) -> 1238.901 | K62: =SUMIFS('MAIN DATA'!M$17:M$1026,'MAIN DATA'!$C$17:$C$1026,$A62) -> 0 | L62: =SUMIFS('MAIN DATA'!N$17:N$1026,'MAIN DATA'!$C$17:$C$1026,$A62) -> 0
A63: L5 | B63: L | C63: =SUMIFS('MAIN DATA'!E$17:E$1066,'MAIN DATA'!$C$17:$C$1066,$A63) -> 2650.229321 | D63: =SUMIFS('MAIN DATA'!F$17:F$1066,'MAIN DATA'!$C$17:$C$1066,$A63) -> 108.1273077 | E63: =SUMIFS('MAIN DATA'!G$17:G$1066,'MAIN DATA'!$C$17:$C$1066,$A63) -> -83.12039939 | F63: =SUMIFS('MAIN DATA'!H$17:H$1026,'MAIN DATA'!$C$17:$C$1026,$A63) -> 615.784 | G63: =SUMIFS('MAIN DATA'!I$17:I$1026,'MAIN DATA'!$C$17:$C$1026,$A63) -> 1678.568 | H63: =SUMIFS('MAIN DATA'!J$17:J$1026,'MAIN DATA'!$C$17:$C$1026,$A63) -> 78.826 | I63: =SUMIFS('MAIN DATA'!K$17:K$1026,'MAIN DATA'!$C$17:$C$1026,$A63) -> 0.881 | J63: =SUMIFS('MAIN DATA'!L$17:L$1026,'MAIN DATA'!$C$17:$C$1026,$A63) -> 890.23 | K63: =SUMIFS('MAIN DATA'!M$17:M$1026,'MAIN DATA'!$C$17:$C$1026,$A63) -> 0 | L63: =SUMIFS('MAIN DATA'!N$17:N$1026,'MAIN DATA'!$C$17:$C$1026,$A63) -> 0
A64: L7 | B64: L | C64: =SUMIFS('MAIN DATA'!E$17:E$1066,'MAIN DATA'!$C$17:$C$1066,$A64) -> 1026.992261 | D64: =SUMIFS('MAIN DATA'!F$17:F$1066,'MAIN DATA'!$C$17:$C$1066,$A64) -> 96.79691977 | E64: =SUMIFS('MAIN DATA'!G$17:G$1066,'MAIN DATA'!$C$17:$C$1066,$A64) -> -8.721698116 | F64: =SUMIFS('MAIN DATA'!H$17:H$1026,'MAIN DATA'!$C$17:$C$1026,$A64) -> 404.985 | G64: =SUMIFS('MAIN DATA'!I$17:I$1026,'MAIN DATA'!$C$17:$C$1026,$A64) -> 608.048 | H64: =SUMIFS('MAIN DATA'!J$17:J$1026,'MAIN DATA'!$C$17:$C$1026,$A64) -> 37.323 | I64: =SUMIFS('MAIN DATA'!K$17:K$1026,'MAIN DATA'!$C$17:$C$1026,$A64) -> 0.581 | J64: =SUMIFS('MAIN DATA'!L$17:L$1026,'MAIN DATA'!$C$17:$C$1026,$A64) -> 318.54 | K64: =SUMIFS('MAIN DATA'!M$17:M$1026,'MAIN DATA'!$C$17:$C$1026,$A64) -> 0 | L64: =SUMIFS('MAIN DATA'!N$17:N$1026,'MAIN DATA'!$C$17:$C$1026,$A64) -> 0
A65: L8 | B65: L | C65: =SUMIFS('MAIN DATA'!E$17:E$1066,'MAIN DATA'!$C$17:$C$1066,$A65) -> 729.0623811 | D65: =SUMIFS('MAIN DATA'!F$17:F$1066,'MAIN DATA'!$C$17:$C$1066,$A65) -> 53.92954581 | E65: =SUMIFS('MAIN DATA'!G$17:G$1066,'MAIN DATA'!$C$17:$C$1066,$A65) -> 8.887406471 | F65: =SUMIFS('MAIN DATA'!H$17:H$1026,'MAIN DATA'!$C$17:$C$1026,$A65) -> 105.366 | G65: =SUMIFS('MAIN DATA'!I$17:I$1026,'MAIN DATA'!$C$17:$C$1026,$A65) -> 477.87 | H65: =SUMIFS('MAIN DATA'!J$17:J$1026,'MAIN DATA'!$C$17:$C$1026,$A65) -> 4.309 | I65: =SUMIFS('MAIN DATA'!K$17:K$1026,'MAIN DATA'!$C$17:$C$1026,$A65) -> 0 | J65: =SUMIFS('MAIN DATA'!L$17:L$1026,'MAIN DATA'!$C$17:$C$1026,$A65) -> 153.159 | K65: =SUMIFS('MAIN DATA'!M$17:M$1026,'MAIN DATA'!$C$17:$C$1026,$A65) -> 0 | L65: =SUMIFS('MAIN DATA'!N$17:N$1026,'MAIN DATA'!$C$17:$C$1026,$A65) -> 0
A66: M4 | B66: M | C66: =SUMIFS('MAIN DATA'!E$17:E$1066,'MAIN DATA'!$C$17:$C$1066,$A66) -> 496.618613 | D66: =SUMIFS('MAIN DATA'!F$17:F$1066,'MAIN DATA'!$C$17:$C$1066,$A66) -> 22.39563715 | E66: =SUMIFS('MAIN DATA'!G$17:G$1066,'MAIN DATA'!$C$17:$C$1066,$A66) -> 4.687369623 | F66: =SUMIFS('MAIN DATA'!H$17:H$1026,'MAIN DATA'!$C$17:$C$1026,$A66) -> 35.799 | G66: =SUMIFS('MAIN DATA'!I$17:I$1026,'MAIN DATA'!$C$17:$C$1026,$A66) -> 350.456 | H66: =SUMIFS('MAIN DATA'!J$17:J$1026,'MAIN DATA'!$C$17:$C$1026,$A66) -> 368.974 | I66: =SUMIFS('MAIN DATA'!K$17:K$1026,'MAIN DATA'!$C$17:$C$1026,$A66) -> 1.913 | J66: =SUMIFS('MAIN DATA'!L$17:L$1026,'MAIN DATA'!$C$17:$C$1026,$A66) -> 163.927 | K66: =SUMIFS('MAIN DATA'!M$17:M$1026,'MAIN DATA'!$C$17:$C$1026,$A66) -> 0 | L66: =SUMIFS('MAIN DATA'!N$17:N$1026,'MAIN DATA'!$C$17:$C$1026,$A66) -> 0
A67: M5 | B67: M | C67: =SUMIFS('MAIN DATA'!E$17:E$1066,'MAIN DATA'!$C$17:$C$1066,$A67) -> 465.3631014 | D67: =SUMIFS('MAIN DATA'!F$17:F$1066,'MAIN DATA'!$C$17:$C$1066,$A67) -> -10.26754975 | E67: =SUMIFS('MAIN DATA'!G$17:G$1066,'MAIN DATA'!$C$17:$C$1066,$A67) -> -23.92841041 | F67: =SUMIFS('MAIN DATA'!H$17:H$1026,'MAIN DATA'!$C$17:$C$1026,$A67) -> 122.727 | G67: =SUMIFS('MAIN DATA'!I$17:I$1026,'MAIN DATA'!$C$17:$C$1026,$A67) -> 267.985 | H67: =SUMIFS('MAIN DATA'!J$17:J$1026,'MAIN DATA'!$C$17:$C$1026,$A67) -> 848.19 | I67: =SUMIFS('MAIN DATA'!K$17:K$1026,'MAIN DATA'!$C$17:$C$1026,$A67) -> 0.229 | J67: =SUMIFS('MAIN DATA'!L$17:L$1026,'MAIN DATA'!$C$17:$C$1026,$A67) -> 63.713 | K67: =SUMIFS('MAIN DATA'!M$17:M$1026,'MAIN DATA'!$C$17:$C$1026,$A67) -> 0 | L67: =SUMIFS('MAIN DATA'!N$17:N$1026,'MAIN DATA'!$C$17:$C$1026,$A67) -> 0
A68: M6 | B68: M | C68: =SUMIFS('MAIN DATA'!E$17:E$1066,'MAIN DATA'!$C$17:$C$1066,$A68) -> 157.1411618 | D68: =SUMIFS('MAIN DATA'!F$17:F$1066,'MAIN DATA'!$C$17:$C$1066,$A68) -> 26.5625763 | E68: =SUMIFS('MAIN DATA'!G$17:G$1066,'MAIN DATA'!$C$17:$C$1066,$A68) -> 3.776251592 | F68: =SUMIFS('MAIN DATA'!H$17:H$1026,'MAIN DATA'!$C$17:$C$1026,$A68) -> 9.823 | G68: =SUMIFS('MAIN DATA'!I$17:I$1026,'MAIN DATA'!$C$17:$C$1026,$A68) -> 356.756 | H68: =SUMIFS('MAIN DATA'!J$17:J$1026,'MAIN DATA'!$C$17:$C$1026,$A68) -> 68.738 | I68: =SUMIFS('MAIN DATA'!K$17:K$1026,'MAIN DATA'!$C$17:$C$1026,$A68) -> 5.852 | J68: =SUMIFS('MAIN DATA'!L$17:L$1026,'MAIN DATA'!$C$17:$C$1026,$A68) -> 63.979 | K68: =SUMIFS('MAIN DATA'!M$17:M$1026,'MAIN DATA'!$C$17:$C$1026,$A68) -> 0 | L68: =SUMIFS('MAIN DATA'!N$17:N$1026,'MAIN DATA'!$C$17:$C$1026,$A68) -> 0
A69: M7 | B69: M | C69: =SUMIFS('MAIN DATA'!E$17:E$1066,'MAIN DATA'!$C$17:$C$1066,$A69) -> 171.7336714 | D69: =SUMIFS('MAIN DATA'!F$17:F$1066,'MAIN DATA'!$C$17:$C$1066,$A69) -> -14.0493775 | E69: =SUMIFS('MAIN DATA'!G$17:G$1066,'MAIN DATA'!$C$17:$C$1066,$A69) -> -14.96498605 | F69: =SUMIFS('MAIN DATA'!H$17:H$1026,'MAIN DATA'!$C$17:$C$1026,$A69) -> 8.35 | G69: =SUMIFS('MAIN DATA'!I$17:I$1026,'MAIN DATA'!$C$17:$C$1026,$A69) -> 127.593 | H69: =SUMIFS('MAIN DATA'!J$17:J$1026,'MAIN DATA'!$C$17:$C$1026,$A69) -> 381.663 | I69: =SUMIFS('MAIN DATA'!K$17:K$1026,'MAIN DATA'!$C$17:$C$1026,$A69) -> 12.058 | J69: =SUMIFS('MAIN DATA'!L$17:L$1026,'MAIN DATA'!$C$17:$C$1026,$A69) -> 79.081 | K69: =SUMIFS('MAIN DATA'!M$17:M$1026,'MAIN DATA'!$C$17:$C$1026,$A69) -> 0 | L69: =SUMIFS('MAIN DATA'!N$17:N$1026,'MAIN DATA'!$C$17:$C$1026,$A69) -> 0
A70: M8 | B70: M | C70: =SUMIFS('MAIN DATA'!E$17:E$1066,'MAIN DATA'!$C$17:$C$1066,$A70) -> 83.77133985 | D70: =SUMIFS('MAIN DATA'!F$17:F$1066,'MAIN DATA'!$C$17:$C$1066,$A70) -> 26.26406656 | E70: =SUMIFS('MAIN DATA'!G$17:G$1066,'MAIN DATA'!$C$17:$C$1066,$A70) -> -10.79455141 | F70: =SUMIFS('MAIN DATA'!H$17:H$1026,'MAIN DATA'!$C$17:$C$1026,$A70) -> 2.753 | G70: =SUMIFS('MAIN DATA'!I$17:I$1026,'MAIN DATA'!$C$17:$C$1026,$A70) -> 275.357 | H70: =SUMIFS('MAIN DATA'!J$17:J$1026,'MAIN DATA'!$C$17:$C$1026,$A70) -> 175.124 | I70: =SUMIFS('MAIN DATA'!K$17:K$1026,'MAIN DATA'!$C$17:$C$1026,$A70) -> 0 | J70: =SUMIFS('MAIN DATA'!L$17:L$1026,'MAIN DATA'!$C$17:$C$1026,$A70) -> 52.25 | K70: =SUMIFS('MAIN DATA'!M$17:M$1026,'MAIN DATA'!$C$17:$C$1026,$A70) -> 0 | L70: =SUMIFS('MAIN DATA'!N$17:N$1026,'MAIN DATA'!$C$17:$C$1026,$A70) -> 0
A71: N1 | B71: N | C71: =SUMIFS('MAIN DATA'!E$17:E$1066,'MAIN DATA'!$C$17:$C$1066,$A71) -> 2415.31656 | D71: =SUMIFS('MAIN DATA'!F$17:F$1066,'MAIN DATA'!$C$17:$C$1066,$A71) -> 22.07769112 | E71: =SUMIFS('MAIN DATA'!G$17:G$1066,'MAIN DATA'!$C$17:$C$1066,$A71) -> -203.0570547 | F71: =SUMIFS('MAIN DATA'!H$17:H$1026,'MAIN DATA'!$C$17:$C$1026,$A71) -> 296.251 | G71: =SUMIFS('MAIN DATA'!I$17:I$1026,'MAIN DATA'!$C$17:$C$1026,$A71) -> 463.244 | H71: =SUMIFS('MAIN DATA'!J$17:J$1026,'MAIN DATA'!$C$17:$C$1026,$A71) -> 62.669 | I71: =SUMIFS('MAIN DATA'!K$17:K$1026,'MAIN DATA'!$C$17:$C$1026,$A71) -> 0.095 | J71: =SUMIFS('MAIN DATA'!L$17:L$1026,'MAIN DATA'!$C$17:$C$1026,$A71) -> 667.9 | K71: =SUMIFS('MAIN DATA'!M$17:M$1026,'MAIN DATA'!$C$17:$C$1026,$A71) -> 0 | L71: =SUMIFS('MAIN DATA'!N$17:N$1026,'MAIN DATA'!$C$17:$C$1026,$A71) -> 0
A72: N2 | B72: N | C72: =SUMIFS('MAIN DATA'!E$17:E$1066,'MAIN DATA'!$C$17:$C$1066,$A72) -> 1689.815489 | D72: =SUMIFS('MAIN DATA'!F$17:F$1066,'MAIN DATA'!$C$17:$C$1066,$A72) -> 219.7891923 | E72: =SUMIFS('MAIN DATA'!G$17:G$1066,'MAIN DATA'!$C$17:$C$1066,$A72) -> 8.193441442 | F72: =SUMIFS('MAIN DATA'!H$17:H$1026,'MAIN DATA'!$C$17:$C$1026,$A72) -> 145.912 | G72: =SUMIFS('MAIN DATA'!I$17:I$1026,'MAIN DATA'!$C$17:$C$1026,$A72) -> 263.798 | H72: =SUMIFS('MAIN DATA'!J$17:J$1026,'MAIN DATA'!$C$17:$C$1026,$A72) -> 0.008 | I72: =SUMIFS('MAIN DATA'!K$17:K$1026,'MAIN DATA'!$C$17:$C$1026,$A72) -> 2.91 | J72: =SUMIFS('MAIN DATA'!L$17:L$1026,'MAIN DATA'!$C$17:$C$1026,$A72) -> 517.974 | K72: =SUMIFS('MAIN DATA'!M$17:M$1026,'MAIN DATA'!$C$17:$C$1026,$A72) -> 0 | L72: =SUMIFS('MAIN DATA'!N$17:N$1026,'MAIN DATA'!$C$17:$C$1026,$A72) -> 0
A73: N3 | B73: N | C73: =SUMIFS('MAIN DATA'!E$17:E$1066,'MAIN DATA'!$C$17:$C$1066,$A73) -> 1563.349815 | D73: =SUMIFS('MAIN DATA'!F$17:F$1066,'MAIN DATA'!$C$17:$C$1066,$A73) -> 49.52859393 | E73: =SUMIFS('MAIN DATA'!G$17:G$1066,'MAIN DATA'!$C$17:$C$1066,$A73) -> -57.38336773 | F73: =SUMIFS('MAIN DATA'!H$17:H$1026,'MAIN DATA'!$C$17:$C$1026,$A73) -> 610.56 | G73: =SUMIFS('MAIN DATA'!I$17:I$1026,'MAIN DATA'!$C$17:$C$1026,$A73) -> 404.023 | H73: =SUMIFS('MAIN DATA'!J$17:J$1026,'MAIN DATA'!$C$17:$C$1026,$A73) -> 163.589 | I73: =SUMIFS('MAIN DATA'!K$17:K$1026,'MAIN DATA'!$C$17:$C$1026,$A73) -> 0 | J73: =SUMIFS('MAIN DATA'!L$17:L$1026,'MAIN DATA'!$C$17:$C$1026,$A73) -> 493.008 | K73: =SUMIFS('MAIN DATA'!M$17:M$1026,'MAIN DATA'!$C$17:$C$1026,$A73) -> 0 | L73: =SUMIFS('MAIN DATA'!N$17:N$1026,'MAIN DATA'!$C$17:$C$1026,$A73) -> 0
A74: N4 | B74: N | C74: =SUMIFS('MAIN DATA'!E$17:E$1066,'MAIN DATA'!$C$17:$C$1066,$A74) -> 1837.742436 | D74: =SUMIFS('MAIN DATA'!F$17:F$1066,'MAIN DATA'!$C$17:$C$1066,$A74) -> 177.7347908 | E74: =SUMIFS('MAIN DATA'!G$17:G$1066,'MAIN DATA'!$C$17:$C$1066,$A74) -> 39.56470594 | F74: =SUMIFS('MAIN DATA'!H$17:H$1026,'MAIN DATA'!$C$17:$C$1026,$A74) -> 442.012 | G74: =SUMIFS('MAIN DATA'!I$17:I$1026,'MAIN DATA'!$C$17:$C$1026,$A74) -> 455.166 | H74: =SUMIFS('MAIN DATA'!J$17:J$1026,'MAIN DATA'!$C$17:$C$1026,$A74) -> 340.747 | I74: =SUMIFS('MAIN DATA'!K$17:K$1026,'MAIN DATA'!$C$17:$C$1026,$A74) -> 0.304 | J74: =SUMIFS('MAIN DATA'!L$17:L$1026,'MAIN DATA'!$C$17:$C$1026,$A74) -> 552.331 | K74: =SUMIFS('MAIN DATA'!M$17:M$1026,'MAIN DATA'!$C$17:$C$1026,$A74) -> 0 | L74: =SUMIFS('MAIN DATA'!N$17:N$1026,'MAIN DATA'!$C$17:$C$1026,$A74) -> 0
A75: N5 | B75: N | C75: =SUMIFS('MAIN DATA'!E$17:E$1066,'MAIN DATA'!$C$17:$C$1066,$A75) -> 443.4416636 | D75: =SUMIFS('MAIN DATA'!F$17:F$1066,'MAIN DATA'!$C$17:$C$1066,$A75) -> -0.6470169648 | E75: =SUMIFS('MAIN DATA'!G$17:G$1066,'MAIN DATA'!$C$17:$C$1066,$A75) -> -3.130041012 | F75: =SUMIFS('MAIN DATA'!H$17:H$1026,'MAIN DATA'!$C$17:$C$1026,$A75) -> 26.06 | G75: =SUMIFS('MAIN DATA'!I$17:I$1026,'MAIN DATA'!$C$17:$C$1026,$A75) -> 139.92 | H75: =SUMIFS('MAIN DATA'!J$17:J$1026,'MAIN DATA'!$C$17:$C$1026,$A75) -> 81.022 | I75: =SUMIFS('MAIN DATA'!K$17:K$1026,'MAIN DATA'!$C$17:$C$1026,$A75) -> 0.258 | J75: =SUMIFS('MAIN DATA'!L$17:L$1026,'MAIN DATA'!$C$17:$C$1026,$A75) -> 148.592 | K75: =SUMIFS('MAIN DATA'!M$17:M$1026,'MAIN DATA'!$C$17:$C$1026,$A75) -> 0 | L75: =SUMIFS('MAIN DATA'!N$17:N$1026,'MAIN DATA'!$C$17:$C$1026,$A75) -> 0
A76: N6 | B76: N | C76: =SUMIFS('MAIN DATA'!E$17:E$1066,'MAIN DATA'!$C$17:$C$1066,$A76) -> 163.0482348 | D76: =SUMIFS('MAIN DATA'!F$17:F$1066,'MAIN DATA'!$C$17:$C$1066,$A76) -> -1.201045611 | E76: =SUMIFS('MAIN DATA'!G$17:G$1066,'MAIN DATA'!$C$17:$C$1066,$A76) -> -1.201045611 | F76: =SUMIFS('MAIN DATA'!H$17:H$1026,'MAIN DATA'!$C$17:$C$1026,$A76) -> 22.617 | G76: =SUMIFS('MAIN DATA'!I$17:I$1026,'MAIN DATA'!$C$17:$C$1026,$A76) -> 78.416 | H76: =SUMIFS('MAIN DATA'!J$17:J$1026,'MAIN DATA'!$C$17:$C$1026,$A76) -> 0.077 | I76: =SUMIFS('MAIN DATA'!K$17:K$1026,'MAIN DATA'!$C$17:$C$1026,$A76) -> 0.013 | J76: =SUMIFS('MAIN DATA'!L$17:L$1026,'MAIN DATA'!$C$17:$C$1026,$A76) -> 65.438 | K76: =SUMIFS('MAIN DATA'!M$17:M$1026,'MAIN DATA'!$C$17:$C$1026,$A76) -> 0 | L76: =SUMIFS('MAIN DATA'!N$17:N$1026,'MAIN DATA'!$C$17:$C$1026,$A76) -> 0
A77: N7 | B77: N | C77: =SUMIFS('MAIN DATA'!E$17:E$1066,'MAIN DATA'!$C$17:$C$1066,$A77) -> 615.4304792 | D77: =SUMIFS('MAIN DATA'!F$17:F$1066,'MAIN DATA'!$C$17:$C$1066,$A77) -> 35.85197769 | E77: =SUMIFS('MAIN DATA'!G$17:G$1066,'MAIN DATA'!$C$17:$C$1066,$A77) -> 30.64530747 | F77: =SUMIFS('MAIN DATA'!H$17:H$1026,'MAIN DATA'!$C$17:$C$1026,$A77) -> 127.252 | G77: =SUMIFS('MAIN DATA'!I$17:I$1026,'MAIN DATA'!$C$17:$C$1026,$A77) -> 166.361 | H77: =SUMIFS('MAIN DATA'!J$17:J$1026,'MAIN DATA'!$C$17:$C$1026,$A77) -> 0.167 | I77: =SUMIFS('MAIN DATA'!K$17:K$1026,'MAIN DATA'!$C$17:$C$1026,$A77) -> 0.141 | J77: =SUMIFS('MAIN DATA'!L$17:L$1026,'MAIN DATA'!$C$17:$C$1026,$A77) -> 204.949 | K77: =SUMIFS('MAIN DATA'!M$17:M$1026,'MAIN DATA'!$C$17:$C$1026,$A77) -> 0 | L77: =SUMIFS('MAIN DATA'!N$17:N$1026,'MAIN DATA'!$C$17:$C$1026,$A77) -> 0
A78: P1 | B78: P | C78: =SUMIFS('MAIN DATA'!E$17:E$1066,'MAIN DATA'!$C$17:$C$1066,$A78) -> 2407.733945 | D78: =SUMIFS('MAIN DATA'!F$17:F$1066,'MAIN DATA'!$C$17:$C$1066,$A78) -> 210.233925 | E78: =SUMIFS('MAIN DATA'!G$17:G$1066,'MAIN DATA'!$C$17:$C$1066,$A78) -> -64.81863773 | F78: =SUMIFS('MAIN DATA'!H$17:H$1026,'MAIN DATA'!$C$17:$C$1026,$A78) -> 186.613 | G78: =SUMIFS('MAIN DATA'!I$17:I$1026,'MAIN DATA'!$C$17:$C$1026,$A78) -> 575.619 | H78: =SUMIFS('MAIN DATA'!J$17:J$1026,'MAIN DATA'!$C$17:$C$1026,$A78) -> 188.336 | I78: =SUMIFS('MAIN DATA'!K$17:K$1026,'MAIN DATA'!$C$17:$C$1026,$A78) -> 1.417 | J78: =SUMIFS('MAIN DATA'!L$17:L$1026,'MAIN DATA'!$C$17:$C$1026,$A78) -> 630.54 | K78: =SUMIFS('MAIN DATA'!M$17:M$1026,'MAIN DATA'!$C$17:$C$1026,$A78) -> 0 | L78: =SUMIFS('MAIN DATA'!N$17:N$1026,'MAIN DATA'!$C$17:$C$1026,$A78) -> 0
A79: P2 | B79: P | C79: =SUMIFS('MAIN DATA'!E$17:E$1066,'MAIN DATA'!$C$17:$C$1066,$A79) -> 334.6544148 | D79: =SUMIFS('MAIN DATA'!F$17:F$1066,'MAIN DATA'!$C$17:$C$1066,$A79) -> -5.966965256 | E79: =SUMIFS('MAIN DATA'!G$17:G$1066,'MAIN DATA'!$C$17:$C$1066,$A79) -> -5.966965256 | F79: =SUMIFS('MAIN DATA'!H$17:H$1026,'MAIN DATA'!$C$17:$C$1026,$A79) -> 19.097 | G79: =SUMIFS('MAIN DATA'!I$17:I$1026,'MAIN DATA'!$C$17:$C$1026,$A79) -> 177.795 | H79: =SUMIFS('MAIN DATA'!J$17:J$1026,'MAIN DATA'!$C$17:$C$1026,$A79) -> 52.828 | I79: =SUMIFS('MAIN DATA'!K$17:K$1026,'MAIN DATA'!$C$17:$C$1026,$A79) -> 0.387 | J79: =SUMIFS('MAIN DATA'!L$17:L$1026,'MAIN DATA'!$C$17:$C$1026,$A79) -> 111.491 | K79: =SUMIFS('MAIN DATA'!M$17:M$1026,'MAIN DATA'!$C$17:$C$1026,$A79) -> 0 | L79: =SUMIFS('MAIN DATA'!N$17:N$1026,'MAIN DATA'!$C$17:$C$1026,$A79) -> 0
A80: P3 | B80: P | C80: =SUMIFS('MAIN DATA'!E$17:E$1066,'MAIN DATA'!$C$17:$C$1066,$A80) -> 2745.919122 | D80: =SUMIFS('MAIN DATA'!F$17:F$1066,'MAIN DATA'!$C$17:$C$1066,$A80) -> 57.04079257 | E80: =SUMIFS('MAIN DATA'!G$17:G$1066,'MAIN DATA'!$C$17:$C$1066,$A80) -> -28.49165194 | F80: =SUMIFS('MAIN DATA'!H$17:H$1026,'MAIN DATA'!$C$17:$C$1026,$A80) -> 747.825 | G80: =SUMIFS('MAIN DATA'!I$17:I$1026,'MAIN DATA'!$C$17:$C$1026,$A80) -> 993.075 | H80: =SUMIFS('MAIN DATA'!J$17:J$1026,'MAIN DATA'!$C$17:$C$1026,$A80) -> 361.138 | I80: =SUMIFS('MAIN DATA'!K$17:K$1026,'MAIN DATA'!$C$17:$C$1026,$A80) -> 7.165 | J80: =SUMIFS('MAIN DATA'!L$17:L$1026,'MAIN DATA'!$C$17:$C$1026,$A80) -> 945.584 | K80: =SUMIFS('MAIN DATA'!M$17:M$1026,'MAIN DATA'!$C$17:$C$1026,$A80) -> 0 | L80: =SUMIFS('MAIN DATA'!N$17:N$1026,'MAIN DATA'!$C$17:$C$1026,$A80) -> 0
A81: P4 | B81: P | C81: =SUMIFS('MAIN DATA'!E$17:E$1066,'MAIN DATA'!$C$17:$C$1066,$A81) -> 221.0123282 | D81: =SUMIFS('MAIN DATA'!F$17:F$1066,'MAIN DATA'!$C$17:$C$1066,$A81) -> 8.728515861 | E81: =SUMIFS('MAIN DATA'!G$17:G$1066,'MAIN DATA'!$C$17:$C$1066,$A81) -> -2.241811839 | F81: =SUMIFS('MAIN DATA'!H$17:H$1026,'MAIN DATA'!$C$17:$C$1026,$A81) -> 46.31 | G81: =SUMIFS('MAIN DATA'!I$17:I$1026,'MAIN DATA'!$C$17:$C$1026,$A81) -> 128.92 | H81: =SUMIFS('MAIN DATA'!J$17:J$1026,'MAIN DATA'!$C$17:$C$1026,$A81) -> 250.693 | I81: =SUMIFS('MAIN DATA'!K$17:K$1026,'MAIN DATA'!$C$17:$C$1026,$A81) -> 0.36 | J81: =SUMIFS('MAIN DATA'!L$17:L$1026,'MAIN DATA'!$C$17:$C$1026,$A81) -> 103.704 | K81: =SUMIFS('MAIN DATA'!M$17:M$1026,'MAIN DATA'!$C$17:$C$1026,$A81) -> 0 | L81: =SUMIFS('MAIN DATA'!N$17:N$1026,'MAIN DATA'!$C$17:$C$1026,$A81) -> 0
A82: P5 | B82: P | C82: =SUMIFS('MAIN DATA'!E$17:E$1066,'MAIN DATA'!$C$17:$C$1066,$A82) -> 272.9580416 | D82: =SUMIFS('MAIN DATA'!F$17:F$1066,'MAIN DATA'!$C$17:$C$1066,$A82) -> 20.95569861 | E82: =SUMIFS('MAIN DATA'!G$17:G$1066,'MAIN DATA'!$C$17:$C$1066,$A82) -> 9.461018114 | F82: =SUMIFS('MAIN DATA'!H$17:H$1026,'MAIN DATA'!$C$17:$C$1026,$A82) -> 4.887 | G82: =SUMIFS('MAIN DATA'!I$17:I$1026,'MAIN DATA'!$C$17:$C$1026,$A82) -> 137.02 | H82: =SUMIFS('MAIN DATA'!J$17:J$1026,'MAIN DATA'!$C$17:$C$1026,$A82) -> 1.497 | I82: =SUMIFS('MAIN DATA'!K$17:K$1026,'MAIN DATA'!$C$17:$C$1026,$A82) -> 0 | J82: =SUMIFS('MAIN DATA'!L$17:L$1026,'MAIN DATA'!$C$17:$C$1026,$A82) -> 71.537 | K82: =SUMIFS('MAIN DATA'!M$17:M$1026,'MAIN DATA'!$C$17:$C$1026,$A82) -> 0 | L82: =SUMIFS('MAIN DATA'!N$17:N$1026,'MAIN DATA'!$C$17:$C$1026,$A82) -> 0
A83: P6 | B83: P | C83: =SUMIFS('MAIN DATA'!E$17:E$1066,'MAIN DATA'!$C$17:$C$1066,$A83) -> 1058.487662 | D83: =SUMIFS('MAIN DATA'!F$17:F$1066,'MAIN DATA'!$C$17:$C$1066,$A83) -> -16.21718794 | E83: =SUMIFS('MAIN DATA'!G$17:G$1066,'MAIN DATA'!$C$17:$C$1066,$A83) -> -24.46008091 | F83: =SUMIFS('MAIN DATA'!H$17:H$1026,'MAIN DATA'!$C$17:$C$1026,$A83) -> 243.614 | G83: =SUMIFS('MAIN DATA'!I$17:I$1026,'MAIN DATA'!$C$17:$C$1026,$A83) -> 839.338 | H83: =SUMIFS('MAIN DATA'!J$17:J$1026,'MAIN DATA'!$C$17:$C$1026,$A83) -> 47.166 | I83: =SUMIFS('MAIN DATA'!K$17:K$1026,'MAIN DATA'!$C$17:$C$1026,$A83) -> 9.44 | J83: =SUMIFS('MAIN DATA'!L$17:L$1026,'MAIN DATA'!$C$17:$C$1026,$A83) -> 578.247 | K83: =SUMIFS('MAIN DATA'!M$17:M$1026,'MAIN DATA'!$C$17:$C$1026,$A83) -> 0 | L83: =SUMIFS('MAIN DATA'!N$17:N$1026,'MAIN DATA'!$C$17:$C$1026,$A83) -> 0
A84: P7 | B84: P | C84: =SUMIFS('MAIN DATA'!E$17:E$1066,'MAIN DATA'!$C$17:$C$1066,$A84) -> 403.0029838 | D84: =SUMIFS('MAIN DATA'!F$17:F$1066,'MAIN DATA'!$C$17:$C$1066,$A84) -> 1.395281516 | E84: =SUMIFS('MAIN DATA'!G$17:G$1066,'MAIN DATA'!$C$17:$C$1066,$A84) -> -15.22921905 | F84: =SUMIFS('MAIN DATA'!H$17:H$1026,'MAIN DATA'!$C$17:$C$1026,$A84) -> 158.23 | G84: =SUMIFS('MAIN DATA'!I$17:I$1026,'MAIN DATA'!$C$17:$C$1026,$A84) -> 323.847 | H84: =SUMIFS('MAIN DATA'!J$17:J$1026,'MAIN DATA'!$C$17:$C$1026,$A84) -> 76.281 | I84: =SUMIFS('MAIN DATA'!K$17:K$1026,'MAIN DATA'!$C$17:$C$1026,$A84) -> 0 | J84: =SUMIFS('MAIN DATA'!L$17:L$1026,'MAIN DATA'!$C$17:$C$1026,$A84) -> 195.106 | K84: =SUMIFS('MAIN DATA'!M$17:M$1026,'MAIN DATA'!$C$17:$C$1026,$A84) -> 0 | L84: =SUMIFS('MAIN DATA'!N$17:N$1026,'MAIN DATA'!$C$17:$C$1026,$A84) -> 0
A85: P8 | B85: P | C85: =SUMIFS('MAIN DATA'!E$17:E$1066,'MAIN DATA'!$C$17:$C$1066,$A85) -> 1699.424566 | D85: =SUMIFS('MAIN DATA'!F$17:F$1066,'MAIN DATA'!$C$17:$C$1066,$A85) -> 188.3546374 | E85: =SUMIFS('MAIN DATA'!G$17:G$1066,'MAIN DATA'!$C$17:$C$1066,$A85) -> 50.6932809 | F85: =SUMIFS('MAIN DATA'!H$17:H$1026,'MAIN DATA'!$C$17:$C$1026,$A85) -> 439.011 | G85: =SUMIFS('MAIN DATA'!I$17:I$1026,'MAIN DATA'!$C$17:$C$1026,$A85) -> 923.588 | H85: =SUMIFS('MAIN DATA'!J$17:J$1026,'MAIN DATA'!$C$17:$C$1026,$A85) -> 928.073 | I85: =SUMIFS('MAIN DATA'!K$17:K$1026,'MAIN DATA'!$C$17:$C$1026,$A85) -> 0 | J85: =SUMIFS('MAIN DATA'!L$17:L$1026,'MAIN DATA'!$C$17:$C$1026,$A85) -> 700.238 | K85: =SUMIFS('MAIN DATA'!M$17:M$1026,'MAIN DATA'!$C$17:$C$1026,$A85) -> 0 | L85: =SUMIFS('MAIN DATA'!N$17:N$1026,'MAIN DATA'!$C$17:$C$1026,$A85) -> 0
A86: Q2 | B86: Q | C86: =SUMIFS('MAIN DATA'!E$17:E$1066,'MAIN DATA'!$C$17:$C$1066,$A86) -> 643.3763331 | D86: =SUMIFS('MAIN DATA'!F$17:F$1066,'MAIN DATA'!$C$17:$C$1066,$A86) -> 45.18542447 | E86: =SUMIFS('MAIN DATA'!G$17:G$1066,'MAIN DATA'!$C$17:$C$1066,$A86) -> -10.19457553 | F86: =SUMIFS('MAIN DATA'!H$17:H$1026,'MAIN DATA'!$C$17:$C$1026,$A86) -> 14.679 | G86: =SUMIFS('MAIN DATA'!I$17:I$1026,'MAIN DATA'!$C$17:$C$1026,$A86) -> 224.397 | H86: =SUMIFS('MAIN DATA'!J$17:J$1026,'MAIN DATA'!$C$17:$C$1026,$A86) -> 73.61 | I86: =SUMIFS('MAIN DATA'!K$17:K$1026,'MAIN DATA'!$C$17:$C$1026,$A86) -> 0 | J86: =SUMIFS('MAIN DATA'!L$17:L$1026,'MAIN DATA'!$C$17:$C$1026,$A86) -> 390.4 | K86: =SUMIFS('MAIN DATA'!M$17:M$1026,'MAIN DATA'!$C$17:$C$1026,$A86) -> 0 | L86: =SUMIFS('MAIN DATA'!N$17:N$1026,'MAIN DATA'!$C$17:$C$1026,$A86) -> 0
A87: Q4 | B87: Q | C87: =SUMIFS('MAIN DATA'!E$17:E$1066,'MAIN DATA'!$C$17:$C$1066,$A87) -> 1879.346015 | D87: =SUMIFS('MAIN DATA'!F$17:F$1066,'MAIN DATA'!$C$17:$C$1066,$A87) -> 41.84613208 | E87: =SUMIFS('MAIN DATA'!G$17:G$1066,'MAIN DATA'!$C$17:$C$1066,$A87) -> -37.19386792 | F87: =SUMIFS('MAIN DATA'!H$17:H$1026,'MAIN DATA'!$C$17:$C$1026,$A87) -> 261.291 | G87: =SUMIFS('MAIN DATA'!I$17:I$1026,'MAIN DATA'!$C$17:$C$1026,$A87) -> 937.245 | H87: =SUMIFS('MAIN DATA'!J$17:J$1026,'MAIN DATA'!$C$17:$C$1026,$A87) -> 292.786 | I87: =SUMIFS('MAIN DATA'!K$17:K$1026,'MAIN DATA'!$C$17:$C$1026,$A87) -> 1.313 | J87: =SUMIFS('MAIN DATA'!L$17:L$1026,'MAIN DATA'!$C$17:$C$1026,$A87) -> 614.518 | K87: =SUMIFS('MAIN DATA'!M$17:M$1026,'MAIN DATA'!$C$17:$C$1026,$A87) -> 0 | L87: =SUMIFS('MAIN DATA'!N$17:N$1026,'MAIN DATA'!$C$17:$C$1026,$A87) -> 0
A88: Q5 | B88: Q | C88: =SUMIFS('MAIN DATA'!E$17:E$1066,'MAIN DATA'!$C$17:$C$1066,$A88) -> 658.8367628 | D88: =SUMIFS('MAIN DATA'!F$17:F$1066,'MAIN DATA'!$C$17:$C$1066,$A88) -> 11.0657253 | E88: =SUMIFS('MAIN DATA'!G$17:G$1066,'MAIN DATA'!$C$17:$C$1066,$A88) -> -19.03135646 | F88: =SUMIFS('MAIN DATA'!H$17:H$1026,'MAIN DATA'!$C$17:$C$1026,$A88) -> 89.285 | G88: =SUMIFS('MAIN DATA'!I$17:I$1026,'MAIN DATA'!$C$17:$C$1026,$A88) -> 282.699 | H88: =SUMIFS('MAIN DATA'!J$17:J$1026,'MAIN DATA'!$C$17:$C$1026,$A88) -> 78.35 | I88: =SUMIFS('MAIN DATA'!K$17:K$1026,'MAIN DATA'!$C$17:$C$1026,$A88) -> 0.221 | J88: =SUMIFS('MAIN DATA'!L$17:L$1026,'MAIN DATA'!$C$17:$C$1026,$A88) -> 149.004 | K88: =SUMIFS('MAIN DATA'!M$17:M$1026,'MAIN DATA'!$C$17:$C$1026,$A88) -> 0 | L88: =SUMIFS('MAIN DATA'!N$17:N$1026,'MAIN DATA'!$C$17:$C$1026,$A88) -> 0
A89: Q6 | B89: Q | C89: =SUMIFS('MAIN DATA'!E$17:E$1066,'MAIN DATA'!$C$17:$C$1066,$A89) -> 326.5873264 | D89: =SUMIFS('MAIN DATA'!F$17:F$1066,'MAIN DATA'!$C$17:$C$1066,$A89) -> 1.679119328 | E89: =SUMIFS('MAIN DATA'!G$17:G$1066,'MAIN DATA'!$C$17:$C$1066,$A89) -> 2.545140853 | F89: =SUMIFS('MAIN DATA'!H$17:H$1026,'MAIN DATA'!$C$17:$C$1026,$A89) -> 22.972 | G89: =SUMIFS('MAIN DATA'!I$17:I$1026,'MAIN DATA'!$C$17:$C$1026,$A89) -> 279.471 | H89: =SUMIFS('MAIN DATA'!J$17:J$1026,'MAIN DATA'!$C$17:$C$1026,$A89) -> 492.638 | I89: =SUMIFS('MAIN DATA'!K$17:K$1026,'MAIN DATA'!$C$17:$C$1026,$A89) -> 0.035 | J89: =SUMIFS('MAIN DATA'!L$17:L$1026,'MAIN DATA'!$C$17:$C$1026,$A89) -> 104.055 | K89: =SUMIFS('MAIN DATA'!M$17:M$1026,'MAIN DATA'!$C$17:$C$1026,$A89) -> 0 | L89: =SUMIFS('MAIN DATA'!N$17:N$1026,'MAIN DATA'!$C$17:$C$1026,$A89) -> 0
A90: Q7 | B90: Q | C90: =SUMIFS('MAIN DATA'!E$17:E$1066,'MAIN DATA'!$C$17:$C$1066,$A90) -> 398.5960277 | D90: =SUMIFS('MAIN DATA'!F$17:F$1066,'MAIN DATA'!$C$17:$C$1066,$A90) -> -10.78291581 | E90: =SUMIFS('MAIN DATA'!G$17:G$1066,'MAIN DATA'!$C$17:$C$1066,$A90) -> -17.99291581 | F90: =SUMIFS('MAIN DATA'!H$17:H$1026,'MAIN DATA'!$C$17:$C$1026,$A90) -> 188.59 | G90: =SUMIFS('MAIN DATA'!I$17:I$1026,'MAIN DATA'!$C$17:$C$1026,$A90) -> 202.149 | H90: =SUMIFS('MAIN DATA'!J$17:J$1026,'MAIN DATA'!$C$17:$C$1026,$A90) -> 217.147 | I90: =SUMIFS('MAIN DATA'!K$17:K$1026,'MAIN DATA'!$C$17:$C$1026,$A90) -> 1.341 | J90: =SUMIFS('MAIN DATA'!L$17:L$1026,'MAIN DATA'!$C$17:$C$1026,$A90) -> 164.721 | K90: =SUMIFS('MAIN DATA'!M$17:M$1026,'MAIN DATA'!$C$17:$C$1026,$A90) -> 0 | L90: =SUMIFS('MAIN DATA'!N$17:N$1026,'MAIN DATA'!$C$17:$C$1026,$A90) -> 0
A91: Q8 | B91: Q | C91: =SUMIFS('MAIN DATA'!E$17:E$1066,'MAIN DATA'!$C$17:$C$1066,$A91) -> 601.2977187 | D91: =SUMIFS('MAIN DATA'!F$17:F$1066,'MAIN DATA'!$C$17:$C$1066,$A91) -> 17.8003799 | E91: =SUMIFS('MAIN DATA'!G$17:G$1066,'MAIN DATA'!$C$17:$C$1066,$A91) -> -5.337356977 | F91: =SUMIFS('MAIN DATA'!H$17:H$1026,'MAIN DATA'!$C$17:$C$1026,$A91) -> 148.801 | G91: =SUMIFS('MAIN DATA'!I$17:I$1026,'MAIN DATA'!$C$17:$C$1026,$A91) -> 376.318 | H91: =SUMIFS('MAIN DATA'!J$17:J$1026,'MAIN DATA'!$C$17:$C$1026,$A91) -> 840.386 | I91: =SUMIFS('MAIN DATA'!K$17:K$1026,'MAIN DATA'!$C$17:$C$1026,$A91) -> 13.719 | J91: =SUMIFS('MAIN DATA'!L$17:L$1026,'MAIN DATA'!$C$17:$C$1026,$A91) -> 228.166 | K91: =SUMIFS('MAIN DATA'!M$17:M$1026,'MAIN DATA'!$C$17:$C$1026,$A91) -> 0 | L91: =SUMIFS('MAIN DATA'!N$17:N$1026,'MAIN DATA'!$C$17:$C$1026,$A91) -> 0
A92: R4 | B92: R | C92: =SUMIFS('MAIN DATA'!E$17:E$1066,'MAIN DATA'!$C$17:$C$1066,$A92) -> 1329.079543 | D92: =SUMIFS('MAIN DATA'!F$17:F$1066,'MAIN DATA'!$C$17:$C$1066,$A92) -> 23.09092725 | E92: =SUMIFS('MAIN DATA'!G$17:G$1066,'MAIN DATA'!$C$17:$C$1066,$A92) -> -23.80714613 | F92: =SUMIFS('MAIN DATA'!H$17:H$1026,'MAIN DATA'!$C$17:$C$1026,$A92) -> 255.396 | G92: =SUMIFS('MAIN DATA'!I$17:I$1026,'MAIN DATA'!$C$17:$C$1026,$A92) -> 456.325 | H92: =SUMIFS('MAIN DATA'!J$17:J$1026,'MAIN DATA'!$C$17:$C$1026,$A92) -> 117.59 | I92: =SUMIFS('MAIN DATA'!K$17:K$1026,'MAIN DATA'!$C$17:$C$1026,$A92) -> 0.697 | J92: =SUMIFS('MAIN DATA'!L$17:L$1026,'MAIN DATA'!$C$17:$C$1026,$A92) -> 362.022 | K92: =SUMIFS('MAIN DATA'!M$17:M$1026,'MAIN DATA'!$C$17:$C$1026,$A92) -> 0 | L92: =SUMIFS('MAIN DATA'!N$17:N$1026,'MAIN DATA'!$C$17:$C$1026,$A92) -> 0
A93: R5 | B93: R | C93: =SUMIFS('MAIN DATA'!E$17:E$1066,'MAIN DATA'!$C$17:$C$1066,$A93) -> 188.1900664 | D93: =SUMIFS('MAIN DATA'!F$17:F$1066,'MAIN DATA'!$C$17:$C$1066,$A93) -> -3.845708647 | E93: =SUMIFS('MAIN DATA'!G$17:G$1066,'MAIN DATA'!$C$17:$C$1066,$A93) -> -9.467075654 | F93: =SUMIFS('MAIN DATA'!H$17:H$1026,'MAIN DATA'!$C$17:$C$1026,$A93) -> 81.922 | G93: =SUMIFS('MAIN DATA'!I$17:I$1026,'MAIN DATA'!$C$17:$C$1026,$A93) -> 222.135 | H93: =SUMIFS('MAIN DATA'!J$17:J$1026,'MAIN DATA'!$C$17:$C$1026,$A93) -> 74.233 | I93: =SUMIFS('MAIN DATA'!K$17:K$1026,'MAIN DATA'!$C$17:$C$1026,$A93) -> 0.395 | J93: =SUMIFS('MAIN DATA'!L$17:L$1026,'MAIN DATA'!$C$17:$C$1026,$A93) -> 57.166 | K93: =SUMIFS('MAIN DATA'!M$17:M$1026,'MAIN DATA'!$C$17:$C$1026,$A93) -> 0 | L93: =SUMIFS('MAIN DATA'!N$17:N$1026,'MAIN DATA'!$C$17:$C$1026,$A93) -> 0
A94: R6 | B94: R | C94: =SUMIFS('MAIN DATA'!E$17:E$1066,'MAIN DATA'!$C$17:$C$1066,$A94) -> 259.1182063 | D94: =SUMIFS('MAIN DATA'!F$17:F$1066,'MAIN DATA'!$C$17:$C$1066,$A94) -> 66.62010406 | E94: =SUMIFS('MAIN DATA'!G$17:G$1066,'MAIN DATA'!$C$17:$C$1066,$A94) -> 52.45446745 | F94: =SUMIFS('MAIN DATA'!H$17:H$1026,'MAIN DATA'!$C$17:$C$1026,$A94) -> 11.513 | G94: =SUMIFS('MAIN DATA'!I$17:I$1026,'MAIN DATA'!$C$17:$C$1026,$A94) -> 299.663 | H94: =SUMIFS('MAIN DATA'!J$17:J$1026,'MAIN DATA'!$C$17:$C$1026,$A94) -> 5.618 | I94: =SUMIFS('MAIN DATA'!K$17:K$1026,'MAIN DATA'!$C$17:$C$1026,$A94) -> 5.612 | J94: =SUMIFS('MAIN DATA'!L$17:L$1026,'MAIN DATA'!$C$17:$C$1026,$A94) -> 70.533 | K94: =SUMIFS('MAIN DATA'!M$17:M$1026,'MAIN DATA'!$C$17:$C$1026,$A94) -> 0 | L94: =SUMIFS('MAIN DATA'!N$17:N$1026,'MAIN DATA'!$C$17:$C$1026,$A94) -> 0
A95: S5 | B95: S | C95: =SUMIFS('MAIN DATA'!E$17:E$1066,'MAIN DATA'!$C$17:$C$1066,$A95) -> 1779.84485 | D95: =SUMIFS('MAIN DATA'!F$17:F$1066,'MAIN DATA'!$C$17:$C$1066,$A95) -> 141.2328634 | E95: =SUMIFS('MAIN DATA'!G$17:G$1066,'MAIN DATA'!$C$17:$C$1066,$A95) -> 59.16785874 | F95: =SUMIFS('MAIN DATA'!H$17:H$1026,'MAIN DATA'!$C$17:$C$1026,$A95) -> 201.313 | G95: =SUMIFS('MAIN DATA'!I$17:I$1026,'MAIN DATA'!$C$17:$C$1026,$A95) -> 985.109 | H95: =SUMIFS('MAIN DATA'!J$17:J$1026,'MAIN DATA'!$C$17:$C$1026,$A95) -> 702.247 | I95: =SUMIFS('MAIN DATA'!K$17:K$1026,'MAIN DATA'!$C$17:$C$1026,$A95) -> 9.494 | J95: =SUMIFS('MAIN DATA'!L$17:L$1026,'MAIN DATA'!$C$17:$C$1026,$A95) -> 376.453 | K95: =SUMIFS('MAIN DATA'!M$17:M$1026,'MAIN DATA'!$C$17:$C$1026,$A95) -> 0 | L95: =SUMIFS('MAIN DATA'!N$17:N$1026,'MAIN DATA'!$C$17:$C$1026,$A95) -> 0
A96: S6 | B96: S | C96: =SUMIFS('MAIN DATA'!E$17:E$1066,'MAIN DATA'!$C$17:$C$1066,$A96) -> 4552.922442 | D96: =SUMIFS('MAIN DATA'!F$17:F$1066,'MAIN DATA'!$C$17:$C$1066,$A96) -> 413.8182567 | E96: =SUMIFS('MAIN DATA'!G$17:G$1066,'MAIN DATA'!$C$17:$C$1066,$A96) -> 204.3256335 | F96: =SUMIFS('MAIN DATA'!H$17:H$1026,'MAIN DATA'!$C$17:$C$1026,$A96) -> 362.671 | G96: =SUMIFS('MAIN DATA'!I$17:I$1026,'MAIN DATA'!$C$17:$C$1026,$A96) -> 936.993 | H96: =SUMIFS('MAIN DATA'!J$17:J$1026,'MAIN DATA'!$C$17:$C$1026,$A96) -> 2001.612 | I96: =SUMIFS('MAIN DATA'!K$17:K$1026,'MAIN DATA'!$C$17:$C$1026,$A96) -> 146.071 | J96: =SUMIFS('MAIN DATA'!L$17:L$1026,'MAIN DATA'!$C$17:$C$1026,$A96) -> 949.132 | K96: =SUMIFS('MAIN DATA'!M$17:M$1026,'MAIN DATA'!$C$17:$C$1026,$A96) -> 0 | L96: =SUMIFS('MAIN DATA'!N$17:N$1026,'MAIN DATA'!$C$17:$C$1026,$A96) -> 0
A97: T1 | B97: T | C97: =SUMIFS('MAIN DATA'!E$17:E$1066,'MAIN DATA'!$C$17:$C$1066,$A97) -> 596.2044176 | D97: =SUMIFS('MAIN DATA'!F$17:F$1066,'MAIN DATA'!$C$17:$C$1066,$A97) -> 8.98598281 | E97: =SUMIFS('MAIN DATA'!G$17:G$1066,'MAIN DATA'!$C$17:$C$1066,$A97) -> -10.39767716 | F97: =SUMIFS('MAIN DATA'!H$17:H$1026,'MAIN DATA'!$C$17:$C$1026,$A97) -> 24.443 | G97: =SUMIFS('MAIN DATA'!I$17:I$1026,'MAIN DATA'!$C$17:$C$1026,$A97) -> 506.129 | H97: =SUMIFS('MAIN DATA'!J$17:J$1026,'MAIN DATA'!$C$17:$C$1026,$A97) -> 317.133 | I97: =SUMIFS('MAIN DATA'!K$17:K$1026,'MAIN DATA'!$C$17:$C$1026,$A97) -> 170.398 | J97: =SUMIFS('MAIN DATA'!L$17:L$1026,'MAIN DATA'!$C$17:$C$1026,$A97) -> 118.55 | K97: =SUMIFS('MAIN DATA'!M$17:M$1026,'MAIN DATA'!$C$17:$C$1026,$A97) -> 0 | L97: =SUMIFS('MAIN DATA'!N$17:N$1026,'MAIN DATA'!$C$17:$C$1026,$A97) -> 0
A98: T2 | B98: T | C98: =SUMIFS('MAIN DATA'!E$17:E$1066,'MAIN DATA'!$C$17:$C$1066,$A98) -> 1138.897629 | D98: =SUMIFS('MAIN DATA'!F$17:F$1066,'MAIN DATA'!$C$17:$C$1066,$A98) -> 127.4392478 | E98: =SUMIFS('MAIN DATA'!G$17:G$1066,'MAIN DATA'!$C$17:$C$1066,$A98) -> 112.352789 | F98: =SUMIFS('MAIN DATA'!H$17:H$1026,'MAIN DATA'!$C$17:$C$1026,$A98) -> 55.494 | G98: =SUMIFS('MAIN DATA'!I$17:I$1026,'MAIN DATA'!$C$17:$C$1026,$A98) -> 477.438 | H98: =SUMIFS('MAIN DATA'!J$17:J$1026,'MAIN DATA'!$C$17:$C$1026,$A98) -> 347.148 | I98: =SUMIFS('MAIN DATA'!K$17:K$1026,'MAIN DATA'!$C$17:$C$1026,$A98) -> 2.983 | J98: =SUMIFS('MAIN DATA'!L$17:L$1026,'MAIN DATA'!$C$17:$C$1026,$A98) -> 145.868 | K98: =SUMIFS('MAIN DATA'!M$17:M$1026,'MAIN DATA'!$C$17:$C$1026,$A98) -> 0 | L98: =SUMIFS('MAIN DATA'!N$17:N$1026,'MAIN DATA'!$C$17:$C$1026,$A98) -> 0
A99: T3 | B99: T | C99: =SUMIFS('MAIN DATA'!E$17:E$1066,'MAIN DATA'!$C$17:$C$1066,$A99) -> 109.330501 | D99: =SUMIFS('MAIN DATA'!F$17:F$1066,'MAIN DATA'!$C$17:$C$1066,$A99) -> 1.742428889 | E99: =SUMIFS('MAIN DATA'!G$17:G$1066,'MAIN DATA'!$C$17:$C$1066,$A99) -> -1.180041327 | F99: =SUMIFS('MAIN DATA'!H$17:H$1026,'MAIN DATA'!$C$17:$C$1026,$A99) -> 3.562 | G99: =SUMIFS('MAIN DATA'!I$17:I$1026,'MAIN DATA'!$C$17:$C$1026,$A99) -> 166.787 | H99: =SUMIFS('MAIN DATA'!J$17:J$1026,'MAIN DATA'!$C$17:$C$1026,$A99) -> 116.728 | I99: =SUMIFS('MAIN DATA'!K$17:K$1026,'MAIN DATA'!$C$17:$C$1026,$A99) -> 51.61 | J99: =SUMIFS('MAIN DATA'!L$17:L$1026,'MAIN DATA'!$C$17:$C$1026,$A99) -> 46.485 | K99: =SUMIFS('MAIN DATA'!M$17:M$1026,'MAIN DATA'!$C$17:$C$1026,$A99) -> 0 | L99: =SUMIFS('MAIN DATA'!N$17:N$1026,'MAIN DATA'!$C$17:$C$1026,$A99) -> 0
A100: T4 | B100: T | C100: =SUMIFS('MAIN DATA'!E$17:E$1066,'MAIN DATA'!$C$17:$C$1066,$A100) -> 688.1652926 | D100: =SUMIFS('MAIN DATA'!F$17:F$1066,'MAIN DATA'!$C$17:$C$1066,$A100) -> -11.49174084 | E100: =SUMIFS('MAIN DATA'!G$17:G$1066,'MAIN DATA'!$C$17:$C$1066,$A100) -> -27.6132621 | F100: =SUMIFS('MAIN DATA'!H$17:H$1026,'MAIN DATA'!$C$17:$C$1026,$A100) -> 119.75 | G100: =SUMIFS('MAIN DATA'!I$17:I$1026,'MAIN DATA'!$C$17:$C$1026,$A100) -> 419.862 | H100: =SUMIFS('MAIN DATA'!J$17:J$1026,'MAIN DATA'!$C$17:$C$1026,$A100) -> 114.93 | I100: =SUMIFS('MAIN DATA'!K$17:K$1026,'MAIN DATA'!$C$17:$C$1026,$A100) -> 44.991 | J100: =SUMIFS('MAIN DATA'!L$17:L$1026,'MAIN DATA'!$C$17:$C$1026,$A100) -> 174.042 | K100: =SUMIFS('MAIN DATA'!M$17:M$1026,'MAIN DATA'!$C$17:$C$1026,$A100) -> 0 | L100: =SUMIFS('MAIN DATA'!N$17:N$1026,'MAIN DATA'!$C$17:$C$1026,$A100) -> 0
A101: T5 | B101: T | C101: =SUMIFS('MAIN DATA'!E$17:E$1066,'MAIN DATA'!$C$17:$C$1066,$A101) -> 174.8553684 | D101: =SUMIFS('MAIN DATA'!F$17:F$1066,'MAIN DATA'!$C$17:$C$1066,$A101) -> 4.805512561 | E101: =SUMIFS('MAIN DATA'!G$17:G$1066,'MAIN DATA'!$C$17:$C$1066,$A101) -> -2.505048312 | F101: =SUMIFS('MAIN DATA'!H$17:H$1026,'MAIN DATA'!$C$17:$C$1026,$A101) -> 8.708 | G101: =SUMIFS('MAIN DATA'!I$17:I$1026,'MAIN DATA'!$C$17:$C$1026,$A101) -> 274.249 | H101: =SUMIFS('MAIN DATA'!J$17:J$1026,'MAIN DATA'!$C$17:$C$1026,$A101) -> 185.59 | I101: =SUMIFS('MAIN DATA'!K$17:K$1026,'MAIN DATA'!$C$17:$C$1026,$A101) -> 35.591 | J101: =SUMIFS('MAIN DATA'!L$17:L$1026,'MAIN DATA'!$C$17:$C$1026,$A101) -> 68.17 | K101: =SUMIFS('MAIN DATA'!M$17:M$1026,'MAIN DATA'!$C$17:$C$1026,$A101) -> 0 | L101: =SUMIFS('MAIN DATA'!N$17:N$1026,'MAIN DATA'!$C$17:$C$1026,$A101) -> 0
A102: T6 | B102: T | C102: =SUMIFS('MAIN DATA'!E$17:E$1066,'MAIN DATA'!$C$17:$C$1066,$A102) -> 0 | D102: =SUMIFS('MAIN DATA'!F$17:F$1066,'MAIN DATA'!$C$17:$C$1066,$A102) -> 0 | E102: =SUMIFS('MAIN DATA'!G$17:G$1066,'MAIN DATA'!$C$17:$C$1066,$A102) -> 0 | F102: =SUMIFS('MAIN DATA'!H$17:H$1026,'MAIN DATA'!$C$17:$C$1026,$A102) -> 0 | G102: =SUMIFS('MAIN DATA'!I$17:I$1026,'MAIN DATA'!$C$17:$C$1026,$A102) -> 0 | H102: =SUMIFS('MAIN DATA'!J$17:J$1026,'MAIN DATA'!$C$17:$C$1026,$A102) -> 0 | I102: =SUMIFS('MAIN DATA'!K$17:K$1026,'MAIN DATA'!$C$17:$C$1026,$A102) -> 0 | J102: =SUMIFS('MAIN DATA'!L$17:L$1026,'MAIN DATA'!$C$17:$C$1026,$A102) -> 0 | K102: =SUMIFS('MAIN DATA'!M$17:M$1026,'MAIN DATA'!$C$17:$C$1026,$A102) -> 0 | L102: =SUMIFS('MAIN DATA'!N$17:N$1026,'MAIN DATA'!$C$17:$C$1026,$A102) -> 0

Sheet Generation ->

Sheet DG
J2: All values given in MW
A3: scenario | B3: tech | C3: year | D3: etys_location | E3: capacity | F3: wintpk | G3: summam | H3: summpm
A4: EE | B4: Hydro | C4: 24 | D4: ALNE_P | E4: 3.8 | F4: 3.23 | G4: 0.65 | H4: 0.91
A5: EE | B5: Hydro | C5: 24 | D5: BROA_P | E5: 1.99 | F5: 1.69 | G5: 0.34 | H5: 0.48
A6: EE | B6: Hydro | C6: 24 | D6: CAFA | E6: 12 | F6: 10.18 | G6: 2.04 | H6: 2.88
A7: EE | B7: Hydro | C7: 24 | D7: CARR_1 | E7: 1.44 | F7: 1.22 | G7: 0.24 | H7: 0.34
A8: EE | B8: Hydro | C8: 24 | D8: CEAN_P | E8: 1.75 | F8: 1.49 | G8: 0.3 | H8: 0.42
A9: EE | B9: Hydro | C9: 24 | D9: CHTE_1 | E9: 3.7 | F9: 3.14 | G9: 0.63 | H9: 0.89
A10: EE | B10: Hydro | C10: 24 | D10: EAST | E10: 15.2 | F10: 12.9 | G10: 2.58 | H10: 3.65
A11: EE | B11: Hydro | C11: 24 | D11: FWIL_P | E11: 13.59 | F11: 11.53 | G11: 2.31 | H11: 3.26
A12: EE | B12: Hydro | C12: 24 | D12: GLLE | E12: 24 | F12: 20.37 | G12: 4.08 | H12: 5.76
A13: EE | B13: Hydro | C13: 24 | D13: GRUB_P | E13: 52.85 | F13: 44.86 | G13: 8.99 | H13: 12.69
A14: EE | B14: Hydro | C14: 24 | D14: G_EXTRA_14 | E14: 0 | F14: 0 | G14: 0 | H14: 0
A15: EE | B15: Hydro | C15: 24 | D15: G_EXTRA_18 | E15: 0 | F15: 0 | G15: 0 | H15: 0
A16: EE | B16: Hydro | C16: 24 | D16: HARK_1 | E16: 9.5 | F16: 8.06 | G16: 1.62 | H16: 2.28
A17: EE | B17: Hydro | C17: 24 | D17: KEOO | E17: 26 | F17: 22.07 | G17: 4.42 | H17: 6.24
A18: EE | B18: Hydro | C18: 24 | D18: KIIN_P | E18: 5.04 | F18: 4.28 | G18: 0.86 | H18: 1.21
A19: EE | B19: Hydro | C19: 24 | D19: KINL_P | E19: 28.97 | F19: 24.59 | G19: 4.93 | H19: 6.95
A20: EE | B20: Hydro | C20: 24 | D20: LAND1 | E20: 2.62 | F20: 2.23 | G20: 0.45 | H20: 0.63
A21: EE | B21: Hydro | C21: 24 | D21: LINM | E21: 17 | F21: 14.43 | G21: 2.89 | H21: 4.08
A22: EE | B22: Hydro | C22: 24 | D22: MELK_1 | E22: 2.54 | F22: 2.15 | G22: 0.43 | H22: 0.61
A23: EE | B23: Hydro | C23: 24 | D23: OSBA_1 | E23: 6 | F23: 5.09 | G23: 1.02 | H23: 1.44
A24: EE | B24: Hydro | C24: 24 | D24: PORA_P | E24: 3.04 | F24: 2.58 | G24: 0.52 | H24: 0.73
A25: EE | B25: Hydro | C25: 24 | D25: RASS_1 | E25: 5.3 | F25: 4.5 | G25: 0.9 | H25: 1.27
A26: EE | B26: Hydro | C26: 24 | D26: SHIN_P | E26: 8.83 | F26: 7.5 | G26: 1.5 | H26: 2.12
A27: EE | B27: Hydro | C27: 24 | D27: STLE | E27: 1.5 | F27: 1.27 | G27: 0.26 | H27: 0.36
A28: EE | B28: Hydro | C28: 24 | D28: SWAN_1 | E28: 7.44 | F28: 6.31 | G28: 1.26 | H28: 1.79
A29: EE | B29: Hydro | C29: 24 | D29: TARL_P | E29: 2 | F29: 1.7 | G29: 0.34 | H29: 0.48
A30: EE | B30: Hydro | C30: 24 | D30: TAYN_P | E30: 20.71 | F30: 17.58 | G30: 3.52 | H30: 4.97
A31: EE | B31: Hydro | C31: 24 | D31: THSO_P | E31: 10.45 | F31: 8.87 | G31: 1.78 | H31: 2.51
A32: EE | B32: Hydro | C32: 24 | D32: TONG | E32: 33 | F32: 28.01 | G32: 5.61 | H32: 7.92
A33: EE | B33: Hydro | C33: 24 | D33: TUMB_P | E33: 3.99 | F33: 3.39 | G33: 0.68 | H33: 0.96
A34: EE | B34: Hydro | C34: 25 | D34: ALNE_P | E34: 4.07 | F34: 3.45 | G34: 0.69 | H34: 0.98
A35: EE | B35: Hydro | C35: 25 | D35: BROA_P | E35: 2.13 | F35: 1.81 | G35: 0.36 | H35: 0.51
A36: EE | B36: Hydro | C36: 25 | D36: CAFA | E36: 11.23 | F36: 9.53 | G36: 1.91 | H36: 2.69
A37: EE | B37: Hydro | C37: 25 | D37: CARR_1 | E37: 1.67 | F37: 1.42 | G37: 0.28 | H37: 0.4
A38: EE | B38: Hydro | C38: 25 | D38: CEAN_P | E38: 1.87 | F38: 1.59 | G38: 0.32 | H38: 0.45
A39: EE | B39: Hydro | C39: 25 | D39: CHTE_1 | E39: 4.3 | F39: 3.65 | G39: 0.73 | H39: 1.03
A40: EE | B40: Hydro | C40: 25 | D40: EAST | E40: 14.22 | F40: 12.07 | G40: 2.42 | H40: 3.41
A41: EE | B41: Hydro | C41: 25 | D41: FWIL_P | E41: 14.55 | F41: 12.35 | G41: 2.47 | H41: 3.49
A42: EE | B42: Hydro | C42: 25 | D42: GLLE | E42: 22.45 | F42: 19.05 | G42: 3.82 | H42: 5.39
A43: EE | B43: Hydro | C43: 25 | D43: GRUB_P | E43: 56.58 | F43: 48.02 | G43: 9.62 | H43: 13.58
A44: EE | B44: Hydro | C44: 25 | D44: G_EXTRA_14 | E44: 0 | F44: 0 | G44: 0 | H44: 0
A45: EE | B45: Hydro | C45: 25 | D45: G_EXTRA_18 | E45: 0 | F45: 0 | G45: 0 | H45: 0
A46: EE | B46: Hydro | C46: 25 | D46: HARK_1 | E46: 11.05 | F46: 9.38 | G46: 1.88 | H46: 2.65
A47: EE | B47: Hydro | C47: 25 | D47: KEOO | E47: 24.32 | F47: 20.64 | G47: 4.13 | H47: 5.84
A48: EE | B48: Hydro | C48: 25 | D48: KIIN_P | E48: 5.39 | F48: 4.58 | G48: 0.92 | H48: 1.29
A49: EE | B49: Hydro | C49: 25 | D49: KINL_P | E49: 31.01 | F49: 26.32 | G49: 5.27 | H49: 7.44
A50: EE | B50: Hydro | C50: 25 | D50: LAND1 | E50: 3.05 | F50: 2.59 | G50: 0.52 | H50: 0.73
A51: EE | B51: Hydro | C51: 25 | D51: LINM | E51: 15.9 | F51: 13.5 | G51: 2.7 | H51: 3.82
A52: EE | B52: Hydro | C52: 25 | D52: MELK_1 | E52: 2.95 | F52: 2.5 | G52: 0.5 | H52: 0.71
A53: EE | B53: Hydro | C53: 25 | D53: OSBA_1 | E53: 6.98 | F53: 5.92 | G53: 1.19 | H53: 1.67
A54: EE | B54: Hydro | C54: 25 | D54: PORA_P | E54: 3.26 | F54: 2.77 | G54: 0.55 | H54: 0.78
A55: EE | B55: Hydro | C55: 25 | D55: RASS_1 | E55: 6.16 | F55: 5.23 | G55: 1.05 | H55: 1.48
A56: EE | B56: Hydro | C56: 25 | D56: SHIN_P | E56: 9.46 | F56: 8.03 | G56: 1.61 | H56: 2.27
A57: EE | B57: Hydro | C57: 25 | D57: STLE | E57: 1.4 | F57: 1.19 | G57: 0.24 | H57: 0.34
A58: EE | B58: Hydro | C58: 25 | D58: SWAN_1 | E58: 8.65 | F58: 7.34 | G58: 1.47 | H58: 2.08
A59: EE | B59: Hydro | C59: 25 | D59: TARL_P | E59: 2.14 | F59: 1.82 | G59: 0.36 | H59: 0.51
A60: EE | B60: Hydro | C60: 25 | D60: TAYN_P | E60: 22.17 | F60: 18.82 | G60: 3.77 | H60: 5.32
A61: EE | B61: Hydro | C61: 25 | D61: THSO_P | E61: 11.19 | F61: 9.49 | G61: 1.9 | H61: 2.68
A62: EE | B62: Hydro | C62: 25 | D62: TONG | E62: 30.87 | F62: 26.2 | G62: 5.25 | H62: 7.41
A63: EE | B63: Hydro | C63: 25 | D63: TUMB_P | E63: 4.28 | F63: 3.63 | G63: 0.73 | H63: 1.03
A64: EE | B64: Hydro | C64: 26 | D64: ALNE_P | E64: 4.2 | F64: 3.57 | G64: 0.71 | H64: 1.01
A65: EE | B65: Hydro | C65: 26 | D65: BROA_P | E65: 2.2 | F65: 1.87 | G65: 0.37 | H65: 0.53
A66: EE | B66: Hydro | C66: 26 | D66: CAFA | E66: 11.59 | F66: 9.84 | G66: 1.97 | H66: 2.78
A67: EE | B67: Hydro | C67: 26 | D67: CARR_1 | E67: 1.72 | F67: 1.46 | G67: 0.29 | H67: 0.41
A68: EE | B68: Hydro | C68: 26 | D68: CEAN_P | E68: 1.93 | F68: 1.64 | G68: 0.33 | H68: 0.46
A69: EE | B69: Hydro | C69: 26 | D69: CHTE_1 | E69: 4.44 | F69: 3.77 | G69: 0.76 | H69: 1.07
A70: EE | B70: Hydro | C70: 26 | D70: EAST | E70: 14.68 | F70: 12.46 | G70: 2.5 | H70: 3.52
A71: EE | B71: Hydro | C71: 26 | D71: FWIL_P | E71: 15.02 | F71: 12.75 | G71: 2.55 | H71: 3.61
A72: EE | B72: Hydro | C72: 26 | D72: GLLE | E72: 23.19 | F72: 19.68 | G72: 3.94 | H72: 5.56
A73: EE | B73: Hydro | C73: 26 | D73: GRUB_P | E73: 58.43 | F73: 49.59 | G73: 9.93 | H73: 14.02
A74: EE | B74: Hydro | C74: 26 | D74: G_EXTRA_14 | E74: 0 | F74: 0 | G74: 0 | H74: 0
A75: EE | B75: Hydro | C75: 26 | D75: G_EXTRA_18 | E75: 0 | F75: 0 | G75: 0 | H75: 0
A76: EE | B76: Hydro | C76: 26 | D76: HARK_1 | E76: 11.41 | F76: 9.68 | G76: 1.94 | H76: 2.74
A77: EE | B77: Hydro | C77: 26 | D77: KEOO | E77: 25.12 | F77: 21.32 | G77: 4.27 | H77: 6.03
A78: EE | B78: Hydro | C78: 26 | D78: KIIN_P | E78: 5.57 | F78: 4.73 | G78: 0.95 | H78: 1.34
A79: EE | B79: Hydro | C79: 26 | D79: KINL_P | E79: 32.03 | F79: 27.18 | G79: 5.45 | H79: 7.69
A80: EE | B80: Hydro | C80: 26 | D80: LAND1 | E80: 3.15 | F80: 2.67 | G80: 0.54 | H80: 0.76
A81: EE | B81: Hydro | C81: 26 | D81: LINM | E81: 16.42 | F81: 13.94 | G81: 2.79 | H81: 3.94
A82: EE | B82: Hydro | C82: 26 | D82: MELK_1 | E82: 3.04 | F82: 2.58 | G82: 0.52 | H82: 0.73
A83: EE | B83: Hydro | C83: 26 | D83: OSBA_1 | E83: 7.21 | F83: 6.12 | G83: 1.23 | H83: 1.73
A84: EE | B84: Hydro | C84: 26 | D84: PORA_P | E84: 3.37 | F84: 2.86 | G84: 0.57 | H84: 0.81
A85: EE | B85: Hydro | C85: 26 | D85: RASS_1 | E85: 6.37 | F85: 5.4 | G85: 1.08 | H85: 1.53
A86: EE | B86: Hydro | C86: 26 | D86: SHIN_P | E86: 9.77 | F86: 8.29 | G86: 1.66 | H86: 2.34
A87: EE | B87: Hydro | C87: 26 | D87: STLE | E87: 1.45 | F87: 1.23 | G87: 0.25 | H87: 0.35
A88: EE | B88: Hydro | C88: 26 | D88: SWAN_1 | E88: 8.94 | F88: 7.58 | G88: 1.52 | H88: 2.14
A89: EE | B89: Hydro | C89: 26 | D89: TARL_P | E89: 2.21 | F89: 1.88 | G89: 0.38 | H89: 0.53
A90: EE | B90: Hydro | C90: 26 | D90: TAYN_P | E90: 22.9 | F90: 19.43 | G90: 3.89 | H90: 5.49
A91: EE | B91: Hydro | C91: 26 | D91: THSO_P | E91: 11.55 | F91: 9.8 | G91: 1.96 | H91: 2.77
A92: EE | B92: Hydro | C92: 26 | D92: TONG | E92: 31.88 | F92: 27.06 | G92: 5.42 | H92: 7.65
A93: EE | B93: Hydro | C93: 26 | D93: TUMB_P | E93: 4.42 | F93: 3.75 | G93: 0.75 | H93: 1.06
A94: EE | B94: Hydro | C94: 27 | D94: ALNE_P | E94: 4.34 | F94: 3.68 | G94: 0.74 | H94: 1.04
A95: EE | B95: Hydro | C95: 27 | D95: BROA_P | E95: 2.27 | F95: 1.93 | G95: 0.39 | H95: 0.55
A96: EE | B96: Hydro | C96: 27 | D96: CAFA | E96: 11.97 | F96: 10.16 | G96: 2.04 | H96: 2.87
A97: EE | B97: Hydro | C97: 27 | D97: CARR_1 | E97: 1.78 | F97: 1.51 | G97: 0.3 | H97: 0.43
A98: EE | B98: Hydro | C98: 27 | D98: CEAN_P | E98: 2 | F98: 1.7 | G98: 0.34 | H98: 0.48
A99: EE | B99: Hydro | C99: 27 | D99: CHTE_1 | E99: 4.59 | F99: 3.89 | G99: 0.78 | H99: 1.1
A100: EE | B100: Hydro | C100: 27 | D100: EAST | E100: 15.16 | F100: 12.87 | G100: 2.58 | H100: 3.64
A101: EE | B101: Hydro | C101: 27 | D101: FWIL_P | E101: 15.51 | F101: 13.17 | G101: 2.64 | H101: 3.72
A102: EE | B102: Hydro | C102: 27 | D102: GLLE | E102: 23.94 | F102: 20.32 | G102: 4.07 | H102: 5.75
A103: EE | B103: Hydro | C103: 27 | D103: GRUB_P | E103: 60.34 | F103: 51.21 | G103: 10.26 | H103: 14.48
A104: EE | B104: Hydro | C104: 27 | D104: G_EXTRA_14 | E104: 0 | F104: 0 | G104: 0 | H104: 0
A105: EE | B105: Hydro | C105: 27 | D105: G_EXTRA_18 | E105: 0 | F105: 0 | G105: 0 | H105: 0
A106: EE | B106: Hydro | C106: 27 | D106: HARK_1 | E106: 11.78 | F106: 10 | G106: 2 | H106: 2.83
A107: EE | B107: Hydro | C107: 27 | D107: KEOO | E107: 25.94 | F107: 22.01 | G107: 4.41 | H107: 6.23
A108: EE | B108: Hydro | C108: 27 | D108: KIIN_P | E108: 5.75 | F108: 4.88 | G108: 0.98 | H108: 1.38
A109: EE | B109: Hydro | C109: 27 | D109: KINL_P | E109: 33.08 | F109: 28.07 | G109: 5.62 | H109: 7.94
A110: EE | B110: Hydro | C110: 27 | D110: LAND1 | E110: 3.25 | F110: 2.76 | G110: 0.55 | H110: 0.78
A111: EE | B111: Hydro | C111: 27 | D111: LINM | E111: 16.96 | F111: 14.39 | G111: 2.88 | H111: 4.07
A112: EE | B112: Hydro | C112: 27 | D112: MELK_1 | E112: 3.14 | F112: 2.67 | G112: 0.53 | H112: 0.75
A113: EE | B113: Hydro | C113: 27 | D113: OSBA_1 | E113: 7.44 | F113: 6.32 | G113: 1.27 | H113: 1.79
A114: EE | B114: Hydro | C114: 27 | D114: PORA_P | E114: 3.48 | F114: 2.95 | G114: 0.59 | H114: 0.83
A115: EE | B115: Hydro | C115: 27 | D115: RASS_1 | E115: 6.57 | F115: 5.58 | G115: 1.12 | H115: 1.58
A116: EE | B116: Hydro | C116: 27 | D116: SHIN_P | E116: 10.09 | F116: 8.56 | G116: 1.71 | H116: 2.42
A117: EE | B117: Hydro | C117: 27 | D117: STLE | E117: 1.5 | F117: 1.27 | G117: 0.25 | H117: 0.36
A118: EE | B118: Hydro | C118: 27 | D118: SWAN_1 | E118: 9.23 | F118: 7.83 | G118: 1.57 | H118: 2.21
A119: EE | B119: Hydro | C119: 27 | D119: TARL_P | E119: 2.28 | F119: 1.94 | G119: 0.39 | H119: 0.55
A120: EE | B120: Hydro | C120: 27 | D120: TAYN_P | E120: 23.64 | F120: 20.07 | G120: 4.02 | H120: 5.67
A121: EE | B121: Hydro | C121: 27 | D121: THSO_P | E121: 11.93 | F121: 10.12 | G121: 2.03 | H121: 2.86
A122: EE | B122: Hydro | C122: 27 | D122: TONG | E122: 32.92 | F122: 27.94 | G122: 5.6 | H122: 7.9
A123: EE | B123: Hydro | C123: 27 | D123: TUMB_P | E123: 4.56 | F123: 3.87 | G123: 0.78 | H123: 1.09
A124: EE | B124: Hydro | C124: 28 | D124: ALNE_P | E124: 4.48 | F124: 3.8 | G124: 0.76 | H124: 1.08
A125: EE | B125: Hydro | C125: 28 | D125: BROA_P | E125: 2.35 | F125: 1.99 | G125: 0.4 | H125: 0.56
A126: EE | B126: Hydro | C126: 28 | D126: CAFA | E126: 12.36 | F126: 10.49 | G126: 2.1 | H126: 2.97
A127: EE | B127: Hydro | C127: 28 | D127: CARR_1 | E127: 1.84 | F127: 1.56 | G127: 0.31 | H127: 0.44
A128: EE | B128: Hydro | C128: 28 | D128: CEAN_P | E128: 2.06 | F128: 1.75 | G128: 0.35 | H128: 0.5
A129: EE | B129: Hydro | C129: 28 | D129: CHTE_1 | E129: 4.74 | F129: 4.02 | G129: 0.81 | H129: 1.14
A130: EE | B130: Hydro | C130: 28 | D130: EAST | E130: 15.66 | F130: 13.29 | G130: 2.66 | H130: 3.76
A131: EE | B131: Hydro | C131: 28 | D131: FWIL_P | E131: 16.02 | F131: 13.6 | G131: 2.72 | H131: 3.84
A132: EE | B132: Hydro | C132: 28 | D132: GLLE | E132: 24.72 | F132: 20.98 | G132: 4.2 | H132: 5.93
A133: EE | B133: Hydro | C133: 28 | D133: GRUB_P | E133: 62.3 | F133: 52.88 | G133: 10.59 | H133: 14.95
A134: EE | B134: Hydro | C134: 28 | D134: G_EXTRA_14 | E134: 3.57 | F134: 3.03 | G134: 0.61 | H134: 0.86
A135: EE | B135: Hydro | C135: 28 | D135: G_EXTRA_18 | E135: 0 | F135: 0 | G135: 0 | H135: 0
A136: EE | B136: Hydro | C136: 28 | D136: HARK_1 | E136: 12.17 | F136: 10.33 | G136: 2.07 | H136: 2.92
A137: EE | B137: Hydro | C137: 28 | D137: KEOO | E137: 26.78 | F137: 22.73 | G137: 4.55 | H137: 6.43
A138: EE | B138: Hydro | C138: 28 | D138: KIIN_P | E138: 5.94 | F138: 5.04 | G138: 1.01 | H138: 1.43
A139: EE | B139: Hydro | C139: 28 | D139: KINL_P | E139: 34.15 | F139: 28.99 | G139: 5.81 | H139: 8.2
A140: EE | B140: Hydro | C140: 28 | D140: LAND1 | E140: 3.36 | F140: 2.85 | G140: 0.57 | H140: 0.81
A141: EE | B141: Hydro | C141: 28 | D141: LINM | E141: 17.51 | F141: 14.86 | G141: 2.98 | H141: 4.2
A142: EE | B142: Hydro | C142: 28 | D142: MELK_1 | E142: 3.25 | F142: 2.76 | G142: 0.55 | H142: 0.78
A143: EE | B143: Hydro | C143: 28 | D143: OSBA_1 | E143: 7.68 | F143: 6.52 | G143: 1.31 | H143: 1.84
A144: EE | B144: Hydro | C144: 28 | D144: PORA_P | E144: 3.59 | F144: 3.05 | G144: 0.61 | H144: 0.86
A145: EE | B145: Hydro | C145: 28 | D145: RASS_1 | E145: 6.79 | F145: 5.76 | G145: 1.15 | H145: 1.63
A146: EE | B146: Hydro | C146: 28 | D146: SHIN_P | E146: 10.41 | F146: 8.84 | G146: 1.77 | H146: 2.5
A147: EE | B147: Hydro | C147: 28 | D147: STLE | E147: 1.55 | F147: 1.31 | G147: 0.26 | H147: 0.37
A148: EE | B148: Hydro | C148: 28 | D148: SWAN_1 | E148: 9.53 | F148: 8.09 | G148: 1.62 | H148: 2.29
A149: EE | B149: Hydro | C149: 28 | D149: TARL_P | E149: 2.36 | F149: 2 | G149: 0.4 | H149: 0.57
A150: EE | B150: Hydro | C150: 28 | D150: TAYN_P | E150: 24.41 | F150: 20.72 | G150: 4.15 | H150: 5.86
A151: EE | B151: Hydro | C151: 28 | D151: THSO_P | E151: 8.75 | F151: 7.42 | G151: 1.49 | H151: 2.1
A152: EE | B152: Hydro | C152: 28 | D152: TONG | E152: 33.99 | F152: 28.85 | G152: 5.78 | H152: 8.16
A153: EE | B153: Hydro | C153: 28 | D153: TUMB_P | E153: 4.71 | F153: 4 | G153: 0.8 | H153: 1.13
A154: EE | B154: Hydro | C154: 29 | D154: ALNE_P | E154: 4.62 | F154: 3.92 | G154: 0.79 | H154: 1.11
A155: EE | B155: Hydro | C155: 29 | D155: BROA_P | E155: 2.42 | F155: 2.06 | G155: 0.41 | H155: 0.58
A156: EE | B156: Hydro | C156: 29 | D156: CAFA | E156: 12.76 | F156: 10.83 | G156: 2.17 | H156: 3.06
A157: EE | B157: Hydro | C157: 29 | D157: CARR_1 | E157: 1.9 | F157: 1.61 | G157: 0.32 | H157: 0.46
A158: EE | B158: Hydro | C158: 29 | D158: CEAN_P | E158: 2.13 | F158: 1.81 | G158: 0.36 | H158: 0.51
A159: EE | B159: Hydro | C159: 29 | D159: CHTE_1 | E159: 4.89 | F159: 4.15 | G159: 0.83 | H159: 1.17
A160: EE | B160: Hydro | C160: 29 | D160: EAST | E160: 16.17 | F160: 13.72 | G160: 2.75 | H160: 3.88
A161: EE | B161: Hydro | C161: 29 | D161: FWIL_P | E161: 16.54 | F161: 14.04 | G161: 2.81 | H161: 3.97
A162: EE | B162: Hydro | C162: 29 | D162: GLLE | E162: 25.53 | F162: 21.66 | G162: 4.34 | H162: 6.13
A163: EE | B163: Hydro | C163: 29 | D163: GRUB_P | E163: 64.33 | F163: 54.59 | G163: 10.94 | H163: 15.44
A164: EE | B164: Hydro | C164: 29 | D164: G_EXTRA_14 | E164: 3.69 | F164: 3.13 | G164: 0.63 | H164: 0.89
A165: EE | B165: Hydro | C165: 29 | D165: G_EXTRA_18 | E165: 0 | F165: 0 | G165: 0 | H165: 0
A166: EE | B166: Hydro | C166: 29 | D166: HARK_1 | E166: 12.56 | F166: 10.66 | G166: 2.14 | H166: 3.01
A167: EE | B167: Hydro | C167: 29 | D167: KEOO | E167: 27.65 | F167: 23.47 | G167: 4.7 | H167: 6.64
A168: EE | B168: Hydro | C168: 29 | D168: KIIN_P | E168: 6.13 | F168: 5.21 | G168: 1.04 | H168: 1.47
A169: EE | B169: Hydro | C169: 29 | D169: KINL_P | E169: 35.26 | F169: 29.93 | G169: 5.99 | H169: 8.46
A170: EE | B170: Hydro | C170: 29 | D170: LAND1 | E170: 3.47 | F170: 2.94 | G170: 0.59 | H170: 0.83
A171: EE | B171: Hydro | C171: 29 | D171: LINM | E171: 18.08 | F171: 15.34 | G171: 3.07 | H171: 4.34
A172: EE | B172: Hydro | C172: 29 | D172: MELK_1 | E172: 3.35 | F172: 2.84 | G172: 0.57 | H172: 0.8
A173: EE | B173: Hydro | C173: 29 | D173: OSBA_1 | E173: 7.93 | F173: 6.73 | G173: 1.35 | H173: 1.9
A174: EE | B174: Hydro | C174: 29 | D174: PORA_P | E174: 3.71 | F174: 3.15 | G174: 0.63 | H174: 0.89
A175: EE | B175: Hydro | C175: 29 | D175: RASS_1 | E175: 7.01 | F175: 5.95 | G175: 1.19 | H175: 1.68
A176: EE | B176: Hydro | C176: 29 | D176: SHIN_P | E176: 10.75 | F176: 9.13 | G176: 1.83 | H176: 2.58
A177: EE | B177: Hydro | C177: 29 | D177: STLE | E177: 1.6 | F177: 1.35 | G177: 0.27 | H177: 0.38
A178: EE | B178: Hydro | C178: 29 | D178: SWAN_1 | E178: 9.84 | F178: 8.35 | G178: 1.67 | H178: 2.36
A179: EE | B179: Hydro | C179: 29 | D179: TARL_P | E179: 2.43 | F179: 2.07 | G179: 0.41 | H179: 0.58
A180: EE | B180: Hydro | C180: 29 | D180: TAYN_P | E180: 25.21 | F180: 21.39 | G180: 4.29 | H180: 6.05
A181: EE | B181: Hydro | C181: 29 | D181: THSO_P | E181: 9.03 | F181: 7.66 | G181: 1.54 | H181: 2.17
A182: EE | B182: Hydro | C182: 29 | D182: TONG | E182: 35.1 | F182: 29.79 | G182: 5.97 | H182: 8.42
A183: EE | B183: Hydro | C183: 29 | D183: TUMB_P | E183: 4.86 | F183: 4.13 | G183: 0.83 | H183: 1.17
A184: EE | B184: Hydro | C184: 30 | D184: ALNE_P | E184: 4.77 | F184: 4.05 | G184: 0.81 | H184: 1.15
A185: EE | B185: Hydro | C185: 30 | D185: BROA_P | E185: 2.5 | F185: 2.12 | G185: 0.43 | H185: 0.6
A186: EE | B186: Hydro | C186: 30 | D186: CAFA | E186: 13.18 | F186: 11.18 | G186: 2.24 | H186: 3.16
A187: EE | B187: Hydro | C187: 30 | D187: CARR_1 | E187: 1.96 | F187: 1.66 | G187: 0.33 | H187: 0.47
A188: EE | B188: Hydro | C188: 30 | D188: CEAN_P | E188: 2.2 | F188: 1.87 | G188: 0.37 | H188: 0.53
A189: EE | B189: Hydro | C189: 30 | D189: CHTE_1 | E189: 5.05 | F189: 4.29 | G189: 0.86 | H189: 1.21
A190: EE | B190: Hydro | C190: 30 | D190: EAST | E190: 16.69 | F190: 14.16 | G190: 2.84 | H190: 4.01
A191: EE | B191: Hydro | C191: 30 | D191: FWIL_P | E191: 17.08 | F191: 14.49 | G191: 2.9 | H191: 4.1
A192: EE | B192: Hydro | C192: 30 | D192: GLLE | E192: 26.35 | F192: 22.37 | G192: 4.48 | H192: 6.32
A193: EE | B193: Hydro | C193: 30 | D193: GRUB_P | E193: 66.41 | F193: 56.36 | G193: 11.29 | H193: 15.94
A194: EE | B194: Hydro | C194: 30 | D194: G_EXTRA_14 | E194: 3.81 | F194: 3.23 | G194: 0.65 | H194: 0.91
A195: EE | B195: Hydro | C195: 30 | D195: G_EXTRA_18 | E195: 4.33 | F195: 3.68 | G195: 0.74 | H195: 1.04
A196: EE | B196: Hydro | C196: 30 | D196: HARK_1 | E196: 12.97 | F196: 11.01 | G196: 2.2 | H196: 3.11
A197: EE | B197: Hydro | C197: 30 | D197: KEOO | E197: 28.55 | F197: 24.23 | G197: 4.85 | H197: 6.85
A198: EE | B198: Hydro | C198: 30 | D198: KIIN_P | E198: 6.33 | F198: 5.37 | G198: 1.08 | H198: 1.52
A199: EE | B199: Hydro | C199: 30 | D199: KINL_P | E199: 36.4 | F199: 30.9 | G199: 6.19 | H199: 8.74
A200: EE | B200: Hydro | C200: 30 | D200: LAND1 | E200: 3.58 | F200: 3.04 | G200: 0.61 | H200: 0.86
A201: EE | B201: Hydro | C201: 30 | D201: LINM | E201: 18.67 | F201: 15.84 | G201: 3.17 | H201: 4.48
... 4299 more rows

Sheet Sub1MW
J2: All values given in MW
A3: scenario | B3: tech | C3: year | D3: etys_location | E3: capacity | F3: wintpk | G3: summam | H3: summpm
A4: EE | B4: Battery | C4: 24 | D4: ABHA1 | E4: 2.697 | F4: 2.341 | G4: 0 | H4: 0
A5: EE | B5: Battery | C5: 24 | D5: ABNE_P | E5: 0.239 | F5: 0.207 | G5: 0 | H5: 0
A6: EE | B6: Battery | C6: 24 | D6: ABTH_1 | E6: 0.54 | F6: 0.469 | G6: 0 | H6: 0
A7: EE | B7: Battery | C7: 24 | D7: ACTL_2 | E7: 0.142 | F7: 0.123 | G7: 0 | H7: 0
A8: EE | B8: Battery | C8: 24 | D8: ACTL_C | E8: 0 | F8: 0 | G8: 0 | H8: 0
A9: EE | B9: Battery | C9: 24 | D9: ALNE_P | E9: 0.089 | F9: 0.077 | G9: 0 | H9: 0
A10: EE | B10: Battery | C10: 24 | D10: ALST_3 | E10: 0 | F10: 0 | G10: 0 | H10: 0
A11: EE | B11: Battery | C11: 24 | D11: ALVE1 | E11: 2.324 | F11: 2.018 | G11: 0 | H11: 0
A12: EE | B12: Battery | C12: 24 | D12: AMEM_1 | E12: 0.26 | F12: 0.226 | G12: 0 | H12: 0
A13: EE | B13: Battery | C13: 24 | D13: ARBR_P | E13: 0.235 | F13: 0.204 | G13: 0 | H13: 0
A14: EE | B14: Battery | C14: 24 | D14: ARDK_P | E14: 0 | F14: 0 | G14: 0 | H14: 0
A15: EE | B15: Battery | C15: 24 | D15: ARMO_P | E15: 0.06 | F15: 0.052 | G15: 0 | H15: 0
A16: EE | B16: Battery | C16: 24 | D16: AXMI1 | E16: 1.337 | F16: 1.16 | G16: 0 | H16: 0
A17: EE | B17: Battery | C17: 24 | D17: AXMI_H | E17: 0 | F17: 0 | G17: 0 | H17: 0
A18: EE | B18: Battery | C18: 24 | D18: AYRR | E18: 0.057 | F18: 0.05 | G18: 0 | H18: 0
A19: EE | B19: Battery | C19: 24 | D19: BAGA | E19: 0.158 | F19: 0.137 | G19: 0 | H19: 0
A20: EE | B20: Battery | C20: 24 | D20: BAIN | E20: 0.046 | F20: 0.04 | G20: 0 | H20: 0
A21: EE | B21: Battery | C21: 24 | D21: BARKR_C | E21: 0.518 | F21: 0.45 | G21: 0 | H21: 0
A22: EE | B22: Battery | C22: 24 | D22: BARKW3 | E22: 0 | F22: 0 | G22: 0 | H22: 0
A23: EE | B23: Battery | C23: 24 | D23: BEAU_P | E23: 0.143 | F23: 0.124 | G23: 0 | H23: 0
A24: EE | B24: Battery | C24: 24 | D24: BEDDT1 | E24: 0.149 | F24: 0.13 | G24: 0 | H24: 0
A25: EE | B25: Battery | C25: 24 | D25: BEDD_1 | E25: 0.635 | F25: 0.552 | G25: 0 | H25: 0
A26: EE | B26: Battery | C26: 24 | D26: BERB_P | E26: 0 | F26: 0 | G26: 0 | H26: 0
A27: EE | B27: Battery | C27: 24 | D27: BERW | E27: 0.199 | F27: 0.173 | G27: 0 | H27: 0
A28: EE | B28: Battery | C28: 24 | D28: BESW_1 | E28: 0.868 | F28: 0.754 | G28: 0 | H28: 0
A29: EE | B29: Battery | C29: 24 | D29: BICF_1 | E29: 0.825 | F29: 0.716 | G29: 0 | H29: 0
A30: EE | B30: Battery | C30: 24 | D30: BIRK_1 | E30: 0.43 | F30: 0.374 | G30: 0 | H30: 0
A31: EE | B31: Battery | C31: 24 | D31: BISW_1 | E31: 3.834 | F31: 3.328 | G31: 0 | H31: 0
A32: EE | B32: Battery | C32: 24 | D32: BLYTB1 | E32: 0.953 | F32: 0.827 | G32: 0 | H32: 0
A33: EE | B33: Battery | C33: 24 | D33: BLYTH132 | E33: 0.273 | F33: 0.237 | G33: 0 | H33: 0
A34: EE | B34: Battery | C34: 24 | D34: BOAG_P | E34: 0.097 | F34: 0.084 | G34: 0 | H34: 0
A35: EE | B35: Battery | C35: 24 | D35: BOLN_1 | E35: 2.529 | F35: 2.195 | G35: 0 | H35: 0
A36: EE | B36: Battery | C36: 24 | D36: BONN | E36: 0.144 | F36: 0.125 | G36: 0 | H36: 0
A37: EE | B37: Battery | C37: 24 | D37: BOTW_1 | E37: 0.611 | F37: 0.53 | G37: 0 | H37: 0
A38: EE | B38: Battery | C38: 24 | D38: BRAC_P | E38: 0.246 | F38: 0.213 | G38: 0 | H38: 0
A39: EE | B39: Battery | C39: 24 | D39: BRAI_1 | E39: 0.924 | F39: 0.802 | G39: 0 | H39: 0
A40: EE | B40: Battery | C40: 24 | D40: BRAP | E40: 0.072 | F40: 0.063 | G40: 0 | H40: 0
A41: EE | B41: Battery | C41: 24 | D41: BRAW_1 | E41: 1.115 | F41: 0.968 | G41: 0 | H41: 0
A42: EE | B42: Battery | C42: 24 | D42: BRED_1 | E42: 0.735 | F42: 0.638 | G42: 0 | H42: 0
A43: EE | B43: Battery | C43: 24 | D43: BRFO_1 | E43: 4.819 | F43: 4.183 | G43: 0 | H43: 0
A44: EE | B44: Battery | C44: 24 | D44: BRID_P | E44: 0.185 | F44: 0.161 | G44: 0 | H44: 0
A45: EE | B45: Battery | C45: 24 | D45: BRIM_1 | E45: 0.454 | F45: 0.394 | G45: 0 | H45: 0
A46: EE | B46: Battery | C46: 24 | D46: BRLE_1 | E46: 1.127 | F46: 0.978 | G46: 0 | H46: 0
A47: EE | B47: Battery | C47: 24 | D47: BROA_P | E47: 0.043 | F47: 0.037 | G47: 0 | H47: 0
A48: EE | B48: Battery | C48: 24 | D48: BROR_P | E48: 0.033 | F48: 0.029 | G48: 0 | H48: 0
A49: EE | B49: Battery | C49: 24 | D49: BROX | E49: 0.088 | F49: 0.076 | G49: 0 | H49: 0
A50: EE | B50: Battery | C50: 24 | D50: BRWA1 | E50: 2.069 | F50: 1.796 | G50: 0 | H50: 0
A51: EE | B51: Battery | C51: 24 | D51: BUMU_P | E51: 0.127 | F51: 0.11 | G51: 0 | H51: 0
A52: EE | B52: Battery | C52: 24 | D52: BURM_1 | E52: 1.681 | F52: 1.46 | G52: 0 | H52: 0
A53: EE | B53: Battery | C53: 24 | D53: BUSH_1 | E53: 0.736 | F53: 0.639 | G53: 0 | H53: 0
A54: EE | B54: Battery | C54: 24 | D54: BUST_1 | E54: 0.537 | F54: 0.466 | G54: 0 | H54: 0
A55: EE | B55: Battery | C55: 24 | D55: CAAD_P | E55: 0.052 | F55: 0.046 | G55: 0 | H55: 0
A56: EE | B56: Battery | C56: 24 | D56: CAFA | E56: 0 | F56: 0 | G56: 0 | H56: 0
A57: EE | B57: Battery | C57: 24 | D57: CAIF_P | E57: 0 | F57: 0 | G57: 0 | H57: 0
A58: EE | B58: Battery | C58: 24 | D58: CAMB_01 | E58: 0 | F58: 0 | G58: 0 | H58: 0
A59: EE | B59: Battery | C59: 24 | D59: CANTN1 | E59: 0.805 | F59: 0.699 | G59: 0 | H59: 0
A60: EE | B60: Battery | C60: 24 | D60: CAPEA1 | E60: 0.504 | F60: 0.438 | G60: 0 | H60: 0
A61: EE | B61: Battery | C61: 24 | D61: CARE_1 | E61: 0.526 | F61: 0.457 | G61: 0 | H61: 0
A62: EE | B62: Battery | C62: 24 | D62: CARR_1 | E62: 0.364 | F62: 0.316 | G62: 0 | H62: 0
A63: EE | B63: Battery | C63: 24 | D63: CASS_P | E63: 0 | F63: 0 | G63: 0 | H63: 0
A64: EE | B64: Battery | C64: 24 | D64: CATY | E64: 0.009 | F64: 0.008 | G64: 0 | H64: 0
A65: EE | B65: Battery | C65: 24 | D65: CBNK_H | E65: 0 | F65: 0 | G65: 0 | H65: 0
A66: EE | B66: Battery | C66: 24 | D66: CEAN_P | E66: 0 | F66: 0 | G66: 0 | H66: 0
A67: EE | B67: Battery | C67: 24 | D67: CELL_1 | E67: 2.224 | F67: 1.93 | G67: 0 | H67: 0
A68: EE | B68: Battery | C68: 24 | D68: CHAP | E68: 0.183 | F68: 0.159 | G68: 0 | H68: 0
A69: EE | B69: Battery | C69: 24 | D69: CHAR_P | E69: 0 | F69: 0 | G69: 0 | H69: 0
A70: EE | B70: Battery | C70: 24 | D70: CHAS | E70: 0.04 | F70: 0.035 | G70: 0 | H70: 0
A71: EE | B71: Battery | C71: 24 | D71: CHIC_1 | E71: 0.549 | F71: 0.477 | G71: 0 | H71: 0
A72: EE | B72: Battery | C72: 24 | D72: CHSI_1 | E72: 0.413 | F72: 0.359 | G72: 0 | H72: 0
A73: EE | B73: Battery | C73: 24 | D73: CHTE_1 | E73: 2.433 | F73: 2.112 | G73: 0 | H73: 0
A74: EE | B74: Battery | C74: 24 | D74: CITR_1 | E74: 0.035 | F74: 0.031 | G74: 0 | H74: 0
A75: EE | B75: Battery | C75: 24 | D75: CLAC_P | E75: 0.008 | F75: 0.007 | G75: 0 | H75: 0
A76: EE | B76: Battery | C76: 24 | D76: CLAY_P | E76: 0.044 | F76: 0.038 | G76: 0 | H76: 0
A77: EE | B77: Battery | C77: 24 | D77: CLT03 | E77: 0 | F77: 0 | G77: 0 | H77: 0
A78: EE | B78: Battery | C78: 24 | D78: CLYM | E78: 0 | F78: 0 | G78: 0 | H78: 0
A79: EE | B79: Battery | C79: 24 | D79: COAT | E79: 0.155 | F79: 0.135 | G79: 0 | H79: 0
A80: EE | B80: Battery | C80: 24 | D80: COCK | E80: 0.186 | F80: 0.161 | G80: 0 | H80: 0
A81: EE | B81: Battery | C81: 24 | D81: CONQA1 | E81: 1.053 | F81: 0.914 | G81: 0 | H81: 0
A82: EE | B82: Battery | C82: 24 | D82: COUA_P | E82: 0.172 | F82: 0.149 | G82: 0 | H82: 0
A83: EE | B83: Battery | C83: 24 | D83: COVE_1 | E83: 1.516 | F83: 1.316 | G83: 0 | H83: 0
A84: EE | B84: Battery | C84: 24 | D84: COWL_1 | E84: 1.899 | F84: 1.649 | G84: 0 | H84: 0
A85: EE | B85: Battery | C85: 24 | D85: COYL | E85: 0.158 | F85: 0.138 | G85: 0 | H85: 0
A86: EE | B86: Battery | C86: 24 | D86: CRAI_P | E86: 0.011 | F86: 0.01 | G86: 0 | H86: 0
A87: EE | B87: Battery | C87: 24 | D87: CREB_1 | E87: 2.192 | F87: 1.903 | G87: 0 | H87: 0
A88: EE | B88: Battery | C88: 24 | D88: CUMB | E88: 0.115 | F88: 0.1 | G88: 0 | H88: 0
A89: EE | B89: Battery | C89: 24 | D89: CUPA | E89: 0.297 | F89: 0.258 | G89: 0 | H89: 0
A90: EE | B90: Battery | C90: 24 | D90: CURR | E90: 0.003 | F90: 0.003 | G90: 0 | H90: 0
A91: EE | B91: Battery | C91: 24 | D91: DALL_P | E91: 0 | F91: 0 | G91: 0 | H91: 0
A92: EE | B92: Battery | C92: 24 | D92: DALM3 | E92: 0.093 | F92: 0.081 | G92: 0 | H92: 0
A93: EE | B93: Battery | C93: 24 | D93: DEVM | E93: 0.052 | F93: 0.046 | G93: 0 | H93: 0
A94: EE | B94: Battery | C94: 24 | D94: DEVO | E94: 0.156 | F94: 0.136 | G94: 0 | H94: 0
A95: EE | B95: Battery | C95: 24 | D95: DEWP | E95: 0.015 | F95: 0.013 | G95: 0 | H95: 0
A96: EE | B96: Battery | C96: 24 | D96: DOUN_P | E96: 0.052 | F96: 0.045 | G96: 0 | H96: 0
A97: EE | B97: Battery | C97: 24 | D97: DRAK_1 | E97: 0.867 | F97: 0.753 | G97: 0 | H97: 0
A98: EE | B98: Battery | C98: 24 | D98: DRAX_1 | E98: 0.215 | F98: 0.186 | G98: 0 | H98: 0
A99: EE | B99: Battery | C99: 24 | D99: DRCR | E99: 0 | F99: 0 | G99: 0 | H99: 0
A100: EE | B100: Battery | C100: 24 | D100: DRUM | E100: 0.057 | F100: 0.049 | G100: 0 | H100: 0
A101: EE | B101: Battery | C101: 24 | D101: DUBE_P | E101: 0 | F101: 0 | G101: 0 | H101: 0
A102: EE | B102: Battery | C102: 24 | D102: DUDH_P | E102: 0.119 | F102: 0.103 | G102: 0 | H102: 0
A103: EE | B103: Battery | C103: 24 | D103: DUGR_P | E103: 0.006 | F103: 0.005 | G103: 0 | H103: 0
A104: EE | B104: Battery | C104: 24 | D104: DUNB_A | E104: 0 | F104: 0 | G104: 0 | H104: 0
A105: EE | B105: Battery | C105: 24 | D105: DUNB_B | E105: 0.135 | F105: 0.117 | G105: 0 | H105: 0
A106: EE | B106: Battery | C106: 24 | D106: DUNF | E106: 0.078 | F106: 0.068 | G106: 0 | H106: 0
A107: EE | B107: Battery | C107: 24 | D107: DUNO_P | E107: 0.068 | F107: 0.059 | G107: 0 | H107: 0
A108: EE | B108: Battery | C108: 24 | D108: DYCE_P | E108: 0.188 | F108: 0.163 | G108: 0 | H108: 0
A109: EE | B109: Battery | C109: 24 | D109: EALI_6 | E109: 0.187 | F109: 0.162 | G109: 0 | H109: 0
A110: EE | B110: Battery | C110: 24 | D110: EASO_1 | E110: 1.44 | F110: 1.25 | G110: 0 | H110: 0
A111: EE | B111: Battery | C111: 24 | D111: EAST | E111: 0 | F111: 0 | G111: 0 | H111: 0
A112: EE | B112: Battery | C112: 24 | D112: ECCL | E112: 0.301 | F112: 0.262 | G112: 0 | H112: 0
A113: EE | B113: Battery | C113: 24 | D113: ECLA_1 | E113: 1.282 | F113: 1.113 | G113: 0 | H113: 0
A114: EE | B114: Battery | C114: 24 | D114: ECLA_H | E114: 0 | F114: 0 | G114: 0 | H114: 0
A115: EE | B115: Battery | C115: 24 | D115: EERH | E115: 0.169 | F115: 0.147 | G115: 0 | H115: 0
A116: EE | B116: Battery | C116: 24 | D116: EKIL | E116: 0.206 | F116: 0.178 | G116: 0 | H116: 0
A117: EE | B117: Battery | C117: 24 | D117: EKIS | E117: 0 | F117: 0 | G117: 0 | H117: 0
A118: EE | B118: Battery | C118: 24 | D118: ELDE | E118: 0.095 | F118: 0.083 | G118: 0 | H118: 0
A119: EE | B119: Battery | C119: 24 | D119: ELGI_P | E119: 0.258 | F119: 0.224 | G119: 0 | H119: 0
A120: EE | B120: Battery | C120: 24 | D120: ELLA_1 | E120: 1.103 | F120: 0.958 | G120: 0 | H120: 0
A121: EE | B121: Battery | C121: 24 | D121: ELST_1 | E121: 0.589 | F121: 0.511 | G121: 0 | H121: 0
A122: EE | B122: Battery | C122: 24 | D122: ENDE_1 | E122: 1.791 | F122: 1.555 | G122: 0 | H122: 0
A123: EE | B123: Battery | C123: 24 | D123: ERSK | E123: 0.036 | F123: 0.031 | G123: 0 | H123: 0
A124: EE | B124: Battery | C124: 24 | D124: EXET1 | E124: 2.438 | F124: 2.116 | G124: 0 | H124: 0
A125: EE | B125: Battery | C125: 24 | D125: FASN_P | E125: 0 | F125: 0 | G125: 0 | H125: 0
A126: EE | B126: Battery | C126: 24 | D126: FAUG_P | E126: 0.017 | F126: 0.015 | G126: 0 | H126: 0
A127: EE | B127: Battery | C127: 24 | D127: FAWL_1 | E127: 0.856 | F127: 0.743 | G127: 0 | H127: 0
A128: EE | B128: Battery | C128: 24 | D128: FECK_6 | E128: 2.157 | F128: 1.872 | G128: 0 | H128: 0
A129: EE | B129: Battery | C129: 24 | D129: FERRA2 | E129: 0.308 | F129: 0.267 | G129: 0 | H129: 0
A130: EE | B130: Battery | C130: 24 | D130: FERRB_M | E130: 1.644 | F130: 1.427 | G130: 0 | H130: 0
A131: EE | B131: Battery | C131: 24 | D131: FETT_P | E131: 0 | F131: 0 | G131: 0 | H131: 0
A132: EE | B132: Battery | C132: 24 | D132: FIDD_P | E132: 0.147 | F132: 0.127 | G132: 0 | H132: 0
A133: EE | B133: Battery | C133: 24 | D133: FIDF_1 | E133: 1.048 | F133: 0.91 | G133: 0 | H133: 0
A134: EE | B134: Battery | C134: 24 | D134: FINN | E134: 0 | F134: 0 | G134: 0 | H134: 0
A135: EE | B135: Battery | C135: 24 | D135: FLEE_1 | E135: 2.544 | F135: 2.208 | G135: 0 | H135: 0
A136: EE | B136: Battery | C136: 24 | D136: FOUR_1 | E136: 0.016 | F136: 0.014 | G136: 0 | H136: 0
A137: EE | B137: Battery | C137: 24 | D137: FRAS_P | E137: 0 | F137: 0 | G137: 0 | H137: 0
A138: EE | B138: Battery | C138: 24 | D138: FROD_1 | E138: 1.113 | F138: 0.966 | G138: 0 | H138: 0
A139: EE | B139: Battery | C139: 24 | D139: FWIL_P | E139: 0.045 | F139: 0.039 | G139: 0 | H139: 0
A140: EE | B140: Battery | C140: 24 | D140: GALA | E140: 0.21 | F140: 0.182 | G140: 0 | H140: 0
A141: EE | B141: Battery | C141: 24 | D141: GIFF | E141: 0.055 | F141: 0.048 | G141: 0 | H141: 0
A142: EE | B142: Battery | C142: 24 | D142: GLEF_P | E142: 0 | F142: 0 | G142: 0 | H142: 0
A143: EE | B143: Battery | C143: 24 | D143: GLLE | E143: 0 | F143: 0 | G143: 0 | H143: 0
A144: EE | B144: Battery | C144: 24 | D144: GLLU | E144: 0.122 | F144: 0.106 | G144: 0 | H144: 0
A145: EE | B145: Battery | C145: 24 | D145: GLNI | E145: 0.067 | F145: 0.058 | G145: 0 | H145: 0
A146: EE | B146: Battery | C146: 24 | D146: GLRO | E146: 0.09 | F146: 0.078 | G146: 0 | H146: 0
A147: EE | B147: Battery | C147: 24 | D147: GORG | E147: 0.018 | F147: 0.015 | G147: 0 | H147: 0
A148: EE | B148: Battery | C148: 24 | D148: GOVA | E148: 0.069 | F148: 0.059 | G148: 0 | H148: 0
A149: EE | B149: Battery | C149: 24 | D149: GREE_H | E149: 0 | F149: 0 | G149: 0 | H149: 0
A150: EE | B150: Battery | C150: 24 | D150: GREN_1 | E150: 3.104 | F150: 2.694 | G150: 0 | H150: 0
A151: EE | B151: Battery | C151: 24 | D151: GRIW_1 | E151: 0.803 | F151: 0.697 | G151: 0 | H151: 0
A152: EE | B152: Battery | C152: 24 | D152: GRUB_P | E152: 0.031 | F152: 0.027 | G152: 0 | H152: 0
A153: EE | B153: Battery | C153: 24 | D153: G_EXTRA_10 | E153: 0.035 | F153: 0.03 | G153: 0 | H153: 0
A154: EE | B154: Battery | C154: 24 | D154: G_EXTRA_11 | E154: 0.035 | F154: 0.03 | G154: 0 | H154: 0
A155: EE | B155: Battery | C155: 24 | D155: G_EXTRA_12 | E155: 0 | F155: 0 | G155: 0 | H155: 0
A156: EE | B156: Battery | C156: 24 | D156: G_EXTRA_14 | E156: 0 | F156: 0 | G156: 0 | H156: 0
A157: EE | B157: Battery | C157: 24 | D157: G_EXTRA_17 | E157: 0 | F157: 0 | G157: 0 | H157: 0
A158: EE | B158: Battery | C158: 24 | D158: G_EXTRA_18 | E158: 0 | F158: 0 | G158: 0 | H158: 0
A159: EE | B159: Battery | C159: 24 | D159: G_EXTRA_19 | E159: 0 | F159: 0 | G159: 0 | H159: 0
A160: EE | B160: Battery | C160: 24 | D160: G_EXTRA_2 | E160: 0.083 | F160: 0.072 | G160: 0 | H160: 0
A161: EE | B161: Battery | C161: 24 | D161: G_EXTRA_20 | E161: 0 | F161: 0 | G161: 0 | H161: 0
A162: EE | B162: Battery | C162: 24 | D162: G_EXTRA_3 | E162: 0.083 | F162: 0.072 | G162: 0 | H162: 0
A163: EE | B163: Battery | C163: 24 | D163: G_EXTRA_4 | E163: 0.075 | F163: 0.065 | G163: 0 | H163: 0
A164: EE | B164: Battery | C164: 24 | D164: G_EXTRA_5 | E164: 0.075 | F164: 0.065 | G164: 0 | H164: 0
A165: EE | B165: Battery | C165: 24 | D165: G_EXTRA_6 | E165: 0.036 | F165: 0.032 | G165: 0 | H165: 0
A166: EE | B166: Battery | C166: 24 | D166: G_EXTRA_7 | E166: 0.036 | F166: 0.032 | G166: 0 | H166: 0
A167: EE | B167: Battery | C167: 24 | D167: G_EXTRA_8 | E167: 0.104 | F167: 0.09 | G167: 0 | H167: 0
A168: EE | B168: Battery | C168: 24 | D168: G_EXTRA_9 | E168: 0.104 | F168: 0.09 | G168: 0 | H168: 0
A169: EE | B169: Battery | C169: 24 | D169: HACK_1 | E169: 0.289 | F169: 0.251 | G169: 0 | H169: 0
A170: EE | B170: Battery | C170: 24 | D170: HACK_6 | E170: 0 | F170: 0 | G170: 0 | H170: 0
A171: EE | B171: Battery | C171: 24 | D171: HAGR | E171: 0.038 | F171: 0.033 | G171: 0 | H171: 0
A172: EE | B172: Battery | C172: 24 | D172: HAMHC1 | E172: 0.946 | F172: 0.821 | G172: 0 | H172: 0
A173: EE | B173: Battery | C173: 24 | D173: HARK_1 | E173: 1.283 | F173: 1.114 | G173: 0 | H173: 0
A174: EE | B174: Battery | C174: 24 | D174: HARM_6 | E174: 0.315 | F174: 0.273 | G174: 0 | H174: 0
A175: EE | B175: Battery | C175: 24 | D175: HAWI | E175: 0.092 | F175: 0.08 | G175: 0 | H175: 0
A176: EE | B176: Battery | C176: 24 | D176: HAWP_6 | E176: 0.741 | F176: 0.644 | G176: 0 | H176: 0
A177: EE | B177: Battery | C177: 24 | D177: HELE | E177: 0.052 | F177: 0.045 | G177: 0 | H177: 0
A178: EE | B178: Battery | C178: 24 | D178: HEYS1 | E178: 0 | F178: 0 | G178: 0 | H178: 0
A179: EE | B179: Battery | C179: 24 | D179: HEYS_1 | E179: 0.373 | F179: 0.323 | G179: 0 | H179: 0
A180: EE | B180: Battery | C180: 24 | D180: HUER | E180: 0 | F180: 0 | G180: 0 | H180: 0
A181: EE | B181: Battery | C181: 24 | D181: HURS_1 | E181: 0.341 | F181: 0.296 | G181: 0 | H181: 0
A182: EE | B182: Battery | C182: 24 | D182: HUTT_1 | E182: 0.725 | F182: 0.629 | G182: 0 | H182: 0
A183: EE | B183: Battery | C183: 24 | D183: IMPK_1 | E183: 0 | F183: 0 | G183: 0 | H183: 0
A184: EE | B184: Battery | C184: 24 | D184: INDQ1 | E184: 3.647 | F184: 3.166 | G184: 0 | H184: 0
A185: EE | B185: Battery | C185: 24 | D185: INKE | E185: 0.121 | F185: 0.105 | G185: 0 | H185: 0
A186: EE | B186: Battery | C186: 24 | D186: INNE_P | E186: 0.167 | F186: 0.145 | G186: 0 | H186: 0
A187: EE | B187: Battery | C187: 24 | D187: IROA1 | E187: 2.423 | F187: 2.103 | G187: 0 | H187: 0
A188: EE | B188: Battery | C188: 24 | D188: IRONB1 | E188: 0.659 | F188: 0.572 | G188: 0 | H188: 0
A189: EE | B189: Battery | C189: 24 | D189: ISLI_1 | E189: 0 | F189: 0 | G189: 0 | H189: 0
A190: EE | B190: Battery | C190: 24 | D190: IVER_1 | E190: 0.589 | F190: 0.511 | G190: 0 | H190: 0
A191: EE | B191: Battery | C191: 24 | D191: IVER_6 | E191: 0.156 | F191: 0.135 | G191: 0 | H191: 0
A192: EE | B192: Battery | C192: 24 | D192: JOHN | E192: 0.085 | F192: 0.074 | G192: 0 | H192: 0
A193: EE | B193: Battery | C193: 24 | D193: JORD_3 | E193: 0.111 | F193: 0.097 | G193: 0 | H193: 0
A194: EE | B194: Battery | C194: 24 | D194: KAIM | E194: 0.356 | F194: 0.309 | G194: 0 | H194: 0
A195: EE | B195: Battery | C195: 24 | D195: KEAD_1 | E195: 2.053 | F195: 1.782 | G195: 0 | H195: 0
A196: EE | B196: Battery | C196: 24 | D196: KEAR_1 | E196: 1.557 | F196: 1.351 | G196: 0 | H196: 0
A197: EE | B197: Battery | C197: 24 | D197: KEAR_3 | E197: 0 | F197: 0 | G197: 0 | H197: 0
A198: EE | B198: Battery | C198: 24 | D198: KEIT_P | E198: 0.186 | F198: 0.161 | G198: 0 | H198: 0
A199: EE | B199: Battery | C199: 24 | D199: KEMS_1 | E199: 0.384 | F199: 0.333 | G199: 0 | H199: 0
A200: EE | B200: Battery | C200: 24 | D200: KEOO | E200: 0 | F200: 0 | G200: 0 | H200: 0
A201: EE | B201: Battery | C201: 24 | D201: KIBY_1 | E201: 0.515 | F201: 0.447 | G201: 0 | H201: 0
... 3752 more rows

Sheet Demand ->

Sheet DxStorage
J2: All values given in MW
A3: scenario | B3: tech | C3: year | D3: location | E3: Capacity | F3: wintpk | G3: summam | H3: summpm
A4: EE | B4: Battery | C4: 24 | D4: ABHA1 | E4: 58.024 | F4: 0 | G4: 0 | H4: -20.368
A5: EE | B5: Battery | C5: 24 | D5: ALVE1 | E5: 56.65 | F5: 0 | G5: 0 | H5: -19.886 | J5: This data is storage demand (taken from the grid) aggregated to each GSP for distributed storage (only individual sites with capacity more than 1MW ie. excluding micro/mbattery). It is zero in Winter Peak as we assume storage is exporting (generation) at this time.
A6: EE | B6: Battery | C6: 24 | D6: AMEM_1 | E6: 112.3 | F6: 0 | G6: 0 | H6: -39.421
A7: EE | B7: Battery | C7: 24 | D7: BERW | E7: 1 | F7: 0 | G7: 0 | H7: -0.351
A8: EE | B8: Battery | C8: 24 | D8: BICF_1 | E8: 6.65 | F8: 0 | G8: 0 | H8: -2.334
A9: EE | B9: Battery | C9: 24 | D9: BISW_1 | E9: 44.793 | F9: 0 | G9: 0 | H9: -15.724
A10: EE | B10: Battery | C10: 24 | D10: BOLN_1 | E10: 44 | F10: 0 | G10: 0 | H10: -15.445
A11: EE | B11: Battery | C11: 24 | D11: BRAC_P | E11: 9.999 | F11: 0 | G11: 0 | H11: -3.51
A12: EE | B12: Battery | C12: 24 | D12: BRAI_1 | E12: 16.7 | F12: 0 | G12: 0 | H12: -5.862
A13: EE | B13: Battery | C13: 24 | D13: BRFO_1 | E13: 207.904 | F13: 0 | G13: 0 | H13: -72.98
A14: EE | B14: Battery | C14: 24 | D14: BRLE_1 | E14: 1 | F14: 0 | G14: 0 | H14: -0.351
A15: EE | B15: Battery | C15: 24 | D15: BROX | E15: 69.9 | F15: 0 | G15: 0 | H15: -24.537
A16: EE | B16: Battery | C16: 24 | D16: BUMU_P | E16: 1.366 | F16: 0 | G16: 0 | H16: -0.48
A17: EE | B17: Battery | C17: 24 | D17: BURM_1 | E17: 49.9 | F17: 0 | G17: 0 | H17: -17.516
A18: EE | B18: Battery | C18: 24 | D18: CAPEA1 | E18: 19.02 | F18: 0 | G18: 0 | H18: -6.677
A19: EE | B19: Battery | C19: 24 | D19: CARR_1 | E19: 12 | F19: 0 | G19: 0 | H19: -4.212
A20: EE | B20: Battery | C20: 24 | D20: CELL_1 | E20: 5.18 | F20: 0 | G20: 0 | H20: -1.818
A21: EE | B21: Battery | C21: 24 | D21: CHTE_1 | E21: 83.802 | F21: 0 | G21: 0 | H21: -29.417
A22: EE | B22: Battery | C22: 24 | D22: COVE_1 | E22: 5.035 | F22: 0 | G22: 0 | H22: -1.767
A23: EE | B23: Battery | C23: 24 | D23: CREB_1 | E23: 99.85 | F23: 0 | G23: 0 | H23: -35.05
A24: EE | B24: Battery | C24: 24 | D24: DRAK_1 | E24: 9.5 | F24: 0 | G24: 0 | H24: -3.335
A25: EE | B25: Battery | C25: 24 | D25: DRCR | E25: 29.9 | F25: 0 | G25: 0 | H25: -10.496
A26: EE | B26: Battery | C26: 24 | D26: ECLA_1 | E26: 77.405 | F26: 0 | G26: 0 | H26: -27.171
A27: EE | B27: Battery | C27: 24 | D27: ELST_1 | E27: 5.058 | F27: 0 | G27: 0 | H27: -1.776
A28: EE | B28: Battery | C28: 24 | D28: ENDE_1 | E28: 56.905 | F28: 0 | G28: 0 | H28: -19.975
A29: EE | B29: Battery | C29: 24 | D29: FECK_6 | E29: 1 | F29: 0 | G29: 0 | H29: -0.351
A30: EE | B30: Battery | C30: 24 | D30: OSBA_1 | E30: 59.15 | F30: 0 | G30: 0 | H30: -20.763
A31: EE | B31: Battery | C31: 24 | D31: FOUR_1 | E31: 20 | F31: 0 | G31: 0 | H31: -7.021
A32: EE | B32: Battery | C32: 24 | D32: FRAS_P | E32: 1 | F32: 0 | G32: 0 | H32: -0.351
A33: EE | B33: Battery | C33: 24 | D33: FROD_1 | E33: 31 | F33: 0 | G33: 0 | H33: -10.882
A34: EE | B34: Battery | C34: 24 | D34: GREN_1 | E34: 21.93 | F34: 0 | G34: 0 | H34: -7.698
A35: EE | B35: Battery | C35: 24 | D35: HARK_1 | E35: 57 | F35: 0 | G35: 0 | H35: -20.009
A36: EE | B36: Battery | C36: 24 | D36: HARM_6 | E36: 1.25 | F36: 0 | G36: 0 | H36: -0.439
A37: EE | B37: Battery | C37: 24 | D37: INDQ1 | E37: 47.5 | F37: 0 | G37: 0 | H37: -16.674
A38: EE | B38: Battery | C38: 24 | D38: IROA1 | E38: 67.437 | F38: 0 | G38: 0 | H38: -23.672
A39: EE | B39: Battery | C39: 24 | D39: IRONB1 | E39: 3.661 | F39: 0 | G39: 0 | H39: -1.285
A40: EE | B40: Battery | C40: 24 | D40: ISLI_1 | E40: 2.85 | F40: 0 | G40: 0 | H40: -1
A41: EE | B41: Battery | C41: 24 | D41: IVER_1 | E41: 20 | F41: 0 | G41: 0 | H41: -7.021
A42: EE | B42: Battery | C42: 24 | D42: KEAR_1 | E42: 23.275 | F42: 0 | G42: 0 | H42: -8.17
A43: EE | B43: Battery | C43: 24 | D43: KEMS_1 | E43: 50.152 | F43: 0 | G43: 0 | H43: -17.605
A44: EE | B44: Battery | C44: 24 | D44: LACK_6 | E44: 6 | F44: 0 | G44: 0 | H44: -2.106
A45: EE | B45: Battery | C45: 24 | D45: LAND1 | E45: 62.899 | F45: 0 | G45: 0 | H45: -22.08
A46: EE | B46: Battery | C46: 24 | D46: LINM | E46: 20 | F46: 0 | G46: 0 | H46: -7.021
A47: EE | B47: Battery | C47: 24 | D47: LISD_1 | E47: 24 | F47: 0 | G47: 0 | H47: -8.425
A48: EE | B48: Battery | C48: 24 | D48: LITT_C | E48: 12.8 | F48: 0 | G48: 0 | H48: -4.493
A49: EE | B49: Battery | C49: 24 | D49: LOVE_1 | E49: 4 | F49: 0 | G49: 0 | H49: -1.404
A50: EE | B50: Battery | C50: 24 | D50: MACC_3 | E50: 19 | F50: 0 | G50: 0 | H50: -6.67
A51: EE | B51: Battery | C51: 24 | D51: MANN_1 | E51: 32.125 | F51: 0 | G51: 0 | H51: -11.277
A52: EE | B52: Battery | C52: 24 | D52: MELK_1 | E52: 82.8 | F52: 0 | G52: 0 | H52: -29.065
A53: EE | B53: Battery | C53: 24 | D53: MITY_1 | E53: 157.345 | F53: 0 | G53: 0 | H53: -55.233
A54: EE | B54: Battery | C54: 24 | D54: NEWX_6 | E54: 1 | F54: 0 | G54: 0 | H54: -0.351
A55: EE | B55: Battery | C55: 24 | D55: NFLE | E55: 80.26 | F55: 0 | G55: 0 | H55: -28.174
A56: EE | B56: Battery | C56: 24 | D56: NINF_1 | E56: 101.48 | F56: 0 | G56: 0 | H56: -35.622
A57: EE | B57: Battery | C57: 24 | D57: NORM_1 | E57: 58.76 | F57: 0 | G57: 0 | H57: -20.626
A58: EE | B58: Battery | C58: 24 | D58: NORT_1 | E58: 5.415 | F58: 0 | G58: 0 | H58: -1.901
A59: EE | B59: Battery | C59: 24 | D59: OCKH_1 | E59: 19.418 | F59: 0 | G59: 0 | H59: -6.816
A60: EE | B60: Battery | C60: 24 | D60: PADIB1 | E60: 8 | F60: 0 | G60: 0 | H60: -2.808
A61: EE | B61: Battery | C61: 24 | D61: PAIS | E61: 1.814 | F61: 0 | G61: 0 | H61: -0.637
A62: EE | B62: Battery | C62: 24 | D62: PEHS_P | E62: 1 | F62: 0 | G62: 0 | H62: -0.351
A63: EE | B63: Battery | C63: 24 | D63: PELH_1 | E63: 109.6 | F63: 0 | G63: 0 | H63: -38.473
A64: EE | B64: Battery | C64: 24 | D64: PENE_1 | E64: 98.83 | F64: 0 | G64: 0 | H64: -34.692
A65: EE | B65: Battery | C65: 24 | D65: PENW_1 | E65: 25.3 | F65: 0 | G65: 0 | H65: -8.881
A66: EE | B66: Battery | C66: 24 | D66: RATS_1 | E66: 21 | F66: 0 | G66: 0 | H66: -7.372
A67: EE | B67: Battery | C67: 24 | D67: RAYL_1 | E67: 118.3 | F67: 0 | G67: 0 | H67: -41.527
A68: EE | B68: Battery | C68: 24 | D68: REDH | E68: 32 | F68: 0 | G68: 0 | H68: -11.233
A69: EE | B69: Battery | C69: 24 | D69: ROCH_1 | E69: 18 | F69: 0 | G69: 0 | H69: -6.319
A70: EE | B70: Battery | C70: 24 | D70: SALT_1 | E70: 3.6 | F70: 0 | G70: 0 | H70: -1.264
A71: EE | B71: Battery | C71: 24 | D71: SPEN_1 | E71: 51.8 | F71: 0 | G71: 0 | H71: -18.183
A72: EE | B72: Battery | C72: 24 | D72: SSHI_3 | E72: 35 | F72: 0 | G72: 0 | H72: -12.286
A73: EE | B73: Battery | C73: 24 | D73: STAL_1 | E73: 16 | F73: 0 | G73: 0 | H73: -5.616
A74: EE | B74: Battery | C74: 24 | D74: STAY_1 | E74: 49.99 | F74: 0 | G74: 0 | H74: -17.548
A75: EE | B75: Battery | C75: 24 | D75: SUND_1 | E75: 117.308 | F75: 0 | G75: 0 | H75: -41.179
A76: EE | B76: Battery | C76: 24 | D76: SWAN_1 | E76: 63.916 | F76: 0 | G76: 0 | H76: -22.436
A77: EE | B77: Battery | C77: 24 | D77: TAUN1 | E77: 29.999 | F77: 0 | G77: 0 | H77: -10.531
A78: EE | B78: Battery | C78: 24 | D78: THSO_P | E78: 3 | F78: 0 | G78: 0 | H78: -1.053
A79: EE | B79: Battery | C79: 24 | D79: THUR_6 | E79: 49.9 | F79: 0 | G79: 0 | H79: -17.516
A80: EE | B80: Battery | C80: 24 | D80: TILBB_1 | E80: 28 | F80: 0 | G80: 0 | H80: -9.829
A81: EE | B81: Battery | C81: 24 | D81: TOTT_1 | E81: 5.2 | F81: 0 | G81: 0 | H81: -1.825
A82: EE | B82: Battery | C82: 24 | D82: TYNE_1 | E82: 17.5 | F82: 0 | G82: 0 | H82: -6.143
A83: EE | B83: Battery | C83: 24 | D83: TYNE_2 | E83: 25 | F83: 0 | G83: 0 | H83: -8.776
A84: EE | B84: Battery | C84: 24 | D84: USKM_1 | E84: 19.999 | F84: 0 | G84: 0 | H84: -7.02
A85: EE | B85: Battery | C85: 24 | D85: WALH_1 | E85: 4.574 | F85: 0 | G85: 0 | H85: -1.606
A86: EE | B86: Battery | C86: 24 | D86: WALP_1 | E86: 91.07 | F86: 0 | G86: 0 | H86: -31.968
A87: EE | B87: Battery | C87: 24 | D87: WARL_1 | E87: 100 | F87: 0 | G87: 0 | H87: -35.103
A88: EE | B88: Battery | C88: 24 | D88: WASF_1 | E88: 69.9 | F88: 0 | G88: 0 | H88: -24.537
A89: EE | B89: Battery | C89: 24 | D89: WBOL_6 | E89: 6.555 | F89: 0 | G89: 0 | H89: -2.301
A90: EE | B90: Battery | C90: 24 | D90: WBUR_1 | E90: 36.6 | F90: 0 | G90: 0 | H90: -12.848
A91: EE | B91: Battery | C91: 24 | D91: WFIE | E91: 25.1 | F91: 0 | G91: 0 | H91: -8.811
A92: EE | B92: Battery | C92: 24 | D92: WHGA_1 | E92: 20 | F92: 0 | G92: 0 | H92: -7.021
A93: EE | B93: Battery | C93: 24 | D93: WIEN_1 | E93: 56.895 | F93: 0 | G93: 0 | H93: -19.972
A94: EE | B94: Battery | C94: 24 | D94: WMEL_1 | E94: 103.2 | F94: 0 | G94: 0 | H94: -36.226
A95: EE | B95: Battery | C95: 24 | D95: WWEY_1 | E95: 6 | F95: 0 | G95: 0 | H95: -2.106
A96: EE | B96: Battery | C96: 25 | D96: ABHA1 | E96: 76.424 | F96: 0 | G96: 0 | H96: -26.827
A97: EE | B97: Battery | C97: 25 | D97: ALVE1 | E97: 71.65 | F97: 0 | G97: 0 | H97: -25.151
A98: EE | B98: Battery | C98: 25 | D98: AMEM_1 | E98: 112.3 | F98: 0 | G98: 0 | H98: -39.421
A99: EE | B99: Battery | C99: 25 | D99: BEDD_1 | E99: 12 | F99: 0 | G99: 0 | H99: -4.212
A100: EE | B100: Battery | C100: 25 | D100: BERW | E100: 1 | F100: 0 | G100: 0 | H100: -0.351
A101: EE | B101: Battery | C101: 25 | D101: BESW_1 | E101: 60 | F101: 0 | G101: 0 | H101: -21.062
A102: EE | B102: Battery | C102: 25 | D102: BICF_1 | E102: 6.65 | F102: 0 | G102: 0 | H102: -2.334
A103: EE | B103: Battery | C103: 25 | D103: BISW_1 | E103: 109.793 | F103: 0 | G103: 0 | H103: -38.541
A104: EE | B104: Battery | C104: 25 | D104: BOLN_1 | E104: 44 | F104: 0 | G104: 0 | H104: -15.445
A105: EE | B105: Battery | C105: 25 | D105: BRAC_P | E105: 9.999 | F105: 0 | G105: 0 | H105: -3.51
A106: EE | B106: Battery | C106: 25 | D106: BRAI_1 | E106: 16.7 | F106: 0 | G106: 0 | H106: -5.862
A107: EE | B107: Battery | C107: 25 | D107: BRFO_1 | E107: 207.904 | F107: 0 | G107: 0 | H107: -72.98
A108: EE | B108: Battery | C108: 25 | D108: BRLE_1 | E108: 1 | F108: 0 | G108: 0 | H108: -0.351
A109: EE | B109: Battery | C109: 25 | D109: BROX | E109: 69.9 | F109: 0 | G109: 0 | H109: -24.537
A110: EE | B110: Battery | C110: 25 | D110: BRWA1 | E110: 6 | F110: 0 | G110: 0 | H110: -2.106
A111: EE | B111: Battery | C111: 25 | D111: BUMU_P | E111: 1.366 | F111: 0 | G111: 0 | H111: -0.48
A112: EE | B112: Battery | C112: 25 | D112: BURM_1 | E112: 49.9 | F112: 0 | G112: 0 | H112: -17.516
A113: EE | B113: Battery | C113: 25 | D113: BUSH_1 | E113: 7 | F113: 0 | G113: 0 | H113: -2.457
A114: EE | B114: Battery | C114: 25 | D114: CAMB_01 | E114: 35 | F114: 0 | G114: 0 | H114: -12.286
A115: EE | B115: Battery | C115: 25 | D115: CAPEA1 | E115: 19.02 | F115: 0 | G115: 0 | H115: -6.677
A116: EE | B116: Battery | C116: 25 | D116: CARR_1 | E116: 12 | F116: 0 | G116: 0 | H116: -4.212
A117: EE | B117: Battery | C117: 25 | D117: CELL_1 | E117: 75.18 | F117: 0 | G117: 0 | H117: -26.39
A118: EE | B118: Battery | C118: 25 | D118: CHSI_1 | E118: 98 | F118: 0 | G118: 0 | H118: -34.401
A119: EE | B119: Battery | C119: 25 | D119: CHTE_1 | E119: 161.802 | F119: 0 | G119: 0 | H119: -56.797
A120: EE | B120: Battery | C120: 25 | D120: COVE_1 | E120: 5.035 | F120: 0 | G120: 0 | H120: -1.767
A121: EE | B121: Battery | C121: 25 | D121: COYL | E121: 29.9 | F121: 0 | G121: 0 | H121: -10.496
A122: EE | B122: Battery | C122: 25 | D122: CREB_1 | E122: 99.85 | F122: 0 | G122: 0 | H122: -35.05
A123: EE | B123: Battery | C123: 25 | D123: DALM3 | E123: 36 | F123: 0 | G123: 0 | H123: -12.637
A124: EE | B124: Battery | C124: 25 | D124: DRAK_1 | E124: 26.5 | F124: 0 | G124: 0 | H124: -9.302
A125: EE | B125: Battery | C125: 25 | D125: DRCR | E125: 29.9 | F125: 0 | G125: 0 | H125: -10.496
A126: EE | B126: Battery | C126: 25 | D126: ECLA_1 | E126: 77.405 | F126: 0 | G126: 0 | H126: -27.171
A127: EE | B127: Battery | C127: 25 | D127: ELST_1 | E127: 5.058 | F127: 0 | G127: 0 | H127: -1.776
A128: EE | B128: Battery | C128: 25 | D128: ENDE_1 | E128: 76.905 | F128: 0 | G128: 0 | H128: -26.996
A129: EE | B129: Battery | C129: 25 | D129: ERSK | E129: 29.9 | F129: 0 | G129: 0 | H129: -10.496
A130: EE | B130: Battery | C130: 25 | D130: FECK_6 | E130: 1 | F130: 0 | G130: 0 | H130: -0.351
A131: EE | B131: Battery | C131: 25 | D131: OSBA_1 | E131: 199.05 | F131: 0 | G131: 0 | H131: -69.872
A132: EE | B132: Battery | C132: 25 | D132: FOUR_1 | E132: 20 | F132: 0 | G132: 0 | H132: -7.021
A133: EE | B133: Battery | C133: 25 | D133: FRAS_P | E133: 1 | F133: 0 | G133: 0 | H133: -0.351
A134: EE | B134: Battery | C134: 25 | D134: FROD_1 | E134: 31 | F134: 0 | G134: 0 | H134: -10.882
A135: EE | B135: Battery | C135: 25 | D135: GREN_1 | E135: 301.93 | F135: 0 | G135: 0 | H135: -105.986
A136: EE | B136: Battery | C136: 25 | D136: GRIW_1 | E136: 49.99 | F136: 0 | G136: 0 | H136: -17.548
A137: EE | B137: Battery | C137: 25 | D137: HARK_1 | E137: 57 | F137: 0 | G137: 0 | H137: -20.009
A138: EE | B138: Battery | C138: 25 | D138: HARM_6 | E138: 1.25 | F138: 0 | G138: 0 | H138: -0.439
A139: EE | B139: Battery | C139: 25 | D139: HAWP_6 | E139: 49.9 | F139: 0 | G139: 0 | H139: -17.516
A140: EE | B140: Battery | C140: 25 | D140: INDQ1 | E140: 49.4 | F140: 0 | G140: 0 | H140: -17.341
A141: EE | B141: Battery | C141: 25 | D141: IROA1 | E141: 388.937 | F141: 0 | G141: 0 | H141: -136.528
A142: EE | B142: Battery | C142: 25 | D142: IRONB1 | E142: 3.661 | F142: 0 | G142: 0 | H142: -1.285
A143: EE | B143: Battery | C143: 25 | D143: ISLI_1 | E143: 2.85 | F143: 0 | G143: 0 | H143: -1
A144: EE | B144: Battery | C144: 25 | D144: IVER_1 | E144: 20 | F144: 0 | G144: 0 | H144: -7.021
A145: EE | B145: Battery | C145: 25 | D145: JORD_3 | E145: 45 | F145: 0 | G145: 0 | H145: -15.796
A146: EE | B146: Battery | C146: 25 | D146: KEAD_1 | E146: 49.9 | F146: 0 | G146: 0 | H146: -17.516
A147: EE | B147: Battery | C147: 25 | D147: KEAR_1 | E147: 88.275 | F147: 0 | G147: 0 | H147: -30.987
A148: EE | B148: Battery | C148: 25 | D148: KEAR_3 | E148: 7 | F148: 0 | G148: 0 | H148: -2.457
A149: EE | B149: Battery | C149: 25 | D149: KEMS_1 | E149: 50.152 | F149: 0 | G149: 0 | H149: -17.605
A150: EE | B150: Battery | C150: 25 | D150: KINO_1 | E150: 5.058 | F150: 0 | G150: 0 | H150: -1.776
A151: EE | B151: Battery | C151: 25 | D151: KITW_1 | E151: 20 | F151: 0 | G151: 0 | H151: -7.021
A152: EE | B152: Battery | C152: 25 | D152: KNAR | E152: 8 | F152: 0 | G152: 0 | H152: -2.808
A153: EE | B153: Battery | C153: 25 | D153: LACK_6 | E153: 6 | F153: 0 | G153: 0 | H153: -2.106
A154: EE | B154: Battery | C154: 25 | D154: LAND1 | E154: 62.899 | F154: 0 | G154: 0 | H154: -22.08
A155: EE | B155: Battery | C155: 25 | D155: LINM | E155: 20 | F155: 0 | G155: 0 | H155: -7.021
A156: EE | B156: Battery | C156: 25 | D156: LISD_1 | E156: 24 | F156: 0 | G156: 0 | H156: -8.425
A157: EE | B157: Battery | C157: 25 | D157: LITT_C | E157: 12.8 | F157: 0 | G157: 0 | H157: -4.493
A158: EE | B158: Battery | C158: 25 | D158: LOVE_1 | E158: 4 | F158: 0 | G158: 0 | H158: -1.404
A159: EE | B159: Battery | C159: 25 | D159: MACC_3 | E159: 19 | F159: 0 | G159: 0 | H159: -6.67
A160: EE | B160: Battery | C160: 25 | D160: MANN_1 | E160: 52.125 | F160: 0 | G160: 0 | H160: -18.297
A161: EE | B161: Battery | C161: 25 | D161: MELK_1 | E161: 167.011 | F161: 0 | G161: 0 | H161: -58.626
A162: EE | B162: Battery | C162: 25 | D162: MITY_1 | E162: 169.345 | F162: 0 | G162: 0 | H162: -59.445
A163: EE | B163: Battery | C163: 25 | D163: NECE_1 | E163: 49.9 | F163: 0 | G163: 0 | H163: -17.516
A164: EE | B164: Battery | C164: 25 | D164: NEWX_6 | E164: 1 | F164: 0 | G164: 0 | H164: -0.351
A165: EE | B165: Battery | C165: 25 | D165: NFLE | E165: 180.26 | F165: 0 | G165: 0 | H165: -63.277
A166: EE | B166: Battery | C166: 25 | D166: NINF_1 | E166: 101.48 | F166: 0 | G166: 0 | H166: -35.622
A167: EE | B167: Battery | C167: 25 | D167: NORM_1 | E167: 58.76 | F167: 0 | G167: 0 | H167: -20.626
A168: EE | B168: Battery | C168: 25 | D168: NORT_1 | E168: 55.415 | F168: 0 | G168: 0 | H168: -19.452
A169: EE | B169: Battery | C169: 25 | D169: OCKH_1 | E169: 19.418 | F169: 0 | G169: 0 | H169: -6.816
A170: EE | B170: Battery | C170: 25 | D170: PADIB1 | E170: 8 | F170: 0 | G170: 0 | H170: -2.808
A171: EE | B171: Battery | C171: 25 | D171: PAIS | E171: 1.814 | F171: 0 | G171: 0 | H171: -0.637
A172: EE | B172: Battery | C172: 25 | D172: PEHS_P | E172: 1 | F172: 0 | G172: 0 | H172: -0.351
A173: EE | B173: Battery | C173: 25 | D173: PELH_1 | E173: 109.6 | F173: 0 | G173: 0 | H173: -38.473
A174: EE | B174: Battery | C174: 25 | D174: PENE_1 | E174: 148.03 | F174: 0 | G174: 0 | H174: -51.963
A175: EE | B175: Battery | C175: 25 | D175: PENW_1 | E175: 45.3 | F175: 0 | G175: 0 | H175: -15.902
A176: EE | B176: Battery | C176: 25 | D176: RASS_1 | E176: 12.5 | F176: 0 | G176: 0 | H176: -4.388
A177: EE | B177: Battery | C177: 25 | D177: RATS_1 | E177: 71 | F177: 0 | G177: 0 | H177: -24.923
A178: EE | B178: Battery | C178: 25 | D178: RAYL_1 | E178: 177.05 | F178: 0 | G178: 0 | H178: -62.15
A179: EE | B179: Battery | C179: 25 | D179: REDH | E179: 32 | F179: 0 | G179: 0 | H179: -11.233
A180: EE | B180: Battery | C180: 25 | D180: ROCH_1 | E180: 18 | F180: 0 | G180: 0 | H180: -6.319
A181: EE | B181: Battery | C181: 25 | D181: SALT_1 | E181: 3.6 | F181: 0 | G181: 0 | H181: -1.264
A182: EE | B182: Battery | C182: 25 | D182: SBAR | E182: 1.3 | F182: 0 | G182: 0 | H182: -0.456
A183: EE | B183: Battery | C183: 25 | D183: SEAB1 | E183: 3.5 | F183: 0 | G183: 0 | H183: -1.229
A184: EE | B184: Battery | C184: 25 | D184: SHRW_1 | E184: 10.625 | F184: 0 | G184: 0 | H184: -3.73
A185: EE | B185: Battery | C185: 25 | D185: SPEN_1 | E185: 101.8 | F185: 0 | G185: 0 | H185: -35.735
A186: EE | B186: Battery | C186: 25 | D186: SSHI_3 | E186: 35 | F186: 0 | G186: 0 | H186: -12.286
A187: EE | B187: Battery | C187: 25 | D187: STAL_1 | E187: 102.5 | F187: 0 | G187: 0 | H187: -35.981
A188: EE | B188: Battery | C188: 25 | D188: STAY_1 | E188: 105.29 | F188: 0 | G188: 0 | H188: -36.96
A189: EE | B189: Battery | C189: 25 | D189: STEN_1 | E189: 49.9 | F189: 0 | G189: 0 | H189: -17.516
A190: EE | B190: Battery | C190: 25 | D190: SUND_1 | E190: 117.308 | F190: 0 | G190: 0 | H190: -41.179
A191: EE | B191: Battery | C191: 25 | D191: SWAN_1 | E191: 63.916 | F191: 0 | G191: 0 | H191: -22.436
A192: EE | B192: Battery | C192: 25 | D192: TAUN1 | E192: 45.399 | F192: 0 | G192: 0 | H192: -15.936
A193: EE | B193: Battery | C193: 25 | D193: THSO_P | E193: 3 | F193: 0 | G193: 0 | H193: -1.053
A194: EE | B194: Battery | C194: 25 | D194: THUR_6 | E194: 99.8 | F194: 0 | G194: 0 | H194: -35.033
A195: EE | B195: Battery | C195: 25 | D195: TILBB_1 | E195: 48 | F195: 0 | G195: 0 | H195: -16.849
A196: EE | B196: Battery | C196: 25 | D196: TOTT_1 | E196: 5.2 | F196: 0 | G196: 0 | H196: -1.825
A197: EE | B197: Battery | C197: 25 | D197: TYNE_1 | E197: 67.5 | F197: 0 | G197: 0 | H197: -23.694
A198: EE | B198: Battery | C198: 25 | D198: TYNE_2 | E198: 25 | F198: 0 | G198: 0 | H198: -8.776
A199: EE | B199: Battery | C199: 25 | D199: USKM_1 | E199: 19.999 | F199: 0 | G199: 0 | H199: -7.02
A200: EE | B200: Battery | C200: 25 | D200: WALH_1 | E200: 44.574 | F200: 0 | G200: 0 | H200: -15.647
A201: EE | B201: Battery | C201: 25 | D201: WALP_1 | E201: 98.57 | F201: 0 | G201: 0 | H201: -34.601
... 4299 more rows

Sheet mBattery
J2: All values given in MW
A3: scenario | B3: tech | C3: year | D3: etys_location | E3: capacity | F3: wintpk | G3: summam | H3: summpm
A4: EE | B4: Battery | C4: 24 | D4: ABHA1 | E4: 2.697 | F4: 0 | G4: 0 | H4: -2.049
A5: EE | B5: Battery | C5: 24 | D5: ABNE_P | E5: 0.239 | F5: 0 | G5: 0 | H5: -0.181 | J5: This data is storage demand (take from the grid) aggregated to each GSP for individual storage sites with capacity below 1MW. It is zero in Winter Peak as we assume storage is exporting (generation) at this time.
A6: EE | B6: Battery | C6: 24 | D6: ABTH_1 | E6: 0.54 | F6: 0 | G6: 0 | H6: -0.41
A7: EE | B7: Battery | C7: 24 | D7: ACTL_2 | E7: 0.142 | F7: 0 | G7: 0 | H7: -0.108
A8: EE | B8: Battery | C8: 24 | D8: ACTL_C | E8: 0 | F8: 0 | G8: 0 | H8: 0
A9: EE | B9: Battery | C9: 24 | D9: ALNE_P | E9: 0.089 | F9: 0 | G9: 0 | H9: -0.067
A10: EE | B10: Battery | C10: 24 | D10: ALST_3 | E10: 0 | F10: 0 | G10: 0 | H10: 0
A11: EE | B11: Battery | C11: 24 | D11: ALVE1 | E11: 2.324 | F11: 0 | G11: 0 | H11: -1.767
A12: EE | B12: Battery | C12: 24 | D12: AMEM_1 | E12: 0.26 | F12: 0 | G12: 0 | H12: -0.198
A13: EE | B13: Battery | C13: 24 | D13: ARBR_P | E13: 0.235 | F13: 0 | G13: 0 | H13: -0.179
A14: EE | B14: Battery | C14: 24 | D14: ARDK_P | E14: 0 | F14: 0 | G14: 0 | H14: 0
A15: EE | B15: Battery | C15: 24 | D15: ARMO_P | E15: 0.06 | F15: 0 | G15: 0 | H15: -0.045
A16: EE | B16: Battery | C16: 24 | D16: AXMI_H | E16: 0 | F16: 0 | G16: 0 | H16: 0
A17: EE | B17: Battery | C17: 24 | D17: AXMI1 | E17: 1.337 | F17: 0 | G17: 0 | H17: -1.016
A18: EE | B18: Battery | C18: 24 | D18: AYRR | E18: 0.057 | F18: 0 | G18: 0 | H18: -0.044
A19: EE | B19: Battery | C19: 24 | D19: BAGA | E19: 0.158 | F19: 0 | G19: 0 | H19: -0.12
A20: EE | B20: Battery | C20: 24 | D20: BAIN | E20: 0.046 | F20: 0 | G20: 0 | H20: -0.035
A21: EE | B21: Battery | C21: 24 | D21: BARKR_C | E21: 0.518 | F21: 0 | G21: 0 | H21: -0.394
A22: EE | B22: Battery | C22: 24 | D22: BARKW3 | E22: 0 | F22: 0 | G22: 0 | H22: 0
A23: EE | B23: Battery | C23: 24 | D23: BEAU_P | E23: 0.143 | F23: 0 | G23: 0 | H23: -0.109
A24: EE | B24: Battery | C24: 24 | D24: BEDD_1 | E24: 0.635 | F24: 0 | G24: 0 | H24: -0.483
A25: EE | B25: Battery | C25: 24 | D25: BEDDT1 | E25: 0.149 | F25: 0 | G25: 0 | H25: -0.113
A26: EE | B26: Battery | C26: 24 | D26: BERB_P | E26: 0 | F26: 0 | G26: 0 | H26: 0
A27: EE | B27: Battery | C27: 24 | D27: BERW | E27: 0.199 | F27: 0 | G27: 0 | H27: -0.151
A28: EE | B28: Battery | C28: 24 | D28: BESW_1 | E28: 0.868 | F28: 0 | G28: 0 | H28: -0.66
A29: EE | B29: Battery | C29: 24 | D29: BICF_1 | E29: 0.825 | F29: 0 | G29: 0 | H29: -0.627
A30: EE | B30: Battery | C30: 24 | D30: BIRK_1 | E30: 0.43 | F30: 0 | G30: 0 | H30: -0.327
A31: EE | B31: Battery | C31: 24 | D31: BISW_1 | E31: 3.834 | F31: 0 | G31: 0 | H31: -2.914
A32: EE | B32: Battery | C32: 24 | D32: BLYTB1 | E32: 0.953 | F32: 0 | G32: 0 | H32: -0.724
A33: EE | B33: Battery | C33: 24 | D33: BLYTH132 | E33: 0.273 | F33: 0 | G33: 0 | H33: -0.207
A34: EE | B34: Battery | C34: 24 | D34: BOAG_P | E34: 0.097 | F34: 0 | G34: 0 | H34: -0.074
A35: EE | B35: Battery | C35: 24 | D35: BOLN_1 | E35: 2.529 | F35: 0 | G35: 0 | H35: -1.922
A36: EE | B36: Battery | C36: 24 | D36: BONN | E36: 0.144 | F36: 0 | G36: 0 | H36: -0.11
A37: EE | B37: Battery | C37: 24 | D37: BOTW_1 | E37: 0.611 | F37: 0 | G37: 0 | H37: -0.464
A38: EE | B38: Battery | C38: 24 | D38: BRAC_P | E38: 0.246 | F38: 0 | G38: 0 | H38: -0.187
A39: EE | B39: Battery | C39: 24 | D39: BRAI_1 | E39: 0.924 | F39: 0 | G39: 0 | H39: -0.702
A40: EE | B40: Battery | C40: 24 | D40: BRAP | E40: 0.072 | F40: 0 | G40: 0 | H40: -0.055
A41: EE | B41: Battery | C41: 24 | D41: BRAW_1 | E41: 1.115 | F41: 0 | G41: 0 | H41: -0.848
A42: EE | B42: Battery | C42: 24 | D42: BRED_1 | E42: 0.735 | F42: 0 | G42: 0 | H42: -0.559
A43: EE | B43: Battery | C43: 24 | D43: BRFO_1 | E43: 4.819 | F43: 0 | G43: 0 | H43: -3.663
A44: EE | B44: Battery | C44: 24 | D44: BRID_P | E44: 0.185 | F44: 0 | G44: 0 | H44: -0.141
A45: EE | B45: Battery | C45: 24 | D45: BRIM_1 | E45: 0.454 | F45: 0 | G45: 0 | H45: -0.345
A46: EE | B46: Battery | C46: 24 | D46: BRLE_1 | E46: 1.127 | F46: 0 | G46: 0 | H46: -0.856
A47: EE | B47: Battery | C47: 24 | D47: BROA_P | E47: 0.043 | F47: 0 | G47: 0 | H47: -0.033
A48: EE | B48: Battery | C48: 24 | D48: BROR_P | E48: 0.033 | F48: 0 | G48: 0 | H48: -0.025
A49: EE | B49: Battery | C49: 24 | D49: BROX | E49: 0.088 | F49: 0 | G49: 0 | H49: -0.067
A50: EE | B50: Battery | C50: 24 | D50: BRWA1 | E50: 2.069 | F50: 0 | G50: 0 | H50: -1.573
A51: EE | B51: Battery | C51: 24 | D51: BUMU_P | E51: 0.127 | F51: 0 | G51: 0 | H51: -0.096
A52: EE | B52: Battery | C52: 24 | D52: BURM_1 | E52: 1.681 | F52: 0 | G52: 0 | H52: -1.278
A53: EE | B53: Battery | C53: 24 | D53: BUSH_1 | E53: 0.736 | F53: 0 | G53: 0 | H53: -0.559
A54: EE | B54: Battery | C54: 24 | D54: BUST_1 | E54: 0.537 | F54: 0 | G54: 0 | H54: -0.408
A55: EE | B55: Battery | C55: 24 | D55: CAAD_P | E55: 0.052 | F55: 0 | G55: 0 | H55: -0.04
A56: EE | B56: Battery | C56: 24 | D56: CAFA | E56: 0 | F56: 0 | G56: 0 | H56: 0
A57: EE | B57: Battery | C57: 24 | D57: CAIF_P | E57: 0 | F57: 0 | G57: 0 | H57: 0
A58: EE | B58: Battery | C58: 24 | D58: CAMB_01 | E58: 0 | F58: 0 | G58: 0 | H58: 0
A59: EE | B59: Battery | C59: 24 | D59: CANTN1 | E59: 0.805 | F59: 0 | G59: 0 | H59: -0.612
A60: EE | B60: Battery | C60: 24 | D60: CAPEA1 | E60: 0.504 | F60: 0 | G60: 0 | H60: -0.383
A61: EE | B61: Battery | C61: 24 | D61: CARE_1 | E61: 0.526 | F61: 0 | G61: 0 | H61: -0.4
A62: EE | B62: Battery | C62: 24 | D62: CARR_1 | E62: 0.364 | F62: 0 | G62: 0 | H62: -0.276
A63: EE | B63: Battery | C63: 24 | D63: CASS_P | E63: 0 | F63: 0 | G63: 0 | H63: 0
A64: EE | B64: Battery | C64: 24 | D64: CATY | E64: 0.009 | F64: 0 | G64: 0 | H64: -0.007
A65: EE | B65: Battery | C65: 24 | D65: CBNK_H | E65: 0 | F65: 0 | G65: 0 | H65: 0
A66: EE | B66: Battery | C66: 24 | D66: CEAN_P | E66: 0 | F66: 0 | G66: 0 | H66: 0
A67: EE | B67: Battery | C67: 24 | D67: CELL_1 | E67: 2.224 | F67: 0 | G67: 0 | H67: -1.69
A68: EE | B68: Battery | C68: 24 | D68: CHAP | E68: 0.183 | F68: 0 | G68: 0 | H68: -0.139
A69: EE | B69: Battery | C69: 24 | D69: CHAR_P | E69: 0 | F69: 0 | G69: 0 | H69: 0
A70: EE | B70: Battery | C70: 24 | D70: CHAS | E70: 0.04 | F70: 0 | G70: 0 | H70: -0.03
A71: EE | B71: Battery | C71: 24 | D71: CHIC_1 | E71: 0.549 | F71: 0 | G71: 0 | H71: -0.418
A72: EE | B72: Battery | C72: 24 | D72: CHSI_1 | E72: 0.413 | F72: 0 | G72: 0 | H72: -0.314
A73: EE | B73: Battery | C73: 24 | D73: CHTE_1 | E73: 2.433 | F73: 0 | G73: 0 | H73: -1.849
A74: EE | B74: Battery | C74: 24 | D74: CITR_1 | E74: 0.035 | F74: 0 | G74: 0 | H74: -0.027
A75: EE | B75: Battery | C75: 24 | D75: CLAC_P | E75: 0.008 | F75: 0 | G75: 0 | H75: -0.006
A76: EE | B76: Battery | C76: 24 | D76: CLAY_P | E76: 0.044 | F76: 0 | G76: 0 | H76: -0.033
A77: EE | B77: Battery | C77: 24 | D77: CLT03 | E77: 0 | F77: 0 | G77: 0 | H77: 0
A78: EE | B78: Battery | C78: 24 | D78: CLYM | E78: 0 | F78: 0 | G78: 0 | H78: 0
A79: EE | B79: Battery | C79: 24 | D79: COAT | E79: 0.155 | F79: 0 | G79: 0 | H79: -0.118
A80: EE | B80: Battery | C80: 24 | D80: COCK | E80: 0.186 | F80: 0 | G80: 0 | H80: -0.141
A81: EE | B81: Battery | C81: 24 | D81: CONQA1 | E81: 1.053 | F81: 0 | G81: 0 | H81: -0.8
A82: EE | B82: Battery | C82: 24 | D82: COUA_P | E82: 0.172 | F82: 0 | G82: 0 | H82: -0.13
A83: EE | B83: Battery | C83: 24 | D83: COVE_1 | E83: 1.516 | F83: 0 | G83: 0 | H83: -1.152
A84: EE | B84: Battery | C84: 24 | D84: COWL_1 | E84: 1.899 | F84: 0 | G84: 0 | H84: -1.443
A85: EE | B85: Battery | C85: 24 | D85: COYL | E85: 0.158 | F85: 0 | G85: 0 | H85: -0.12
A86: EE | B86: Battery | C86: 24 | D86: CRAI_P | E86: 0.011 | F86: 0 | G86: 0 | H86: -0.009
A87: EE | B87: Battery | C87: 24 | D87: CREB_1 | E87: 2.192 | F87: 0 | G87: 0 | H87: -1.666
A88: EE | B88: Battery | C88: 24 | D88: CUMB | E88: 0.115 | F88: 0 | G88: 0 | H88: -0.088
A89: EE | B89: Battery | C89: 24 | D89: CUPA | E89: 0.297 | F89: 0 | G89: 0 | H89: -0.226
A90: EE | B90: Battery | C90: 24 | D90: CURR | E90: 0.003 | F90: 0 | G90: 0 | H90: -0.002
A91: EE | B91: Battery | C91: 24 | D91: DALL_P | E91: 0 | F91: 0 | G91: 0 | H91: 0
A92: EE | B92: Battery | C92: 24 | D92: DALM3 | E92: 0.093 | F92: 0 | G92: 0 | H92: -0.071
A93: EE | B93: Battery | C93: 24 | D93: DEVM | E93: 0.052 | F93: 0 | G93: 0 | H93: -0.04
A94: EE | B94: Battery | C94: 24 | D94: DEVO | E94: 0.156 | F94: 0 | G94: 0 | H94: -0.119
A95: EE | B95: Battery | C95: 24 | D95: DEWP | E95: 0.015 | F95: 0 | G95: 0 | H95: -0.012
A96: EE | B96: Battery | C96: 24 | D96: DOUN_P | E96: 0.052 | F96: 0 | G96: 0 | H96: -0.04
A97: EE | B97: Battery | C97: 24 | D97: DRAK_1 | E97: 0.867 | F97: 0 | G97: 0 | H97: -0.659
A98: EE | B98: Battery | C98: 24 | D98: DRAX_1 | E98: 0.215 | F98: 0 | G98: 0 | H98: -0.163
A99: EE | B99: Battery | C99: 24 | D99: DRCR | E99: 0 | F99: 0 | G99: 0 | H99: 0
A100: EE | B100: Battery | C100: 24 | D100: DRUM | E100: 0.057 | F100: 0 | G100: 0 | H100: -0.043
A101: EE | B101: Battery | C101: 24 | D101: DUBE_P | E101: 0 | F101: 0 | G101: 0 | H101: 0
A102: EE | B102: Battery | C102: 24 | D102: DUDH_P | E102: 0.119 | F102: 0 | G102: 0 | H102: -0.09
A103: EE | B103: Battery | C103: 24 | D103: DUGR_P | E103: 0.006 | F103: 0 | G103: 0 | H103: -0.005
A104: EE | B104: Battery | C104: 24 | D104: DUNB_A | E104: 0 | F104: 0 | G104: 0 | H104: 0
A105: EE | B105: Battery | C105: 24 | D105: DUNB_B | E105: 0.135 | F105: 0 | G105: 0 | H105: -0.103
A106: EE | B106: Battery | C106: 24 | D106: DUNF | E106: 0.078 | F106: 0 | G106: 0 | H106: -0.06
A107: EE | B107: Battery | C107: 24 | D107: DUNO_P | E107: 0.068 | F107: 0 | G107: 0 | H107: -0.051
A108: EE | B108: Battery | C108: 24 | D108: DYCE_P | E108: 0.188 | F108: 0 | G108: 0 | H108: -0.143
A109: EE | B109: Battery | C109: 24 | D109: EALI_6 | E109: 0.187 | F109: 0 | G109: 0 | H109: -0.142
A110: EE | B110: Battery | C110: 24 | D110: EASO_1 | E110: 1.44 | F110: 0 | G110: 0 | H110: -1.094
A111: EE | B111: Battery | C111: 24 | D111: EAST | E111: 0 | F111: 0 | G111: 0 | H111: 0
A112: EE | B112: Battery | C112: 24 | D112: ECCL | E112: 0.301 | F112: 0 | G112: 0 | H112: -0.229
A113: EE | B113: Battery | C113: 24 | D113: ECLA_1 | E113: 1.282 | F113: 0 | G113: 0 | H113: -0.975
A114: EE | B114: Battery | C114: 24 | D114: ECLA_H | E114: 0 | F114: 0 | G114: 0 | H114: 0
A115: EE | B115: Battery | C115: 24 | D115: EERH | E115: 0.169 | F115: 0 | G115: 0 | H115: -0.128
A116: EE | B116: Battery | C116: 24 | D116: EKIL | E116: 0.206 | F116: 0 | G116: 0 | H116: -0.156
A117: EE | B117: Battery | C117: 24 | D117: EKIS | E117: 0 | F117: 0 | G117: 0 | H117: 0
A118: EE | B118: Battery | C118: 24 | D118: ELDE | E118: 0.095 | F118: 0 | G118: 0 | H118: -0.072
A119: EE | B119: Battery | C119: 24 | D119: ELGI_P | E119: 0.258 | F119: 0 | G119: 0 | H119: -0.196
A120: EE | B120: Battery | C120: 24 | D120: ELLA_1 | E120: 1.103 | F120: 0 | G120: 0 | H120: -0.838
A121: EE | B121: Battery | C121: 24 | D121: ELST_1 | E121: 0.589 | F121: 0 | G121: 0 | H121: -0.447
A122: EE | B122: Battery | C122: 24 | D122: ENDE_1 | E122: 1.791 | F122: 0 | G122: 0 | H122: -1.361
A123: EE | B123: Battery | C123: 24 | D123: ERSK | E123: 0.036 | F123: 0 | G123: 0 | H123: -0.028
A124: EE | B124: Battery | C124: 24 | D124: EXET1 | E124: 2.438 | F124: 0 | G124: 0 | H124: -1.853
A125: EE | B125: Battery | C125: 24 | D125: FASN_P | E125: 0 | F125: 0 | G125: 0 | H125: 0
A126: EE | B126: Battery | C126: 24 | D126: FAUG_P | E126: 0.017 | F126: 0 | G126: 0 | H126: -0.013
A127: EE | B127: Battery | C127: 24 | D127: FAWL_1 | E127: 0.856 | F127: 0 | G127: 0 | H127: -0.65
A128: EE | B128: Battery | C128: 24 | D128: FECK_6 | E128: 2.157 | F128: 0 | G128: 0 | H128: -1.639
A129: EE | B129: Battery | C129: 24 | D129: FERRA2 | E129: 0.308 | F129: 0 | G129: 0 | H129: -0.234
A130: EE | B130: Battery | C130: 24 | D130: FERRB_M | E130: 1.644 | F130: 0 | G130: 0 | H130: -1.25
A131: EE | B131: Battery | C131: 24 | D131: FETT_P | E131: 0 | F131: 0 | G131: 0 | H131: 0
A132: EE | B132: Battery | C132: 24 | D132: FIDD_P | E132: 0.147 | F132: 0 | G132: 0 | H132: -0.111
A133: EE | B133: Battery | C133: 24 | D133: FIDF_1 | E133: 1.048 | F133: 0 | G133: 0 | H133: -0.797
A134: EE | B134: Battery | C134: 24 | D134: FINN | E134: 0 | F134: 0 | G134: 0 | H134: 0
A135: EE | B135: Battery | C135: 24 | D135: FLEE_1 | E135: 2.544 | F135: 0 | G135: 0 | H135: -1.933
A136: EE | B136: Battery | C136: 24 | D136: FOUR_1 | E136: 0.016 | F136: 0 | G136: 0 | H136: -0.012
A137: EE | B137: Battery | C137: 24 | D137: FRAS_P | E137: 0 | F137: 0 | G137: 0 | H137: 0
A138: EE | B138: Battery | C138: 24 | D138: FROD_1 | E138: 1.113 | F138: 0 | G138: 0 | H138: -0.846
A139: EE | B139: Battery | C139: 24 | D139: FWIL_P | E139: 0.045 | F139: 0 | G139: 0 | H139: -0.034
A140: EE | B140: Battery | C140: 24 | D140: G_EXTRA_10 | E140: 0.035 | F140: 0 | G140: 0 | H140: -0.026
A141: EE | B141: Battery | C141: 24 | D141: G_EXTRA_11 | E141: 0.035 | F141: 0 | G141: 0 | H141: -0.026
A142: EE | B142: Battery | C142: 24 | D142: G_EXTRA_12 | E142: 0 | F142: 0 | G142: 0 | H142: 0
A143: EE | B143: Battery | C143: 24 | D143: G_EXTRA_14 | E143: 0 | F143: 0 | G143: 0 | H143: 0
A144: EE | B144: Battery | C144: 24 | D144: G_EXTRA_17 | E144: 0 | F144: 0 | G144: 0 | H144: 0
A145: EE | B145: Battery | C145: 24 | D145: G_EXTRA_18 | E145: 0 | F145: 0 | G145: 0 | H145: 0
A146: EE | B146: Battery | C146: 24 | D146: G_EXTRA_19 | E146: 0 | F146: 0 | G146: 0 | H146: 0
A147: EE | B147: Battery | C147: 24 | D147: G_EXTRA_2 | E147: 0.083 | F147: 0 | G147: 0 | H147: -0.063
A148: EE | B148: Battery | C148: 24 | D148: G_EXTRA_20 | E148: 0 | F148: 0 | G148: 0 | H148: 0
A149: EE | B149: Battery | C149: 24 | D149: G_EXTRA_3 | E149: 0.083 | F149: 0 | G149: 0 | H149: -0.063
A150: EE | B150: Battery | C150: 24 | D150: G_EXTRA_4 | E150: 0.075 | F150: 0 | G150: 0 | H150: -0.057
A151: EE | B151: Battery | C151: 24 | D151: G_EXTRA_5 | E151: 0.075 | F151: 0 | G151: 0 | H151: -0.057
A152: EE | B152: Battery | C152: 24 | D152: G_EXTRA_6 | E152: 0.036 | F152: 0 | G152: 0 | H152: -0.028
A153: EE | B153: Battery | C153: 24 | D153: G_EXTRA_7 | E153: 0.036 | F153: 0 | G153: 0 | H153: -0.028
A154: EE | B154: Battery | C154: 24 | D154: G_EXTRA_8 | E154: 0.104 | F154: 0 | G154: 0 | H154: -0.079
A155: EE | B155: Battery | C155: 24 | D155: G_EXTRA_9 | E155: 0.104 | F155: 0 | G155: 0 | H155: -0.079
A156: EE | B156: Battery | C156: 24 | D156: GALA | E156: 0.21 | F156: 0 | G156: 0 | H156: -0.16
A157: EE | B157: Battery | C157: 24 | D157: GIFF | E157: 0.055 | F157: 0 | G157: 0 | H157: -0.042
A158: EE | B158: Battery | C158: 24 | D158: GLEF_P | E158: 0 | F158: 0 | G158: 0 | H158: 0
A159: EE | B159: Battery | C159: 24 | D159: GLLE | E159: 0 | F159: 0 | G159: 0 | H159: 0
A160: EE | B160: Battery | C160: 24 | D160: GLLU | E160: 0.122 | F160: 0 | G160: 0 | H160: -0.093
A161: EE | B161: Battery | C161: 24 | D161: GLNI | E161: 0.067 | F161: 0 | G161: 0 | H161: -0.051
A162: EE | B162: Battery | C162: 24 | D162: GLRO | E162: 0.09 | F162: 0 | G162: 0 | H162: -0.068
A163: EE | B163: Battery | C163: 24 | D163: GORG | E163: 0.018 | F163: 0 | G163: 0 | H163: -0.013
A164: EE | B164: Battery | C164: 24 | D164: GOVA | E164: 0.069 | F164: 0 | G164: 0 | H164: -0.052
A165: EE | B165: Battery | C165: 24 | D165: GREE_H | E165: 0 | F165: 0 | G165: 0 | H165: 0
A166: EE | B166: Battery | C166: 24 | D166: GREN_1 | E166: 3.104 | F166: 0 | G166: 0 | H166: -2.359
A167: EE | B167: Battery | C167: 24 | D167: GRIW_1 | E167: 0.803 | F167: 0 | G167: 0 | H167: -0.61
A168: EE | B168: Battery | C168: 24 | D168: GRUB_P | E168: 0.031 | F168: 0 | G168: 0 | H168: -0.023
A169: EE | B169: Battery | C169: 24 | D169: HACK_1 | E169: 0.289 | F169: 0 | G169: 0 | H169: -0.22
A170: EE | B170: Battery | C170: 24 | D170: HACK_6 | E170: 0 | F170: 0 | G170: 0 | H170: 0
A171: EE | B171: Battery | C171: 24 | D171: HAGR | E171: 0.038 | F171: 0 | G171: 0 | H171: -0.029
A172: EE | B172: Battery | C172: 24 | D172: HAMHC1 | E172: 0.946 | F172: 0 | G172: 0 | H172: -0.719
A173: EE | B173: Battery | C173: 24 | D173: HARK_1 | E173: 1.283 | F173: 0 | G173: 0 | H173: -0.975
A174: EE | B174: Battery | C174: 24 | D174: HARM_6 | E174: 0.315 | F174: 0 | G174: 0 | H174: -0.239
A175: EE | B175: Battery | C175: 24 | D175: HAWI | E175: 0.092 | F175: 0 | G175: 0 | H175: -0.07
A176: EE | B176: Battery | C176: 24 | D176: HAWP_6 | E176: 0.741 | F176: 0 | G176: 0 | H176: -0.564
A177: EE | B177: Battery | C177: 24 | D177: HELE | E177: 0.052 | F177: 0 | G177: 0 | H177: -0.039
A178: EE | B178: Battery | C178: 24 | D178: HEYS_1 | E178: 0.373 | F178: 0 | G178: 0 | H178: -0.283
A179: EE | B179: Battery | C179: 24 | D179: HEYS1 | E179: 0 | F179: 0 | G179: 0 | H179: 0
A180: EE | B180: Battery | C180: 24 | D180: HUER | E180: 0 | F180: 0 | G180: 0 | H180: 0
A181: EE | B181: Battery | C181: 24 | D181: HURS_1 | E181: 0.341 | F181: 0 | G181: 0 | H181: -0.259
A182: EE | B182: Battery | C182: 24 | D182: HUTT_1 | E182: 0.725 | F182: 0 | G182: 0 | H182: -0.551
A183: EE | B183: Battery | C183: 24 | D183: IMPK_1 | E183: 0 | F183: 0 | G183: 0 | H183: 0
A184: EE | B184: Battery | C184: 24 | D184: INDQ1 | E184: 3.647 | F184: 0 | G184: 0 | H184: -2.772
A185: EE | B185: Battery | C185: 24 | D185: INKE | E185: 0.121 | F185: 0 | G185: 0 | H185: -0.092
A186: EE | B186: Battery | C186: 24 | D186: INNE_P | E186: 0.167 | F186: 0 | G186: 0 | H186: -0.127
A187: EE | B187: Battery | C187: 24 | D187: IROA1 | E187: 2.423 | F187: 0 | G187: 0 | H187: -1.841
A188: EE | B188: Battery | C188: 24 | D188: IRONB1 | E188: 0.659 | F188: 0 | G188: 0 | H188: -0.501
A189: EE | B189: Battery | C189: 24 | D189: ISLI_1 | E189: 0 | F189: 0 | G189: 0 | H189: 0
A190: EE | B190: Battery | C190: 24 | D190: IVER_1 | E190: 0.589 | F190: 0 | G190: 0 | H190: -0.447
A191: EE | B191: Battery | C191: 24 | D191: IVER_6 | E191: 0.156 | F191: 0 | G191: 0 | H191: -0.118
A192: EE | B192: Battery | C192: 24 | D192: JOHN | E192: 0.085 | F192: 0 | G192: 0 | H192: -0.064
A193: EE | B193: Battery | C193: 24 | D193: JORD_3 | E193: 0.111 | F193: 0 | G193: 0 | H193: -0.085
A194: EE | B194: Battery | C194: 24 | D194: KAIM | E194: 0.356 | F194: 0 | G194: 0 | H194: -0.271
A195: EE | B195: Battery | C195: 24 | D195: KEAD_1 | E195: 2.053 | F195: 0 | G195: 0 | H195: -1.56
A196: EE | B196: Battery | C196: 24 | D196: KEAR_1 | E196: 1.557 | F196: 0 | G196: 0 | H196: -1.183
A197: EE | B197: Battery | C197: 24 | D197: KEAR_3 | E197: 0 | F197: 0 | G197: 0 | H197: 0
A198: EE | B198: Battery | C198: 24 | D198: KEIT_P | E198: 0.186 | F198: 0 | G198: 0 | H198: -0.141
A199: EE | B199: Battery | C199: 24 | D199: KEMS_1 | E199: 0.384 | F199: 0 | G199: 0 | H199: -0.292
A200: EE | B200: Battery | C200: 24 | D200: KEOO | E200: 0 | F200: 0 | G200: 0 | H200: 0
A201: EE | B201: Battery | C201: 24 | D201: KIBY_1 | E201: 0.515 | F201: 0 | G201: 0 | H201: -0.392
... 4299 more rows

Sheet LV Gain
H2: All values given in Mvar
A3: GSP | B3: Scenario | C3: Year | D3: Peak | E3: SummerAM | F3: SummerPM
A4: ABNE_P | B4: HT | C4: 24 | D4: 1.323666266 | E4: 1.667302627 | F4: 1.48256275
A5: ABNE_P | B5: HT | C5: 25 | D5: 1.323666266 | E5: 1.667302627 | F5: 1.48256275
A6: ABNE_P | B6: HT | C6: 26 | D6: 1.323666266 | E6: 1.667302627 | F6: 1.48256275
A7: ABNE_P | B7: HT | C7: 27 | D7: 1.323666266 | E7: 1.667302627 | F7: 1.48256275
A8: ABNE_P | B8: HT | C8: 28 | D8: 1.323666266 | E8: 1.667302627 | F8: 1.48256275
A9: ABNE_P | B9: HT | C9: 29 | D9: 1.323666266 | E9: 1.667302627 | F9: 1.48256275
A10: ABNE_P | B10: HT | C10: 30 | D10: 1.323666266 | E10: 1.667302627 | F10: 1.48256275
A11: ABNE_P | B11: HT | C11: 31 | D11: 1.323666266 | E11: 1.667302627 | F11: 1.48256275
A12: ABNE_P | B12: HT | C12: 32 | D12: 1.323666266 | E12: 1.667302627 | F12: 1.48256275
A13: ABNE_P | B13: HT | C13: 33 | D13: 1.323666266 | E13: 1.667302627 | F13: 1.48256275
A14: ABNE_P | B14: HT | C14: 34 | D14: 1.323666266 | E14: 1.667302627 | F14: 1.48256275
A15: ABNE_P | B15: HT | C15: 35 | D15: 1.323666266 | E15: 1.667302627 | F15: 1.48256275
A16: ABNE_P | B16: HT | C16: 36 | D16: 1.323666266 | E16: 1.667302627 | F16: 1.48256275
A17: ABNE_P | B17: HT | C17: 37 | D17: 1.323666266 | E17: 1.667302627 | F17: 1.48256275
A18: ABNE_P | B18: HT | C18: 38 | D18: 1.323666266 | E18: 1.667302627 | F18: 1.48256275
A19: ABNE_P | B19: HT | C19: 39 | D19: 1.323666266 | E19: 1.667302627 | F19: 1.48256275
A20: ABNE_P | B20: HT | C20: 40 | D20: 1.323666266 | E20: 1.667302627 | F20: 1.48256275
A21: ABNE_P | B21: HT | C21: 41 | D21: 1.323666266 | E21: 1.667302627 | F21: 1.48256275
A22: ABNE_P | B22: HT | C22: 42 | D22: 1.323666266 | E22: 1.667302627 | F22: 1.48256275
A23: ABNE_P | B23: HT | C23: 43 | D23: 1.323666266 | E23: 1.667302627 | F23: 1.48256275
A24: ABNE_P | B24: HT | C24: 44 | D24: 1.323666266 | E24: 1.667302627 | F24: 1.48256275
A25: ABNE_P | B25: HT | C25: 45 | D25: 1.323666266 | E25: 1.667302627 | F25: 1.48256275
A26: ABNE_P | B26: HT | C26: 46 | D26: 1.323666266 | E26: 1.667302627 | F26: 1.48256275
A27: ABNE_P | B27: HT | C27: 47 | D27: 1.323666266 | E27: 1.667302627 | F27: 1.48256275
A28: ABNE_P | B28: HT | C28: 48 | D28: 1.323666266 | E28: 1.667302627 | F28: 1.48256275
A29: ABNE_P | B29: HT | C29: 49 | D29: 1.323666266 | E29: 1.667302627 | F29: 1.48256275
A30: ABNE_P | B30: HT | C30: 50 | D30: 1.323666266 | E30: 1.667302627 | F30: 1.48256275
A31: ALNE_P | B31: HT | C31: 24 | D31: 0.7201841779 | E31: 0.9071508452 | F31: 0.8066370376
A32: ALNE_P | B32: HT | C32: 25 | D32: 0.7201841779 | E32: 0.9071508452 | F32: 0.8066370376
A33: ALNE_P | B33: HT | C33: 26 | D33: 0.7201841779 | E33: 0.9071508452 | F33: 0.8066370376
A34: ALNE_P | B34: HT | C34: 27 | D34: 0.7201841779 | E34: 0.9071508452 | F34: 0.8066370376
A35: ALNE_P | B35: HT | C35: 28 | D35: 0.7201841779 | E35: 0.9071508452 | F35: 0.8066370376
A36: ALNE_P | B36: HT | C36: 29 | D36: 0.7201841779 | E36: 0.9071508452 | F36: 0.8066370376
A37: ALNE_P | B37: HT | C37: 30 | D37: 0.7201841779 | E37: 0.9071508452 | F37: 0.8066370376
A38: ALNE_P | B38: HT | C38: 31 | D38: 0.7201841779 | E38: 0.9071508452 | F38: 0.8066370376
A39: ALNE_P | B39: HT | C39: 32 | D39: 0.7201841779 | E39: 0.9071508452 | F39: 0.8066370376
A40: ALNE_P | B40: HT | C40: 33 | D40: 0.7201841779 | E40: 0.9071508452 | F40: 0.8066370376
A41: ALNE_P | B41: HT | C41: 34 | D41: 0.7201841779 | E41: 0.9071508452 | F41: 0.8066370376
A42: ALNE_P | B42: HT | C42: 35 | D42: 0.7201841779 | E42: 0.9071508452 | F42: 0.8066370376
A43: ALNE_P | B43: HT | C43: 36 | D43: 0.7201841779 | E43: 0.9071508452 | F43: 0.8066370376
A44: ALNE_P | B44: HT | C44: 37 | D44: 0.7201841779 | E44: 0.9071508452 | F44: 0.8066370376
A45: ALNE_P | B45: HT | C45: 38 | D45: 0.7201841779 | E45: 0.9071508452 | F45: 0.8066370376
A46: ALNE_P | B46: HT | C46: 39 | D46: 0.7201841779 | E46: 0.9071508452 | F46: 0.8066370376
A47: ALNE_P | B47: HT | C47: 40 | D47: 0.7201841779 | E47: 0.9071508452 | F47: 0.8066370376
A48: ALNE_P | B48: HT | C48: 41 | D48: 0.7201841779 | E48: 0.9071508452 | F48: 0.8066370376
A49: ALNE_P | B49: HT | C49: 42 | D49: 0.7201841779 | E49: 0.9071508452 | F49: 0.8066370376
A50: ALNE_P | B50: HT | C50: 43 | D50: 0.7201841779 | E50: 0.9071508452 | F50: 0.8066370376
A51: ALNE_P | B51: HT | C51: 44 | D51: 0.7201841779 | E51: 0.9071508452 | F51: 0.8066370376
A52: ALNE_P | B52: HT | C52: 45 | D52: 0.7201841779 | E52: 0.9071508452 | F52: 0.8066370376
A53: ALNE_P | B53: HT | C53: 46 | D53: 0.7201841779 | E53: 0.9071508452 | F53: 0.8066370376
A54: ALNE_P | B54: HT | C54: 47 | D54: 0.7201841779 | E54: 0.9071508452 | F54: 0.8066370376
A55: ALNE_P | B55: HT | C55: 48 | D55: 0.7201841779 | E55: 0.9071508452 | F55: 0.8066370376
A56: ALNE_P | B56: HT | C56: 49 | D56: 0.7201841779 | E56: 0.9071508452 | F56: 0.8066370376
A57: ALNE_P | B57: HT | C57: 50 | D57: 0.7201841779 | E57: 0.9071508452 | F57: 0.8066370376
A58: ARBR_P | B58: HT | C58: 24 | D58: 0.7235856883 | E58: 0.9114354201 | F58: 0.8104468745
A59: ARBR_P | B59: HT | C59: 25 | D59: 0.7235856883 | E59: 0.9114354201 | F59: 0.8104468745
A60: ARBR_P | B60: HT | C60: 26 | D60: 0.7235856883 | E60: 0.9114354201 | F60: 0.8104468745
A61: ARBR_P | B61: HT | C61: 27 | D61: 0.7235856883 | E61: 0.9114354201 | F61: 0.8104468745
A62: ARBR_P | B62: HT | C62: 28 | D62: 0.7235856883 | E62: 0.9114354201 | F62: 0.8104468745
A63: ARBR_P | B63: HT | C63: 29 | D63: 0.7235856883 | E63: 0.9114354201 | F63: 0.8104468745
A64: ARBR_P | B64: HT | C64: 30 | D64: 0.7235856883 | E64: 0.9114354201 | F64: 0.8104468745
A65: ARBR_P | B65: HT | C65: 31 | D65: 0.7235856883 | E65: 0.9114354201 | F65: 0.8104468745
A66: ARBR_P | B66: HT | C66: 32 | D66: 0.7235856883 | E66: 0.9114354201 | F66: 0.8104468745
A67: ARBR_P | B67: HT | C67: 33 | D67: 0.7235856883 | E67: 0.9114354201 | F67: 0.8104468745
A68: ARBR_P | B68: HT | C68: 34 | D68: 0.7235856883 | E68: 0.9114354201 | F68: 0.8104468745
A69: ARBR_P | B69: HT | C69: 35 | D69: 0.7235856883 | E69: 0.9114354201 | F69: 0.8104468745
A70: ARBR_P | B70: HT | C70: 36 | D70: 0.7235856883 | E70: 0.9114354201 | F70: 0.8104468745
A71: ARBR_P | B71: HT | C71: 37 | D71: 0.7235856883 | E71: 0.9114354201 | F71: 0.8104468745
A72: ARBR_P | B72: HT | C72: 38 | D72: 0.7235856883 | E72: 0.9114354201 | F72: 0.8104468745
A73: ARBR_P | B73: HT | C73: 39 | D73: 0.7235856883 | E73: 0.9114354201 | F73: 0.8104468745
A74: ARBR_P | B74: HT | C74: 40 | D74: 0.7235856883 | E74: 0.9114354201 | F74: 0.8104468745
A75: ARBR_P | B75: HT | C75: 41 | D75: 0.7235856883 | E75: 0.9114354201 | F75: 0.8104468745
A76: ARBR_P | B76: HT | C76: 42 | D76: 0.7235856883 | E76: 0.9114354201 | F76: 0.8104468745
A77: ARBR_P | B77: HT | C77: 43 | D77: 0.7235856883 | E77: 0.9114354201 | F77: 0.8104468745
A78: ARBR_P | B78: HT | C78: 44 | D78: 0.7235856883 | E78: 0.9114354201 | F78: 0.8104468745
A79: ARBR_P | B79: HT | C79: 45 | D79: 0.7235856883 | E79: 0.9114354201 | F79: 0.8104468745
A80: ARBR_P | B80: HT | C80: 46 | D80: 0.7235856883 | E80: 0.9114354201 | F80: 0.8104468745
A81: ARBR_P | B81: HT | C81: 47 | D81: 0.7235856883 | E81: 0.9114354201 | F81: 0.8104468745
A82: ARBR_P | B82: HT | C82: 48 | D82: 0.7235856883 | E82: 0.9114354201 | F82: 0.8104468745
A83: ARBR_P | B83: HT | C83: 49 | D83: 0.7235856883 | E83: 0.9114354201 | F83: 0.8104468745
A84: ARBR_P | B84: HT | C84: 50 | D84: 0.7235856883 | E84: 0.9114354201 | F84: 0.8104468745
A85: ARDK_P | B85: HT | C85: 24 | D85: 0 | E85: 0 | F85: 0
A86: ARDK_P | B86: HT | C86: 25 | D86: 0 | E86: 0 | F86: 0
A87: ARDK_P | B87: HT | C87: 26 | D87: 0 | E87: 0 | F87: 0
A88: ARDK_P | B88: HT | C88: 27 | D88: 0 | E88: 0 | F88: 0
A89: ARDK_P | B89: HT | C89: 28 | D89: 0 | E89: 0 | F89: 0
A90: ARDK_P | B90: HT | C90: 29 | D90: 0 | E90: 0 | F90: 0
A91: ARDK_P | B91: HT | C91: 30 | D91: 0 | E91: 0 | F91: 0
A92: ARDK_P | B92: HT | C92: 31 | D92: 0 | E92: 0 | F92: 0
A93: ARDK_P | B93: HT | C93: 32 | D93: 0 | E93: 0 | F93: 0
A94: ARDK_P | B94: HT | C94: 33 | D94: 0 | E94: 0 | F94: 0
A95: ARDK_P | B95: HT | C95: 34 | D95: 0 | E95: 0 | F95: 0
A96: ARDK_P | B96: HT | C96: 35 | D96: 0 | E96: 0 | F96: 0
A97: ARDK_P | B97: HT | C97: 36 | D97: 0 | E97: 0 | F97: 0
A98: ARDK_P | B98: HT | C98: 37 | D98: 0 | E98: 0 | F98: 0
A99: ARDK_P | B99: HT | C99: 38 | D99: 0 | E99: 0 | F99: 0
A100: ARDK_P | B100: HT | C100: 39 | D100: 0 | E100: 0 | F100: 0
A101: ARDK_P | B101: HT | C101: 40 | D101: 0 | E101: 0 | F101: 0
A102: ARDK_P | B102: HT | C102: 41 | D102: 0 | E102: 0 | F102: 0
A103: ARDK_P | B103: HT | C103: 42 | D103: 0 | E103: 0 | F103: 0
A104: ARDK_P | B104: HT | C104: 43 | D104: 0 | E104: 0 | F104: 0
A105: ARDK_P | B105: HT | C105: 44 | D105: 0 | E105: 0 | F105: 0
A106: ARDK_P | B106: HT | C106: 45 | D106: 0 | E106: 0 | F106: 0
A107: ARDK_P | B107: HT | C107: 46 | D107: 0 | E107: 0 | F107: 0
A108: ARDK_P | B108: HT | C108: 47 | D108: 0 | E108: 0 | F108: 0
A109: ARDK_P | B109: HT | C109: 48 | D109: 0 | E109: 0 | F109: 0
A110: ARDK_P | B110: HT | C110: 49 | D110: 0 | E110: 0 | F110: 0
A111: ARDK_P | B111: HT | C111: 50 | D111: 0 | E111: 0 | F111: 0
A112: ARMO_P | B112: HT | C112: 24 | D112: 3.561200914 | E112: 4.485722567 | F112: 3.988697119
A113: ARMO_P | B113: HT | C113: 25 | D113: 3.561200914 | E113: 4.485722567 | F113: 3.988697119
A114: ARMO_P | B114: HT | C114: 26 | D114: 3.561200914 | E114: 4.485722567 | F114: 3.988697119
A115: ARMO_P | B115: HT | C115: 27 | D115: 3.561200914 | E115: 4.485722567 | F115: 3.988697119
A116: ARMO_P | B116: HT | C116: 28 | D116: 3.561200914 | E116: 4.485722567 | F116: 3.988697119
A117: ARMO_P | B117: HT | C117: 29 | D117: 3.561200914 | E117: 4.485722567 | F117: 3.988697119
A118: ARMO_P | B118: HT | C118: 30 | D118: 3.561200914 | E118: 4.485722567 | F118: 3.988697119
A119: ARMO_P | B119: HT | C119: 31 | D119: 3.561200914 | E119: 4.485722567 | F119: 3.988697119
A120: ARMO_P | B120: HT | C120: 32 | D120: 3.561200914 | E120: 4.485722567 | F120: 3.988697119
A121: ARMO_P | B121: HT | C121: 33 | D121: 3.561200914 | E121: 4.485722567 | F121: 3.988697119
A122: ARMO_P | B122: HT | C122: 34 | D122: 3.561200914 | E122: 4.485722567 | F122: 3.988697119
A123: ARMO_P | B123: HT | C123: 35 | D123: 3.561200914 | E123: 4.485722567 | F123: 3.988697119
A124: ARMO_P | B124: HT | C124: 36 | D124: 3.561200914 | E124: 4.485722567 | F124: 3.988697119
A125: ARMO_P | B125: HT | C125: 37 | D125: 3.561200914 | E125: 4.485722567 | F125: 3.988697119
A126: ARMO_P | B126: HT | C126: 38 | D126: 3.561200914 | E126: 4.485722567 | F126: 3.988697119
A127: ARMO_P | B127: HT | C127: 39 | D127: 3.561200914 | E127: 4.485722567 | F127: 3.988697119
A128: ARMO_P | B128: HT | C128: 40 | D128: 3.561200914 | E128: 4.485722567 | F128: 3.988697119
A129: ARMO_P | B129: HT | C129: 41 | D129: 3.561200914 | E129: 4.485722567 | F129: 3.988697119
A130: ARMO_P | B130: HT | C130: 42 | D130: 3.561200914 | E130: 4.485722567 | F130: 3.988697119
A131: ARMO_P | B131: HT | C131: 43 | D131: 3.561200914 | E131: 4.485722567 | F131: 3.988697119
A132: ARMO_P | B132: HT | C132: 44 | D132: 3.561200914 | E132: 4.485722567 | F132: 3.988697119
A133: ARMO_P | B133: HT | C133: 45 | D133: 3.561200914 | E133: 4.485722567 | F133: 3.988697119
A134: ARMO_P | B134: HT | C134: 46 | D134: 3.561200914 | E134: 4.485722567 | F134: 3.988697119
A135: ARMO_P | B135: HT | C135: 47 | D135: 3.561200914 | E135: 4.485722567 | F135: 3.988697119
A136: ARMO_P | B136: HT | C136: 48 | D136: 3.561200914 | E136: 4.485722567 | F136: 3.988697119
A137: ARMO_P | B137: HT | C137: 49 | D137: 3.561200914 | E137: 4.485722567 | F137: 3.988697119
A138: ARMO_P | B138: HT | C138: 50 | D138: 3.561200914 | E138: 4.485722567 | F138: 3.988697119
A139: BEAU_P | B139: HT | C139: 24 | D139: 1.597538325 | E139: 2.01227448 | F139: 1.789311153
A140: BEAU_P | B140: HT | C140: 25 | D140: 1.597538325 | E140: 2.01227448 | F140: 1.789311153
A141: BEAU_P | B141: HT | C141: 26 | D141: 1.597538325 | E141: 2.01227448 | F141: 1.789311153
A142: BEAU_P | B142: HT | C142: 27 | D142: 1.597538325 | E142: 2.01227448 | F142: 1.789311153
A143: BEAU_P | B143: HT | C143: 28 | D143: 1.597538325 | E143: 2.01227448 | F143: 1.789311153
A144: BEAU_P | B144: HT | C144: 29 | D144: 1.597538325 | E144: 2.01227448 | F144: 1.789311153
A145: BEAU_P | B145: HT | C145: 30 | D145: 1.597538325 | E145: 2.01227448 | F145: 1.789311153
A146: BEAU_P | B146: HT | C146: 31 | D146: 1.597538325 | E146: 2.01227448 | F146: 1.789311153
A147: BEAU_P | B147: HT | C147: 32 | D147: 1.597538325 | E147: 2.01227448 | F147: 1.789311153
A148: BEAU_P | B148: HT | C148: 33 | D148: 1.597538325 | E148: 2.01227448 | F148: 1.789311153
A149: BEAU_P | B149: HT | C149: 34 | D149: 1.597538325 | E149: 2.01227448 | F149: 1.789311153
A150: BEAU_P | B150: HT | C150: 35 | D150: 1.597538325 | E150: 2.01227448 | F150: 1.789311153
A151: BEAU_P | B151: HT | C151: 36 | D151: 1.597538325 | E151: 2.01227448 | F151: 1.789311153
A152: BEAU_P | B152: HT | C152: 37 | D152: 1.597538325 | E152: 2.01227448 | F152: 1.789311153
A153: BEAU_P | B153: HT | C153: 38 | D153: 1.597538325 | E153: 2.01227448 | F153: 1.789311153
A154: BEAU_P | B154: HT | C154: 39 | D154: 1.597538325 | E154: 2.01227448 | F154: 1.789311153
A155: BEAU_P | B155: HT | C155: 40 | D155: 1.597538325 | E155: 2.01227448 | F155: 1.789311153
A156: BEAU_P | B156: HT | C156: 41 | D156: 1.597538325 | E156: 2.01227448 | F156: 1.789311153
A157: BEAU_P | B157: HT | C157: 42 | D157: 1.597538325 | E157: 2.01227448 | F157: 1.789311153
A158: BEAU_P | B158: HT | C158: 43 | D158: 1.597538325 | E158: 2.01227448 | F158: 1.789311153
A159: BEAU_P | B159: HT | C159: 44 | D159: 1.597538325 | E159: 2.01227448 | F159: 1.789311153
A160: BEAU_P | B160: HT | C160: 45 | D160: 1.597538325 | E160: 2.01227448 | F160: 1.789311153
A161: BEAU_P | B161: HT | C161: 46 | D161: 1.597538325 | E161: 2.01227448 | F161: 1.789311153
A162: BEAU_P | B162: HT | C162: 47 | D162: 1.597538325 | E162: 2.01227448 | F162: 1.789311153
A163: BEAU_P | B163: HT | C163: 48 | D163: 1.597538325 | E163: 2.01227448 | F163: 1.789311153
A164: BEAU_P | B164: HT | C164: 49 | D164: 1.597538325 | E164: 2.01227448 | F164: 1.789311153
A165: BEAU_P | B165: HT | C165: 50 | D165: 1.597538325 | E165: 2.01227448 | F165: 1.789311153
A166: BERB_P | B166: HT | C166: 24 | D166: 0 | E166: 0 | F166: 0
A167: BERB_P | B167: HT | C167: 25 | D167: 0 | E167: 0 | F167: 0
A168: BERB_P | B168: HT | C168: 26 | D168: 0 | E168: 0 | F168: 0
A169: BERB_P | B169: HT | C169: 27 | D169: 0 | E169: 0 | F169: 0
A170: BERB_P | B170: HT | C170: 28 | D170: 0 | E170: 0 | F170: 0
A171: BERB_P | B171: HT | C171: 29 | D171: 0 | E171: 0 | F171: 0
A172: BERB_P | B172: HT | C172: 30 | D172: 0 | E172: 0 | F172: 0
A173: BERB_P | B173: HT | C173: 31 | D173: 0 | E173: 0 | F173: 0
A174: BERB_P | B174: HT | C174: 32 | D174: 0 | E174: 0 | F174: 0
A175: BERB_P | B175: HT | C175: 33 | D175: 0 | E175: 0 | F175: 0
A176: BERB_P | B176: HT | C176: 34 | D176: 0 | E176: 0 | F176: 0
A177: BERB_P | B177: HT | C177: 35 | D177: 0 | E177: 0 | F177: 0
A178: BERB_P | B178: HT | C178: 36 | D178: 0 | E178: 0 | F178: 0
A179: BERB_P | B179: HT | C179: 37 | D179: 0 | E179: 0 | F179: 0
A180: BERB_P | B180: HT | C180: 38 | D180: 0 | E180: 0 | F180: 0
A181: BERB_P | B181: HT | C181: 39 | D181: 0 | E181: 0 | F181: 0
A182: BERB_P | B182: HT | C182: 40 | D182: 0 | E182: 0 | F182: 0
A183: BERB_P | B183: HT | C183: 41 | D183: 0 | E183: 0 | F183: 0
A184: BERB_P | B184: HT | C184: 42 | D184: 0 | E184: 0 | F184: 0
A185: BERB_P | B185: HT | C185: 43 | D185: 0 | E185: 0 | F185: 0
A186: BERB_P | B186: HT | C186: 44 | D186: 0 | E186: 0 | F186: 0
A187: BERB_P | B187: HT | C187: 45 | D187: 0 | E187: 0 | F187: 0
A188: BERB_P | B188: HT | C188: 46 | D188: 0 | E188: 0 | F188: 0
A189: BERB_P | B189: HT | C189: 47 | D189: 0 | E189: 0 | F189: 0
A190: BERB_P | B190: HT | C190: 48 | D190: 0 | E190: 0 | F190: 0
A191: BERB_P | B191: HT | C191: 49 | D191: 0 | E191: 0 | F191: 0
A192: BERB_P | B192: HT | C192: 50 | D192: 0 | E192: 0 | F192: 0
A193: BOAG_P | B193: HT | C193: 24 | D193: 0.6357184345 | E193: 0.8007569908 | F193: 0.7120317975
A194: BOAG_P | B194: HT | C194: 25 | D194: 0.6357184345 | E194: 0.8007569908 | F194: 0.7120317975
A195: BOAG_P | B195: HT | C195: 26 | D195: 0.6357184345 | E195: 0.8007569908 | F195: 0.7120317975
A196: BOAG_P | B196: HT | C196: 27 | D196: 0.6357184345 | E196: 0.8007569908 | F196: 0.7120317975
A197: BOAG_P | B197: HT | C197: 28 | D197: 0.6357184345 | E197: 0.8007569908 | F197: 0.7120317975
A198: BOAG_P | B198: HT | C198: 29 | D198: 0.6357184345 | E198: 0.8007569908 | F198: 0.7120317975
A199: BOAG_P | B199: HT | C199: 30 | D199: 0.6357184345 | E199: 0.8007569908 | F199: 0.7120317975
A200: BOAG_P | B200: HT | C200: 31 | D200: 0.6357184345 | E200: 0.8007569908 | F200: 0.7120317975
A201: BOAG_P | B201: HT | C201: 32 | D201: 0.6357184345 | E201: 0.8007569908 | F201: 0.7120317975
... 4299 more rows

Sheet Active
I2: All values given in MW
A3: scenario | B3: GSP | C3: DemandPk | D3: DemandAM | E3: DemandPM | F3: type | G3: year
A4: EE | B4: ABHA1 | C4: 84.90069843 | D4: 29.73408784 | E4: 61.32473491 | F4: C | G4: 24 | J4: Key: Demand "type":
A5: EE | B5: ABHA1 | C5: 85.37254652 | D5: 29.93589647 | E5: 64.44390874 | F5: C | G5: 25
A6: EE | B6: ABHA1 | C6: 85.94187739 | D6: 30.25828305 | E6: 65.20806576 | F6: C | G6: 26 | J6: R = Residential
A7: EE | B7: ABHA1 | C7: 87.24106936 | D7: 30.85700098 | E7: 66.53260459 | F7: C | G7: 27 | J7: E = Electric Vehicles
A8: EE | B8: ABHA1 | C8: 88.56938108 | D8: 31.54782936 | E8: 68.00997483 | F8: C | G8: 28 | J8: C = Commercial
A9: EE | B9: ABHA1 | C9: 91.37669798 | D9: 32.74526522 | E9: 70.76094011 | F9: C | G9: 29 | J9: I = Industrial
A10: EE | B10: ABHA1 | C10: 93.47894745 | D10: 33.66636973 | E10: 72.84963596 | F10: C | G10: 30 | J10: H = Heat pumps
A11: EE | B11: ABHA1 | C11: 95.89334366 | D11: 34.67958468 | E11: 75.14210703 | F11: C | G11: 31 | J11: D = District heat
A12: EE | B12: ABHA1 | C12: 98.73360586 | D12: 35.92307577 | E12: 77.9440161 | F12: C | G12: 32 | J12: T = Transmission direct connects
A13: EE | B13: ABHA1 | C13: 101.0545076 | D13: 37.02840118 | E13: 80.33837477 | F13: C | G13: 33 | J13: Z = Electrolysers
A14: EE | B14: ABHA1 | C14: 103.1848545 | D14: 38.04161613 | E14: 82.68178963 | F14: C | G14: 34 | J14: TZ = Transmission Direct Connect Electrolysis
A15: EE | B15: ABHA1 | C15: 105.5976153 | D15: 39.14694154 | E15: 85.2799235 | F15: C | G15: 35
A16: EE | B16: ABHA1 | C16: 109.9415959 | D16: 41.31153713 | E16: 89.30448381 | F16: C | G16: 36
A17: EE | B17: ABHA1 | C17: 114.2404516 | D17: 43.47613272 | E17: 93.27810031 | F17: C | G17: 37
A18: EE | B18: ABHA1 | C18: 118.4667837 | D18: 45.59467309 | E18: 97.20077302 | F18: C | G18: 38
A19: EE | B19: ABHA1 | C19: 122.6960615 | D19: 47.66715823 | E19: 101.1234457 | F19: C | G19: 39
A20: EE | B20: ABHA1 | C20: 126.6979233 | D20: 49.64753292 | E20: 104.893287 | F20: C | G20: 40
A21: EE | B21: ABHA1 | C21: 130.6810039 | D21: 51.53579716 | E21: 108.4084093 | F21: C | G21: 41
A22: EE | B22: ABHA1 | C22: 134.3118343 | D22: 53.28589572 | E22: 111.6688126 | F22: C | G22: 42
A23: EE | B23: ABHA1 | C23: 137.9896858 | D23: 54.98993906 | E23: 114.8273283 | F23: C | G23: 43
A24: EE | B24: ABHA1 | C24: 141.2786506 | D24: 56.60187195 | E24: 117.6801812 | F24: C | G24: 44
A25: EE | B25: ABHA1 | C25: 144.2395623 | D25: 58.02958393 | E25: 120.3802026 | F25: C | G25: 45
A26: EE | B26: ABHA1 | C26: 146.7643996 | D26: 59.27307502 | E26: 122.7236175 | F26: C | G26: 46
A27: EE | B27: ABHA1 | C27: 149.4141173 | D27: 60.56262132 | E27: 125.0160886 | F27: C | G27: 47
A28: EE | B28: ABHA1 | C28: 152.1306804 | D28: 61.85216763 | E28: 127.3595034 | F28: C | G28: 48
A29: EE | B29: ABHA1 | C29: 154.9682334 | D29: 63.14171394 | E29: 129.7029183 | F29: C | G29: 49
A30: EE | B30: ABHA1 | C30: 157.8928681 | D30: 64.47731548 | E30: 132.097277 | F30: C | G30: 50
A31: EE | B31: ABHA1 | C31: 0.5587353489 | D31: 0.0761741756 | E31: 0.1523483512 | F31: D | G31: 24
A32: EE | B32: ABHA1 | C32: 0.8211746707 | D32: 0.07617553839 | E32: 0.1523510768 | F32: D | G32: 25
A33: EE | B33: ABHA1 | C33: 1.308222619 | D33: 0.07665023663 | E33: 0.1533004733 | F33: D | G33: 26
A34: EE | B34: ABHA1 | C34: 1.920963511 | D34: 0.07712493486 | E34: 0.1542498697 | F34: D | G34: 27
A35: EE | B35: ABHA1 | C35: 2.718234164 | D35: 0.0775996331 | E35: 0.1551992662 | F35: D | G35: 28
A36: EE | B36: ABHA1 | C36: 3.709108215 | D36: 0.07807433133 | E36: 0.1561486627 | F36: D | G36: 29
A37: EE | B37: ABHA1 | C37: 4.933127562 | D37: 0.07854902957 | E37: 0.2356470887 | F37: D | G37: 30
A38: EE | B38: ABHA1 | C38: 6.052857092 | D38: 0 | E38: 0.2361334987 | F38: D | G38: 31
A39: EE | B39: ABHA1 | C39: 7.04531642 | D39: 0 | E39: 0.2366199087 | F39: D | G39: 32
A40: EE | B40: ABHA1 | C40: 8.182586239 | D40: 0 | E40: 0.2371063188 | F40: D | G40: 33
A41: EE | B41: ABHA1 | C41: 9.329433236 | D41: 0 | E41: 0.2375927288 | F41: D | G41: 34
A42: EE | B42: ABHA1 | C42: 10.51599865 | D42: 0 | E42: 0.2380791388 | F42: D | G42: 35
A43: EE | B43: ABHA1 | C43: 14.45146086 | D43: 0 | E43: 0.3156485261 | F43: D | G43: 36
A44: EE | B44: ABHA1 | C44: 18.42733025 | D44: 0 | E44: 0.3923227506 | F44: D | G44: 37
A45: EE | B45: ABHA1 | C45: 22.52807419 | D45: 0 | E45: 0.4681018123 | F45: D | G45: 38
A46: EE | B46: ABHA1 | C46: 26.81006798 | D46: 0 | E46: 0.6205550985 | F46: D | G46: 39
A47: EE | B47: ABHA1 | C47: 31.4152836 | D47: 0.07712180591 | E47: 0.6940962532 | F47: D | G47: 40
A48: EE | B48: ABHA1 | C48: 36.18774833 | D48: 0.0774032927 | E48: 0.774032927 | F48: D | G48: 41
A49: EE | B49: ABHA1 | C49: 39.70470569 | D49: 0.07768477949 | E49: 0.8545325744 | F49: D | G49: 42
A50: EE | B50: ABHA1 | C50: 42.44339491 | D50: 0.07796626628 | E50: 0.9355951954 | F50: D | G50: 43
A51: EE | B51: ABHA1 | C51: 44.87159613 | D51: 0.07824775308 | E51: 1.01722079 | F51: D | G51: 44
A52: EE | B52: ABHA1 | C52: 46.85717497 | D52: 0.07852923987 | E52: 1.099409358 | F52: D | G52: 45
A53: EE | B53: ABHA1 | C53: 49.07972839 | D53: 0.07871892117 | E53: 1.259502739 | F53: D | G53: 46
A54: EE | B54: ABHA1 | C54: 51.19380372 | D54: 0.07890860248 | E54: 1.341446242 | F54: D | G54: 47
A55: EE | B55: ABHA1 | C55: 53.10683581 | D55: 0.07909828378 | E55: 1.423769108 | F55: D | G55: 48
A56: EE | B56: ABHA1 | C56: 54.95025886 | D56: 0.07928796509 | E56: 1.506471337 | F56: D | G56: 49
A57: EE | B57: ABHA1 | C57: 56.74980465 | D57: 0.07947764639 | E57: 1.589552928 | F57: D | G57: 50
A58: EE | B58: ABHA1 | C58: 2.986095587 | D58: 0.8479937344 | E58: 2.463219895 | F58: E | G58: 24
A59: EE | B59: ABHA1 | C59: 4.216673301 | D59: 0.9239446132 | E59: 4.223746803 | F59: E | G59: 25
A60: EE | B60: ABHA1 | C60: 6.392503413 | D60: 2.151084033 | E60: 5.902974787 | F60: E | G60: 26
A61: EE | B61: ABHA1 | C61: 9.961179595 | D61: 3.157066616 | E61: 9.295807258 | F61: E | G61: 27
A62: EE | B62: ABHA1 | C62: 14.76229153 | D62: 4.436116617 | E62: 14.07080739 | F62: E | G62: 28
A63: EE | B63: ABHA1 | C63: 17.71474984 | D63: 6.654174925 | E63: 17.74446647 | F63: E | G63: 29
A64: EE | B64: ABHA1 | C64: 22.14343729 | D64: 7.347318146 | E64: 22.8737263 | F64: E | G64: 30
A65: EE | B65: ABHA1 | C65: 26.57212475 | D65: 9.565376455 | E65: 28.07230046 | F65: E | G65: 31
A66: EE | B66: ABHA1 | C66: 31.73892679 | D66: 11.85274909 | E66: 33.96401785 | F66: E | G66: 32
A67: EE | B67: ABHA1 | C67: 37.6438434 | D67: 14.00149307 | E67: 39.85573523 | F67: E | G67: 33
A68: EE | B68: ABHA1 | C68: 42.81064543 | D68: 16.21955138 | E68: 47.20305337 | F68: E | G68: 34
A69: EE | B69: ABHA1 | C69: 49.45367662 | D69: 18.50692401 | E69: 54.61968584 | F69: E | G69: 35
A70: EE | B70: ABHA1 | C70: 56.09670781 | D70: 19.89321045 | E70: 60.51140322 | F70: E | G70: 36
A71: EE | B71: ABHA1 | C71: 63.47785358 | D71: 22.18058308 | E71: 67.85872137 | F71: E | G71: 37
A72: EE | B72: ABHA1 | C72: 70.12088476 | D72: 24.32932707 | E72: 74.58221062 | F72: E | G72: 38
A73: EE | B73: ABHA1 | C73: 76.02580138 | D73: 25.78492783 | E73: 81.16707122 | F73: E | G73: 39
A74: EE | B74: ABHA1 | C74: 82.66883256 | D74: 27.30984292 | E74: 86.36564538 | F74: E | G74: 40
A75: EE | B75: ABHA1 | C75: 87.8356346 | D75: 28.76544369 | E75: 91.49490522 | F75: E | G75: 41
A76: EE | B76: ABHA1 | C76: 91.52620748 | D76: 30.29035877 | E76: 94.47542107 | F76: E | G76: 42
A77: EE | B77: ABHA1 | C77: 94.47866579 | D77: 31.05281632 | E77: 97.45593692 | F77: E | G77: 43
A78: EE | B78: ABHA1 | C78: 96.69300952 | D78: 31.74595954 | E78: 98.91153769 | F78: E | G78: 44
A79: EE | B79: ABHA1 | C79: 98.90735325 | D79: 32.50841708 | E79: 101.129596 | F79: E | G79: 45
A80: EE | B80: ABHA1 | C80: 99.64546782 | D80: 33.27087462 | E80: 101.8227392 | F80: E | G80: 46
A81: EE | B81: ABHA1 | C81: 100.3835824 | D81: 33.27087462 | E81: 101.8227392 | F81: E | G81: 47
A82: EE | B82: ABHA1 | C82: 99.64546782 | D82: 33.27087462 | E82: 101.8227392 | F82: E | G82: 48
A83: EE | B83: ABHA1 | C83: 99.64546782 | D83: 33.27087462 | E83: 101.8227392 | F83: E | G83: 49
A84: EE | B84: ABHA1 | C84: 99.64546782 | D84: 33.27087462 | E84: 101.129596 | F84: E | G84: 50
A85: EE | B85: ABHA1 | C85: 5.428945164 | D85: 0.4784750568 | E85: 0.4784750568 | F85: H | G85: 24
A86: EE | B86: ABHA1 | C86: 6.671902224 | D86: 0.5474375543 | E86: 0.6256429192 | F86: H | G86: 25
A87: EE | B87: ABHA1 | C87: 8.419089247 | D87: 0.7113960464 | E87: 0.7904400516 | F87: H | G87: 26
A88: EE | B88: ABHA1 | C88: 10.51349605 | D88: 0.8798124574 | E88: 0.9597954081 | F88: H | G88: 27
A89: EE | B89: ABHA1 | C89: 14.64244468 | D89: 1.199381462 | E89: 1.35929899 | F89: H | G89: 28
A90: EE | B90: ABHA1 | C90: 20.0179333 | D90: 1.690371187 | E90: 1.851358919 | F90: H | G90: 29
A91: EE | B91: ABHA1 | C91: 28.48135369 | D91: 2.280858752 | E91: 2.606695717 | F91: H | G91: 30
A92: EE | B92: ABHA1 | C92: 38.66832711 | D92: 2.948985231 | E92: 3.276650256 | F92: H | G92: 31
A93: EE | B93: ABHA1 | C93: 50.75179344 | D93: 3.538101125 | E93: 4.114071075 | F93: H | G93: 32
A94: EE | B94: ABHA1 | C94: 65.84475335 | D94: 4.379095489 | E94: 5.122715478 | F94: H | G94: 33
A95: EE | B95: ABHA1 | C95: 81.62009877 | D95: 5.303981977 | E95: 6.049854443 | F95: H | G95: 34
A96: EE | B96: ABHA1 | C96: 97.66979435 | D96: 6.061777682 | E96: 7.058234287 | F96: H | G96: 35
A97: EE | B97: ABHA1 | C97: 117.7862578 | D97: 7.271544397 | E97: 8.180487447 | F97: H | G97: 36
A98: EE | B98: ABHA1 | C98: 137.8895381 | D98: 8.461325628 | E98: 9.447111138 | F98: H | G98: 37
A99: EE | B99: ABHA1 | C99: 157.8194701 | D99: 9.632308265 | E99: 10.61186504 | F99: H | G99: 38
A100: EE | B100: ABHA1 | C100: 177.3664748 | D100: 10.7044102 | E100: 11.75863242 | F100: H | G100: 39
A101: EE | B101: ABHA1 | C101: 196.2031673 | D101: 11.76140675 | E101: 12.80865529 | F101: H | G101: 40
A102: EE | B102: ABHA1 | C102: 212.4825505 | D102: 12.69778282 | E102: 13.7425371 | F102: H | G102: 41
A103: EE | B103: ABHA1 | C103: 227.6355076 | D103: 13.54983932 | E103: 14.75248778 | F103: H | G103: 42
A104: EE | B104: ABHA1 | C104: 241.0660359 | D104: 14.2364103 | E104: 15.4361078 | F104: H | G104: 43
A105: EE | B105: ABHA1 | C105: 253.7656663 | D105: 14.91995847 | E105: 16.19653246 | F105: H | G105: 44
A106: EE | B106: ABHA1 | C106: 264.3945915 | D106: 15.51949179 | E106: 16.79288599 | F106: H | G106: 45
A107: EE | B107: ABHA1 | C107: 274.0945683 | D107: 16.04444541 | E107: 17.39472051 | F107: H | G107: 46
A108: EE | B108: ABHA1 | C108: 283.2259193 | D108: 16.48856211 | E108: 17.99472884 | F108: H | G108: 47
A109: EE | B109: ABHA1 | C109: 291.044167 | D109: 16.93235378 | E109: 18.51481675 | F109: H | G109: 48
A110: EE | B110: ABHA1 | C110: 298.5268394 | D110: 17.37553303 | E110: 19.03410663 | F110: H | G110: 49
A111: EE | B111: ABHA1 | C111: 305.8897937 | D111: 17.81859746 | E111: 19.47430785 | F111: H | G111: 50
A112: EE | B112: ABHA1 | C112: 72.50506273 | D112: 24.04803541 | E112: 51.65762645 | F112: I | G112: 24
A113: EE | B113: ABHA1 | C113: 72.47120464 | D113: 23.90939294 | E113: 54.05004185 | F113: I | G113: 25
A114: EE | B114: ABHA1 | C114: 73.57876879 | D114: 24.71149306 | E114: 55.17568586 | F114: I | G114: 26
A115: EE | B115: ABHA1 | C115: 75.79154635 | D115: 25.97994002 | E115: 57.22435603 | F115: I | G115: 27
A116: EE | B116: ABHA1 | C116: 75.34008496 | D116: 25.27077802 | E116: 57.29789158 | F116: I | G116: 28
A117: EE | B117: ABHA1 | C117: 78.68417212 | D117: 27.12466203 | E117: 60.29210183 | F117: I | G117: 29
A118: EE | B118: ABHA1 | C118: 78.41586284 | D118: 26.78005336 | E118: 61.01926058 | F118: I | G118: 30
A119: EE | B119: ABHA1 | C119: 81.2344562 | D119: 27.78880248 | E119: 63.41312437 | F119: I | G119: 31
A120: EE | B120: ABHA1 | C120: 82.44860211 | D120: 28.10684501 | E120: 65.11809191 | F120: I | G120: 32
A121: EE | B121: ABHA1 | C121: 84.02208106 | D121: 29.43827138 | E121: 68.12430462 | F121: I | G121: 33
A122: EE | B122: ABHA1 | C122: 88.82068866 | D122: 31.23066523 | E122: 72.15109885 | F122: I | G122: 34
A123: EE | B123: ABHA1 | C123: 93.82987449 | D123: 33.0530178 | E123: 76.47055919 | F123: I | G123: 35
A124: EE | B124: ABHA1 | C124: 98.97815718 | D124: 34.63950728 | E124: 80.2241969 | F124: I | G124: 36
A125: EE | B125: ABHA1 | C125: 103.307556 | D125: 35.95479562 | E125: 83.21690125 | F125: I | G125: 37
A126: EE | B126: ABHA1 | C126: 106.3789695 | D126: 36.80373712 | E126: 85.3886376 | F126: I | G126: 38
A127: EE | B127: ABHA1 | C127: 109.1750833 | D127: 37.61196121 | E127: 87.25870228 | F127: I | G127: 39
A128: EE | B128: ABHA1 | C128: 111.9034764 | D128: 38.3794679 | E128: 89.13326975 | F128: I | G128: 40
A129: EE | B129: ABHA1 | C129: 112.8581798 | D129: 38.6967658 | E129: 89.79214495 | F129: I | G129: 41
A130: EE | B130: ABHA1 | C130: 113.4905101 | D130: 38.83505605 | E130: 90.14934848 | F130: I | G130: 42
A131: EE | B131: ABHA1 | C131: 113.9103292 | D131: 38.96796695 | E131: 90.45102016 | F131: I | G131: 43
A132: EE | B132: ABHA1 | C132: 114.099902 | D132: 39.10087785 | E132: 90.65063368 | F132: I | G132: 44
A133: EE | B133: ABHA1 | C133: 114.1718048 | D133: 39.1469746 | E133: 90.75269183 | F133: I | G133: 45
A134: EE | B134: ABHA1 | C134: 114.5213476 | D134: 39.187692 | E134: 90.8502472 | F134: I | G134: 46
A135: EE | B135: ABHA1 | C135: 114.8145053 | D135: 39.2284094 | E135: 90.94780256 | F135: I | G135: 47
A136: EE | B136: ABHA1 | C136: 114.8131633 | D136: 39.3206029 | E136: 91.10088979 | F136: I | G136: 48
A137: EE | B137: ABHA1 | C137: 114.8382185 | D137: 39.4127964 | E137: 91.20294795 | F137: I | G137: 49
A138: EE | B138: ABHA1 | C138: 114.9494402 | D138: 39.45889315 | E138: 91.35603517 | F138: I | G138: 50
A139: EE | B139: ABHA1 | C139: 163.6189907 | D139: 32.16312909 | E139: 53.17271686 | F139: R | G139: 24
A140: EE | B140: ABHA1 | C140: 157.2169878 | D140: 30.9002057 | E140: 51.07982237 | F140: R | G140: 25
A141: EE | B141: ABHA1 | C141: 152.3221392 | D141: 29.98367418 | E141: 49.52981397 | F141: R | G141: 26
A142: EE | B142: ABHA1 | C142: 147.3746873 | D142: 29.19807573 | E142: 48.19117035 | F142: R | G142: 27
A143: EE | B143: ABHA1 | C143: 142.8286664 | D143: 28.41247728 | E143: 46.99343658 | F143: R | G143: 28
A144: EE | B144: ABHA1 | C144: 138.9080392 | D144: 27.82327844 | E144: 46.07752253 | F144: R | G144: 29
A145: EE | B145: ABHA1 | C145: 135.4667892 | D145: 27.36501268 | E145: 45.30251832 | F145: R | G145: 30
A146: EE | B146: ABHA1 | C146: 132.0589428 | D146: 26.90674692 | E146: 44.59796905 | F146: R | G146: 31
A147: EE | B147: ABHA1 | C147: 127.582594 | D147: 26.44848115 | E147: 43.9638747 | F147: R | G147: 32
A148: EE | B148: ABHA1 | C148: 124.3915517 | D148: 26.12114846 | E148: 43.47069021 | F148: R | G148: 33
A149: EE | B149: ABHA1 | C149: 121.2869301 | D149: 25.72834924 | E149: 42.90705079 | F149: R | G149: 34
A150: EE | B150: ABHA1 | C150: 118.1906167 | D150: 25.27008348 | E150: 42.27295645 | F150: R | G150: 35
A151: EE | B151: ABHA1 | C151: 119.9746153 | D151: 25.46648309 | E151: 42.27295645 | F151: R | G151: 36
A152: EE | B152: ABHA1 | C152: 121.7653907 | D152: 25.59741616 | E152: 42.27295645 | F152: R | G152: 37
A153: EE | B153: ABHA1 | C153: 123.6985378 | D153: 25.72834924 | E153: 42.27295645 | F153: R | G153: 38
A154: EE | B154: ABHA1 | C154: 125.6938664 | D154: 25.85928231 | E154: 42.27295645 | F154: R | G154: 39
A155: EE | B155: ABHA1 | C155: 128.4070683 | D155: 26.05568193 | E155: 42.48432123 | F155: R | G155: 40
A156: EE | B156: ABHA1 | C156: 130.9332639 | D156: 26.38301462 | E156: 42.76614094 | F156: R | G156: 41
A157: EE | B157: ABHA1 | C157: 133.9657473 | D157: 26.7103473 | E157: 43.1888705 | F157: R | G157: 42
A158: EE | B158: ABHA1 | C158: 137.3230666 | D158: 27.10314653 | E158: 43.61160007 | F158: R | G158: 43
A159: EE | B159: ABHA1 | C159: 140.5799104 | D159: 27.43047922 | E159: 44.03432963 | F159: R | G159: 44
A160: EE | B160: ABHA1 | C160: 143.3823817 | D160: 27.7578119 | E160: 44.38660427 | F160: R | G160: 45
A161: EE | B161: ABHA1 | C161: 145.8172528 | D161: 28.01967805 | E161: 44.73887891 | F161: R | G161: 46
A162: EE | B162: ABHA1 | C162: 148.0690062 | D162: 28.2815442 | E162: 45.02069861 | F162: R | G162: 47
A163: EE | B163: ABHA1 | C163: 149.7830333 | D163: 28.47794382 | E163: 45.30251832 | F163: R | G163: 48
A164: EE | B164: ABHA1 | C164: 151.4323419 | D164: 28.73980997 | E164: 45.58433803 | F164: R | G164: 49
A165: EE | B165: ABHA1 | C165: 153.2092826 | D165: 29.00167612 | E165: 46.0070676 | F165: R | G165: 50
A166: EE | B166: ABHA1 | C166: 0 | D166: 0 | E166: 0 | F166: Z | G166: 24
A167: EE | B167: ABHA1 | C167: 0 | D167: 0 | E167: 0 | F167: Z | G167: 25
A168: EE | B168: ABHA1 | C168: 0 | D168: 0 | E168: 0 | F168: Z | G168: 26
A169: EE | B169: ABHA1 | C169: 0 | D169: 0 | E169: 0 | F169: Z | G169: 27
A170: EE | B170: ABHA1 | C170: 0 | D170: 0 | E170: 0 | F170: Z | G170: 28
